Workbook

Sheet Cover Sheet
C2: Model Details
C4: Model Name: | D4: TasNetworks (Public Lighting Model)
C6: Date: | D6: 2018-11-22
B20: Model Description/Scope
B22: Model Description
B24: This is a street lighting pricing model which works out the pricing for indiviual contract and public lights and estimates the total revenue build up for street lighting in $Real 2019-20.
B29: Scope/Disclaimer

Sheet Model Structure (hidden)
B9: Model Overview
B11: Legend
B20: Model Structure

Sheet Model Information
B2: Process information
B3: Public lighting includes many parts that have different life cycles which also vary depending on the light type. The main parts in a light are as follow:
B5: o Light Bracket - most lights have a bracket which allows the luminaire to be attached to a power pole, this is capital expenditure. There are some lights that are on private piles that do not require brackets, these poles and built in brackets are not the responsibility of TasNetworks. Brackets are assumed to have a life cycle of 40 years
B9: o Luminaire - The luminaire is the light fitting that the lamp is within and is a capital expenditure. Luminaires are assumed to have a life cycle of 20 years
B12: o Lamp - Within the luminaire is a lamp that requires replacement depending on the light type. Normal lights have a life cycle of 4.5 years on average therefore the replacement program is every 4 years as opex expenditure. LED lights are the exception as they last 20 years and are replaced when the luminaire requires replacing.
B16: o PE Cell - Public lights are switched on and off using PE Cells which in the last 30 years have replaced overhead switch wires as a new technology. They are replaced either with the lamp on after 10 year as opex.
B19: o Installation Cost - The TasNetworks POW has inbuilt unit prices for both opex and capex installation costs of public lights. These prices have been used for luminaire /Bracket capex installation excluding the material proportion plus actual materials from the warehouse prices. The same method has been used for Opex maintenance (Lamp & PE Cell replacement), using the POW unit rate net of materials plus actual materials for the individual light type. The 2 unit rates are determined using the Major/minor allocation of the light.
B25: Public lighting prices have previously used the annuity method rather than a RAB method. The annuity method is more accurate and produces more cost reflective prices compared to the RAB method which has some unreliable data. The opening RAB data was estimated by the business therefore its accuracy is unknown, because of this the PTRM output is used as a indicator test for the Annuity method.
B32: Assumptions
B33: Brackets
B34: A sample base for brackets has been sourced from the thread leader which aligns the light type with bracket type and cost. This sample base of 10,000 out of a total of 40,000+ lights is assumed to represent the whole fleet of brackets.
B37: Of the 40,000+ public lights there are a number of private poles for the public light that do not require a bracket. The public lighting asset management plan has the total number of brackets in the fleet (not down to type assigned to light type for costing). Therefore the cost of the brackets is weighted so that only the total number of brackets are recovered.
B41: Lamps
B42: Lamps have a assumed life cycle of 4.5 years therefore they are replaced within the POW after 4 years. LEDs do not require a lamp replacement within the 20 year life cycle of the luminaire.
B45: PE Cells
B46: There are two types of PE Cells and it is assumed that major lights have the more expensive cell installed while the minor lights have the smaller and cheaper PE Cell.
B49: PE Cells have a assumed 10 year life therefore to align with the 4 year lamp replacement program they are replaced after 8 years however with LED's they are replaced after 10 years.
B52: Installation and maintenance cost
B53: The POW assumption about what lights are major and minor for work to be completed is based on lights less than or greater than 100 watts. This results in a higher cost associated with the major lights due to higher costs performing maintenance and installation.
B56: It is assumed that the cost of performing a Lamp replacement is the same doing the PE Cell at the same time or only PE cell.
B59: It is assumed that the cost of performing a luminaire installation/replacement is the same doing the Brackett at the same time
B62: Other assumptions
B63: It is assumed that contract prices for materials are to remain consistent with current prices.
B66: Where a warehouse price is not available due to the light type is obsolete the previous determination prices have been indexed.
B69: Indirect capex that is not included in the unit price build up is included in the annuity calculation and assumed to have a 40 year life given it is work on the street lights that have the same life.
B72: Private contract lights are owned by client and TasNetworks just performs maintenance on the light. Capital replacements are the responsibility of the owner.
B75: New Technology - minor lighting is assumed the same as our current latest technology (LED 14W), Major lighting for LED technology has not been trialled, the equivalent LED technology to our 150W and 250W sodium vapour is a 160W LED, maintenance cycles are unknown so have assumed to be the same as the current 250W sodium vapour.

Sheet TN Changes
A2: Item | B2: Sheet \ Location | C2: Comment
A4: 1 | B4: Revenue Nominal RAB | C4: Deleted Sheet (not relevant to Annuity Calculation)
A6: 2 | B6: Capex Weighting A14:Z80 | C6: Deleted hidden rows (not relevant to annuity calculation)
A8: 3 | B8: Opex Weighting A13:Z78 | C8: Deleted hidden rows (not relevant to annuity calculation)
A10: 4 | B10: Capex Weighting O:X | C10: Deleted columns (duplicate information)
A12: 5 | B12: Opex Weighting P:Z | C12: Deleted columns (duplicate information)
A14: 6 | B14: Mater Data A43:T46 | C14: Deleted rows (not relevant to annuity calculation)
A16: 7 | B16: CAPEX Annuity Calcs E:N | C16: Formula Changes
B18: Bracket UNIT Price column E | C18: From '=VLOOKUP($B9,Inputs!$C$68:$AN$129,MATCH($B10,Inputs!$C$68:$AN$68,0),FALSE)*'Master Data'!$K$46
C19: To '=VLOOKUP($B9,Inputs!$C$68:$AN$129,MATCH($B10,Inputs!$C$68:$AN$68,0),FALSE)
B21: Bracket UNIT Price column F:N | C21: From '=E10*(1+'Master Data'!L$45)
C22: To '=E10
B24: Luminaire UNIT price column E | C24: From '=VLOOKUP($B9,Inputs!$C$68:$AN$129,MATCH($B12,Inputs!$C$68:$AN$68,0),FALSE)*'Master Data'!$K$43
C25: To '=VLOOKUP($B9,Inputs!$C$68:$AN$129,MATCH($B12,Inputs!$C$68:$AN$68,0),FALSE)
B27: Luminaire UNIT price column F:N | C27: From '=E12*(1+'Master Data'!L$43)
C28: To '=E12
B30: CAPEX Instalation costs column E | C30: From '=(VLOOKUP($B9,Inputs!$C$68:$AN$129,MATCH($B13,Inputs!$C$68:$AN$68,0),FALSE)+(VLOOKUP($B9,Inputs!$C$68:$AN$129,MATCH($A13,Inputs!$C$68:$AN$68,0),FALSE)*('Master Data'!K$42)))*'Master Data'!$K$43
C31: To '=VLOOKUP($B9,Inputs!$C$68:$AN$129,MATCH($B13,Inputs!$C$68:$AN$68,0),FALSE)+(VLOOKUP($B9,Inputs!$C$68:$AN$129,MATCH($A13,Inputs!$C$68:$AN$68,0),FALSE)*('Master Data'!K$42))
B33: CAPEX Instalation costs column F:N | C33: From '=(VLOOKUP($B9,Inputs!$C$68:$AN$129,MATCH($B13,Inputs!$C$68:$AN$68,0),FALSE)+(VLOOKUP($B9,Inputs!$C$68:$AN$129,MATCH($A13,Inputs!$C$68:$AN$68,0),FALSE)*('Master Data'!L$42)))*(1+'Master Data'!L$43)
C34: To '=VLOOKUP($B9,Inputs!$C$68:$AN$129,MATCH($B13,Inputs!$C$68:$AN$68,0),FALSE)+(VLOOKUP($B9,Inputs!$C$68:$AN$129,MATCH($A13,Inputs!$C$68:$AN$68,0),FALSE)*('Master Data'!L$42))
A36: 8 | B36: Capex Weighting A29:M29, A33:M33 | C36: Reallocate RLOLI and RLWBP from Indirect to direct Capital expenditure
B38: Capex - New Streetlight installation - RLOLI
B39: Capex - Replace condemned wide based steel poles - RLWBP
A41: 9 | B41: Building Block C52 | C41: Change opening regulated asset base amount from $1,660,347 to $550,413.22 to reflect the change from RLOLI and RLWBP being reallocated to direct capital expenditure
A43: 10 | B43: Volumes D5: H79 | C43: Update volumes
A45: 11 | B45: Corporate overheads H:I | C45: add overhead adjustment
B46: E4:E13 | C46: Adjust formula for overhead adjustment
B47: D18:D27 | C47: Adjust formula for overhead adjustment
A49: 12 | B49: Capex Weighting
B50: B14:M17 | C50: Capex adjustment due to volume changes
B51: D22: M23, D31:M32 | C51: Formula changes due to capex changes
A53: 13 | B53: Add tab 'Adjustment "A" | C53: Additional tab to bring prices back to Proposed price path
A56: 14 | B56: Smoothed Prices with Price Path
B57: D12: M70 | C57: adjust formula for Adjustment
C58: From '=IF($C12="NA","",'Smoothed Prices'!D12+$D$6)
C59: To '=IF($C12="NA","",'Smoothed Prices'!D12+'Adjustment "A"'!O12)
B60: D75: M133 | C60: adjust formula for Adjustment
C61: From '=IF($C75="NA","",'Smoothed Prices'!D75+$D$7)
C62: To '=IF($C75="NA","",'Smoothed Prices'!D75+'Adjustment "A"'!O75)
A64: 15 | B64: Bracket Data | C64: Removed information
B65: B5:AZ24539
B66: BC5:CF24539
A69: 16 | B69: Warehousing Pricing | C69: Removed information
B70: C9:M70
B71: C85:C95
B72: F85:M95
A77: August 2018 changes
A78: 1 | B78: Master Data | C78: Update WACC
B79: B45 - Nominal Vanilla WACC | C79: Changed from 5.89% to 5.89% - as per PTRM [TN- Post Tax Revenue Model (PTRM) Distribution - Standard Control.xlsm]WACC
B80: B46 - Pre-tax Real WACC Rate | C80: Changed from 3.66% to 3.95% - as per PTRM [TN- Post Tax Revenue Model (PTRM) Distribution - Standard Control.xlsm]WACC
A87: Revised Proposal
A88: 1 | B88: Warehouse Prices
B89: T8:V70 | C89: Include foreign exchange variation
B90: Q1:V3 | C90: Foreign exchange contract varition to 31 March 2017
A92: 2 | B92: Inputs
B93: E53:E57 | C93: Update static values
A95: 3 | B95: Various | C95: Add data and code beyond 2023/24 - 2028/29
A97: 4 | B97: Sheet "Smoothed Prices with Price Path" | C97: Added

Sheet AER Changes
A2: Item | B2: Sheet \ Location | C2: Comment
A4: 1 | B4: Various | C4: Removed all data and code beyond 2023/24
A6: =A4+1 -> 2 | B6: Sheet "Adjustment "A" | C6: Removed
A8: =A6+1 -> 3 | B8: Sheet "Smoothed Prices with Price Path" | C8: Removed
A10: =A8+1 -> 4 | B10: Smoothed Prices'!C11:I133 | C10: Presentation & Formulae changes
B11: Smoothed Prices'!P138:U153
A13: =A10+1 -> 5 | B13: Smoothed Prices'!Q149:R149 | C13: AER Price Path - finalised - AER Pre-tax Real WACC Rate has been finalised - refer Item 16 below
A15: =A13+1 -> 6 | B15: Unsmoothed Prices'!D10:D68 | C15: Approved prices for 2018-19
B16: Unsmoothed Prices'!D73:D131
A18: =A15+1 -> 7 | B18: Unsmoothed Prices'!Q137:U137 | C18: Incorrect formulae
A20: =A18+1 -> 8 | B20: Inputs!AD68 | C20: Incorrect label
A22: =A20+1 -> 9 | B22: Inputs!AD69:AD127 | C22: Incorrect formulae
A24: =A22+1 -> 10 | B24: Inputs!Z102:Z104 | C24: Incorrect formulae
B25: Inputs!Z106:Z108
A27: =A24+1 -> 11 | B27: CAPEX Annuity calcs'!A13:A356 | C27: Label changed to be consistent with "Inputs" sheet - refer Item 1 above
A29: =A27+1 -> 12 | B29: Building Block'!C9:G9 | C29: Replaced incorrect hard coded data with formulae
A31: =A29+1 -> 13 | B31: Master Data'!I35 | C31: Forecast CPI replaced with actual CPI for 2017-18
A32: =A31+1 -> 14 | B32: Master Data'!K40:O40 | C32: AER Real Labour Escalator
A33: =A32+1 -> 15 | B33: Master Data'!B44 | C33: AER Forecast CPI
A34: 16 | B34: Master Data'!A45 | C34: AER Nominal Vanilla WACC
A35: 17 | B35: Master Data'!A46 | C35: AER Pre-tax Real WACC Rate - updated : SCS PTRM run 22 / 8 /2018

Sheet Smoothed Prices with Price Path
B1: $2018-19 base data
Q3: THIS TAKES 18/19 SMOOTHED PRICES ADDS CPI | AM3: THIS TAKES 18/19 SMOOTHED PRICES and multiplys by no.days in year/100 to convert $s into cents | AX3: THIS TAKES nominal and multiplys by no days in year/100
B4: Private Contract Lights
G5: Adjustment ('A') | L5: Adjustment ('A')
C6: Adjustment CL | E6: -4 | F6: 0.65 | G6: 0.65 | H6: 0.65 | I6: 0.65 | J6: -0.8 | K6: 0.2 | L6: 0.2 | M6: 0.2 | N6: 0.2
C7: Adjustment PL | E7: -10 | F7: 1.75 | G7: 1.75 | H7: 1.75 | I7: 1.75 | J7: -1.8 | K7: 0.45 | L7: 0.45 | M7: 0.45 | N7: 0.45
D8: Approved | E8: X Factor | J8: X Factor | P8: Days | Q8: ='Master Data'!K28 -> 366 | R8: ='Master Data'!L28 -> 365 | S8: ='Master Data'!M28 -> 365 | T8: ='Master Data'!N28 -> 365 | U8: ='Master Data'!O28 -> 366 | V8: ='Master Data'!P28 -> 365 | W8: ='Master Data'!Q28 -> 365 | X8: ='Master Data'!R28 -> 365 | Y8: ='Master Data'!S28 -> 366 | Z8: ='Master Data'!T28 -> 365
D9: Prices | F9: =Q148 -> 0.02977890484 | G9: =Q148 -> 0.02977890484 | H9: =Q148 -> 0.02977890484 | I9: =Q148 -> 0.02977890484 | K9: =V148 -> -0.002092809345 | L9: =V148 -> -0.002092809345 | M9: =V148 -> -0.002092809345 | N9: =V148 -> -0.002092809345 | P9: CPI | Q9: ='Master Data'!K39 -> 1.024499511 | R9: ='Master Data'!L39 -> 1.049599249 | S9: ='Master Data'!M39 -> 1.075313918 | T9: ='Master Data'!N39 -> 1.101658584 | U9: ='Master Data'!O39 -> 1.128648681 | V9: ='Master Data'!P39 -> 1.156300022 | W9: ='Master Data'!Q39 -> 1.184628808 | X9: ='Master Data'!R39 -> 1.213651635 | Y9: ='Master Data'!S39 -> 1.243385507 | Z9: ='Master Data'!T39 -> 1.273847844 | AM9: =HLOOKUP(AM11,'Master Data'!$B$25:$P$28,4,FALSE) -> 366 | AN9: =HLOOKUP(AN11,'Master Data'!$B$25:$P$28,4,FALSE) -> 365 | AO9: =HLOOKUP(AO11,'Master Data'!$B$25:$P$28,4,FALSE) -> 365 | AP9: =HLOOKUP(AP11,'Master Data'!$B$25:$P$28,4,FALSE) -> 365 | AQ9: =HLOOKUP(AQ11,'Master Data'!$B$25:$P$28,4,FALSE) -> 366 | AR9: =HLOOKUP(AR11,'Master Data'!$B$25:$T$28,4,FALSE) -> 365 | AS9: =HLOOKUP(AS11,'Master Data'!$B$25:$T$28,4,FALSE) -> 365 | AT9: =HLOOKUP(AT11,'Master Data'!$B$25:$T$28,4,FALSE) -> 365 | AU9: =HLOOKUP(AU11,'Master Data'!$B$25:$T$28,4,FALSE) -> 366 | AV9: =HLOOKUP(AV11,'Master Data'!$B$25:$T$28,4,FALSE) -> 365 | AX9: =HLOOKUP(AX11,'Master Data'!$B$25:$P$28,4,FALSE) -> 366 | AY9: =HLOOKUP(AY11,'Master Data'!$B$25:$P$28,4,FALSE) -> 365 | AZ9: =HLOOKUP(AZ11,'Master Data'!$B$25:$P$28,4,FALSE) -> 365 | BA9: =HLOOKUP(BA11,'Master Data'!$B$25:$P$28,4,FALSE) -> 365 | BB9: =HLOOKUP(BB11,'Master Data'!$B$25:$P$28,4,FALSE) -> 366 | BC9: =HLOOKUP(BC11,'Master Data'!$B$25:$T$28,4,FALSE) -> 365 | BD9: =HLOOKUP(BD11,'Master Data'!$B$25:$T$28,4,FALSE) -> 365 | BE9: =HLOOKUP(BE11,'Master Data'!$B$25:$T$28,4,FALSE) -> 365 | BF9: =HLOOKUP(BF11,'Master Data'!$B$25:$T$28,4,FALSE) -> 366 | BG9: =HLOOKUP(BG11,'Master Data'!$B$25:$T$28,4,FALSE) -> 365
B10: Private Contract Lights | E10: Price (cents) per Light per day Real 2018/19 Smoothed | J10: Price (cents) per Light per day Real 2018/19 Smoothed | Q10: Price (cents) per Light per day Nominal Smoothed | AB10: Volumes | AM10: Smooth Real 2018/19 Cost Dollars Per Year | AX10: Smooth Nominal Cost Dollars Per Year | BJ10: Revenue Real Real Dollars Per Year | BV10: Revenue Nominal Dollars Per Year | CA10: Revenue Nominal Dollars Per Year
C11: Offered / No Longer Offered / NA | D11: ='Master Data'!J$34 -> 2018-19 | E11: ='Master Data'!K$34 -> 2019-20 | F11: ='Master Data'!L$34 -> 2020-21 | G11: ='Master Data'!M$34 -> 2021-22 | H11: ='Master Data'!N$34 -> 2022-23 | I11: ='Master Data'!O$34 -> 2023-24 | J11: ='Master Data'!P$34 -> 2024-25 | K11: ='Master Data'!Q$34 -> 2025-26 | L11: ='Master Data'!R$34 -> 2026-27 | M11: ='Master Data'!S$34 -> 2027-28 | N11: ='Master Data'!T$34 -> 2028-29 | Q11: ='Master Data'!K$34 -> 2019-20 | R11: ='Master Data'!L$34 -> 2020-21 | S11: ='Master Data'!M$34 -> 2021-22 | T11: ='Master Data'!N$34 -> 2022-23 | U11: ='Master Data'!O$34 -> 2023-24 | V11: ='Master Data'!P$34 -> 2024-25 | W11: ='Master Data'!Q$34 -> 2025-26 | X11: ='Master Data'!R$34 -> 2026-27 | Y11: ='Master Data'!S$34 -> 2027-28 | Z11: ='Master Data'!T$34 -> 2028-29 | AB11: ='Master Data'!K$34 -> 2019-20 | AC11: ='Master Data'!L$34 -> 2020-21 | AD11: ='Master Data'!M$34 -> 2021-22 | AE11: ='Master Data'!N$34 -> 2022-23 | AF11: ='Master Data'!O$34 -> 2023-24 | AG11: ='Master Data'!P$34 -> 2024-25 | AH11: ='Master Data'!Q$34 -> 2025-26 | AI11: ='Master Data'!R$34 -> 2026-27 | AJ11: ='Master Data'!S$34 -> 2027-28 | AK11: ='Master Data'!T$34 -> 2028-29 | AM11: ='Master Data'!K$34 -> 2019-20 | AN11: ='Master Data'!L$34 -> 2020-21 | AO11: ='Master Data'!M$34 -> 2021-22 | AP11: ='Master Data'!N$34 -> 2022-23 | AQ11: ='Master Data'!O$34 -> 2023-24 | AR11: ='Master Data'!P$34 -> 2024-25 | AS11: ='Master Data'!Q$34 -> 2025-26 | AT11: ='Master Data'!R$34 -> 2026-27 | AU11: ='Master Data'!S$34 -> 2027-28 | AV11: ='Master Data'!T$34 -> 2028-29 | AX11: ='Master Data'!K$34 -> 2019-20 | AY11: ='Master Data'!L$34 -> 2020-21 | AZ11: ='Master Data'!M$34 -> 2021-22 | BA11: ='Master Data'!N$34 -> 2022-23 | BB11: ='Master Data'!O$34 -> 2023-24 | BC11: ='Master Data'!P$34 -> 2024-25 | BD11: ='Master Data'!Q$34 -> 2025-26 | BE11: ='Master Data'!R$34 -> 2026-27 | BF11: ='Master Data'!S$34 -> 2027-28 | BG11: ='Master Data'!T$34 -> 2028-29 | BJ11: ='Master Data'!K$34 -> 2019-20 | BK11: ='Master Data'!L$34 -> 2020-21 | BL11: ='Master Data'!M$34 -> 2021-22 | BM11: ='Master Data'!N$34 -> 2022-23 | BN11: ='Master Data'!O$34 -> 2023-24 | BO11: ='Master Data'!P$34 -> 2024-25 | BP11: ='Master Data'!Q$34 -> 2025-26 | BQ11: ='Master Data'!R$34 -> 2026-27 | BR11: ='Master Data'!S$34 -> 2027-28 | BS11: ='Master Data'!T$34 -> 2028-29 | BV11: ='Master Data'!K$34 -> 2019-20 | BW11: ='Master Data'!L$34 -> 2020-21 | BX11: ='Master Data'!M$34 -> 2021-22 | BY11: ='Master Data'!N$34 -> 2022-23 | BZ11: ='Master Data'!O$34 -> 2023-24 | CA11: ='Master Data'!P$34 -> 2024-25 | CB11: ='Master Data'!Q$34 -> 2025-26 | CC11: ='Master Data'!R$34 -> 2026-27 | CD11: ='Master Data'!S$34 -> 2027-28 | CE11: ='Master Data'!T$34 -> 2028-29
B12: =Inputs!$C69 -> 32W Compact Fluorescent | C12: Old light no volumes | D12: =IF($C12="NA","",'Unsmoothed Prices'!D10) -> 18.221 | E12: =IF($C12="NA","",'Smoothed Prices'!E12+$E$6) -> 18.70969877 | F12: =IF($C12="NA","",E12*(1-F$9)+$F$6) -> 18.80254443 | G12: =IF($C12="NA","",F12*(1-G$9)+$G$6) -> 18.89262525 | H12: =IF($C12="NA","",G12*(1-H$9)+$H$6) -> 18.98002356 | I12: =IF($C12="NA","",H12*(1-I$9)+$I$6) -> 19.06481924 | J12: =IF($C12="NA","",'Smoothed Prices'!J12+$J$6) -> 19.36518319 | K12: =IF($C12="NA","",J12*(1-K$9)+$K$6) -> 19.60571083 | L12: =IF($C12="NA","",K12*(1-L$9)+$L$6) -> 19.84674184 | M12: =IF($C12="NA","",L12*(1-M$9)+$M$6) -> 20.08827729 | N12: =IF($C12="NA","",M12*(1-N$9)+$N$6) -> 20.33031822 | O12: ='Smoothed Prices'!N12 -> 20.33452139 | Q12: =IF($C12="NA","",E12*Q$9) -> 19.16807725 | R12: 19.73513651 | S12: 20.31550287 | T12: 20.90950587 | U12: 21.51748308 | V12: 22.39196175 | W12: 23.22548984 | X12: 24.08703068 | Y12: 24.97747284 | Z12: 25.89773205 | AB12: =IFERROR(VLOOKUP($B12,Volumes!$B$4:$H$33,MATCH(AB$11,Volumes!$B$4:$H$4,0),FALSE),0) -> 0 | AC12: =IFERROR(VLOOKUP($B12,Volumes!$B$4:$H$33,MATCH(AC$11,Volumes!$B$4:$H$4,0),FALSE),0) -> 0 | AD12: =IFERROR(VLOOKUP($B12,Volumes!$B$4:$H$33,MATCH(AD$11,Volumes!$B$4:$H$4,0),FALSE),0) -> 0 | AE12: =IFERROR(VLOOKUP($B12,Volumes!$B$4:$H$33,MATCH(AE$11,Volumes!$B$4:$H$4,0),FALSE),0) -> 0 | AF12: =IFERROR(VLOOKUP($B12,Volumes!$B$4:$H$33,MATCH(AF$11,Volumes!$B$4:$H$4,0),FALSE),0) -> 0 | AG12: =IFERROR(VLOOKUP($B12,Volumes!$B$4:$M$33,MATCH(AG$11,Volumes!$B$4:$M$4,0),FALSE),0) -> 0 | AH12: =IFERROR(VLOOKUP($B12,Volumes!$B$4:$M$33,MATCH(AH$11,Volumes!$B$4:$M$4,0),FALSE),0) -> 0 | AI12: =IFERROR(VLOOKUP($B12,Volumes!$B$4:$M$33,MATCH(AI$11,Volumes!$B$4:$M$4,0),FALSE),0) -> 0 | AJ12: =IFERROR(VLOOKUP($B12,Volumes!$B$4:$M$33,MATCH(AJ$11,Volumes!$B$4:$M$4,0),FALSE),0) -> 0 | AK12: =IFERROR(VLOOKUP($B12,Volumes!$B$4:$M$33,MATCH(AK$11,Volumes!$B$4:$M$4,0),FALSE),0) -> 0 | AM12: =IF($C12="NA","",(E12*AM$9)/100) -> 68.47749748 | AN12: 68.62928716 | AO12: 68.95808215 | AP12: 69.27708598 | AQ12: 69.77723842 | AR12: 70.68291865 | AS12: 71.56084452 | AT12: 72.44060773 | AU12: 73.52309488 | AV12: 74.20566152 | AX12: =IF($C12="NA","",(Q12*AX$9)/100) -> 70.15516272 | AY12: 72.03324826 | AZ12: 74.15158548 | BA12: 76.31969642 | BB12: 78.75398809 | BC12: 81.73066039 | BD12: 84.77303792 | BE12: 87.91766199 | BF12: 91.4175506 | BG12: 94.52672197 | BJ12: =IFERROR(AM12*AB12,0) -> 0 | BK12: 0 | BL12: 0 | BM12: 0 | BN12: 0 | BO12: 0 | BP12: 0 | BQ12: 0 | BR12: 0 | BS12: 0 | BV12: =IFERROR(AX12*AB12,0) -> 0 | BW12: 0 | BX12: 0 | BY12: 0 | BZ12: 0 | CA12: 0 | CB12: 0 | CC12: 0 | CD12: 0 | CE12: 0
B13: =Inputs!$C70 -> 42W Compact Fluorescent | C13: Old light no volumes | D13: =IF($C13="NA","",'Unsmoothed Prices'!D11) -> 18.222 | E13: =IF($C13="NA","",'Smoothed Prices'!E13+$E$6) -> 18.70969877 | F13: =IF($C13="NA","",E13*(1-F$9)+$F$6) -> 18.80254443 | G13: =IF($C13="NA","",F13*(1-G$9)+$G$6) -> 18.89262525 | H13: =IF($C13="NA","",G13*(1-H$9)+$H$6) -> 18.98002356 | I13: =IF($C13="NA","",H13*(1-I$9)+$I$6) -> 19.06481924 | J13: =IF($C13="NA","",'Smoothed Prices'!J13+$J$6) -> 19.36518319 | K13: =IF($C13="NA","",J13*(1-K$9)+$K$6) -> 19.60571083 | L13: =IF($C13="NA","",K13*(1-L$9)+$L$6) -> 19.84674184 | M13: =IF($C13="NA","",L13*(1-M$9)+$M$6) -> 20.08827729 | N13: =IF($C13="NA","",M13*(1-N$9)+$N$6) -> 20.33031822 | O13: ='Smoothed Prices'!N13 -> 20.33452139 | Q13: 19.16807725 | R13: 19.73513651 | S13: 20.31550287 | T13: 20.90950587 | U13: 21.51748308 | V13: 22.39196175 | W13: 23.22548984 | X13: 24.08703068 | Y13: 24.97747284 | Z13: 25.89773205 | AB13: =IFERROR(VLOOKUP($B13,Volumes!$B$4:$H$33,MATCH(AB$11,Volumes!$B$4:$H$4,0),FALSE),0) -> 28 | AC13: =IFERROR(VLOOKUP($B13,Volumes!$B$4:$H$33,MATCH(AC$11,Volumes!$B$4:$H$4,0),FALSE),0) -> 28 | AD13: =IFERROR(VLOOKUP($B13,Volumes!$B$4:$H$33,MATCH(AD$11,Volumes!$B$4:$H$4,0),FALSE),0) -> 28 | AE13: =IFERROR(VLOOKUP($B13,Volumes!$B$4:$H$33,MATCH(AE$11,Volumes!$B$4:$H$4,0),FALSE),0) -> 28 | AF13: =IFERROR(VLOOKUP($B13,Volumes!$B$4:$H$33,MATCH(AF$11,Volumes!$B$4:$H$4,0),FALSE),0) -> 28 | AG13: =IFERROR(VLOOKUP($B13,Volumes!$B$4:$M$33,MATCH(AG$11,Volumes!$B$4:$M$4,0),FALSE),0) -> 28 | AH13: =IFERROR(VLOOKUP($B13,Volumes!$B$4:$M$33,MATCH(AH$11,Volumes!$B$4:$M$4,0),FALSE),0) -> 28 | AI13: =IFERROR(VLOOKUP($B13,Volumes!$B$4:$M$33,MATCH(AI$11,Volumes!$B$4:$M$4,0),FALSE),0) -> 28 | AJ13: =IFERROR(VLOOKUP($B13,Volumes!$B$4:$M$33,MATCH(AJ$11,Volumes!$B$4:$M$4,0),FALSE),0) -> 28 | AK13: =IFERROR(VLOOKUP($B13,Volumes!$B$4:$M$33,MATCH(AK$11,Volumes!$B$4:$M$4,0),FALSE),0) -> 28 | AM13: 68.47749748 | AN13: 68.62928716 | AO13: 68.95808215 | AP13: 69.27708598 | AQ13: 69.77723842 | AR13: 70.68291865 | AS13: 71.56084452 | AT13: 72.44060773 | AU13: 73.52309488 | AV13: 74.20566152 | AX13: 70.15516272 | AY13: 72.03324826 | AZ13: 74.15158548 | BA13: 76.31969642 | BB13: 78.75398809 | BC13: 81.73066039 | BD13: 84.77303792 | BE13: 87.91766199 | BF13: 91.4175506 | BG13: 94.52672197 | BJ13: 1917.36993 | BK13: 1921.62004 | BL13: 1930.8263 | BM13: 1939.758408 | BN13: 1953.762676 | BO13: 1979.121722 | BP13: 2003.703647 | BQ13: 2028.337016 | BR13: 2058.646657 | BS13: 2077.758523 | BV13: 1964.344556 | BW13: 2016.930951 | BX13: 2076.244394 | BY13: 2136.9515 | BZ13: 2205.111666 | CA13: 2288.458491 | CB13: 2373.645062 | CC13: 2461.694536 | CD13: 2559.691417 | CE13: 2646.748215
B14: =Inputs!$C71 -> 42W Compact Fluorescent - Bottom Pole Entry | C14: Old light no volumes | D14: =IF($C14="NA","",'Unsmoothed Prices'!D12) -> 18.222 | E14: =IF($C14="NA","",'Smoothed Prices'!E14+$E$6) -> 18.70969877 | F14: 18.80254443 | G14: 18.89262525 | H14: 18.98002356 | I14: 19.06481924 | J14: =IF($C14="NA","",'Smoothed Prices'!J14+$J$6) -> 19.36518319 | K14: 19.60571083 | L14: 19.84674184 | M14: 20.08827729 | N14: 20.33031822 | O14: ='Smoothed Prices'!N14 -> 20.33452139 | Q14: 19.16807725 | R14: 19.73513651 | S14: 20.31550287 | T14: 20.90950587 | U14: 21.51748308 | V14: 22.39196175 | W14: 23.22548984 | X14: 24.08703068 | Y14: 24.97747284 | Z14: 25.89773205 | AB14: =IFERROR(VLOOKUP($B14,Volumes!$B$4:$H$33,MATCH(AB$11,Volumes!$B$4:$H$4,0),FALSE),0) -> 0 | AC14: =IFERROR(VLOOKUP($B14,Volumes!$B$4:$H$33,MATCH(AC$11,Volumes!$B$4:$H$4,0),FALSE),0) -> 0 | AD14: =IFERROR(VLOOKUP($B14,Volumes!$B$4:$H$33,MATCH(AD$11,Volumes!$B$4:$H$4,0),FALSE),0) -> 0 | AE14: =IFERROR(VLOOKUP($B14,Volumes!$B$4:$H$33,MATCH(AE$11,Volumes!$B$4:$H$4,0),FALSE),0) -> 0 | AF14: =IFERROR(VLOOKUP($B14,Volumes!$B$4:$H$33,MATCH(AF$11,Volumes!$B$4:$H$4,0),FALSE),0) -> 0 | AG14: =IFERROR(VLOOKUP($B14,Volumes!$B$4:$M$33,MATCH(AG$11,Volumes!$B$4:$M$4,0),FALSE),0) -> 0 | AH14: =IFERROR(VLOOKUP($B14,Volumes!$B$4:$M$33,MATCH(AH$11,Volumes!$B$4:$M$4,0),FALSE),0) -> 0 | AI14: =IFERROR(VLOOKUP($B14,Volumes!$B$4:$M$33,MATCH(AI$11,Volumes!$B$4:$M$4,0),FALSE),0) -> 0 | AJ14: =IFERROR(VLOOKUP($B14,Volumes!$B$4:$M$33,MATCH(AJ$11,Volumes!$B$4:$M$4,0),FALSE),0) -> 0 | AK14: =IFERROR(VLOOKUP($B14,Volumes!$B$4:$M$33,MATCH(AK$11,Volumes!$B$4:$M$4,0),FALSE),0) -> 0 | AM14: 68.47749748 | AN14: 68.62928716 | AO14: 68.95808215 | AP14: 69.27708598 | AQ14: 69.77723842 | AR14: 70.68291865 | AS14: 71.56084452 | AT14: 72.44060773 | AU14: 73.52309488 | AV14: 74.20566152 | AX14: 70.15516272 | AY14: 72.03324826 | AZ14: 74.15158548 | BA14: 76.31969642 | BB14: 78.75398809 | BC14: 81.73066039 | BD14: 84.77303792 | BE14: 87.91766199 | BF14: 91.4175506 | BG14: 94.52672197 | BJ14: 0 | BK14: 0 | BL14: 0 | BM14: 0 | BN14: 0 | BO14: 0 | BP14: 0 | BQ14: 0 | BR14: 0 | BS14: 0 | BV14: 0 | BW14: 0 | BX14: 0 | BY14: 0 | BZ14: 0 | CA14: 0 | CB14: 0 | CC14: 0 | CD14: 0 | CE14: 0
B15: =Inputs!$C72 -> 2x24W Compact Fluorescent | C15: Old light no volumes | D15: =IF($C15="NA","",'Unsmoothed Prices'!D13) -> 18.545 | E15: =IF($C15="NA","",'Smoothed Prices'!E15+$E$6) -> 19.11589838 | F15: 19.19664786 | G15: 19.27499271 | H15: 19.35100454 | I15: 19.42475282 | J15: =IF($C15="NA","",'Smoothed Prices'!J15+$J$6) -> 19.72587004 | K15: 19.96715253 | L15: 20.20893997 | M15: 20.45123343 | N15: 20.69403396 | O15: ='Smoothed Prices'!N15 -> 20.69823713 | Q15: 19.58422855 | R15: 20.14878718 | S15: 20.72666793 | T15: 21.31820025 | U15: 21.92372164 | V15: 22.80902396 | W15: 23.65366409 | X15: 24.52661303 | Y15: 25.42876724 | Z15: 26.36105055 | AB15: =IFERROR(VLOOKUP($B15,Volumes!$B$4:$H$33,MATCH(AB$11,Volumes!$B$4:$H$4,0),FALSE),0) -> 0 | AC15: =IFERROR(VLOOKUP($B15,Volumes!$B$4:$H$33,MATCH(AC$11,Volumes!$B$4:$H$4,0),FALSE),0) -> 0 | AD15: =IFERROR(VLOOKUP($B15,Volumes!$B$4:$H$33,MATCH(AD$11,Volumes!$B$4:$H$4,0),FALSE),0) -> 0 | AE15: =IFERROR(VLOOKUP($B15,Volumes!$B$4:$H$33,MATCH(AE$11,Volumes!$B$4:$H$4,0),FALSE),0) -> 0 | AF15: =IFERROR(VLOOKUP($B15,Volumes!$B$4:$H$33,MATCH(AF$11,Volumes!$B$4:$H$4,0),FALSE),0) -> 0 | AG15: =IFERROR(VLOOKUP($B15,Volumes!$B$4:$M$33,MATCH(AG$11,Volumes!$B$4:$M$4,0),FALSE),0) -> 0 | AH15: =IFERROR(VLOOKUP($B15,Volumes!$B$4:$M$33,MATCH(AH$11,Volumes!$B$4:$M$4,0),FALSE),0) -> 0 | AI15: =IFERROR(VLOOKUP($B15,Volumes!$B$4:$M$33,MATCH(AI$11,Volumes!$B$4:$M$4,0),FALSE),0) -> 0 | AJ15: =IFERROR(VLOOKUP($B15,Volumes!$B$4:$M$33,MATCH(AJ$11,Volumes!$B$4:$M$4,0),FALSE),0) -> 0 | AK15: =IFERROR(VLOOKUP($B15,Volumes!$B$4:$M$33,MATCH(AK$11,Volumes!$B$4:$M$4,0),FALSE),0) -> 0 | AM15: 69.96418808 | AN15: 70.0677647 | AO15: 70.35372341 | AP15: 70.63116657 | AQ15: 71.09459531 | AR15: 71.99942565 | AS15: 72.88010672 | AT15: 73.76263089 | AU15: 74.85151435 | AV15: 75.53322395 | AX15: 71.67827651 | AY15: 73.54307321 | AZ15: 75.65233795 | BA15: 77.81143092 | BB15: 80.2408212 | BC15: 83.25293746 | BD15: 86.33587392 | BE15: 89.52213756 | BF15: 93.0692881 | BG15: 96.21783451 | BJ15: 0 | BK15: 0 | BL15: 0 | BM15: 0 | BN15: 0 | BO15: 0 | BP15: 0 | BQ15: 0 | BR15: 0 | BS15: 0 | BV15: 0 | BW15: 0 | BX15: 0 | BY15: 0 | BZ15: 0 | CA15: 0 | CB15: 0 | CC15: 0 | CD15: 0 | CE15: 0
B16: =Inputs!$C73 -> 1x20W Fluorescent | C16: Obsolete, no new Connections | D16: =IF($C16="NA","",'Unsmoothed Prices'!D14) -> 18.189 | E16: =IF($C16="NA","",'Smoothed Prices'!E16+$E$6) -> 18.58206497 | F16: 18.67871143 | G16: 18.77247986 | H16: 18.86345597 | I16: 18.95172291 | J16: =IF($C16="NA","",'Smoothed Prices'!J16+$J$6) -> 19.25185017 | K16: 19.49214062 | L16: 19.73293395 | M16: 19.97423122 | N16: 20.21603348 | O16: ='Smoothed Prices'!N16 -> 20.22023665 | Q16: 19.03731649 | R16: 19.60516149 | S16: 20.18630886 | T16: 20.78108818 | U16: 21.38983705 | V16: 22.26091477 | W16: 23.0909513 | X16: 23.94890755 | Y16: 24.83566961 | Z16: 25.75215067 | AB16: =IFERROR(VLOOKUP($B16,Volumes!$B$4:$H$33,MATCH(AB$11,Volumes!$B$4:$H$4,0),FALSE),0) -> 0 | AC16: =IFERROR(VLOOKUP($B16,Volumes!$B$4:$H$33,MATCH(AC$11,Volumes!$B$4:$H$4,0),FALSE),0) -> 0 | AD16: =IFERROR(VLOOKUP($B16,Volumes!$B$4:$H$33,MATCH(AD$11,Volumes!$B$4:$H$4,0),FALSE),0) -> 0 | AE16: =IFERROR(VLOOKUP($B16,Volumes!$B$4:$H$33,MATCH(AE$11,Volumes!$B$4:$H$4,0),FALSE),0) -> 0 | AF16: =IFERROR(VLOOKUP($B16,Volumes!$B$4:$H$33,MATCH(AF$11,Volumes!$B$4:$H$4,0),FALSE),0) -> 0 | AG16: =IFERROR(VLOOKUP($B16,Volumes!$B$4:$M$33,MATCH(AG$11,Volumes!$B$4:$M$4,0),FALSE),0) -> 0 | AH16: =IFERROR(VLOOKUP($B16,Volumes!$B$4:$M$33,MATCH(AH$11,Volumes!$B$4:$M$4,0),FALSE),0) -> 0 | AI16: =IFERROR(VLOOKUP($B16,Volumes!$B$4:$M$33,MATCH(AI$11,Volumes!$B$4:$M$4,0),FALSE),0) -> 0 | AJ16: =IFERROR(VLOOKUP($B16,Volumes!$B$4:$M$33,MATCH(AJ$11,Volumes!$B$4:$M$4,0),FALSE),0) -> 0 | AK16: =IFERROR(VLOOKUP($B16,Volumes!$B$4:$M$33,MATCH(AK$11,Volumes!$B$4:$M$4,0),FALSE),0) -> 0 | AM16: 68.0103578 | AN16: 68.17729671 | AO16: 68.51955148 | AP16: 68.85161428 | AQ16: 69.36330584 | AR16: 70.26925311 | AS16: 71.14631326 | AT16: 72.02520893 | AU16: 73.10568627 | AV16: 73.7885222 | AX16: 69.67657834 | AY16: 71.55883943 | AZ16: 73.68002735 | BA16: 75.85097186 | BB16: 78.28680362 | BC16: 81.25233892 | BD16: 84.28197225 | BE16: 87.41351256 | BF16: 90.89855078 | BG16: 93.99534994 | BJ16: 0 | BK16: 0 | BL16: 0 | BM16: 0 | BN16: 0 | BO16: 0 | BP16: 0 | BQ16: 0 | BR16: 0 | BS16: 0 | BV16: 0 | BW16: 0 | BX16: 0 | BY16: 0 | BZ16: 0 | CA16: 0 | CB16: 0 | CC16: 0 | CD16: 0 | CE16: 0
B17: =Inputs!$C74 -> 1x40W Fluorescent | C17: Obsolete, no new Connections | D17: =IF($C17="NA","",'Unsmoothed Prices'!D15) -> 18.208 | E17: =IF($C17="NA","",'Smoothed Prices'!E17+$E$6) -> 18.60029837 | F17: 18.69640186 | G17: 18.78964348 | H17: 18.88010848 | I17: 18.96787953 | J17: =IF($C17="NA","",'Smoothed Prices'!J17+$J$6) -> 19.2680406 | K17: 19.50836493 | L17: 19.74919222 | M17: 19.99052352 | N17: 20.23235987 | O17: ='Smoothed Prices'!N17 -> 20.23656304 | Q17: 19.05599659 | R17: 19.62372935 | S17: 20.20476515 | T17: 20.79943356 | U17: 21.4080722 | V17: 22.27963577 | W17: 23.11017109 | X17: 23.96863943 | Y17: 24.85592722 | Z17: 25.77294801 | AB17: =IFERROR(VLOOKUP($B17,Volumes!$B$4:$H$33,MATCH(AB$11,Volumes!$B$4:$H$4,0),FALSE),0) -> 0 | AC17: =IFERROR(VLOOKUP($B17,Volumes!$B$4:$H$33,MATCH(AC$11,Volumes!$B$4:$H$4,0),FALSE),0) -> 0 | AD17: =IFERROR(VLOOKUP($B17,Volumes!$B$4:$H$33,MATCH(AD$11,Volumes!$B$4:$H$4,0),FALSE),0) -> 0 | AE17: =IFERROR(VLOOKUP($B17,Volumes!$B$4:$H$33,MATCH(AE$11,Volumes!$B$4:$H$4,0),FALSE),0) -> 0 | AF17: =IFERROR(VLOOKUP($B17,Volumes!$B$4:$H$33,MATCH(AF$11,Volumes!$B$4:$H$4,0),FALSE),0) -> 0 | AG17: =IFERROR(VLOOKUP($B17,Volumes!$B$4:$M$33,MATCH(AG$11,Volumes!$B$4:$M$4,0),FALSE),0) -> 0 | AH17: =IFERROR(VLOOKUP($B17,Volumes!$B$4:$M$33,MATCH(AH$11,Volumes!$B$4:$M$4,0),FALSE),0) -> 0 | AI17: =IFERROR(VLOOKUP($B17,Volumes!$B$4:$M$33,MATCH(AI$11,Volumes!$B$4:$M$4,0),FALSE),0) -> 0 | AJ17: =IFERROR(VLOOKUP($B17,Volumes!$B$4:$M$33,MATCH(AJ$11,Volumes!$B$4:$M$4,0),FALSE),0) -> 0 | AK17: =IFERROR(VLOOKUP($B17,Volumes!$B$4:$M$33,MATCH(AK$11,Volumes!$B$4:$M$4,0),FALSE),0) -> 0 | AM17: 68.07709204 | AN17: 68.24186677 | AO17: 68.58219872 | AP17: 68.91239595 | AQ17: 69.42243906 | AR17: 70.32834819 | AS17: 71.20553201 | AT17: 72.08455162 | AU17: 73.16531607 | AV17: 73.84811353 | AX17: 69.74494753 | AY17: 71.62661212 | AZ17: 73.7473928 | BA17: 75.91793251 | BB17: 78.35354426 | BC17: 81.32067056 | BD17: 84.35212449 | BE17: 87.48553391 | BF17: 90.97269361 | BG17: 94.07126023 | BJ17: 0 | BK17: 0 | BL17: 0 | BM17: 0 | BN17: 0 | BO17: 0 | BP17: 0 | BQ17: 0 | BR17: 0 | BS17: 0 | BV17: 0 | BW17: 0 | BX17: 0 | BY17: 0 | BZ17: 0 | CA17: 0 | CB17: 0 | CC17: 0 | CD17: 0 | CE17: 0
B18: =Inputs!$C75 -> 2x20W Fluorescent | C18: Obsolete, no new Connections | D18: =IF($C18="NA","",'Unsmoothed Prices'!D16) -> 18.48 | E18: =IF($C18="NA","",'Smoothed Prices'!E18+$E$6) -> 18.86164376 | F18: 18.94996467 | G18: 19.03565547 | H18: 19.1187945 | I18: 19.19945774 | J18: =IF($C18="NA","",'Smoothed Prices'!J18+$J$6) -> 19.50010346 | K18: 19.74091346 | L18: 19.98222743 | M18: 20.22404642 | N18: 20.46637149 | O18: ='Smoothed Prices'!N18 -> 20.47057466 | Q18: 19.32374482 | R18: 19.88986868 | S18: 20.46930526 | T18: 21.06238407 | U18: 21.66944264 | V18: 22.54797006 | W18: 23.38565477 | X18: 24.25146298 | Y18: 25.14628621 | Z18: 26.07104321 | AB18: =IFERROR(VLOOKUP($B18,Volumes!$B$4:$H$33,MATCH(AB$11,Volumes!$B$4:$H$4,0),FALSE),0) -> 0 | AC18: =IFERROR(VLOOKUP($B18,Volumes!$B$4:$H$33,MATCH(AC$11,Volumes!$B$4:$H$4,0),FALSE),0) -> 0 | AD18: =IFERROR(VLOOKUP($B18,Volumes!$B$4:$H$33,MATCH(AD$11,Volumes!$B$4:$H$4,0),FALSE),0) -> 0 | AE18: =IFERROR(VLOOKUP($B18,Volumes!$B$4:$H$33,MATCH(AE$11,Volumes!$B$4:$H$4,0),FALSE),0) -> 0 | AF18: =IFERROR(VLOOKUP($B18,Volumes!$B$4:$H$33,MATCH(AF$11,Volumes!$B$4:$H$4,0),FALSE),0) -> 0 | AG18: =IFERROR(VLOOKUP($B18,Volumes!$B$4:$M$33,MATCH(AG$11,Volumes!$B$4:$M$4,0),FALSE),0) -> 0 | AH18: =IFERROR(VLOOKUP($B18,Volumes!$B$4:$M$33,MATCH(AH$11,Volumes!$B$4:$M$4,0),FALSE),0) -> 0 | AI18: =IFERROR(VLOOKUP($B18,Volumes!$B$4:$M$33,MATCH(AI$11,Volumes!$B$4:$M$4,0),FALSE),0) -> 0 | AJ18: =IFERROR(VLOOKUP($B18,Volumes!$B$4:$M$33,MATCH(AJ$11,Volumes!$B$4:$M$4,0),FALSE),0) -> 0 | AK18: =IFERROR(VLOOKUP($B18,Volumes!$B$4:$M$33,MATCH(AK$11,Volumes!$B$4:$M$4,0),FALSE),0) -> 0 | AM18: 69.03361616 | AN18: 69.16737103 | AO18: 69.48014247 | AP18: 69.78359992 | AQ18: 70.27001532 | AR18: 71.17537763 | AS18: 72.05433412 | AT18: 72.93513011 | AU18: 74.02000989 | AV18: 74.70225595 | AX18: 70.72490603 | AY18: 72.59802069 | AZ18: 74.71296421 | BA18: 76.87770184 | BB18: 79.31016008 | BC18: 82.30009072 | BD18: 85.35763992 | BE18: 88.51783988 | BF18: 92.03540752 | BG18: 95.15930771 | BJ18: 0 | BK18: 0 | BL18: 0 | BM18: 0 | BN18: 0 | BO18: 0 | BP18: 0 | BQ18: 0 | BR18: 0 | BS18: 0 | BV18: 0 | BW18: 0 | BX18: 0 | BY18: 0 | BZ18: 0 | CA18: 0 | CB18: 0 | CC18: 0 | CD18: 0 | CE18: 0
B19: =Inputs!$C76 -> 2x24W Fluorescent | C19: Old light no volumes | D19: =IF($C19="NA","",'Unsmoothed Prices'!D17) -> 18.322 | E19: =IF($C19="NA","",'Smoothed Prices'!E19+$E$6) -> 18.732997 | F19: 18.82514886 | G19: 18.91455655 | H19: 19.00130177 | I19: 19.08546381 | J19: =IF($C19="NA","",'Smoothed Prices'!J19+$J$6) -> 19.38587097 | K19: 19.6264419 | L19: 19.8675163 | M19: 20.10909522 | N19: 20.35117973 | O19: ='Smoothed Prices'!N19 -> 20.35538289 | Q19: 19.19194627 | R19: 19.75886211 | S19: 20.33908591 | T19: 20.93294719 | U19: 21.54078355 | V19: 22.41588302 | W19: 23.25004846 | X19: 24.11224363 | Y19: 25.00335756 | Z19: 25.92430642 | AB19: =IFERROR(VLOOKUP($B19,Volumes!$B$4:$H$33,MATCH(AB$11,Volumes!$B$4:$H$4,0),FALSE),0) -> 0 | AC19: =IFERROR(VLOOKUP($B19,Volumes!$B$4:$H$33,MATCH(AC$11,Volumes!$B$4:$H$4,0),FALSE),0) -> 0 | AD19: =IFERROR(VLOOKUP($B19,Volumes!$B$4:$H$33,MATCH(AD$11,Volumes!$B$4:$H$4,0),FALSE),0) -> 0 | AE19: =IFERROR(VLOOKUP($B19,Volumes!$B$4:$H$33,MATCH(AE$11,Volumes!$B$4:$H$4,0),FALSE),0) -> 0 | AF19: =IFERROR(VLOOKUP($B19,Volumes!$B$4:$H$33,MATCH(AF$11,Volumes!$B$4:$H$4,0),FALSE),0) -> 0 | AG19: =IFERROR(VLOOKUP($B19,Volumes!$B$4:$M$33,MATCH(AG$11,Volumes!$B$4:$M$4,0),FALSE),0) -> 0 | AH19: =IFERROR(VLOOKUP($B19,Volumes!$B$4:$M$33,MATCH(AH$11,Volumes!$B$4:$M$4,0),FALSE),0) -> 0 | AI19: =IFERROR(VLOOKUP($B19,Volumes!$B$4:$M$33,MATCH(AI$11,Volumes!$B$4:$M$4,0),FALSE),0) -> 0 | AJ19: =IFERROR(VLOOKUP($B19,Volumes!$B$4:$M$33,MATCH(AJ$11,Volumes!$B$4:$M$4,0),FALSE),0) -> 0 | AK19: =IFERROR(VLOOKUP($B19,Volumes!$B$4:$M$33,MATCH(AK$11,Volumes!$B$4:$M$4,0),FALSE),0) -> 0 | AM19: 68.56276902 | AN19: 68.71179335 | AO19: 69.0381314 | AP19: 69.35475145 | AQ19: 69.85279755 | AR19: 70.75842903 | AS19: 71.63651293 | AT19: 72.51643449 | AU19: 73.59928852 | AV19: 74.281806 | AX19: 70.24252336 | AY19: 72.1198467 | AZ19: 74.23766356 | BA19: 76.40525725 | BB19: 78.83926779 | BC19: 81.81797304 | BD19: 84.86267689 | BE19: 88.00968927 | BF19: 91.51228866 | BG19: 94.62371845 | BJ19: 0 | BK19: 0 | BL19: 0 | BM19: 0 | BN19: 0 | BO19: 0 | BP19: 0 | BQ19: 0 | BR19: 0 | BS19: 0 | BV19: 0 | BW19: 0 | BX19: 0 | BY19: 0 | BZ19: 0 | CA19: 0 | CB19: 0 | CC19: 0 | CD19: 0 | CE19: 0
B20: =Inputs!$C77 -> T5 Fluorescent 2 x 24W | C20: Old light no volumes | D20: =IF($C20="NA","",'Unsmoothed Prices'!D18) -> 18.48 | E20: =IF($C20="NA","",'Smoothed Prices'!E20+$E$6) -> 18.86164376 | F20: 18.94996467 | G20: 19.03565547 | H20: 19.1187945 | I20: 19.19945774 | J20: =IF($C20="NA","",'Smoothed Prices'!J20+$J$6) -> 19.50010346 | K20: 19.74091346 | L20: 19.98222743 | M20: 20.22404642 | N20: 20.46637149 | O20: ='Smoothed Prices'!N20 -> 20.47057466 | Q20: 19.32374482 | R20: 19.88986868 | S20: 20.46930526 | T20: 21.06238407 | U20: 21.66944264 | V20: 22.54797006 | W20: 23.38565477 | X20: 24.25146298 | Y20: 25.14628621 | Z20: 26.07104321 | AB20: =IFERROR(VLOOKUP($B20,Volumes!$B$4:$H$33,MATCH(AB$11,Volumes!$B$4:$H$4,0),FALSE),0) -> 0 | AC20: =IFERROR(VLOOKUP($B20,Volumes!$B$4:$H$33,MATCH(AC$11,Volumes!$B$4:$H$4,0),FALSE),0) -> 0 | AD20: =IFERROR(VLOOKUP($B20,Volumes!$B$4:$H$33,MATCH(AD$11,Volumes!$B$4:$H$4,0),FALSE),0) -> 0 | AE20: =IFERROR(VLOOKUP($B20,Volumes!$B$4:$H$33,MATCH(AE$11,Volumes!$B$4:$H$4,0),FALSE),0) -> 0 | AF20: =IFERROR(VLOOKUP($B20,Volumes!$B$4:$H$33,MATCH(AF$11,Volumes!$B$4:$H$4,0),FALSE),0) -> 0 | AG20: =IFERROR(VLOOKUP($B20,Volumes!$B$4:$M$33,MATCH(AG$11,Volumes!$B$4:$M$4,0),FALSE),0) -> 0 | AH20: =IFERROR(VLOOKUP($B20,Volumes!$B$4:$M$33,MATCH(AH$11,Volumes!$B$4:$M$4,0),FALSE),0) -> 0 | AI20: =IFERROR(VLOOKUP($B20,Volumes!$B$4:$M$33,MATCH(AI$11,Volumes!$B$4:$M$4,0),FALSE),0) -> 0 | AJ20: =IFERROR(VLOOKUP($B20,Volumes!$B$4:$M$33,MATCH(AJ$11,Volumes!$B$4:$M$4,0),FALSE),0) -> 0 | AK20: =IFERROR(VLOOKUP($B20,Volumes!$B$4:$M$33,MATCH(AK$11,Volumes!$B$4:$M$4,0),FALSE),0) -> 0 | AM20: 69.03361616 | AN20: 69.16737103 | AO20: 69.48014247 | AP20: 69.78359992 | AQ20: 70.27001532 | AR20: 71.17537763 | AS20: 72.05433412 | AT20: 72.93513011 | AU20: 74.02000989 | AV20: 74.70225595 | AX20: 70.72490603 | AY20: 72.59802069 | AZ20: 74.71296421 | BA20: 76.87770184 | BB20: 79.31016008 | BC20: 82.30009072 | BD20: 85.35763992 | BE20: 88.51783988 | BF20: 92.03540752 | BG20: 95.15930771 | BJ20: 0 | BK20: 0 | BL20: 0 | BM20: 0 | BN20: 0 | BO20: 0 | BP20: 0 | BQ20: 0 | BR20: 0 | BS20: 0 | BV20: 0 | BW20: 0 | BX20: 0 | BY20: 0 | BZ20: 0 | CA20: 0 | CB20: 0 | CC20: 0 | CD20: 0 | CE20: 0
B21: =Inputs!$C78 -> 20 Fluorescent 1X20FL | C21: Old light no volumes | D21: =IF($C21="NA","",'Unsmoothed Prices'!D19) -> 18.189 | E21: =IF($C21="NA","",'Smoothed Prices'!E21+$E$6) -> 18.58206497 | F21: 18.67871143 | G21: 18.77247986 | H21: 18.86345597 | I21: 18.95172291 | J21: =IF($C21="NA","",'Smoothed Prices'!J21+$J$6) -> 19.25185017 | K21: 19.49214062 | L21: 19.73293395 | M21: 19.97423122 | N21: 20.21603348 | O21: ='Smoothed Prices'!N21 -> 20.22023665 | Q21: 19.03731649 | R21: 19.60516149 | S21: 20.18630886 | T21: 20.78108818 | U21: 21.38983705 | V21: 22.26091477 | W21: 23.0909513 | X21: 23.94890755 | Y21: 24.83566961 | Z21: 25.75215067 | AB21: =IFERROR(VLOOKUP($B21,Volumes!$B$4:$H$33,MATCH(AB$11,Volumes!$B$4:$H$4,0),FALSE),0) -> 0 | AC21: =IFERROR(VLOOKUP($B21,Volumes!$B$4:$H$33,MATCH(AC$11,Volumes!$B$4:$H$4,0),FALSE),0) -> 0 | AD21: =IFERROR(VLOOKUP($B21,Volumes!$B$4:$H$33,MATCH(AD$11,Volumes!$B$4:$H$4,0),FALSE),0) -> 0 | AE21: =IFERROR(VLOOKUP($B21,Volumes!$B$4:$H$33,MATCH(AE$11,Volumes!$B$4:$H$4,0),FALSE),0) -> 0 | AF21: =IFERROR(VLOOKUP($B21,Volumes!$B$4:$H$33,MATCH(AF$11,Volumes!$B$4:$H$4,0),FALSE),0) -> 0 | AG21: =IFERROR(VLOOKUP($B21,Volumes!$B$4:$M$33,MATCH(AG$11,Volumes!$B$4:$M$4,0),FALSE),0) -> 0 | AH21: =IFERROR(VLOOKUP($B21,Volumes!$B$4:$M$33,MATCH(AH$11,Volumes!$B$4:$M$4,0),FALSE),0) -> 0 | AI21: =IFERROR(VLOOKUP($B21,Volumes!$B$4:$M$33,MATCH(AI$11,Volumes!$B$4:$M$4,0),FALSE),0) -> 0 | AJ21: =IFERROR(VLOOKUP($B21,Volumes!$B$4:$M$33,MATCH(AJ$11,Volumes!$B$4:$M$4,0),FALSE),0) -> 0 | AK21: =IFERROR(VLOOKUP($B21,Volumes!$B$4:$M$33,MATCH(AK$11,Volumes!$B$4:$M$4,0),FALSE),0) -> 0 | AM21: 68.0103578 | AN21: 68.17729671 | AO21: 68.51955148 | AP21: 68.85161428 | AQ21: 69.36330584 | AR21: 70.26925311 | AS21: 71.14631326 | AT21: 72.02520893 | AU21: 73.10568627 | AV21: 73.7885222 | AX21: 69.67657834 | AY21: 71.55883943 | AZ21: 73.68002735 | BA21: 75.85097186 | BB21: 78.28680362 | BC21: 81.25233892 | BD21: 84.28197225 | BE21: 87.41351256 | BF21: 90.89855078 | BG21: 93.99534994 | BJ21: 0 | BK21: 0 | BL21: 0 | BM21: 0 | BN21: 0 | BO21: 0 | BP21: 0 | BQ21: 0 | BR21: 0 | BS21: 0 | BV21: 0 | BW21: 0 | BX21: 0 | BY21: 0 | BZ21: 0 | CA21: 0 | CB21: 0 | CC21: 0 | CD21: 0 | CE21: 0
B22: =Inputs!$C79 -> 2x40W Fluorescent | C22: Obsolete, no new Connections | D22: =IF($C22="NA","",'Unsmoothed Prices'!D20) -> 18.518 | E22: =IF($C22="NA","",'Smoothed Prices'!E22+$E$6) -> 18.89811056 | F22: 18.98534552 | G22: 19.06998273 | H22: 19.15209952 | I22: 19.23177098 | J22: =IF($C22="NA","",'Smoothed Prices'!J22+$J$6) -> 19.53248432 | K22: 19.77336209 | L22: 20.01474397 | M22: 20.25663101 | N22: 20.49902428 | O22: ='Smoothed Prices'!N22 -> 20.50322744 | Q22: 19.36110504 | R22: 19.9270044 | S22: 20.50621784 | T22: 21.09907483 | U22: 21.70591294 | V22: 22.58541205 | W22: 23.42409436 | X22: 24.29092673 | Y22: 25.18680142 | Z22: 26.11263789 | AB22: =IFERROR(VLOOKUP($B22,Volumes!$B$4:$H$33,MATCH(AB$11,Volumes!$B$4:$H$4,0),FALSE),0) -> 0 | AC22: =IFERROR(VLOOKUP($B22,Volumes!$B$4:$H$33,MATCH(AC$11,Volumes!$B$4:$H$4,0),FALSE),0) -> 0 | AD22: =IFERROR(VLOOKUP($B22,Volumes!$B$4:$H$33,MATCH(AD$11,Volumes!$B$4:$H$4,0),FALSE),0) -> 0 | AE22: =IFERROR(VLOOKUP($B22,Volumes!$B$4:$H$33,MATCH(AE$11,Volumes!$B$4:$H$4,0),FALSE),0) -> 0 | AF22: =IFERROR(VLOOKUP($B22,Volumes!$B$4:$H$33,MATCH(AF$11,Volumes!$B$4:$H$4,0),FALSE),0) -> 0 | AG22: =IFERROR(VLOOKUP($B22,Volumes!$B$4:$M$33,MATCH(AG$11,Volumes!$B$4:$M$4,0),FALSE),0) -> 0 | AH22: =IFERROR(VLOOKUP($B22,Volumes!$B$4:$M$33,MATCH(AH$11,Volumes!$B$4:$M$4,0),FALSE),0) -> 0 | AI22: =IFERROR(VLOOKUP($B22,Volumes!$B$4:$M$33,MATCH(AI$11,Volumes!$B$4:$M$4,0),FALSE),0) -> 0 | AJ22: =IFERROR(VLOOKUP($B22,Volumes!$B$4:$M$33,MATCH(AJ$11,Volumes!$B$4:$M$4,0),FALSE),0) -> 0 | AK22: =IFERROR(VLOOKUP($B22,Volumes!$B$4:$M$33,MATCH(AK$11,Volumes!$B$4:$M$4,0),FALSE),0) -> 0 | AM22: 69.16708464 | AN22: 69.29651116 | AO22: 69.60543695 | AP22: 69.90516326 | AQ22: 70.38828177 | AR22: 71.29356778 | AS22: 72.17277163 | AT22: 73.05381548 | AU22: 74.1392695 | AV22: 74.82143861 | AX22: 70.86164443 | AY22: 72.73356607 | AZ22: 74.84769511 | BA22: 77.01162314 | BB22: 79.44364135 | BC22: 82.43675399 | BD22: 85.4979444 | BE22: 88.66188258 | BF22: 92.18369318 | BG22: 95.31112828 | BJ22: 0 | BK22: 0 | BL22: 0 | BM22: 0 | BN22: 0 | BO22: 0 | BP22: 0 | BQ22: 0 | BR22: 0 | BS22: 0 | BV22: 0 | BW22: 0 | BX22: 0 | BY22: 0 | BZ22: 0 | CA22: 0 | CB22: 0 | CC22: 0 | CD22: 0 | CE22: 0
B23: =Inputs!$C80 -> 3x40W Fluorescent | C23: Obsolete, no new Connections | D23: =IF($C23="NA","",'Unsmoothed Prices'!D21) -> 22.414 | E23: =IF($C23="NA","",'Smoothed Prices'!E23+$E$6) -> 22.59442577 | F23: 22.57158852 | G23: 22.54943133 | H23: 22.52793396 | I23: 22.50707676 | J23: =IF($C23="NA","",'Smoothed Prices'!J23+$J$6) -> 22.8146447 | K23: 23.0623914 | L23: 23.31065659 | M23: 23.55944135 | N23: 23.80874677 | O23: ='Smoothed Prices'!N23 -> 23.81294993 | Q23: 23.14797817 | R23: 23.69112236 | S23: 24.24771735 | T23: 24.81809182 | U23: 25.40258249 | V23: 26.38057417 | W23: 27.32037323 | X23: 28.29101648 | Y23: 29.29346792 | Z23: 30.32872075 | AB23: =IFERROR(VLOOKUP($B23,Volumes!$B$4:$H$33,MATCH(AB$11,Volumes!$B$4:$H$4,0),FALSE),0) -> 0 | AC23: =IFERROR(VLOOKUP($B23,Volumes!$B$4:$H$33,MATCH(AC$11,Volumes!$B$4:$H$4,0),FALSE),0) -> 0 | AD23: =IFERROR(VLOOKUP($B23,Volumes!$B$4:$H$33,MATCH(AD$11,Volumes!$B$4:$H$4,0),FALSE),0) -> 0 | AE23: =IFERROR(VLOOKUP($B23,Volumes!$B$4:$H$33,MATCH(AE$11,Volumes!$B$4:$H$4,0),FALSE),0) -> 0 | AF23: =IFERROR(VLOOKUP($B23,Volumes!$B$4:$H$33,MATCH(AF$11,Volumes!$B$4:$H$4,0),FALSE),0) -> 0 | AG23: =IFERROR(VLOOKUP($B23,Volumes!$B$4:$M$33,MATCH(AG$11,Volumes!$B$4:$M$4,0),FALSE),0) -> 0 | AH23: =IFERROR(VLOOKUP($B23,Volumes!$B$4:$M$33,MATCH(AH$11,Volumes!$B$4:$M$4,0),FALSE),0) -> 0 | AI23: =IFERROR(VLOOKUP($B23,Volumes!$B$4:$M$33,MATCH(AI$11,Volumes!$B$4:$M$4,0),FALSE),0) -> 0 | AJ23: =IFERROR(VLOOKUP($B23,Volumes!$B$4:$M$33,MATCH(AJ$11,Volumes!$B$4:$M$4,0),FALSE),0) -> 0 | AK23: =IFERROR(VLOOKUP($B23,Volumes!$B$4:$M$33,MATCH(AK$11,Volumes!$B$4:$M$4,0),FALSE),0) -> 0 | AM23: 82.69559833 | AN23: 82.38629809 | AO23: 82.30542436 | AP23: 82.22695896 | AQ23: 82.37590094 | AR23: 83.27345315 | AS23: 84.17772862 | AT23: 85.08389655 | AU23: 86.22755534 | AV23: 86.90192571 | AX23: 84.72160009 | AY23: 86.47259661 | AZ23: 88.50416833 | BA23: 90.58603514 | BB23: 92.97345192 | BC23: 96.28909571 | BD23: 99.71936228 | BE23: 103.2622101 | BF23: 107.2140926 | BG23: 110.6998307 | BJ23: 0 | BK23: 0 | BL23: 0 | BM23: 0 | BN23: 0 | BO23: 0 | BP23: 0 | BQ23: 0 | BR23: 0 | BS23: 0 | BV23: 0 | BW23: 0 | BX23: 0 | BY23: 0 | BZ23: 0 | CA23: 0 | CB23: 0 | CC23: 0 | CD23: 0 | CE23: 0
B24: =Inputs!$C81 -> 4x20 Fluorescent | C24: Old light no volumes | D24: =IF($C24="NA","",'Unsmoothed Prices'!D22) -> 19.062 | E24: =IF($C24="NA","",'Smoothed Prices'!E24+$E$6) -> 19.42080134 | F24: 19.49247114 | G24: 19.5620067 | H24: 19.62947156 | I24: 19.6949274 | J24: =IF($C24="NA","",'Smoothed Prices'!J24+$J$6) -> 19.99661004 | K24: 20.23845914 | L24: 20.48081437 | M24: 20.72367681 | N24: 20.96704752 | O24: ='Smoothed Prices'!N24 -> 20.97125068 | Q24: 19.89660148 | R24: 20.45928307 | S24: 21.03529807 | T24: 21.62497584 | U24: 22.22865382 | V24: 23.12208063 | W24: 23.97506172 | X24: 24.85657384 | Y24: 25.7675194 | Z24: 26.70882828 | AB24: =IFERROR(VLOOKUP($B24,Volumes!$B$4:$H$33,MATCH(AB$11,Volumes!$B$4:$H$4,0),FALSE),0) -> 0 | AC24: =IFERROR(VLOOKUP($B24,Volumes!$B$4:$H$33,MATCH(AC$11,Volumes!$B$4:$H$4,0),FALSE),0) -> 0 | AD24: =IFERROR(VLOOKUP($B24,Volumes!$B$4:$H$33,MATCH(AD$11,Volumes!$B$4:$H$4,0),FALSE),0) -> 0 | AE24: =IFERROR(VLOOKUP($B24,Volumes!$B$4:$H$33,MATCH(AE$11,Volumes!$B$4:$H$4,0),FALSE),0) -> 0 | AF24: =IFERROR(VLOOKUP($B24,Volumes!$B$4:$H$33,MATCH(AF$11,Volumes!$B$4:$H$4,0),FALSE),0) -> 0 | AG24: =IFERROR(VLOOKUP($B24,Volumes!$B$4:$M$33,MATCH(AG$11,Volumes!$B$4:$M$4,0),FALSE),0) -> 0 | AH24: =IFERROR(VLOOKUP($B24,Volumes!$B$4:$M$33,MATCH(AH$11,Volumes!$B$4:$M$4,0),FALSE),0) -> 0 | AI24: =IFERROR(VLOOKUP($B24,Volumes!$B$4:$M$33,MATCH(AI$11,Volumes!$B$4:$M$4,0),FALSE),0) -> 0 | AJ24: =IFERROR(VLOOKUP($B24,Volumes!$B$4:$M$33,MATCH(AJ$11,Volumes!$B$4:$M$4,0),FALSE),0) -> 0 | AK24: =IFERROR(VLOOKUP($B24,Volumes!$B$4:$M$33,MATCH(AK$11,Volumes!$B$4:$M$4,0),FALSE),0) -> 0 | AM24: 71.08013289 | AN24: 71.14751967 | AO24: 71.40132445 | AP24: 71.64757121 | AQ24: 72.08343428 | AR24: 72.98762666 | AS24: 73.87037585 | AT24: 74.75497246 | AU24: 75.84865714 | AV24: 76.52972344 | AX24: 72.82156143 | AY24: 74.67638321 | AZ24: 76.77883794 | BA24: 78.93116181 | BB24: 81.35687299 | BC24: 84.39559431 | BD24: 87.50897526 | BE24: 90.72649453 | BF24: 94.309121 | BG24: 97.48722323 | BJ24: 0 | BK24: 0 | BL24: 0 | BM24: 0 | BN24: 0 | BO24: 0 | BP24: 0 | BQ24: 0 | BR24: 0 | BS24: 0 | BV24: 0 | BW24: 0 | BX24: 0 | BY24: 0 | BZ24: 0 | CA24: 0 | CB24: 0 | CC24: 0 | CD24: 0 | CE24: 0
B25: =Inputs!$C82 -> 4x40W Fluorescent | C25: Obsolete, no new Connections | D25: =IF($C25="NA","",'Unsmoothed Prices'!D23) -> 22.722 | E25: =IF($C25="NA","",'Smoothed Prices'!E25+$E$6) -> 22.89122499 | F25: 22.85954938 | G25: 22.82881704 | H25: 22.79899987 | I25: 22.77007062 | J25: =IF($C25="NA","",'Smoothed Prices'!J25+$J$6) -> 23.07818896 | K25: 23.32648721 | L25: 23.5753051 | M25: 23.82464371 | N25: 24.07450415 | O25: ='Smoothed Prices'!N25 -> 24.07870732 | Q25: 23.45204882 | R25: 23.99336587 | S25: 24.54814469 | T25: 25.1167139 | U25: 25.69941016 | V25: 26.6853104 | W25: 27.63322872 | X25: 28.61220757 | Y25: 29.6232167 | Z25: 30.66725522 | AB25: =IFERROR(VLOOKUP($B25,Volumes!$B$4:$H$33,MATCH(AB$11,Volumes!$B$4:$H$4,0),FALSE),0) -> 0 | AC25: =IFERROR(VLOOKUP($B25,Volumes!$B$4:$H$33,MATCH(AC$11,Volumes!$B$4:$H$4,0),FALSE),0) -> 0 | AD25: =IFERROR(VLOOKUP($B25,Volumes!$B$4:$H$33,MATCH(AD$11,Volumes!$B$4:$H$4,0),FALSE),0) -> 0 | AE25: =IFERROR(VLOOKUP($B25,Volumes!$B$4:$H$33,MATCH(AE$11,Volumes!$B$4:$H$4,0),FALSE),0) -> 0 | AF25: =IFERROR(VLOOKUP($B25,Volumes!$B$4:$H$33,MATCH(AF$11,Volumes!$B$4:$H$4,0),FALSE),0) -> 0 | AG25: =IFERROR(VLOOKUP($B25,Volumes!$B$4:$M$33,MATCH(AG$11,Volumes!$B$4:$M$4,0),FALSE),0) -> 0 | AH25: =IFERROR(VLOOKUP($B25,Volumes!$B$4:$M$33,MATCH(AH$11,Volumes!$B$4:$M$4,0),FALSE),0) -> 0 | AI25: =IFERROR(VLOOKUP($B25,Volumes!$B$4:$M$33,MATCH(AI$11,Volumes!$B$4:$M$4,0),FALSE),0) -> 0 | AJ25: =IFERROR(VLOOKUP($B25,Volumes!$B$4:$M$33,MATCH(AJ$11,Volumes!$B$4:$M$4,0),FALSE),0) -> 0 | AK25: =IFERROR(VLOOKUP($B25,Volumes!$B$4:$M$33,MATCH(AK$11,Volumes!$B$4:$M$4,0),FALSE),0) -> 0 | AM25: 83.78188348 | AN25: 83.43735525 | AO25: 83.32518219 | AP25: 83.21634952 | AQ25: 83.33845847 | AR25: 84.23538969 | AS25: 85.1416783 | AT25: 86.0498636 | AU25: 87.198196 | AV25: 87.87194015 | AX25: 85.8344987 | AY25: 87.57578541 | AZ25: 89.60072812 | BA25: 91.67600574 | BB25: 94.0598412 | BC25: 97.40138295 | BD25: 100.8612848 | BE25: 104.4345576 | BF25: 108.4209731 | BG25: 111.9354815 | BJ25: 0 | BK25: 0 | BL25: 0 | BM25: 0 | BN25: 0 | BO25: 0 | BP25: 0 | BQ25: 0 | BR25: 0 | BS25: 0 | BV25: 0 | BW25: 0 | BX25: 0 | BY25: 0 | BZ25: 0 | CA25: 0 | CB25: 0 | CC25: 0 | CD25: 0 | CE25: 0
B26: =Inputs!$C83 -> 100W Sodium Vapour | C26: Old light no volumes | D26: =IF($C26="NA","",'Unsmoothed Prices'!D24) -> 22.559 | E26: =IF($C26="NA","",'Smoothed Prices'!E26+$E$6) -> 22.7939802 | F26: 22.76520043 | G26: 22.73727769 | H26: 22.71018647 | I26: 22.68390198 | J26: =IF($C26="NA","",'Smoothed Prices'!J26+$J$6) -> 22.99183998 | K26: 23.23995752 | L26: 23.48859432 | M26: 23.73775147 | N26: 23.98743006 | O26: ='Smoothed Prices'!N26 -> 23.99163323 | Q26: 23.35242158 | R26: 23.89433728 | S26: 24.44971116 | T26: 25.01887185 | U26: 25.60215605 | V26: 26.58546508 | W26: 27.53072317 | X26: 28.5069709 | Y26: 29.51517615 | Z26: 30.55633607 | AB26: =IFERROR(VLOOKUP($B26,Volumes!$B$4:$H$33,MATCH(AB$11,Volumes!$B$4:$H$4,0),FALSE),0) -> 5 | AC26: =IFERROR(VLOOKUP($B26,Volumes!$B$4:$H$33,MATCH(AC$11,Volumes!$B$4:$H$4,0),FALSE),0) -> 5 | AD26: =IFERROR(VLOOKUP($B26,Volumes!$B$4:$H$33,MATCH(AD$11,Volumes!$B$4:$H$4,0),FALSE),0) -> 5 | AE26: =IFERROR(VLOOKUP($B26,Volumes!$B$4:$H$33,MATCH(AE$11,Volumes!$B$4:$H$4,0),FALSE),0) -> 5 | AF26: =IFERROR(VLOOKUP($B26,Volumes!$B$4:$H$33,MATCH(AF$11,Volumes!$B$4:$H$4,0),FALSE),0) -> 5 | AG26: =IFERROR(VLOOKUP($B26,Volumes!$B$4:$M$33,MATCH(AG$11,Volumes!$B$4:$M$4,0),FALSE),0) -> 5 | AH26: =IFERROR(VLOOKUP($B26,Volumes!$B$4:$M$33,MATCH(AH$11,Volumes!$B$4:$M$4,0),FALSE),0) -> 5 | AI26: =IFERROR(VLOOKUP($B26,Volumes!$B$4:$M$33,MATCH(AI$11,Volumes!$B$4:$M$4,0),FALSE),0) -> 5 | AJ26: =IFERROR(VLOOKUP($B26,Volumes!$B$4:$M$33,MATCH(AJ$11,Volumes!$B$4:$M$4,0),FALSE),0) -> 5 | AK26: =IFERROR(VLOOKUP($B26,Volumes!$B$4:$M$33,MATCH(AK$11,Volumes!$B$4:$M$4,0),FALSE),0) -> 5 | AM26: 83.42596753 | AN26: 83.09298157 | AO26: 82.99106358 | AP26: 82.8921806 | AQ26: 83.02308126 | AR26: 83.92021594 | AS26: 84.82584496 | AT26: 85.73336928 | AU26: 86.88017039 | AV26: 87.55411972 | AX26: 85.46986298 | AY26: 87.21433106 | AZ26: 89.24144573 | BA26: 91.31888227 | BB26: 93.70389113 | BC26: 97.03694754 | BD26: 100.4871396 | BE26: 104.0504438 | BF26: 108.0255447 | BG26: 111.5306267 | BJ26: 417.1298376 | BK26: 415.4649079 | BL26: 414.9553179 | BM26: 414.460903 | BN26: 415.1154063 | BO26: 419.6010797 | BP26: =IFERROR(AS26*AH26,0) -> 424.1292248 | BQ26: 428.6668464 | BR26: 434.4008519 | BS26: 437.7705986 | BV26: 427.3493149 | BW26: 436.0716553 | BX26: 446.2072287 | BY26: 456.5944113 | BZ26: 468.5194556 | CA26: 485.1847377 | CB26: 502.4356978 | CC26: 520.2522189 | CD26: 540.1277235 | CE26: 557.6531334
B27: =Inputs!$C84 -> 0 | C27: NA | D27: =IF($C27="NA","",'Unsmoothed Prices'!D25) ->  | E27: =IF($C27="NA","",'Smoothed Prices'!E27+$E$6) ->  | J27: =IF($C27="NA","",'Smoothed Prices'!J27+$J$6) ->  | O27: ='Smoothed Prices'!N27 ->  | AB27: =IFERROR(VLOOKUP($B27,Volumes!$B$4:$H$33,MATCH(AB$11,Volumes!$B$4:$H$4,0),FALSE),0) -> 0 | AC27: =IFERROR(VLOOKUP($B27,Volumes!$B$4:$H$33,MATCH(AC$11,Volumes!$B$4:$H$4,0),FALSE),0) -> 0 | AD27: =IFERROR(VLOOKUP($B27,Volumes!$B$4:$H$33,MATCH(AD$11,Volumes!$B$4:$H$4,0),FALSE),0) -> 0 | AE27: =IFERROR(VLOOKUP($B27,Volumes!$B$4:$H$33,MATCH(AE$11,Volumes!$B$4:$H$4,0),FALSE),0) -> 0 | AF27: =IFERROR(VLOOKUP($B27,Volumes!$B$4:$H$33,MATCH(AF$11,Volumes!$B$4:$H$4,0),FALSE),0) -> 0 | AG27: =IFERROR(VLOOKUP($B27,Volumes!$B$4:$M$33,MATCH(AG$11,Volumes!$B$4:$M$4,0),FALSE),0) -> 0 | AH27: =IFERROR(VLOOKUP($B27,Volumes!$B$4:$M$33,MATCH(AH$11,Volumes!$B$4:$M$4,0),FALSE),0) -> 0 | AI27: =IFERROR(VLOOKUP($B27,Volumes!$B$4:$M$33,MATCH(AI$11,Volumes!$B$4:$M$4,0),FALSE),0) -> 0 | AJ27: =IFERROR(VLOOKUP($B27,Volumes!$B$4:$M$33,MATCH(AJ$11,Volumes!$B$4:$M$4,0),FALSE),0) -> 0 | AK27: =IFERROR(VLOOKUP($B27,Volumes!$B$4:$M$33,MATCH(AK$11,Volumes!$B$4:$M$4,0),FALSE),0) -> 0 | BJ27: 0 | BK27: 0 | BL27: 0 | BM27: 0 | BN27: 0 | BO27: 0 | BP27: 0 | BQ27: 0 | BR27: 0 | BS27: 0 | BV27: 0 | BW27: 0 | BX27: 0 | BY27: 0 | BZ27: 0 | CA27: 0 | CB27: 0 | CC27: 0 | CD27: 0 | CE27: 0
B28: =Inputs!$C85 -> 150W Sodium Vapour | C28: Offered | D28: =IF($C28="NA","",'Unsmoothed Prices'!D26) -> 22.555 | E28: =IF($C28="NA","",'Smoothed Prices'!E28+$E$6) -> 23.04823482 | F28: 23.01188363 | G28: 22.97661494 | H28: 22.94239651 | I28: 22.90919707 | J28: =IF($C28="NA","",'Smoothed Prices'!J28+$J$6) -> 23.21760657 | K28: 23.46619659 | L28: 23.71530687 | M28: 23.96493848 | N28: 24.21509253 | O28: ='Smoothed Prices'!N28 -> 24.21929569 | Q28: 23.61290531 | R28: 24.15325578 | S28: 24.70707383 | T28: 25.27468804 | U28: 25.85643504 | V28: 26.84651898 | W28: 27.79873249 | X28: 28.78212094 | Y28: 29.79765718 | Z28: 30.84634342 | AB28: =IFERROR(VLOOKUP($B28,Volumes!$B$4:$H$33,MATCH(AB$11,Volumes!$B$4:$H$4,0),FALSE),0) -> 163 | AC28: =IFERROR(VLOOKUP($B28,Volumes!$B$4:$H$33,MATCH(AC$11,Volumes!$B$4:$H$4,0),FALSE),0) -> 163 | AD28: =IFERROR(VLOOKUP($B28,Volumes!$B$4:$H$33,MATCH(AD$11,Volumes!$B$4:$H$4,0),FALSE),0) -> 163 | AE28: =IFERROR(VLOOKUP($B28,Volumes!$B$4:$H$33,MATCH(AE$11,Volumes!$B$4:$H$4,0),FALSE),0) -> 163 | AF28: =IFERROR(VLOOKUP($B28,Volumes!$B$4:$H$33,MATCH(AF$11,Volumes!$B$4:$H$4,0),FALSE),0) -> 163 | AG28: =IFERROR(VLOOKUP($B28,Volumes!$B$4:$M$33,MATCH(AG$11,Volumes!$B$4:$M$4,0),FALSE),0) -> 163 | AH28: =IFERROR(VLOOKUP($B28,Volumes!$B$4:$M$33,MATCH(AH$11,Volumes!$B$4:$M$4,0),FALSE),0) -> 163 | AI28: =IFERROR(VLOOKUP($B28,Volumes!$B$4:$M$33,MATCH(AI$11,Volumes!$B$4:$M$4,0),FALSE),0) -> 163 | AJ28: =IFERROR(VLOOKUP($B28,Volumes!$B$4:$M$33,MATCH(AJ$11,Volumes!$B$4:$M$4,0),FALSE),0) -> 163 | AK28: =IFERROR(VLOOKUP($B28,Volumes!$B$4:$M$33,MATCH(AK$11,Volumes!$B$4:$M$4,0),FALSE),0) -> 163 | AM28: 84.35653945 | AN28: 83.99337525 | AO28: 83.86464452 | AP28: 83.73974725 | AQ28: 83.84766126 | AR28: 84.74426396 | AS28: 85.65161755 | AT28: 86.56087006 | AU28: 87.71167484 | AV28: 88.38508773 | AX28: 86.42323345 | AY28: 88.15938358 | AZ28: 90.18081947 | BA28: 92.25261135 | BB28: 94.63455226 | BC28: 97.98979428 | BD28: 101.4653736 | BE28: 105.0547414 | BF28: 109.0594253 | BG28: 112.5891535 | BJ28: 13750.11593 | BK28: 13690.92017 | BL28: 13669.93706 | BM28: 13649.5788 | BN28: 13667.16879 | BO28: 13813.31503 | BP28: 13961.21366 | BQ28: 14109.42182 | BR28: 14297.003 | BS28: 14406.7693 | BV28: 14086.98705 | BW28: 14369.97952 | BX28: 14699.47357 | BY28: 15037.17565 | BZ28: 15425.43202 | CA28: 15972.33647 | CB28: 16538.85589 | CC28: 17123.92286 | CD28: 17776.68632 | CE28: 18352.03202
B29: =Inputs!$C86 -> 0 | C29: NA | D29: =IF($C29="NA","",'Unsmoothed Prices'!D27) ->  | E29: =IF($C29="NA","",'Smoothed Prices'!E29+$E$6) ->  | J29: =IF($C29="NA","",'Smoothed Prices'!J29+$J$6) ->  | O29: ='Smoothed Prices'!N29 ->  | AB29: =IFERROR(VLOOKUP($B29,Volumes!$B$4:$H$33,MATCH(AB$11,Volumes!$B$4:$H$4,0),FALSE),0) -> 0 | AC29: =IFERROR(VLOOKUP($B29,Volumes!$B$4:$H$33,MATCH(AC$11,Volumes!$B$4:$H$4,0),FALSE),0) -> 0 | AD29: =IFERROR(VLOOKUP($B29,Volumes!$B$4:$H$33,MATCH(AD$11,Volumes!$B$4:$H$4,0),FALSE),0) -> 0 | AE29: =IFERROR(VLOOKUP($B29,Volumes!$B$4:$H$33,MATCH(AE$11,Volumes!$B$4:$H$4,0),FALSE),0) -> 0 | AF29: =IFERROR(VLOOKUP($B29,Volumes!$B$4:$H$33,MATCH(AF$11,Volumes!$B$4:$H$4,0),FALSE),0) -> 0 | AG29: =IFERROR(VLOOKUP($B29,Volumes!$B$4:$M$33,MATCH(AG$11,Volumes!$B$4:$M$4,0),FALSE),0) -> 0 | AH29: =IFERROR(VLOOKUP($B29,Volumes!$B$4:$M$33,MATCH(AH$11,Volumes!$B$4:$M$4,0),FALSE),0) -> 0 | AI29: =IFERROR(VLOOKUP($B29,Volumes!$B$4:$M$33,MATCH(AI$11,Volumes!$B$4:$M$4,0),FALSE),0) -> 0 | AJ29: =IFERROR(VLOOKUP($B29,Volumes!$B$4:$M$33,MATCH(AJ$11,Volumes!$B$4:$M$4,0),FALSE),0) -> 0 | AK29: =IFERROR(VLOOKUP($B29,Volumes!$B$4:$M$33,MATCH(AK$11,Volumes!$B$4:$M$4,0),FALSE),0) -> 0 | BJ29: =IFERROR(AM29*AB29,0) -> 0 | BK29: 0 | BL29: 0 | BM29: 0 | BN29: 0 | BO29: 0 | BP29: 0 | BQ29: 0 | BR29: 0 | BS29: 0 | BV29: 0 | BW29: 0 | BX29: 0 | BY29: 0 | BZ29: 0 | CA29: 0 | CB29: 0 | CC29: 0 | CD29: 0 | CE29: 0
B30: =Inputs!$C87 -> 0 | C30: NA | D30: =IF($C30="NA","",'Unsmoothed Prices'!D28) ->  | E30: =IF($C30="NA","",'Smoothed Prices'!E30+$E$6) ->  | J30: =IF($C30="NA","",'Smoothed Prices'!J30+$J$6) ->  | O30: ='Smoothed Prices'!N30 ->  | AB30: =IFERROR(VLOOKUP($B30,Volumes!$B$4:$H$33,MATCH(AB$11,Volumes!$B$4:$H$4,0),FALSE),0) -> 0 | AC30: =IFERROR(VLOOKUP($B30,Volumes!$B$4:$H$33,MATCH(AC$11,Volumes!$B$4:$H$4,0),FALSE),0) -> 0 | AD30: =IFERROR(VLOOKUP($B30,Volumes!$B$4:$H$33,MATCH(AD$11,Volumes!$B$4:$H$4,0),FALSE),0) -> 0 | AE30: =IFERROR(VLOOKUP($B30,Volumes!$B$4:$H$33,MATCH(AE$11,Volumes!$B$4:$H$4,0),FALSE),0) -> 0 | AF30: =IFERROR(VLOOKUP($B30,Volumes!$B$4:$H$33,MATCH(AF$11,Volumes!$B$4:$H$4,0),FALSE),0) -> 0 | AG30: =IFERROR(VLOOKUP($B30,Volumes!$B$4:$M$33,MATCH(AG$11,Volumes!$B$4:$M$4,0),FALSE),0) -> 0 | AH30: =IFERROR(VLOOKUP($B30,Volumes!$B$4:$M$33,MATCH(AH$11,Volumes!$B$4:$M$4,0),FALSE),0) -> 0 | AI30: =IFERROR(VLOOKUP($B30,Volumes!$B$4:$M$33,MATCH(AI$11,Volumes!$B$4:$M$4,0),FALSE),0) -> 0 | AJ30: =IFERROR(VLOOKUP($B30,Volumes!$B$4:$M$33,MATCH(AJ$11,Volumes!$B$4:$M$4,0),FALSE),0) -> 0 | AK30: =IFERROR(VLOOKUP($B30,Volumes!$B$4:$M$33,MATCH(AK$11,Volumes!$B$4:$M$4,0),FALSE),0) -> 0 | BJ30: 0 | BK30: 0 | BL30: 0 | BM30: 0 | BN30: 0 | BO30: 0 | BP30: 0 | BQ30: 0 | BR30: 0 | BS30: 0 | BV30: 0 | BW30: 0 | BX30: 0 | BY30: 0 | BZ30: 0 | CA30: 0 | CB30: 0 | CC30: 0 | CD30: 0 | CE30: 0
B31: =Inputs!$C88 -> 0 | C31: NA | D31: =IF($C31="NA","",'Unsmoothed Prices'!D29) ->  | E31: =IF($C31="NA","",'Smoothed Prices'!E31+$E$6) ->  | J31: =IF($C31="NA","",'Smoothed Prices'!J31+$J$6) ->  | O31: ='Smoothed Prices'!N31 ->  | AB31: =IFERROR(VLOOKUP($B31,Volumes!$B$4:$H$33,MATCH(AB$11,Volumes!$B$4:$H$4,0),FALSE),0) -> 0 | AC31: =IFERROR(VLOOKUP($B31,Volumes!$B$4:$H$33,MATCH(AC$11,Volumes!$B$4:$H$4,0),FALSE),0) -> 0 | AD31: =IFERROR(VLOOKUP($B31,Volumes!$B$4:$H$33,MATCH(AD$11,Volumes!$B$4:$H$4,0),FALSE),0) -> 0 | AE31: =IFERROR(VLOOKUP($B31,Volumes!$B$4:$H$33,MATCH(AE$11,Volumes!$B$4:$H$4,0),FALSE),0) -> 0 | AF31: =IFERROR(VLOOKUP($B31,Volumes!$B$4:$H$33,MATCH(AF$11,Volumes!$B$4:$H$4,0),FALSE),0) -> 0 | AG31: =IFERROR(VLOOKUP($B31,Volumes!$B$4:$M$33,MATCH(AG$11,Volumes!$B$4:$M$4,0),FALSE),0) -> 0 | AH31: =IFERROR(VLOOKUP($B31,Volumes!$B$4:$M$33,MATCH(AH$11,Volumes!$B$4:$M$4,0),FALSE),0) -> 0 | AI31: =IFERROR(VLOOKUP($B31,Volumes!$B$4:$M$33,MATCH(AI$11,Volumes!$B$4:$M$4,0),FALSE),0) -> 0 | AJ31: =IFERROR(VLOOKUP($B31,Volumes!$B$4:$M$33,MATCH(AJ$11,Volumes!$B$4:$M$4,0),FALSE),0) -> 0 | AK31: =IFERROR(VLOOKUP($B31,Volumes!$B$4:$M$33,MATCH(AK$11,Volumes!$B$4:$M$4,0),FALSE),0) -> 0 | BJ31: 0 | BK31: 0 | BL31: 0 | BM31: 0 | BN31: 0 | BO31: 0 | BP31: 0 | BQ31: 0 | BR31: 0 | BS31: 0 | BV31: 0 | BW31: 0 | BX31: 0 | BY31: 0 | BZ31: 0 | CA31: 0 | CB31: 0 | CC31: 0 | CD31: 0 | CE31: 0
B32: =Inputs!$C89 -> 250W Sodium Vapour | C32: Offered | D32: =IF($C32="NA","",'Unsmoothed Prices'!D30) -> 22.688 | E32: =IF($C32="NA","",'Smoothed Prices'!E32+$E$6) -> 23.21537431 | F32: 23.17404589 | G32: 23.13394818 | H32: 23.09504454 | I32: 23.05729941 | J32: =IF($C32="NA","",'Smoothed Prices'!J32+$J$6) -> 23.36601886 | K32: 23.61491948 | L32: 23.86434101 | M32: 24.11428452 | N32: 24.36475112 | O32: ='Smoothed Prices'!N32 -> 24.36895429 | Q32: 23.78413964 | R32: 24.32346117 | S32: 24.87625646 | T32: 25.44285406 | U32: 26.02359056 | V32: 27.01812812 | W32: 27.97491391 | X32: 28.96299647 | Y32: 29.98335188 | Z32: 31.0369857 | AB32: =IFERROR(VLOOKUP($B32,Volumes!$B$4:$H$33,MATCH(AB$11,Volumes!$B$4:$H$4,0),FALSE),0) -> 165 | AC32: =IFERROR(VLOOKUP($B32,Volumes!$B$4:$H$33,MATCH(AC$11,Volumes!$B$4:$H$4,0),FALSE),0) -> 165 | AD32: =IFERROR(VLOOKUP($B32,Volumes!$B$4:$H$33,MATCH(AD$11,Volumes!$B$4:$H$4,0),FALSE),0) -> 165 | AE32: =IFERROR(VLOOKUP($B32,Volumes!$B$4:$H$33,MATCH(AE$11,Volumes!$B$4:$H$4,0),FALSE),0) -> 165 | AF32: =IFERROR(VLOOKUP($B32,Volumes!$B$4:$H$33,MATCH(AF$11,Volumes!$B$4:$H$4,0),FALSE),0) -> 165 | AG32: =IFERROR(VLOOKUP($B32,Volumes!$B$4:$M$33,MATCH(AG$11,Volumes!$B$4:$M$4,0),FALSE),0) -> 165 | AH32: =IFERROR(VLOOKUP($B32,Volumes!$B$4:$M$33,MATCH(AH$11,Volumes!$B$4:$M$4,0),FALSE),0) -> 165 | AI32: =IFERROR(VLOOKUP($B32,Volumes!$B$4:$M$33,MATCH(AI$11,Volumes!$B$4:$M$4,0),FALSE),0) -> 165 | AJ32: =IFERROR(VLOOKUP($B32,Volumes!$B$4:$M$33,MATCH(AJ$11,Volumes!$B$4:$M$4,0),FALSE),0) -> 165 | AK32: =IFERROR(VLOOKUP($B32,Volumes!$B$4:$M$33,MATCH(AK$11,Volumes!$B$4:$M$4,0),FALSE),0) -> 165 | AM32: 84.96826999 | AN32: 84.58526751 | AO32: 84.43891087 | AP32: 84.29691258 | AQ32: 84.38971584 | AR32: 85.28596884 | AS32: 86.19445611 | AT32: 87.10484468 | AU32: 88.25828135 | AV32: 88.9313416 | AX32: 87.0499511 | AY32: 88.78063325 | AZ32: 90.79833607 | BA32: 92.86641731 | BB32: 95.24634144 | BC32: 98.61616764 | BD32: 102.1084358 | BE32: 105.7149371 | BF32: 109.7390679 | BG32: 113.2849978 | BJ32: 14019.76455 | BK32: 13956.56914 | BL32: 13932.42029 | BM32: 13908.99058 | BN32: 13924.30311 | BO32: 14072.18486 | BP32: 14222.08526 | BQ32: 14372.29937 | BR32: 14562.61642 | BS32: 14673.67136 | BV32: 14363.24193 | BW32: 14648.80449 | BX32: 14981.72545 | BY32: 15322.95886 | BZ32: 15715.64634 | CA32: 16271.66766 | CB32: 16847.8919 | CC32: 17442.96463 | CD32: 18106.9462 | CE32: 18692.02464
B33: =Inputs!$C90 -> 0 | C33: NA | D33: =IF($C33="NA","",'Unsmoothed Prices'!D31) ->  | E33: =IF($C33="NA","",'Smoothed Prices'!E33+$E$6) ->  | J33: =IF($C33="NA","",'Smoothed Prices'!J33+$J$6) ->  | O33: ='Smoothed Prices'!N33 ->  | AB33: =IFERROR(VLOOKUP($B33,Volumes!$B$4:$H$33,MATCH(AB$11,Volumes!$B$4:$H$4,0),FALSE),0) -> 0 | AC33: =IFERROR(VLOOKUP($B33,Volumes!$B$4:$H$33,MATCH(AC$11,Volumes!$B$4:$H$4,0),FALSE),0) -> 0 | AD33: =IFERROR(VLOOKUP($B33,Volumes!$B$4:$H$33,MATCH(AD$11,Volumes!$B$4:$H$4,0),FALSE),0) -> 0 | AE33: =IFERROR(VLOOKUP($B33,Volumes!$B$4:$H$33,MATCH(AE$11,Volumes!$B$4:$H$4,0),FALSE),0) -> 0 | AF33: =IFERROR(VLOOKUP($B33,Volumes!$B$4:$H$33,MATCH(AF$11,Volumes!$B$4:$H$4,0),FALSE),0) -> 0 | AG33: =IFERROR(VLOOKUP($B33,Volumes!$B$4:$M$33,MATCH(AG$11,Volumes!$B$4:$M$4,0),FALSE),0) -> 0 | AH33: =IFERROR(VLOOKUP($B33,Volumes!$B$4:$M$33,MATCH(AH$11,Volumes!$B$4:$M$4,0),FALSE),0) -> 0 | AI33: =IFERROR(VLOOKUP($B33,Volumes!$B$4:$M$33,MATCH(AI$11,Volumes!$B$4:$M$4,0),FALSE),0) -> 0 | AJ33: =IFERROR(VLOOKUP($B33,Volumes!$B$4:$M$33,MATCH(AJ$11,Volumes!$B$4:$M$4,0),FALSE),0) -> 0 | AK33: =IFERROR(VLOOKUP($B33,Volumes!$B$4:$M$33,MATCH(AK$11,Volumes!$B$4:$M$4,0),FALSE),0) -> 0 | BJ33: 0 | BK33: 0 | BL33: 0 | BM33: 0 | BN33: 0 | BO33: 0 | BP33: 0 | BQ33: 0 | BR33: 0 | BS33: 0 | BV33: 0 | BW33: 0 | BX33: 0 | BY33: 0 | BZ33: 0 | CA33: 0 | CB33: 0 | CC33: 0 | CD33: 0 | CE33: 0
B34: =Inputs!$C91 -> 0 | C34: NA | D34: =IF($C34="NA","",'Unsmoothed Prices'!D32) ->  | E34: =IF($C34="NA","",'Smoothed Prices'!E34+$E$6) ->  | J34: =IF($C34="NA","",'Smoothed Prices'!J34+$J$6) ->  | O34: ='Smoothed Prices'!N34 ->  | AB34: =IFERROR(VLOOKUP($B34,Volumes!$B$4:$H$33,MATCH(AB$11,Volumes!$B$4:$H$4,0),FALSE),0) -> 0 | AC34: =IFERROR(VLOOKUP($B34,Volumes!$B$4:$H$33,MATCH(AC$11,Volumes!$B$4:$H$4,0),FALSE),0) -> 0 | AD34: =IFERROR(VLOOKUP($B34,Volumes!$B$4:$H$33,MATCH(AD$11,Volumes!$B$4:$H$4,0),FALSE),0) -> 0 | AE34: =IFERROR(VLOOKUP($B34,Volumes!$B$4:$H$33,MATCH(AE$11,Volumes!$B$4:$H$4,0),FALSE),0) -> 0 | AF34: =IFERROR(VLOOKUP($B34,Volumes!$B$4:$H$33,MATCH(AF$11,Volumes!$B$4:$H$4,0),FALSE),0) -> 0 | AG34: =IFERROR(VLOOKUP($B34,Volumes!$B$4:$M$33,MATCH(AG$11,Volumes!$B$4:$M$4,0),FALSE),0) -> 0 | AH34: =IFERROR(VLOOKUP($B34,Volumes!$B$4:$M$33,MATCH(AH$11,Volumes!$B$4:$M$4,0),FALSE),0) -> 0 | AI34: =IFERROR(VLOOKUP($B34,Volumes!$B$4:$M$33,MATCH(AI$11,Volumes!$B$4:$M$4,0),FALSE),0) -> 0 | AJ34: =IFERROR(VLOOKUP($B34,Volumes!$B$4:$M$33,MATCH(AJ$11,Volumes!$B$4:$M$4,0),FALSE),0) -> 0 | AK34: =IFERROR(VLOOKUP($B34,Volumes!$B$4:$M$33,MATCH(AK$11,Volumes!$B$4:$M$4,0),FALSE),0) -> 0 | BJ34: 0 | BK34: 0 | BL34: 0 | BM34: 0 | BN34: 0 | BO34: 0 | BP34: 0 | BQ34: 0 | BR34: 0 | BS34: 0 | BV34: 0 | BW34: 0 | BX34: 0 | BY34: 0 | BZ34: 0 | CA34: 0 | CB34: 0 | CC34: 0 | CD34: 0 | CE34: 0
B35: =Inputs!$C92 -> 0 | C35: NA | D35: =IF($C35="NA","",'Unsmoothed Prices'!D33) ->  | E35: =IF($C35="NA","",'Smoothed Prices'!E35+$E$6) ->  | J35: =IF($C35="NA","",'Smoothed Prices'!J35+$J$6) ->  | O35: ='Smoothed Prices'!N35 ->  | AB35: =IFERROR(VLOOKUP($B35,Volumes!$B$4:$H$33,MATCH(AB$11,Volumes!$B$4:$H$4,0),FALSE),0) -> 0 | AC35: =IFERROR(VLOOKUP($B35,Volumes!$B$4:$H$33,MATCH(AC$11,Volumes!$B$4:$H$4,0),FALSE),0) -> 0 | AD35: =IFERROR(VLOOKUP($B35,Volumes!$B$4:$H$33,MATCH(AD$11,Volumes!$B$4:$H$4,0),FALSE),0) -> 0 | AE35: =IFERROR(VLOOKUP($B35,Volumes!$B$4:$H$33,MATCH(AE$11,Volumes!$B$4:$H$4,0),FALSE),0) -> 0 | AF35: =IFERROR(VLOOKUP($B35,Volumes!$B$4:$H$33,MATCH(AF$11,Volumes!$B$4:$H$4,0),FALSE),0) -> 0 | AG35: =IFERROR(VLOOKUP($B35,Volumes!$B$4:$M$33,MATCH(AG$11,Volumes!$B$4:$M$4,0),FALSE),0) -> 0 | AH35: =IFERROR(VLOOKUP($B35,Volumes!$B$4:$M$33,MATCH(AH$11,Volumes!$B$4:$M$4,0),FALSE),0) -> 0 | AI35: =IFERROR(VLOOKUP($B35,Volumes!$B$4:$M$33,MATCH(AI$11,Volumes!$B$4:$M$4,0),FALSE),0) -> 0 | AJ35: =IFERROR(VLOOKUP($B35,Volumes!$B$4:$M$33,MATCH(AJ$11,Volumes!$B$4:$M$4,0),FALSE),0) -> 0 | AK35: =IFERROR(VLOOKUP($B35,Volumes!$B$4:$M$33,MATCH(AK$11,Volumes!$B$4:$M$4,0),FALSE),0) -> 0 | BJ35: 0 | BK35: 0 | BL35: 0 | BM35: 0 | BN35: 0 | BO35: 0 | BP35: 0 | BQ35: 0 | BR35: 0 | BS35: 0 | BV35: 0 | BW35: 0 | BX35: 0 | BY35: 0 | BZ35: 0 | CA35: 0 | CB35: 0 | CC35: 0 | CD35: 0 | CE35: 0
B36: =Inputs!$C93 -> 250W Sodium Vapour - Flood Light | C36: Old light no volumes | D36: =IF($C36="NA","",'Unsmoothed Prices'!D34) -> 22.688 | E36: =IF($C36="NA","",'Smoothed Prices'!E36+$E$6) -> 23.21537431 | F36: 23.17404589 | G36: 23.13394818 | H36: 23.09504454 | I36: 23.05729941 | J36: =IF($C36="NA","",'Smoothed Prices'!J36+$J$6) -> 23.36601886 | K36: 23.61491948 | L36: 23.86434101 | M36: 24.11428452 | N36: 24.36475112 | O36: ='Smoothed Prices'!N36 -> 24.36895429 | Q36: 23.78413964 | R36: 24.32346117 | S36: 24.87625646 | T36: 25.44285406 | U36: 26.02359056 | V36: 27.01812812 | W36: 27.97491391 | X36: 28.96299647 | Y36: 29.98335188 | Z36: 31.0369857 | AB36: =IFERROR(VLOOKUP($B36,Volumes!$B$4:$H$33,MATCH(AB$11,Volumes!$B$4:$H$4,0),FALSE),0) -> 0 | AC36: =IFERROR(VLOOKUP($B36,Volumes!$B$4:$H$33,MATCH(AC$11,Volumes!$B$4:$H$4,0),FALSE),0) -> 0 | AD36: =IFERROR(VLOOKUP($B36,Volumes!$B$4:$H$33,MATCH(AD$11,Volumes!$B$4:$H$4,0),FALSE),0) -> 0 | AE36: =IFERROR(VLOOKUP($B36,Volumes!$B$4:$H$33,MATCH(AE$11,Volumes!$B$4:$H$4,0),FALSE),0) -> 0 | AF36: =IFERROR(VLOOKUP($B36,Volumes!$B$4:$H$33,MATCH(AF$11,Volumes!$B$4:$H$4,0),FALSE),0) -> 0 | AG36: =IFERROR(VLOOKUP($B36,Volumes!$B$4:$M$33,MATCH(AG$11,Volumes!$B$4:$M$4,0),FALSE),0) -> 0 | AH36: =IFERROR(VLOOKUP($B36,Volumes!$B$4:$M$33,MATCH(AH$11,Volumes!$B$4:$M$4,0),FALSE),0) -> 0 | AI36: =IFERROR(VLOOKUP($B36,Volumes!$B$4:$M$33,MATCH(AI$11,Volumes!$B$4:$M$4,0),FALSE),0) -> 0 | AJ36: =IFERROR(VLOOKUP($B36,Volumes!$B$4:$M$33,MATCH(AJ$11,Volumes!$B$4:$M$4,0),FALSE),0) -> 0 | AK36: =IFERROR(VLOOKUP($B36,Volumes!$B$4:$M$33,MATCH(AK$11,Volumes!$B$4:$M$4,0),FALSE),0) -> 0 | AM36: 84.96826999 | AN36: 84.58526751 | AO36: 84.43891087 | AP36: 84.29691258 | AQ36: 84.38971584 | AR36: 85.28596884 | AS36: 86.19445611 | AT36: 87.10484468 | AU36: 88.25828135 | AV36: 88.9313416 | AX36: 87.0499511 | AY36: 88.78063325 | AZ36: 90.79833607 | BA36: 92.86641731 | BB36: 95.24634144 | BC36: 98.61616764 | BD36: 102.1084358 | BE36: 105.7149371 | BF36: 109.7390679 | BG36: 113.2849978 | BJ36: 0 | BK36: 0 | BL36: 0 | BM36: 0 | BN36: 0 | BO36: 0 | BP36: 0 | BQ36: 0 | BR36: 0 | BS36: 0 | BV36: 0 | BW36: 0 | BX36: 0 | BY36: 0 | BZ36: 0 | CA36: 0 | CB36: 0 | CC36: 0 | CD36: 0 | CE36: 0
B37: =Inputs!$C94 -> 400W Sodium Vapour | C37: Offered | D37: =IF($C37="NA","",'Unsmoothed Prices'!D35) -> 22.734 | E37: =IF($C37="NA","",'Smoothed Prices'!E37+$E$6) -> 23.27311341 | F37: 23.23006558 | G37: 23.18829967 | H37: 23.1477775 | I37: 23.10846204 | J37: =IF($C37="NA","",'Smoothed Prices'!J37+$J$6) -> 23.41728856 | K37: 23.66629648 | L37: 23.91582553 | M37: 24.16587679 | N37: 24.41645136 | O37: ='Smoothed Prices'!N37 -> 24.42065453 | Q37: 23.84329332 | R37: 24.38225939 | S37: 24.93470137 | T37: 25.50094777 | U37: 26.08133519 | V37: =IF($C37="NA","",J37*V$9) -> 27.07741128 | W37: 28.03577658 | X37: 29.02548075 | Y37: 30.04750096 | Z37: 31.10284394 | AB37: =IFERROR(VLOOKUP($B37,Volumes!$B$4:$H$33,MATCH(AB$11,Volumes!$B$4:$H$4,0),FALSE),0) -> 104 | AC37: =IFERROR(VLOOKUP($B37,Volumes!$B$4:$H$33,MATCH(AC$11,Volumes!$B$4:$H$4,0),FALSE),0) -> 104 | AD37: =IFERROR(VLOOKUP($B37,Volumes!$B$4:$H$33,MATCH(AD$11,Volumes!$B$4:$H$4,0),FALSE),0) -> 104 | AE37: =IFERROR(VLOOKUP($B37,Volumes!$B$4:$H$33,MATCH(AE$11,Volumes!$B$4:$H$4,0),FALSE),0) -> 104 | AF37: =IFERROR(VLOOKUP($B37,Volumes!$B$4:$H$33,MATCH(AF$11,Volumes!$B$4:$H$4,0),FALSE),0) -> 104 | AG37: =IFERROR(VLOOKUP($B37,Volumes!$B$4:$M$33,MATCH(AG$11,Volumes!$B$4:$M$4,0),FALSE),0) -> 104 | AH37: =IFERROR(VLOOKUP($B37,Volumes!$B$4:$M$33,MATCH(AH$11,Volumes!$B$4:$M$4,0),FALSE),0) -> 104 | AI37: =IFERROR(VLOOKUP($B37,Volumes!$B$4:$M$33,MATCH(AI$11,Volumes!$B$4:$M$4,0),FALSE),0) -> 104 | AJ37: =IFERROR(VLOOKUP($B37,Volumes!$B$4:$M$33,MATCH(AJ$11,Volumes!$B$4:$M$4,0),FALSE),0) -> 104 | AK37: =IFERROR(VLOOKUP($B37,Volumes!$B$4:$M$33,MATCH(AK$11,Volumes!$B$4:$M$4,0),FALSE),0) -> 104 | AM37: 85.17959509 | AN37: 84.78973938 | AO37: 84.6372938 | AP37: 84.48938788 | AQ37: 84.57697106 | AR37: =IF($C37="NA","",(J37*AR$9)/100) -> 85.47310325 | AS37: 86.38198216 | AT37: 87.29276318 | AU37: 88.44710906 | AV37: 89.12004748 | AX37: 87.26645356 | AY37: 88.99524677 | AZ37: 91.01165999 | BA37: 93.07845938 | BB37: 95.4576868 | BC37: =IF($C37="NA","",(V37*BC$9)/100) -> 98.83255117 | BD37: 102.3305845 | BE37: 105.9430047 | BF37: 109.9738535 | BG37: 113.5253804 | BJ37: 8858.677889 | BK37: 8818.132895 | BL37: 8802.278555 | BM37: 8786.896339 | BN37: 8796.00499 | BO37: 8889.202738 | BP37: 8983.726145 | BQ37: 9078.447371 | BR37: 9198.499342 | BS37: 9268.484938 | BV37: 9075.71117 | BW37: 9255.505664 | BX37: 9465.212639 | BY37: 9680.159775 | BZ37: 9927.599427 | CA37: =IFERROR(BC37*AG37,0) -> 10278.58532 | CB37: 10642.38079 | CC37: 11018.07249 | CD37: 11437.28077 | CE37: 11806.63956
B38: =Inputs!$C95 -> 0 | C38: NA | D38: =IF($C38="NA","",'Unsmoothed Prices'!D36) ->  | E38: =IF($C38="NA","",'Smoothed Prices'!E38+$E$6) ->  | J38: =IF($C38="NA","",'Smoothed Prices'!J38+$J$6) ->  | O38: ='Smoothed Prices'!N38 ->  | Q38: =IF($C38="NA","",E38*Q$9) ->  | AB38: =IFERROR(VLOOKUP($B38,Volumes!$B$4:$H$33,MATCH(AB$11,Volumes!$B$4:$H$4,0),FALSE),0) -> 0 | AC38: =IFERROR(VLOOKUP($B38,Volumes!$B$4:$H$33,MATCH(AC$11,Volumes!$B$4:$H$4,0),FALSE),0) -> 0 | AD38: =IFERROR(VLOOKUP($B38,Volumes!$B$4:$H$33,MATCH(AD$11,Volumes!$B$4:$H$4,0),FALSE),0) -> 0 | AE38: =IFERROR(VLOOKUP($B38,Volumes!$B$4:$H$33,MATCH(AE$11,Volumes!$B$4:$H$4,0),FALSE),0) -> 0 | AF38: =IFERROR(VLOOKUP($B38,Volumes!$B$4:$H$33,MATCH(AF$11,Volumes!$B$4:$H$4,0),FALSE),0) -> 0 | AG38: =IFERROR(VLOOKUP($B38,Volumes!$B$4:$M$33,MATCH(AG$11,Volumes!$B$4:$M$4,0),FALSE),0) -> 0 | AH38: =IFERROR(VLOOKUP($B38,Volumes!$B$4:$M$33,MATCH(AH$11,Volumes!$B$4:$M$4,0),FALSE),0) -> 0 | AI38: =IFERROR(VLOOKUP($B38,Volumes!$B$4:$M$33,MATCH(AI$11,Volumes!$B$4:$M$4,0),FALSE),0) -> 0 | AJ38: =IFERROR(VLOOKUP($B38,Volumes!$B$4:$M$33,MATCH(AJ$11,Volumes!$B$4:$M$4,0),FALSE),0) -> 0 | AK38: =IFERROR(VLOOKUP($B38,Volumes!$B$4:$M$33,MATCH(AK$11,Volumes!$B$4:$M$4,0),FALSE),0) -> 0 | AM38: =IF($C38="NA","",(E38*AM$9)/100) ->  | AX38: =IF($C38="NA","",(Q38*AX$9)/100) ->  | BJ38: 0 | BK38: 0 | BL38: 0 | BM38: 0 | BN38: 0 | BO38: 0 | BP38: 0 | BQ38: 0 | BR38: 0 | BS38: 0 | BV38: =IFERROR(AX38*AB38,0) -> 0 | BW38: 0 | BX38: 0 | BY38: 0 | BZ38: 0 | CA38: 0 | CB38: 0 | CC38: 0 | CD38: 0 | CE38: 0
B39: =Inputs!$C96 -> 400W Sodium Vapour - Flood Light | C39: Old light no volumes | D39: =IF($C39="NA","",'Unsmoothed Prices'!D37) -> 22.734 | E39: =IF($C39="NA","",'Smoothed Prices'!E39+$E$6) -> 23.27311341 | F39: 23.23006558 | G39: 23.18829967 | H39: 23.1477775 | I39: 23.10846204 | J39: =IF($C39="NA","",'Smoothed Prices'!J39+$J$6) -> 23.41728856 | K39: 23.66629648 | L39: 23.91582553 | M39: 24.16587679 | N39: 24.41645136 | O39: ='Smoothed Prices'!N39 -> 24.42065453 | Q39: 23.84329332 | R39: 24.38225939 | S39: 24.93470137 | T39: 25.50094777 | U39: 26.08133519 | V39: 27.07741128 | W39: 28.03577658 | X39: 29.02548075 | Y39: 30.04750096 | Z39: 31.10284394 | AB39: =IFERROR(VLOOKUP($B39,Volumes!$B$4:$H$33,MATCH(AB$11,Volumes!$B$4:$H$4,0),FALSE),0) -> 0 | AC39: =IFERROR(VLOOKUP($B39,Volumes!$B$4:$H$33,MATCH(AC$11,Volumes!$B$4:$H$4,0),FALSE),0) -> 0 | AD39: =IFERROR(VLOOKUP($B39,Volumes!$B$4:$H$33,MATCH(AD$11,Volumes!$B$4:$H$4,0),FALSE),0) -> 0 | AE39: =IFERROR(VLOOKUP($B39,Volumes!$B$4:$H$33,MATCH(AE$11,Volumes!$B$4:$H$4,0),FALSE),0) -> 0 | AF39: =IFERROR(VLOOKUP($B39,Volumes!$B$4:$H$33,MATCH(AF$11,Volumes!$B$4:$H$4,0),FALSE),0) -> 0 | AG39: =IFERROR(VLOOKUP($B39,Volumes!$B$4:$M$33,MATCH(AG$11,Volumes!$B$4:$M$4,0),FALSE),0) -> 0 | AH39: =IFERROR(VLOOKUP($B39,Volumes!$B$4:$M$33,MATCH(AH$11,Volumes!$B$4:$M$4,0),FALSE),0) -> 0 | AI39: =IFERROR(VLOOKUP($B39,Volumes!$B$4:$M$33,MATCH(AI$11,Volumes!$B$4:$M$4,0),FALSE),0) -> 0 | AJ39: =IFERROR(VLOOKUP($B39,Volumes!$B$4:$M$33,MATCH(AJ$11,Volumes!$B$4:$M$4,0),FALSE),0) -> 0 | AK39: =IFERROR(VLOOKUP($B39,Volumes!$B$4:$M$33,MATCH(AK$11,Volumes!$B$4:$M$4,0),FALSE),0) -> 0 | AM39: 85.17959509 | AN39: 84.78973938 | AO39: 84.6372938 | AP39: 84.48938788 | AQ39: 84.57697106 | AR39: 85.47310325 | AS39: 86.38198216 | AT39: 87.29276318 | AU39: 88.44710906 | AV39: 89.12004748 | AX39: 87.26645356 | AY39: 88.99524677 | AZ39: 91.01165999 | BA39: 93.07845938 | BB39: 95.4576868 | BC39: 98.83255117 | BD39: 102.3305845 | BE39: 105.9430047 | BF39: 109.9738535 | BG39: 113.5253804 | BJ39: 0 | BK39: 0 | BL39: 0 | BM39: 0 | BN39: 0 | BO39: 0 | BP39: 0 | BQ39: 0 | BR39: 0 | BS39: 0 | BV39: 0 | BW39: 0 | BX39: 0 | BY39: 0 | BZ39: 0 | CA39: 0 | CB39: 0 | CC39: 0 | CD39: 0 | CE39: 0
B40: =Inputs!$C97 -> 70W Sodium Vapour | C40: Offered | D40: =IF($C40="NA","",'Unsmoothed Prices'!D38) -> 18.434 | E40: =IF($C40="NA","",'Smoothed Prices'!E40+$E$6) -> 18.97712196 | F40: 19.06200405 | G40: 19.14435844 | H40: 19.22426041 | I40: 19.30178299 | J40: =IF($C40="NA","",'Smoothed Prices'!J40+$J$6) -> 19.60264286 | K40: 19.84366746 | L40: 20.08519647 | M40: 20.32723096 | N40: 20.56977198 | O40: ='Smoothed Prices'!N40 -> 20.57397514 | Q40: 19.44205217 | R40: 20.00746513 | S40: 20.58619508 | T40: 21.1785715 | U40: 21.78493191 | V40: 22.66653637 | W40: 23.50738012 | X40: 24.37643153 | Y40: 25.27458437 | Z40: 26.20275969 | AB40: =IFERROR(VLOOKUP($B40,Volumes!$B$4:$H$33,MATCH(AB$11,Volumes!$B$4:$H$4,0),FALSE),0) -> 73 | AC40: =IFERROR(VLOOKUP($B40,Volumes!$B$4:$H$33,MATCH(AC$11,Volumes!$B$4:$H$4,0),FALSE),0) -> 73 | AD40: =IFERROR(VLOOKUP($B40,Volumes!$B$4:$H$33,MATCH(AD$11,Volumes!$B$4:$H$4,0),FALSE),0) -> 73 | AE40: =IFERROR(VLOOKUP($B40,Volumes!$B$4:$H$33,MATCH(AE$11,Volumes!$B$4:$H$4,0),FALSE),0) -> 73 | AF40: =IFERROR(VLOOKUP($B40,Volumes!$B$4:$H$33,MATCH(AF$11,Volumes!$B$4:$H$4,0),FALSE),0) -> 73 | AG40: =IFERROR(VLOOKUP($B40,Volumes!$B$4:$M$33,MATCH(AG$11,Volumes!$B$4:$M$4,0),FALSE),0) -> 73 | AH40: =IFERROR(VLOOKUP($B40,Volumes!$B$4:$M$33,MATCH(AH$11,Volumes!$B$4:$M$4,0),FALSE),0) -> 73 | AI40: =IFERROR(VLOOKUP($B40,Volumes!$B$4:$M$33,MATCH(AI$11,Volumes!$B$4:$M$4,0),FALSE),0) -> 73 | AJ40: =IFERROR(VLOOKUP($B40,Volumes!$B$4:$M$33,MATCH(AJ$11,Volumes!$B$4:$M$4,0),FALSE),0) -> 73 | AK40: =IFERROR(VLOOKUP($B40,Volumes!$B$4:$M$33,MATCH(AK$11,Volumes!$B$4:$M$4,0),FALSE),0) -> 73 | AM40: 69.45626636 | AN40: 69.57631477 | AO40: 69.87690831 | AP40: 70.16855051 | AQ40: 70.64452575 | AR40: 71.54964645 | AS40: 72.42938622 | AT40: 73.31096712 | AU40: 74.3976653 | AV40: 75.07966771 | AX40: 71.15791095 | AY40: 73.02724773 | AZ40: 75.13961205 | BA40: 77.30178597 | BB40: 79.73285079 | BC40: 82.73285776 | BD40: 85.80193743 | BE40: 88.97397508 | BF40: 92.50497878 | BG40: 95.64007287 | BJ40: 5070.307444 | BK40: 5079.070978 | BL40: 5101.014307 | BM40: 5122.304187 | BN40: 5157.05038 | BO40: 5223.124191 | BP40: 5287.345194 | BQ40: 5351.700599 | BR40: 5431.029567 | BS40: 5480.815743 | BV40: 5194.527499 | BW40: 5330.989084 | BX40: 5485.191679 | BY40: 5643.030375 | BZ40: 5820.498107 | CA40: 6039.498617 | CB40: 6263.541433 | CC40: 6495.100181 | CD40: 6752.863451 | CE40: 6981.72532
B41: =Inputs!$C98 -> 0 | C41: NA | D41: =IF($C41="NA","",'Unsmoothed Prices'!D39) ->  | E41: =IF($C41="NA","",'Smoothed Prices'!E41+$E$6) ->  | J41: =IF($C41="NA","",'Smoothed Prices'!J41+$J$6) ->  | O41: ='Smoothed Prices'!N41 ->  | AB41: =IFERROR(VLOOKUP($B41,Volumes!$B$4:$H$33,MATCH(AB$11,Volumes!$B$4:$H$4,0),FALSE),0) -> 0 | AC41: =IFERROR(VLOOKUP($B41,Volumes!$B$4:$H$33,MATCH(AC$11,Volumes!$B$4:$H$4,0),FALSE),0) -> 0 | AD41: =IFERROR(VLOOKUP($B41,Volumes!$B$4:$H$33,MATCH(AD$11,Volumes!$B$4:$H$4,0),FALSE),0) -> 0 | AE41: =IFERROR(VLOOKUP($B41,Volumes!$B$4:$H$33,MATCH(AE$11,Volumes!$B$4:$H$4,0),FALSE),0) -> 0 | AF41: =IFERROR(VLOOKUP($B41,Volumes!$B$4:$H$33,MATCH(AF$11,Volumes!$B$4:$H$4,0),FALSE),0) -> 0 | AG41: =IFERROR(VLOOKUP($B41,Volumes!$B$4:$M$33,MATCH(AG$11,Volumes!$B$4:$M$4,0),FALSE),0) -> 0 | AH41: =IFERROR(VLOOKUP($B41,Volumes!$B$4:$M$33,MATCH(AH$11,Volumes!$B$4:$M$4,0),FALSE),0) -> 0 | AI41: =IFERROR(VLOOKUP($B41,Volumes!$B$4:$M$33,MATCH(AI$11,Volumes!$B$4:$M$4,0),FALSE),0) -> 0 | AJ41: =IFERROR(VLOOKUP($B41,Volumes!$B$4:$M$33,MATCH(AJ$11,Volumes!$B$4:$M$4,0),FALSE),0) -> 0 | AK41: =IFERROR(VLOOKUP($B41,Volumes!$B$4:$M$33,MATCH(AK$11,Volumes!$B$4:$M$4,0),FALSE),0) -> 0 | BJ41: 0 | BK41: 0 | BL41: 0 | BM41: 0 | BN41: 0 | BO41: 0 | BP41: 0 | BQ41: 0 | BR41: 0 | BS41: 0 | BV41: 0 | BW41: 0 | BX41: 0 | BY41: 0 | BZ41: 0 | CA41: 0 | CB41: 0 | CC41: 0 | CD41: 0 | CE41: 0
B42: =Inputs!$C99 -> 100W Incandescent | C42: Obsolete, no new Connections | D42: =IF($C42="NA","",'Unsmoothed Prices'!D40) -> 21.61 | E42: =IF($C42="NA","",'Smoothed Prices'!E42+$E$6) -> 21.82153224 | F42: 21.82171091 | G42: 21.82188425 | H42: 21.82205244 | I42: 21.82221562 | J42: =IF($C42="NA","",'Smoothed Prices'!J42+$J$6) -> 22.12835027 | K42: 22.37466069 | L42: 22.62148659 | M42: 22.86882905 | N42: 23.11668915 | O42: ='Smoothed Prices'!N42 -> 23.12089231 | Q42: 22.35614912 | R42: 22.90405138 | S42: 23.46537585 | T42: 24.04045138 | U42: 24.62961486 | V42: 25.58701191 | W42: 26.50566761 | X42: 27.45460418 | Y42: 28.4347706 | Z42: 29.44714464 | AB42: =IFERROR(VLOOKUP($B42,Volumes!$B$4:$H$33,MATCH(AB$11,Volumes!$B$4:$H$4,0),FALSE),0) -> 0 | AC42: =IFERROR(VLOOKUP($B42,Volumes!$B$4:$H$33,MATCH(AC$11,Volumes!$B$4:$H$4,0),FALSE),0) -> 0 | AD42: =IFERROR(VLOOKUP($B42,Volumes!$B$4:$H$33,MATCH(AD$11,Volumes!$B$4:$H$4,0),FALSE),0) -> 0 | AE42: =IFERROR(VLOOKUP($B42,Volumes!$B$4:$H$33,MATCH(AE$11,Volumes!$B$4:$H$4,0),FALSE),0) -> 0 | AF42: =IFERROR(VLOOKUP($B42,Volumes!$B$4:$H$33,MATCH(AF$11,Volumes!$B$4:$H$4,0),FALSE),0) -> 0 | AG42: =IFERROR(VLOOKUP($B42,Volumes!$B$4:$M$33,MATCH(AG$11,Volumes!$B$4:$M$4,0),FALSE),0) -> 0 | AH42: =IFERROR(VLOOKUP($B42,Volumes!$B$4:$M$33,MATCH(AH$11,Volumes!$B$4:$M$4,0),FALSE),0) -> 0 | AI42: =IFERROR(VLOOKUP($B42,Volumes!$B$4:$M$33,MATCH(AI$11,Volumes!$B$4:$M$4,0),FALSE),0) -> 0 | AJ42: =IFERROR(VLOOKUP($B42,Volumes!$B$4:$M$33,MATCH(AJ$11,Volumes!$B$4:$M$4,0),FALSE),0) -> 0 | AK42: =IFERROR(VLOOKUP($B42,Volumes!$B$4:$M$33,MATCH(AK$11,Volumes!$B$4:$M$4,0),FALSE),0) -> 0 | AM42: 79.86680799 | AN42: 79.64924481 | AO42: 79.64987753 | AP42: 79.6504914 | AQ42: 79.86930916 | AR42: 80.76847849 | AS42: 81.66751152 | AT42: 82.56842605 | AU42: 83.69991432 | AV42: 84.37591539 | AX42: 81.82350577 | AY42: 83.59978754 | AZ42: 85.64862186 | BA42: 87.74764754 | BB42: 90.14439041 | BC42: 93.39259346 | BD42: 96.74568679 | BE42: 100.2093053 | BF42: 104.0712604 | BG42: 107.4820779 | BJ42: 0 | BK42: 0 | BL42: 0 | BM42: 0 | BN42: 0 | BO42: 0 | BP42: 0 | BQ42: 0 | BR42: 0 | BS42: 0 | BV42: 0 | BW42: 0 | BX42: 0 | BY42: 0 | BZ42: 0 | CA42: 0 | CB42: 0 | CC42: 0 | CD42: 0 | CE42: 0
B43: =Inputs!$C100 -> 60W Incandescent | C43: Obsolete, no new Connections | D43: =IF($C43="NA","",'Unsmoothed Prices'!D41) -> 18.023 | E43: =IF($C43="NA","",'Smoothed Prices'!E43+$E$6) -> 18.42201624 | F43: 18.52342878 | G43: 18.62182135 | H43: 18.71728391 | I43: 18.80990369 | J43: =IF($C43="NA","",'Smoothed Prices'!J43+$J$6) -> 19.10973415 | K43: 19.34972718 | L43: 19.59022247 | M43: 19.83122107 | N43: 20.07272404 | O43: ='Smoothed Prices'!N43 -> 20.0769272 | Q43: 18.87334664 | R43: 19.44217693 | S43: 20.02430368 | T43: 20.62005648 | U43: 21.22977298 | V43: 22.09658602 | W43: 22.92224424 | X43: 23.77570553 | Y43: 24.65785287 | Z43: 25.56959625 | AB43: =IFERROR(VLOOKUP($B43,Volumes!$B$4:$H$33,MATCH(AB$11,Volumes!$B$4:$H$4,0),FALSE),0) -> 0 | AC43: =IFERROR(VLOOKUP($B43,Volumes!$B$4:$H$33,MATCH(AC$11,Volumes!$B$4:$H$4,0),FALSE),0) -> 0 | AD43: =IFERROR(VLOOKUP($B43,Volumes!$B$4:$H$33,MATCH(AD$11,Volumes!$B$4:$H$4,0),FALSE),0) -> 0 | AE43: =IFERROR(VLOOKUP($B43,Volumes!$B$4:$H$33,MATCH(AE$11,Volumes!$B$4:$H$4,0),FALSE),0) -> 0 | AF43: =IFERROR(VLOOKUP($B43,Volumes!$B$4:$H$33,MATCH(AF$11,Volumes!$B$4:$H$4,0),FALSE),0) -> 0 | AG43: =IFERROR(VLOOKUP($B43,Volumes!$B$4:$M$33,MATCH(AG$11,Volumes!$B$4:$M$4,0),FALSE),0) -> 0 | AH43: =IFERROR(VLOOKUP($B43,Volumes!$B$4:$M$33,MATCH(AH$11,Volumes!$B$4:$M$4,0),FALSE),0) -> 0 | AI43: =IFERROR(VLOOKUP($B43,Volumes!$B$4:$M$33,MATCH(AI$11,Volumes!$B$4:$M$4,0),FALSE),0) -> 0 | AJ43: =IFERROR(VLOOKUP($B43,Volumes!$B$4:$M$33,MATCH(AJ$11,Volumes!$B$4:$M$4,0),FALSE),0) -> 0 | AK43: =IFERROR(VLOOKUP($B43,Volumes!$B$4:$M$33,MATCH(AK$11,Volumes!$B$4:$M$4,0),FALSE),0) -> 0 | AM43: 67.42457946 | AN43: 67.61051503 | AO43: 67.96964794 | AP43: 68.31808626 | AQ43: 68.84424751 | AR43: 69.75052966 | AS43: 70.62650422 | AT43: 71.50431202 | AU43: 72.58226913 | AV43: 73.26544274 | AX43: 69.07644871 | AY43: 70.9639458 | AZ43: 73.08870842 | BA43: 75.26320614 | BB43: 77.70096912 | BC43: 80.65253897 | BD43: 83.66619148 | BE43: 86.78132518 | BF43: 90.24774149 | BG43: 93.3290263 | BJ43: 0 | BK43: 0 | BL43: 0 | BM43: 0 | BN43: 0 | BO43: 0 | BP43: 0 | BQ43: 0 | BR43: 0 | BS43: 0 | BV43: 0 | BW43: 0 | BX43: 0 | BY43: 0 | BZ43: 0 | CA43: 0 | CB43: 0 | CC43: 0 | CD43: 0 | CE43: 0
B44: =Inputs!$C101 -> 18W LED | C44: Offered | D44: =IF($C44="NA","",'Unsmoothed Prices'!D42) -> 12.349 | E44: =IF($C44="NA","",'Smoothed Prices'!E44+$E$6) -> 13.18700473 | F44: 13.44431017 | G44: 13.69395333 | H44: 13.9361624 | I44: 14.17115875 | J44: =IF($C44="NA","",'Smoothed Prices'!J44+$J$6) -> 14.4612812 | K44: 14.6915459 | L44: 14.92229251 | M44: 15.15352202 | N44: 15.38523545 | O44: ='Smoothed Prices'!N44 -> 15.38943862 | Q44: 13.5100799 | R44: 14.11113786 | S44: 14.72529861 | T44: 15.35289293 | U44: 15.99425962 | V44: 16.72157977 | W44: 17.40402851 | X44: 18.1104647 | Y44: 18.84166966 | Z44: 19.59844902 | AB44: =IFERROR(VLOOKUP($B44,Volumes!$B$4:$H$33,MATCH(AB$11,Volumes!$B$4:$H$4,0),FALSE),0) -> 4980 | AC44: =IFERROR(VLOOKUP($B44,Volumes!$B$4:$H$33,MATCH(AC$11,Volumes!$B$4:$H$4,0),FALSE),0) -> 4980 | AD44: =IFERROR(VLOOKUP($B44,Volumes!$B$4:$H$33,MATCH(AD$11,Volumes!$B$4:$H$4,0),FALSE),0) -> 4980 | AE44: =IFERROR(VLOOKUP($B44,Volumes!$B$4:$H$33,MATCH(AE$11,Volumes!$B$4:$H$4,0),FALSE),0) -> 4980 | AF44: =IFERROR(VLOOKUP($B44,Volumes!$B$4:$H$33,MATCH(AF$11,Volumes!$B$4:$H$4,0),FALSE),0) -> 4980 | AG44: =IFERROR(VLOOKUP($B44,Volumes!$B$4:$M$33,MATCH(AG$11,Volumes!$B$4:$M$4,0),FALSE),0) -> 4980 | AH44: =IFERROR(VLOOKUP($B44,Volumes!$B$4:$M$33,MATCH(AH$11,Volumes!$B$4:$M$4,0),FALSE),0) -> 4980 | AI44: =IFERROR(VLOOKUP($B44,Volumes!$B$4:$M$33,MATCH(AI$11,Volumes!$B$4:$M$4,0),FALSE),0) -> 4980 | AJ44: =IFERROR(VLOOKUP($B44,Volumes!$B$4:$M$33,MATCH(AJ$11,Volumes!$B$4:$M$4,0),FALSE),0) -> 4980 | AK44: =IFERROR(VLOOKUP($B44,Volumes!$B$4:$M$33,MATCH(AK$11,Volumes!$B$4:$M$4,0),FALSE),0) -> 4980 | AM44: 48.2644373 | AN44: 49.07173211 | AO44: 49.98292967 | AP44: 50.86699277 | AQ44: 51.86644102 | AR44: 52.78367638 | AS44: 53.62414255 | AT44: 54.46636766 | AU44: 55.4618906 | AV44: 56.15610941 | AX44: 49.44689244 | AY44: 51.50565317 | AZ44: 53.74733993 | BA44: 56.0380592 | BB44: 58.53899022 | BC44: 61.03376616 | BD44: 63.52470405 | BE44: 66.10319614 | BF44: 68.96051096 | BG44: 71.53433892 | BJ44: 240356.8978 | BK44: 244377.2259 | BL44: 248914.9898 | BM44: 253317.624 | BN44: 258294.8763 | BO44: 262862.7084 | BP44: 267048.2299 | BQ44: 271242.5109 | BR44: 276200.2152 | BS44: 279657.4249 | BV44: 246245.5243 | BW44: 256498.1528 | BX44: 267661.7529 | BY44: 279069.5348 | BZ44: 291524.1713 | CA44: 303948.1555 | CB44: 316353.0262 | CC44: 329193.9168 | CD44: 343423.3446 | CE44: 356241.0078
B45: =Inputs!$C102 -> 18W LED Decorative - Bottom Pole Entry | C45: Not Offered | D45: =IF($C45="NA","",'Unsmoothed Prices'!D43) -> 12.349 | E45: =IF($C45="NA","",'Smoothed Prices'!E45+$E$6) -> 13.18700473 | F45: 13.44431017 | G45: 13.69395333 | H45: 13.9361624 | I45: 14.17115875 | J45: =IF($C45="NA","",'Smoothed Prices'!J45+$J$6) -> 14.4612812 | K45: 14.6915459 | L45: 14.92229251 | M45: 15.15352202 | N45: 15.38523545 | O45: ='Smoothed Prices'!N45 -> 15.38943862 | Q45: 13.5100799 | R45: 14.11113786 | S45: 14.72529861 | T45: 15.35289293 | U45: 15.99425962 | V45: 16.72157977 | W45: 17.40402851 | X45: 18.1104647 | Y45: 18.84166966 | Z45: 19.59844902 | AB45: =IFERROR(VLOOKUP($B45,Volumes!$B$4:$H$33,MATCH(AB$11,Volumes!$B$4:$H$4,0),FALSE),0) -> 0 | AC45: =IFERROR(VLOOKUP($B45,Volumes!$B$4:$H$33,MATCH(AC$11,Volumes!$B$4:$H$4,0),FALSE),0) -> 0 | AD45: =IFERROR(VLOOKUP($B45,Volumes!$B$4:$H$33,MATCH(AD$11,Volumes!$B$4:$H$4,0),FALSE),0) -> 0 | AE45: =IFERROR(VLOOKUP($B45,Volumes!$B$4:$H$33,MATCH(AE$11,Volumes!$B$4:$H$4,0),FALSE),0) -> 0 | AF45: =IFERROR(VLOOKUP($B45,Volumes!$B$4:$H$33,MATCH(AF$11,Volumes!$B$4:$H$4,0),FALSE),0) -> 0 | AG45: =IFERROR(VLOOKUP($B45,Volumes!$B$4:$M$33,MATCH(AG$11,Volumes!$B$4:$M$4,0),FALSE),0) -> 0 | AH45: =IFERROR(VLOOKUP($B45,Volumes!$B$4:$M$33,MATCH(AH$11,Volumes!$B$4:$M$4,0),FALSE),0) -> 0 | AI45: =IFERROR(VLOOKUP($B45,Volumes!$B$4:$M$33,MATCH(AI$11,Volumes!$B$4:$M$4,0),FALSE),0) -> 0 | AJ45: =IFERROR(VLOOKUP($B45,Volumes!$B$4:$M$33,MATCH(AJ$11,Volumes!$B$4:$M$4,0),FALSE),0) -> 0 | AK45: =IFERROR(VLOOKUP($B45,Volumes!$B$4:$M$33,MATCH(AK$11,Volumes!$B$4:$M$4,0),FALSE),0) -> 0 | AM45: 48.2644373 | AN45: 49.07173211 | AO45: 49.98292967 | AP45: 50.86699277 | AQ45: 51.86644102 | AR45: 52.78367638 | AS45: 53.62414255 | AT45: 54.46636766 | AU45: 55.4618906 | AV45: 56.15610941 | AX45: 49.44689244 | AY45: 51.50565317 | AZ45: 53.74733993 | BA45: 56.0380592 | BB45: 58.53899022 | BC45: 61.03376616 | BD45: 63.52470405 | BE45: 66.10319614 | BF45: 68.96051096 | BG45: 71.53433892 | BJ45: 0 | BK45: 0 | BL45: 0 | BM45: 0 | BN45: 0 | BO45: 0 | BP45: 0 | BQ45: 0 | BR45: 0 | BS45: 0 | BV45: 0 | BW45: 0 | BX45: 0 | BY45: 0 | BZ45: 0 | CA45: 0 | CB45: 0 | CC45: 0 | CD45: 0 | CE45: 0
B46: =Inputs!$C103 -> 18W LED Decorative - Side Entry | C46: Not Offered | D46: =IF($C46="NA","",'Unsmoothed Prices'!D44) -> 12.349 | E46: =IF($C46="NA","",'Smoothed Prices'!E46+$E$6) -> 13.18700473 | F46: 13.44431017 | G46: 13.69395333 | H46: 13.9361624 | I46: 14.17115875 | J46: =IF($C46="NA","",'Smoothed Prices'!J46+$J$6) -> 14.4612812 | K46: 14.6915459 | L46: 14.92229251 | M46: 15.15352202 | N46: 15.38523545 | O46: ='Smoothed Prices'!N46 -> 15.38943862 | Q46: 13.5100799 | R46: 14.11113786 | S46: 14.72529861 | T46: 15.35289293 | U46: 15.99425962 | V46: 16.72157977 | W46: 17.40402851 | X46: 18.1104647 | Y46: 18.84166966 | Z46: 19.59844902 | AB46: =IFERROR(VLOOKUP($B46,Volumes!$B$4:$H$33,MATCH(AB$11,Volumes!$B$4:$H$4,0),FALSE),0) -> 0 | AC46: =IFERROR(VLOOKUP($B46,Volumes!$B$4:$H$33,MATCH(AC$11,Volumes!$B$4:$H$4,0),FALSE),0) -> 0 | AD46: =IFERROR(VLOOKUP($B46,Volumes!$B$4:$H$33,MATCH(AD$11,Volumes!$B$4:$H$4,0),FALSE),0) -> 0 | AE46: =IFERROR(VLOOKUP($B46,Volumes!$B$4:$H$33,MATCH(AE$11,Volumes!$B$4:$H$4,0),FALSE),0) -> 0 | AF46: =IFERROR(VLOOKUP($B46,Volumes!$B$4:$H$33,MATCH(AF$11,Volumes!$B$4:$H$4,0),FALSE),0) -> 0 | AG46: =IFERROR(VLOOKUP($B46,Volumes!$B$4:$M$33,MATCH(AG$11,Volumes!$B$4:$M$4,0),FALSE),0) -> 0 | AH46: =IFERROR(VLOOKUP($B46,Volumes!$B$4:$M$33,MATCH(AH$11,Volumes!$B$4:$M$4,0),FALSE),0) -> 0 | AI46: =IFERROR(VLOOKUP($B46,Volumes!$B$4:$M$33,MATCH(AI$11,Volumes!$B$4:$M$4,0),FALSE),0) -> 0 | AJ46: =IFERROR(VLOOKUP($B46,Volumes!$B$4:$M$33,MATCH(AJ$11,Volumes!$B$4:$M$4,0),FALSE),0) -> 0 | AK46: =IFERROR(VLOOKUP($B46,Volumes!$B$4:$M$33,MATCH(AK$11,Volumes!$B$4:$M$4,0),FALSE),0) -> 0 | AM46: 48.2644373 | AN46: 49.07173211 | AO46: 49.98292967 | AP46: 50.86699277 | AQ46: 51.86644102 | AR46: 52.78367638 | AS46: 53.62414255 | AT46: 54.46636766 | AU46: 55.4618906 | AV46: 56.15610941 | AX46: 49.44689244 | AY46: 51.50565317 | AZ46: 53.74733993 | BA46: 56.0380592 | BB46: 58.53899022 | BC46: 61.03376616 | BD46: 63.52470405 | BE46: 66.10319614 | BF46: 68.96051096 | BG46: 71.53433892 | BJ46: 0 | BK46: 0 | BL46: 0 | BM46: 0 | BN46: 0 | BO46: 0 | BP46: 0 | BQ46: 0 | BR46: 0 | BS46: 0 | BV46: 0 | BW46: 0 | BX46: 0 | BY46: 0 | BZ46: 0 | CA46: 0 | CB46: 0 | CC46: 0 | CD46: 0 | CE46: 0
B47: =Inputs!$C104 -> 18W LED Decorative - Top Entry | C47: Not Offered | D47: =IF($C47="NA","",'Unsmoothed Prices'!D45) -> 12.349 | E47: =IF($C47="NA","",'Smoothed Prices'!E47+$E$6) -> 13.18700473 | F47: 13.44431017 | G47: 13.69395333 | H47: 13.9361624 | I47: 14.17115875 | J47: =IF($C47="NA","",'Smoothed Prices'!J47+$J$6) -> 14.4612812 | K47: 14.6915459 | L47: 14.92229251 | M47: 15.15352202 | N47: 15.38523545 | O47: ='Smoothed Prices'!N47 -> 15.38943862 | Q47: 13.5100799 | R47: 14.11113786 | S47: 14.72529861 | T47: 15.35289293 | U47: 15.99425962 | V47: 16.72157977 | W47: 17.40402851 | X47: 18.1104647 | Y47: 18.84166966 | Z47: 19.59844902 | AB47: =IFERROR(VLOOKUP($B47,Volumes!$B$4:$H$33,MATCH(AB$11,Volumes!$B$4:$H$4,0),FALSE),0) -> 0 | AC47: =IFERROR(VLOOKUP($B47,Volumes!$B$4:$H$33,MATCH(AC$11,Volumes!$B$4:$H$4,0),FALSE),0) -> 0 | AD47: =IFERROR(VLOOKUP($B47,Volumes!$B$4:$H$33,MATCH(AD$11,Volumes!$B$4:$H$4,0),FALSE),0) -> 0 | AE47: =IFERROR(VLOOKUP($B47,Volumes!$B$4:$H$33,MATCH(AE$11,Volumes!$B$4:$H$4,0),FALSE),0) -> 0 | AF47: =IFERROR(VLOOKUP($B47,Volumes!$B$4:$H$33,MATCH(AF$11,Volumes!$B$4:$H$4,0),FALSE),0) -> 0 | AG47: =IFERROR(VLOOKUP($B47,Volumes!$B$4:$M$33,MATCH(AG$11,Volumes!$B$4:$M$4,0),FALSE),0) -> 0 | AH47: =IFERROR(VLOOKUP($B47,Volumes!$B$4:$M$33,MATCH(AH$11,Volumes!$B$4:$M$4,0),FALSE),0) -> 0 | AI47: =IFERROR(VLOOKUP($B47,Volumes!$B$4:$M$33,MATCH(AI$11,Volumes!$B$4:$M$4,0),FALSE),0) -> 0 | AJ47: =IFERROR(VLOOKUP($B47,Volumes!$B$4:$M$33,MATCH(AJ$11,Volumes!$B$4:$M$4,0),FALSE),0) -> 0 | AK47: =IFERROR(VLOOKUP($B47,Volumes!$B$4:$M$33,MATCH(AK$11,Volumes!$B$4:$M$4,0),FALSE),0) -> 0 | AM47: 48.2644373 | AN47: 49.07173211 | AO47: 49.98292967 | AP47: 50.86699277 | AQ47: 51.86644102 | AR47: 52.78367638 | AS47: 53.62414255 | AT47: 54.46636766 | AU47: 55.4618906 | AV47: 56.15610941 | AX47: 49.44689244 | AY47: 51.50565317 | AZ47: 53.74733993 | BA47: 56.0380592 | BB47: 58.53899022 | BC47: 61.03376616 | BD47: 63.52470405 | BE47: 66.10319614 | BF47: 68.96051096 | BG47: 71.53433892 | BJ47: 0 | BK47: 0 | BL47: 0 | BM47: 0 | BN47: 0 | BO47: 0 | BP47: 0 | BQ47: 0 | BR47: 0 | BS47: 0 | BV47: 0 | BW47: 0 | BX47: 0 | BY47: 0 | BZ47: 0 | CA47: 0 | CB47: 0 | CC47: 0 | CD47: 0 | CE47: 0
B48: =Inputs!$C105 -> 25W LED | C48: Offered | D48: =IF($C48="NA","",'Unsmoothed Prices'!D46) -> 12.349 | E48: =IF($C48="NA","",'Smoothed Prices'!E48+$E$6) -> 13.18700473 | F48: 13.44431017 | G48: 13.69395333 | H48: 13.9361624 | I48: 14.17115875 | J48: =IF($C48="NA","",'Smoothed Prices'!J48+$J$6) -> 14.4612812 | K48: 14.6915459 | L48: 14.92229251 | M48: 15.15352202 | N48: 15.38523545 | O48: ='Smoothed Prices'!N48 -> 15.38943862 | Q48: 13.5100799 | R48: 14.11113786 | S48: 14.72529861 | T48: 15.35289293 | U48: 15.99425962 | V48: 16.72157977 | W48: 17.40402851 | X48: 18.1104647 | Y48: 18.84166966 | Z48: 19.59844902 | AB48: =IFERROR(VLOOKUP($B48,Volumes!$B$4:$H$33,MATCH(AB$11,Volumes!$B$4:$H$4,0),FALSE),0) -> 29 | AC48: =IFERROR(VLOOKUP($B48,Volumes!$B$4:$H$33,MATCH(AC$11,Volumes!$B$4:$H$4,0),FALSE),0) -> 29 | AD48: =IFERROR(VLOOKUP($B48,Volumes!$B$4:$H$33,MATCH(AD$11,Volumes!$B$4:$H$4,0),FALSE),0) -> 29 | AE48: =IFERROR(VLOOKUP($B48,Volumes!$B$4:$H$33,MATCH(AE$11,Volumes!$B$4:$H$4,0),FALSE),0) -> 29 | AF48: =IFERROR(VLOOKUP($B48,Volumes!$B$4:$H$33,MATCH(AF$11,Volumes!$B$4:$H$4,0),FALSE),0) -> 29 | AG48: =IFERROR(VLOOKUP($B48,Volumes!$B$4:$M$33,MATCH(AG$11,Volumes!$B$4:$M$4,0),FALSE),0) -> 29 | AH48: =IFERROR(VLOOKUP($B48,Volumes!$B$4:$M$33,MATCH(AH$11,Volumes!$B$4:$M$4,0),FALSE),0) -> 29 | AI48: =IFERROR(VLOOKUP($B48,Volumes!$B$4:$M$33,MATCH(AI$11,Volumes!$B$4:$M$4,0),FALSE),0) -> 29 | AJ48: =IFERROR(VLOOKUP($B48,Volumes!$B$4:$M$33,MATCH(AJ$11,Volumes!$B$4:$M$4,0),FALSE),0) -> 29 | AK48: =IFERROR(VLOOKUP($B48,Volumes!$B$4:$M$33,MATCH(AK$11,Volumes!$B$4:$M$4,0),FALSE),0) -> 29 | AM48: 48.2644373 | AN48: 49.07173211 | AO48: 49.98292967 | AP48: 50.86699277 | AQ48: 51.86644102 | AR48: 52.78367638 | AS48: 53.62414255 | AT48: 54.46636766 | AU48: 55.4618906 | AV48: 56.15610941 | AX48: 49.44689244 | AY48: 51.50565317 | AZ48: 53.74733993 | BA48: 56.0380592 | BB48: 58.53899022 | BC48: 61.03376616 | BD48: 63.52470405 | BE48: 66.10319614 | BF48: 68.96051096 | BG48: 71.53433892 | BJ48: 1399.668682 | BK48: 1423.080231 | BL48: 1449.50496 | BM48: 1475.14279 | BN48: 1504.126789 | BO48: 1530.726615 | BP48: 1555.100134 | BQ48: 1579.524662 | BR48: 1608.394827 | BS48: 1628.527173 | BV48: 1433.959881 | BW48: 1493.663942 | BX48: 1558.672858 | BY48: 1625.103717 | BZ48: 1697.630717 | CA48: 1769.979219 | CB48: 1842.216417 | CC48: 1916.992688 | CD48: 1999.854818 | CE48: 2074.495829
B49: =Inputs!$C106 -> 25W LED Decorative - Bottom Pole Entry | C49: Not Offered | D49: =IF($C49="NA","",'Unsmoothed Prices'!D47) -> 12.349 | E49: =IF($C49="NA","",'Smoothed Prices'!E49+$E$6) -> 13.18700473 | F49: 13.44431017 | G49: 13.69395333 | H49: 13.9361624 | I49: 14.17115875 | J49: =IF($C49="NA","",'Smoothed Prices'!J49+$J$6) -> 14.4612812 | K49: 14.6915459 | L49: 14.92229251 | M49: 15.15352202 | N49: 15.38523545 | O49: ='Smoothed Prices'!N49 -> 15.38943862 | Q49: 13.5100799 | R49: 14.11113786 | S49: 14.72529861 | T49: 15.35289293 | U49: 15.99425962 | V49: 16.72157977 | W49: 17.40402851 | X49: 18.1104647 | Y49: 18.84166966 | Z49: 19.59844902 | AB49: =IFERROR(VLOOKUP($B49,Volumes!$B$4:$H$33,MATCH(AB$11,Volumes!$B$4:$H$4,0),FALSE),0) -> 0 | AC49: =IFERROR(VLOOKUP($B49,Volumes!$B$4:$H$33,MATCH(AC$11,Volumes!$B$4:$H$4,0),FALSE),0) -> 0 | AD49: =IFERROR(VLOOKUP($B49,Volumes!$B$4:$H$33,MATCH(AD$11,Volumes!$B$4:$H$4,0),FALSE),0) -> 0 | AE49: =IFERROR(VLOOKUP($B49,Volumes!$B$4:$H$33,MATCH(AE$11,Volumes!$B$4:$H$4,0),FALSE),0) -> 0 | AF49: =IFERROR(VLOOKUP($B49,Volumes!$B$4:$H$33,MATCH(AF$11,Volumes!$B$4:$H$4,0),FALSE),0) -> 0 | AG49: =IFERROR(VLOOKUP($B49,Volumes!$B$4:$M$33,MATCH(AG$11,Volumes!$B$4:$M$4,0),FALSE),0) -> 0 | AH49: =IFERROR(VLOOKUP($B49,Volumes!$B$4:$M$33,MATCH(AH$11,Volumes!$B$4:$M$4,0),FALSE),0) -> 0 | AI49: =IFERROR(VLOOKUP($B49,Volumes!$B$4:$M$33,MATCH(AI$11,Volumes!$B$4:$M$4,0),FALSE),0) -> 0 | AJ49: =IFERROR(VLOOKUP($B49,Volumes!$B$4:$M$33,MATCH(AJ$11,Volumes!$B$4:$M$4,0),FALSE),0) -> 0 | AK49: =IFERROR(VLOOKUP($B49,Volumes!$B$4:$M$33,MATCH(AK$11,Volumes!$B$4:$M$4,0),FALSE),0) -> 0 | AM49: 48.2644373 | AN49: 49.07173211 | AO49: 49.98292967 | AP49: 50.86699277 | AQ49: 51.86644102 | AR49: 52.78367638 | AS49: 53.62414255 | AT49: 54.46636766 | AU49: 55.4618906 | AV49: 56.15610941 | AX49: 49.44689244 | AY49: 51.50565317 | AZ49: 53.74733993 | BA49: 56.0380592 | BB49: 58.53899022 | BC49: 61.03376616 | BD49: 63.52470405 | BE49: 66.10319614 | BF49: 68.96051096 | BG49: 71.53433892 | BJ49: 0 | BK49: 0 | BL49: 0 | BM49: 0 | BN49: 0 | BO49: 0 | BP49: 0 | BQ49: 0 | BR49: 0 | BS49: 0 | BV49: 0 | BW49: 0 | BX49: 0 | BY49: 0 | BZ49: 0 | CA49: 0 | CB49: 0 | CC49: 0 | CD49: 0 | CE49: 0
B50: =Inputs!$C107 -> 25W LED Decorative - Side Entry | C50: Not Offered | D50: =IF($C50="NA","",'Unsmoothed Prices'!D48) -> 12.349 | E50: =IF($C50="NA","",'Smoothed Prices'!E50+$E$6) -> 13.18700473 | F50: 13.44431017 | G50: 13.69395333 | H50: 13.9361624 | I50: 14.17115875 | J50: =IF($C50="NA","",'Smoothed Prices'!J50+$J$6) -> 14.4612812 | K50: 14.6915459 | L50: 14.92229251 | M50: 15.15352202 | N50: 15.38523545 | O50: ='Smoothed Prices'!N50 -> 15.38943862 | Q50: 13.5100799 | R50: 14.11113786 | S50: 14.72529861 | T50: 15.35289293 | U50: 15.99425962 | V50: 16.72157977 | W50: 17.40402851 | X50: 18.1104647 | Y50: 18.84166966 | Z50: 19.59844902 | AB50: =IFERROR(VLOOKUP($B50,Volumes!$B$4:$H$33,MATCH(AB$11,Volumes!$B$4:$H$4,0),FALSE),0) -> 0 | AC50: =IFERROR(VLOOKUP($B50,Volumes!$B$4:$H$33,MATCH(AC$11,Volumes!$B$4:$H$4,0),FALSE),0) -> 0 | AD50: =IFERROR(VLOOKUP($B50,Volumes!$B$4:$H$33,MATCH(AD$11,Volumes!$B$4:$H$4,0),FALSE),0) -> 0 | AE50: =IFERROR(VLOOKUP($B50,Volumes!$B$4:$H$33,MATCH(AE$11,Volumes!$B$4:$H$4,0),FALSE),0) -> 0 | AF50: =IFERROR(VLOOKUP($B50,Volumes!$B$4:$H$33,MATCH(AF$11,Volumes!$B$4:$H$4,0),FALSE),0) -> 0 | AG50: =IFERROR(VLOOKUP($B50,Volumes!$B$4:$M$33,MATCH(AG$11,Volumes!$B$4:$M$4,0),FALSE),0) -> 0 | AH50: =IFERROR(VLOOKUP($B50,Volumes!$B$4:$M$33,MATCH(AH$11,Volumes!$B$4:$M$4,0),FALSE),0) -> 0 | AI50: =IFERROR(VLOOKUP($B50,Volumes!$B$4:$M$33,MATCH(AI$11,Volumes!$B$4:$M$4,0),FALSE),0) -> 0 | AJ50: =IFERROR(VLOOKUP($B50,Volumes!$B$4:$M$33,MATCH(AJ$11,Volumes!$B$4:$M$4,0),FALSE),0) -> 0 | AK50: =IFERROR(VLOOKUP($B50,Volumes!$B$4:$M$33,MATCH(AK$11,Volumes!$B$4:$M$4,0),FALSE),0) -> 0 | AM50: 48.2644373 | AN50: 49.07173211 | AO50: 49.98292967 | AP50: 50.86699277 | AQ50: 51.86644102 | AR50: 52.78367638 | AS50: 53.62414255 | AT50: 54.46636766 | AU50: 55.4618906 | AV50: 56.15610941 | AX50: 49.44689244 | AY50: 51.50565317 | AZ50: 53.74733993 | BA50: 56.0380592 | BB50: 58.53899022 | BC50: 61.03376616 | BD50: 63.52470405 | BE50: 66.10319614 | BF50: 68.96051096 | BG50: 71.53433892 | BJ50: 0 | BK50: 0 | BL50: 0 | BM50: 0 | BN50: 0 | BO50: 0 | BP50: 0 | BQ50: 0 | BR50: 0 | BS50: 0 | BV50: 0 | BW50: 0 | BX50: 0 | BY50: 0 | BZ50: 0 | CA50: 0 | CB50: 0 | CC50: 0 | CD50: 0 | CE50: 0
B51: =Inputs!$C108 -> 25W LED Decorative - Top Entry | C51: Not Offered | D51: =IF($C51="NA","",'Unsmoothed Prices'!D49) -> 12.349 | E51: =IF($C51="NA","",'Smoothed Prices'!E51+$E$6) -> 13.18700473 | F51: 13.44431017 | G51: 13.69395333 | H51: 13.9361624 | I51: 14.17115875 | J51: =IF($C51="NA","",'Smoothed Prices'!J51+$J$6) -> 14.4612812 | K51: 14.6915459 | L51: 14.92229251 | M51: 15.15352202 | N51: 15.38523545 | O51: ='Smoothed Prices'!N51 -> 15.38943862 | Q51: 13.5100799 | R51: 14.11113786 | S51: 14.72529861 | T51: 15.35289293 | U51: 15.99425962 | V51: 16.72157977 | W51: 17.40402851 | X51: 18.1104647 | Y51: 18.84166966 | Z51: 19.59844902 | AB51: =IFERROR(VLOOKUP($B51,Volumes!$B$4:$H$33,MATCH(AB$11,Volumes!$B$4:$H$4,0),FALSE),0) -> 0 | AC51: =IFERROR(VLOOKUP($B51,Volumes!$B$4:$H$33,MATCH(AC$11,Volumes!$B$4:$H$4,0),FALSE),0) -> 0 | AD51: =IFERROR(VLOOKUP($B51,Volumes!$B$4:$H$33,MATCH(AD$11,Volumes!$B$4:$H$4,0),FALSE),0) -> 0 | AE51: =IFERROR(VLOOKUP($B51,Volumes!$B$4:$H$33,MATCH(AE$11,Volumes!$B$4:$H$4,0),FALSE),0) -> 0 | AF51: =IFERROR(VLOOKUP($B51,Volumes!$B$4:$H$33,MATCH(AF$11,Volumes!$B$4:$H$4,0),FALSE),0) -> 0 | AG51: =IFERROR(VLOOKUP($B51,Volumes!$B$4:$M$33,MATCH(AG$11,Volumes!$B$4:$M$4,0),FALSE),0) -> 0 | AH51: =IFERROR(VLOOKUP($B51,Volumes!$B$4:$M$33,MATCH(AH$11,Volumes!$B$4:$M$4,0),FALSE),0) -> 0 | AI51: =IFERROR(VLOOKUP($B51,Volumes!$B$4:$M$33,MATCH(AI$11,Volumes!$B$4:$M$4,0),FALSE),0) -> 0 | AJ51: =IFERROR(VLOOKUP($B51,Volumes!$B$4:$M$33,MATCH(AJ$11,Volumes!$B$4:$M$4,0),FALSE),0) -> 0 | AK51: =IFERROR(VLOOKUP($B51,Volumes!$B$4:$M$33,MATCH(AK$11,Volumes!$B$4:$M$4,0),FALSE),0) -> 0 | AM51: 48.2644373 | AN51: 49.07173211 | AO51: 49.98292967 | AP51: 50.86699277 | AQ51: 51.86644102 | AR51: 52.78367638 | AS51: 53.62414255 | AT51: 54.46636766 | AU51: 55.4618906 | AV51: 56.15610941 | AX51: 49.44689244 | AY51: 51.50565317 | AZ51: 53.74733993 | BA51: 56.0380592 | BB51: 58.53899022 | BC51: 61.03376616 | BD51: 63.52470405 | BE51: 66.10319614 | BF51: 68.96051096 | BG51: 71.53433892 | BJ51: 0 | BK51: 0 | BL51: 0 | BM51: 0 | BN51: 0 | BO51: 0 | BP51: 0 | BQ51: 0 | BR51: 0 | BS51: 0 | BV51: 0 | BW51: 0 | BX51: 0 | BY51: 0 | BZ51: 0 | CA51: 0 | CB51: 0 | CC51: 0 | CD51: 0 | CE51: 0
B52: =Inputs!$C109 -> 30W LED | C52: Offered | D52: =IF($C52="NA","",'Unsmoothed Prices'!D50) -> 12.349 | E52: =IF($C52="NA","",'Smoothed Prices'!E52+$E$6) -> 13.18700473 | F52: 13.44431017 | G52: 13.69395333 | H52: 13.9361624 | I52: 14.17115875 | J52: =IF($C52="NA","",'Smoothed Prices'!J52+$J$6) -> 14.4612812 | K52: 14.6915459 | L52: 14.92229251 | M52: 15.15352202 | N52: 15.38523545 | O52: ='Smoothed Prices'!N52 -> 15.38943862 | Q52: 13.5100799 | R52: 14.11113786 | S52: 14.72529861 | T52: 15.35289293 | U52: 15.99425962 | V52: 16.72157977 | W52: 17.40402851 | X52: 18.1104647 | Y52: 18.84166966 | Z52: 19.59844902 | AB52: =IFERROR(VLOOKUP($B52,Volumes!$B$4:$H$33,MATCH(AB$11,Volumes!$B$4:$H$4,0),FALSE),0) -> 32 | AC52: =IFERROR(VLOOKUP($B52,Volumes!$B$4:$H$33,MATCH(AC$11,Volumes!$B$4:$H$4,0),FALSE),0) -> 32 | AD52: =IFERROR(VLOOKUP($B52,Volumes!$B$4:$H$33,MATCH(AD$11,Volumes!$B$4:$H$4,0),FALSE),0) -> 32 | AE52: =IFERROR(VLOOKUP($B52,Volumes!$B$4:$H$33,MATCH(AE$11,Volumes!$B$4:$H$4,0),FALSE),0) -> 32 | AF52: =IFERROR(VLOOKUP($B52,Volumes!$B$4:$H$33,MATCH(AF$11,Volumes!$B$4:$H$4,0),FALSE),0) -> 32 | AG52: =IFERROR(VLOOKUP($B52,Volumes!$B$4:$M$33,MATCH(AG$11,Volumes!$B$4:$M$4,0),FALSE),0) -> 32 | AH52: =IFERROR(VLOOKUP($B52,Volumes!$B$4:$M$33,MATCH(AH$11,Volumes!$B$4:$M$4,0),FALSE),0) -> 32 | AI52: =IFERROR(VLOOKUP($B52,Volumes!$B$4:$M$33,MATCH(AI$11,Volumes!$B$4:$M$4,0),FALSE),0) -> 32 | AJ52: =IFERROR(VLOOKUP($B52,Volumes!$B$4:$M$33,MATCH(AJ$11,Volumes!$B$4:$M$4,0),FALSE),0) -> 32 | AK52: =IFERROR(VLOOKUP($B52,Volumes!$B$4:$M$33,MATCH(AK$11,Volumes!$B$4:$M$4,0),FALSE),0) -> 32 | AM52: 48.2644373 | AN52: 49.07173211 | AO52: 49.98292967 | AP52: 50.86699277 | AQ52: 51.86644102 | AR52: 52.78367638 | AS52: 53.62414255 | AT52: 54.46636766 | AU52: 55.4618906 | AV52: 56.15610941 | AX52: 49.44689244 | AY52: 51.50565317 | AZ52: 53.74733993 | BA52: 56.0380592 | BB52: 58.53899022 | BC52: 61.03376616 | BD52: 63.52470405 | BE52: 66.10319614 | BF52: 68.96051096 | BG52: 71.53433892 | BJ52: 1544.461994 | BK52: 1570.295428 | BL52: 1599.45375 | BM52: 1627.743769 | BN52: 1659.726113 | BO52: 1689.077644 | BP52: 1715.972562 | BQ52: 1742.923765 | BR52: 1774.780499 | BS52: 1796.995501 | BV52: 1582.300558 | BW52: 1648.180902 | BX52: 1719.914878 | BY52: 1793.217894 | BZ52: 1873.247687 | CA52: 1953.080517 | CB52: 2032.79053 | CC52: 2115.302277 | CD52: 2206.736351 | CE52: 2289.098845
B53: =Inputs!$C110 -> 88 LED Light | C53: Not Offered | D53: =IF($C53="NA","",'Unsmoothed Prices'!D51) -> 12.349 | E53: =IF($C53="NA","",'Smoothed Prices'!E53+$E$6) -> 13.18700473 | F53: 13.44431017 | G53: 13.69395333 | H53: 13.9361624 | I53: 14.17115875 | J53: =IF($C53="NA","",'Smoothed Prices'!J53+$J$6) -> 14.4612812 | K53: 14.6915459 | L53: 14.92229251 | M53: 15.15352202 | N53: 15.38523545 | O53: ='Smoothed Prices'!N53 -> 15.38943862 | Q53: 13.5100799 | R53: 14.11113786 | S53: 14.72529861 | T53: 15.35289293 | U53: 15.99425962 | V53: 16.72157977 | W53: 17.40402851 | X53: 18.1104647 | Y53: 18.84166966 | Z53: 19.59844902 | AB53: =IFERROR(VLOOKUP($B53,Volumes!$B$4:$H$33,MATCH(AB$11,Volumes!$B$4:$H$4,0),FALSE),0) -> 0 | AC53: =IFERROR(VLOOKUP($B53,Volumes!$B$4:$H$33,MATCH(AC$11,Volumes!$B$4:$H$4,0),FALSE),0) -> 0 | AD53: =IFERROR(VLOOKUP($B53,Volumes!$B$4:$H$33,MATCH(AD$11,Volumes!$B$4:$H$4,0),FALSE),0) -> 0 | AE53: =IFERROR(VLOOKUP($B53,Volumes!$B$4:$H$33,MATCH(AE$11,Volumes!$B$4:$H$4,0),FALSE),0) -> 0 | AF53: =IFERROR(VLOOKUP($B53,Volumes!$B$4:$H$33,MATCH(AF$11,Volumes!$B$4:$H$4,0),FALSE),0) -> 0 | AG53: =IFERROR(VLOOKUP($B53,Volumes!$B$4:$M$33,MATCH(AG$11,Volumes!$B$4:$M$4,0),FALSE),0) -> 0 | AH53: =IFERROR(VLOOKUP($B53,Volumes!$B$4:$M$33,MATCH(AH$11,Volumes!$B$4:$M$4,0),FALSE),0) -> 0 | AI53: =IFERROR(VLOOKUP($B53,Volumes!$B$4:$M$33,MATCH(AI$11,Volumes!$B$4:$M$4,0),FALSE),0) -> 0 | AJ53: =IFERROR(VLOOKUP($B53,Volumes!$B$4:$M$33,MATCH(AJ$11,Volumes!$B$4:$M$4,0),FALSE),0) -> 0 | AK53: =IFERROR(VLOOKUP($B53,Volumes!$B$4:$M$33,MATCH(AK$11,Volumes!$B$4:$M$4,0),FALSE),0) -> 0 | AM53: 48.2644373 | AN53: 49.07173211 | AO53: 49.98292967 | AP53: 50.86699277 | AQ53: 51.86644102 | AR53: 52.78367638 | AS53: 53.62414255 | AT53: 54.46636766 | AU53: 55.4618906 | AV53: 56.15610941 | AX53: 49.44689244 | AY53: 51.50565317 | AZ53: 53.74733993 | BA53: 56.0380592 | BB53: 58.53899022 | BC53: 61.03376616 | BD53: 63.52470405 | BE53: 66.10319614 | BF53: 68.96051096 | BG53: 71.53433892 | BJ53: 0 | BK53: 0 | BL53: 0 | BM53: 0 | BN53: 0 | BO53: 0 | BP53: 0 | BQ53: 0 | BR53: 0 | BS53: 0 | BV53: 0 | BW53: 0 | BX53: 0 | BY53: 0 | BZ53: 0 | CA53: 0 | CB53: 0 | CC53: 0 | CD53: 0 | CE53: 0
B54: =Inputs!$C111 -> 100W Metal Halide | C54: Offered | D54: =IF($C54="NA","",'Unsmoothed Prices'!D52) -> 22.556 | E54: =IF($C54="NA","",'Smoothed Prices'!E54+$E$6) -> 23.04924779 | F54: 23.01286643 | G54: 22.97756847 | H54: 22.94332165 | I54: 22.91009466 | J54: =IF($C54="NA","",'Smoothed Prices'!J54+$J$6) -> 23.21850603 | K54: 23.46709794 | L54: 23.7162101 | M54: 23.96584361 | N54: 24.21599955 | O54: ='Smoothed Prices'!N54 -> 24.22020272 | Q54: 23.6139431 | R54: 24.15428732 | S54: 24.70809918 | T54: 25.27570723 | U54: 25.85744811 | V54: 26.84755904 | W54: 27.79980025 | X54: 28.78321716 | Y54: 29.7987826 | Z54: 30.84749883 | AB54: =IFERROR(VLOOKUP($B54,Volumes!$B$4:$H$33,MATCH(AB$11,Volumes!$B$4:$H$4,0),FALSE),0) -> 5 | AC54: =IFERROR(VLOOKUP($B54,Volumes!$B$4:$H$33,MATCH(AC$11,Volumes!$B$4:$H$4,0),FALSE),0) -> 5 | AD54: =IFERROR(VLOOKUP($B54,Volumes!$B$4:$H$33,MATCH(AD$11,Volumes!$B$4:$H$4,0),FALSE),0) -> 5 | AE54: =IFERROR(VLOOKUP($B54,Volumes!$B$4:$H$33,MATCH(AE$11,Volumes!$B$4:$H$4,0),FALSE),0) -> 5 | AF54: =IFERROR(VLOOKUP($B54,Volumes!$B$4:$H$33,MATCH(AF$11,Volumes!$B$4:$H$4,0),FALSE),0) -> 5 | AG54: =IFERROR(VLOOKUP($B54,Volumes!$B$4:$M$33,MATCH(AG$11,Volumes!$B$4:$M$4,0),FALSE),0) -> 5 | AH54: =IFERROR(VLOOKUP($B54,Volumes!$B$4:$M$33,MATCH(AH$11,Volumes!$B$4:$M$4,0),FALSE),0) -> 5 | AI54: =IFERROR(VLOOKUP($B54,Volumes!$B$4:$M$33,MATCH(AI$11,Volumes!$B$4:$M$4,0),FALSE),0) -> 5 | AJ54: =IFERROR(VLOOKUP($B54,Volumes!$B$4:$M$33,MATCH(AJ$11,Volumes!$B$4:$M$4,0),FALSE),0) -> 5 | AK54: =IFERROR(VLOOKUP($B54,Volumes!$B$4:$M$33,MATCH(AK$11,Volumes!$B$4:$M$4,0),FALSE),0) -> 5 | AM54: 84.3602469 | AN54: 83.99696247 | AO54: 83.86812492 | AP54: 83.74312401 | AQ54: 83.85094644 | AR54: 84.74754702 | AS54: 85.65490748 | AT54: 86.56416687 | AU54: 87.71498761 | AV54: 88.38839836 | AX54: 86.42703174 | AY54: 88.16314873 | AZ54: 90.184562 | BA54: 92.25633138 | BB54: 94.63826007 | BC54: 97.99359049 | BD54: 101.4692709 | BE54: 105.0587426 | BF54: 109.0635443 | BG54: 112.5933707 | BJ54: 421.8012345 | BK54: 419.9848124 | BL54: 419.3406246 | BM54: 418.7156201 | BN54: 419.2547322 | BO54: =IFERROR(AR54*AG54,0) -> 423.7377351 | BP54: 428.2745374 | BQ54: 432.8208344 | BR54: 438.574938 | BS54: 441.9419918 | BV54: 432.1351587 | BW54: 440.8157437 | BX54: 450.92281 | BY54: 461.2816569 | BZ54: 473.1913003 | CA54: 489.9679524 | CB54: 507.3463546 | CC54: 525.2937132 | CD54: 545.3177216 | CE54: 562.9668536
B55: =Inputs!$C112 -> 150W Metal Halide | C55: Offered | D55: =IF($C55="NA","",'Unsmoothed Prices'!D53) -> 22.703 | E55: =IF($C55="NA","",'Smoothed Prices'!E55+$E$6) -> 22.8486804 | F55: 22.81827172 | G55: 22.78876858 | H55: 22.760144 | I55: 22.73237184 | J55: =IF($C55="NA","",'Smoothed Prices'!J55+$J$6) -> 23.04041128 | K55: 23.28863047 | L55: 23.53736913 | M55: 23.78662836 | N55: 24.03640924 | O55: ='Smoothed Prices'!N55 -> 24.0406124 | Q55: 23.4084619 | R55: 23.95004086 | S55: 24.50508002 | T55: 25.07390801 | U55: 25.65686149 | V55: 26.64162807 | W55: 27.58838254 | X55: 28.56616652 | Y55: 29.57594896 | Z55: 30.61872809 | AB55: =IFERROR(VLOOKUP($B55,Volumes!$B$4:$H$33,MATCH(AB$11,Volumes!$B$4:$H$4,0),FALSE),0) -> 27 | AC55: =IFERROR(VLOOKUP($B55,Volumes!$B$4:$H$33,MATCH(AC$11,Volumes!$B$4:$H$4,0),FALSE),0) -> 27 | AD55: =IFERROR(VLOOKUP($B55,Volumes!$B$4:$H$33,MATCH(AD$11,Volumes!$B$4:$H$4,0),FALSE),0) -> 27 | AE55: =IFERROR(VLOOKUP($B55,Volumes!$B$4:$H$33,MATCH(AE$11,Volumes!$B$4:$H$4,0),FALSE),0) -> 27 | AF55: =IFERROR(VLOOKUP($B55,Volumes!$B$4:$H$33,MATCH(AF$11,Volumes!$B$4:$H$4,0),FALSE),0) -> 27 | AG55: =IFERROR(VLOOKUP($B55,Volumes!$B$4:$M$33,MATCH(AG$11,Volumes!$B$4:$M$4,0),FALSE),0) -> 27 | AH55: =IFERROR(VLOOKUP($B55,Volumes!$B$4:$M$33,MATCH(AH$11,Volumes!$B$4:$M$4,0),FALSE),0) -> 27 | AI55: =IFERROR(VLOOKUP($B55,Volumes!$B$4:$M$33,MATCH(AI$11,Volumes!$B$4:$M$4,0),FALSE),0) -> 27 | AJ55: =IFERROR(VLOOKUP($B55,Volumes!$B$4:$M$33,MATCH(AJ$11,Volumes!$B$4:$M$4,0),FALSE),0) -> 27 | AK55: =IFERROR(VLOOKUP($B55,Volumes!$B$4:$M$33,MATCH(AK$11,Volumes!$B$4:$M$4,0),FALSE),0) -> 27 | AM55: 83.62617025 | AN55: 83.28669177 | AO55: 83.1790053 | AP55: 83.07452562 | AQ55: 83.20048094 | AR55: 84.09750118 | AS55: 85.00350121 | AT55: 85.91139733 | AU55: 87.05905979 | AV55: 87.73289371 | AX55: 85.67497057 | AY55: 87.41764913 | AZ55: 89.44354207 | BA55: 91.51976422 | BB55: 93.90411305 | BC55: 97.24194246 | BD55: 100.6975963 | BE55: 104.2665078 | BF55: 108.2479732 | BG55: 111.7583575 | BJ55: =IFERROR(AM55*AB55,0) -> 2257.906597 | BK55: 2248.740678 | BL55: 2245.833143 | BM55: 2243.012192 | BN55: 2246.412985 | BO55: 2270.632532 | BP55: 2295.094533 | BQ55: 2319.607728 | BR55: 2350.594614 | BS55: 2368.78813 | BV55: 2313.224205 | BW55: 2360.276527 | BX55: 2414.975636 | BY55: 2471.033634 | BZ55: 2535.411052 | CA55: 2625.532446 | CB55: 2718.8351 | CC55: 2815.195711 | CD55: 2922.695276 | CE55: 3017.475654
B56: =Inputs!$C113 -> 250W Metal Halide | C56: Offered | D56: =IF($C56="NA","",'Unsmoothed Prices'!D54) -> 22.703 | E56: =IF($C56="NA","",'Smoothed Prices'!E56+$E$6) -> 22.8486804 | F56: 22.81827172 | G56: 22.78876858 | H56: 22.760144 | I56: 22.73237184 | J56: =IF($C56="NA","",'Smoothed Prices'!J56+$J$6) -> 23.04041128 | K56: 23.28863047 | L56: 23.53736913 | M56: 23.78662836 | N56: 24.03640924 | O56: ='Smoothed Prices'!N56 -> 24.0406124 | Q56: 23.4084619 | R56: 23.95004086 | S56: 24.50508002 | T56: 25.07390801 | U56: 25.65686149 | V56: 26.64162807 | W56: 27.58838254 | X56: 28.56616652 | Y56: 29.57594896 | Z56: 30.61872809 | AB56: =IFERROR(VLOOKUP($B56,Volumes!$B$4:$H$33,MATCH(AB$11,Volumes!$B$4:$H$4,0),FALSE),0) -> 40 | AC56: =IFERROR(VLOOKUP($B56,Volumes!$B$4:$H$33,MATCH(AC$11,Volumes!$B$4:$H$4,0),FALSE),0) -> 40 | AD56: =IFERROR(VLOOKUP($B56,Volumes!$B$4:$H$33,MATCH(AD$11,Volumes!$B$4:$H$4,0),FALSE),0) -> 40 | AE56: =IFERROR(VLOOKUP($B56,Volumes!$B$4:$H$33,MATCH(AE$11,Volumes!$B$4:$H$4,0),FALSE),0) -> 40 | AF56: =IFERROR(VLOOKUP($B56,Volumes!$B$4:$H$33,MATCH(AF$11,Volumes!$B$4:$H$4,0),FALSE),0) -> 40 | AG56: =IFERROR(VLOOKUP($B56,Volumes!$B$4:$M$33,MATCH(AG$11,Volumes!$B$4:$M$4,0),FALSE),0) -> 40 | AH56: =IFERROR(VLOOKUP($B56,Volumes!$B$4:$M$33,MATCH(AH$11,Volumes!$B$4:$M$4,0),FALSE),0) -> 40 | AI56: =IFERROR(VLOOKUP($B56,Volumes!$B$4:$M$33,MATCH(AI$11,Volumes!$B$4:$M$4,0),FALSE),0) -> 40 | AJ56: =IFERROR(VLOOKUP($B56,Volumes!$B$4:$M$33,MATCH(AJ$11,Volumes!$B$4:$M$4,0),FALSE),0) -> 40 | AK56: =IFERROR(VLOOKUP($B56,Volumes!$B$4:$M$33,MATCH(AK$11,Volumes!$B$4:$M$4,0),FALSE),0) -> 40 | AM56: 83.62617025 | AN56: 83.28669177 | AO56: 83.1790053 | AP56: 83.07452562 | AQ56: 83.20048094 | AR56: 84.09750118 | AS56: 85.00350121 | AT56: 85.91139733 | AU56: 87.05905979 | AV56: 87.73289371 | AX56: 85.67497057 | AY56: 87.41764913 | AZ56: 89.44354207 | BA56: 91.51976422 | BB56: 93.90411305 | BC56: 97.24194246 | BD56: 100.6975963 | BE56: 104.2665078 | BF56: 108.2479732 | BG56: 111.7583575 | BJ56: 3345.04681 | BK56: 3331.467671 | BL56: 3327.160212 | BM56: 3322.981025 | BN56: 3328.019238 | BO56: 3363.900047 | BP56: 3400.140048 | BQ56: 3436.455893 | BR56: 3482.362392 | BS56: 3509.315749 | BV56: 3426.998823 | BW56: 3496.705965 | BX56: 3577.741683 | BY56: 3660.790569 | BZ56: 3756.164522 | CA56: 3889.677698 | CB56: 4027.903851 | CC56: 4170.660313 | CD56: 4329.918927 | CE56: 4470.334301
B57: =Inputs!$C114 -> 400W Metal Halide | C57: Offered | D57: =IF($C57="NA","",'Unsmoothed Prices'!D55) -> 23.408 | E57: =IF($C57="NA","",'Smoothed Prices'!E57+$E$6) -> 23.5131865 | F57: 23.46298956 | G57: 23.41428743 | H57: 23.36703559 | I57: 23.32119086 | J57: =IF($C57="NA","",'Smoothed Prices'!J57+$J$6) -> 23.63046258 | K57: 23.87991664 | L57: 24.12989275 | M57: 24.38039202 | N57: 24.63141553 | O57: ='Smoothed Prices'!N57 -> 24.63561869 | Q57: 24.08924808 | R57: 24.62673622 | S57: 25.17770915 | T57: 25.74249533 | U57: 26.3214313 | V57: 27.32390441 | W57: 28.28883717 | X57: 29.28528378 | Y57: 30.31422608 | Z57: 31.37667557 | AB57: =IFERROR(VLOOKUP($B57,Volumes!$B$4:$H$33,MATCH(AB$11,Volumes!$B$4:$H$4,0),FALSE),0) -> 9 | AC57: =IFERROR(VLOOKUP($B57,Volumes!$B$4:$H$33,MATCH(AC$11,Volumes!$B$4:$H$4,0),FALSE),0) -> 9 | AD57: =IFERROR(VLOOKUP($B57,Volumes!$B$4:$H$33,MATCH(AD$11,Volumes!$B$4:$H$4,0),FALSE),0) -> 9 | AE57: =IFERROR(VLOOKUP($B57,Volumes!$B$4:$H$33,MATCH(AE$11,Volumes!$B$4:$H$4,0),FALSE),0) -> 9 | AF57: =IFERROR(VLOOKUP($B57,Volumes!$B$4:$H$33,MATCH(AF$11,Volumes!$B$4:$H$4,0),FALSE),0) -> 9 | AG57: =IFERROR(VLOOKUP($B57,Volumes!$B$4:$M$33,MATCH(AG$11,Volumes!$B$4:$M$4,0),FALSE),0) -> 9 | AH57: =IFERROR(VLOOKUP($B57,Volumes!$B$4:$M$33,MATCH(AH$11,Volumes!$B$4:$M$4,0),FALSE),0) -> 9 | AI57: =IFERROR(VLOOKUP($B57,Volumes!$B$4:$M$33,MATCH(AI$11,Volumes!$B$4:$M$4,0),FALSE),0) -> 9 | AJ57: =IFERROR(VLOOKUP($B57,Volumes!$B$4:$M$33,MATCH(AJ$11,Volumes!$B$4:$M$4,0),FALSE),0) -> 9 | AK57: =IFERROR(VLOOKUP($B57,Volumes!$B$4:$M$33,MATCH(AK$11,Volumes!$B$4:$M$4,0),FALSE),0) -> 9 | AM57: 86.0582626 | AN57: 85.63991189 | AO57: 85.4621491 | AP57: 85.2896799 | AQ57: 85.35555855 | AR57: 86.25118843 | AS57: 87.16169573 | AT57: 88.07410854 | AU57: 89.23223478 | AV57: 89.90466668 | AX57: 88.16664799 | AY57: 89.88758721 | AZ57: 91.89863838 | BA57: 93.96010795 | BB57: 96.33643854 | BC57: 99.73225108 | BD57: 103.2542557 | BE57: 106.8912858 | BF57: 110.9500675 | BG57: 114.5248658 | BJ57: 774.5243634 | BK57: 770.759207 | BL57: 769.1593419 | BM57: 767.6071191 | BN57: 768.2000269 | BO57: 776.2606959 | BP57: 784.4552615 | BQ57: 792.6669768 | BR57: 803.090113 | BS57: 809.1420001 | BV57: 793.4998319 | BW57: 808.9882849 | BX57: 827.0877454 | BY57: 845.6409715 | BZ57: 867.0279469 | CA57: 897.5902597 | CB57: 929.2883011 | CC57: 962.0215722 | CD57: 998.5506072 | CE57: 1030.723793
B58: =Inputs!$C115 -> 70W Metal Halide | C58: Old light no volumes | D58: =IF($C58="NA","",'Unsmoothed Prices'!D56) -> 18.95 | E58: =IF($C58="NA","",'Smoothed Prices'!E58+$E$6) -> 19.62643356 | F58: 19.69197986 | G58: 19.75557427 | H58: 19.8172749 | I58: 19.87713816 | J58: =IF($C58="NA","",'Smoothed Prices'!J58+$J$6) -> 20.17920214 | K58: 20.42143336 | L58: 20.66417153 | M58: 20.9074177 | N58: 21.15117294 | O58: ='Smoothed Prices'!N58 -> 21.15537611 | Q58: 20.1072716 | R58: 20.66868728 | S58: 21.24344397 | T58: 21.831871 | U58: 22.43430576 | V58: 23.33321188 | W58: 24.19181825 | X58: 25.07910556 | Y58: 25.99598015 | Z58: 26.94337606 | AB58: =IFERROR(VLOOKUP($B58,Volumes!$B$4:$H$33,MATCH(AB$11,Volumes!$B$4:$H$4,0),FALSE),0) -> 0 | AC58: =IFERROR(VLOOKUP($B58,Volumes!$B$4:$H$33,MATCH(AC$11,Volumes!$B$4:$H$4,0),FALSE),0) -> 0 | AD58: =IFERROR(VLOOKUP($B58,Volumes!$B$4:$H$33,MATCH(AD$11,Volumes!$B$4:$H$4,0),FALSE),0) -> 0 | AE58: =IFERROR(VLOOKUP($B58,Volumes!$B$4:$H$33,MATCH(AE$11,Volumes!$B$4:$H$4,0),FALSE),0) -> 0 | AF58: =IFERROR(VLOOKUP($B58,Volumes!$B$4:$H$33,MATCH(AF$11,Volumes!$B$4:$H$4,0),FALSE),0) -> 0 | AG58: =IFERROR(VLOOKUP($B58,Volumes!$B$4:$M$33,MATCH(AG$11,Volumes!$B$4:$M$4,0),FALSE),0) -> 0 | AH58: =IFERROR(VLOOKUP($B58,Volumes!$B$4:$M$33,MATCH(AH$11,Volumes!$B$4:$M$4,0),FALSE),0) -> 0 | AI58: =IFERROR(VLOOKUP($B58,Volumes!$B$4:$M$33,MATCH(AI$11,Volumes!$B$4:$M$4,0),FALSE),0) -> 0 | AJ58: =IFERROR(VLOOKUP($B58,Volumes!$B$4:$M$33,MATCH(AJ$11,Volumes!$B$4:$M$4,0),FALSE),0) -> 0 | AK58: =IFERROR(VLOOKUP($B58,Volumes!$B$4:$M$33,MATCH(AK$11,Volumes!$B$4:$M$4,0),FALSE),0) -> 0 | AM58: 71.83274684 | AN58: 71.87572651 | AO58: 72.10784609 | AP58: 72.3330534 | AQ58: 72.75032567 | AR58: 73.65408781 | AS58: 74.53823177 | AT58: 75.42422608 | AU58: 76.52114878 | AV58: 77.20178123 | AX58: 73.59261404 | AY58: 75.44070856 | AZ58: 77.53857048 | BA58: 79.68632915 | BB58: 82.10955908 | BC58: 85.16622335 | BD58: 88.30013663 | BE58: 91.53873528 | BF58: 95.14528737 | BG58: 98.3433226 | BJ58: 0 | BK58: 0 | BL58: 0 | BM58: 0 | BN58: 0 | BO58: 0 | BP58: 0 | BQ58: 0 | BR58: 0 | BS58: 0 | BV58: 0 | BW58: 0 | BX58: 0 | BY58: 0 | BZ58: 0 | CA58: 0 | CB58: 0 | CC58: 0 | CD58: 0 | CE58: 0
B59: =Inputs!$C116 -> 250W Metal Halide - Flood Light | C59: Old light no volumes | D59: =IF($C59="NA","",'Unsmoothed Prices'!D57) -> 22.703 | E59: =IF($C59="NA","",'Smoothed Prices'!E59+$E$6) -> 22.8486804 | F59: 22.81827172 | G59: 22.78876858 | H59: 22.760144 | I59: 22.73237184 | J59: =IF($C59="NA","",'Smoothed Prices'!J59+$J$6) -> 23.04041128 | K59: 23.28863047 | L59: 23.53736913 | M59: 23.78662836 | N59: 24.03640924 | O59: ='Smoothed Prices'!N59 -> 24.0406124 | Q59: 23.4084619 | R59: 23.95004086 | S59: 24.50508002 | T59: 25.07390801 | U59: 25.65686149 | V59: 26.64162807 | W59: 27.58838254 | X59: 28.56616652 | Y59: 29.57594896 | Z59: 30.61872809 | AB59: =IFERROR(VLOOKUP($B59,Volumes!$B$4:$H$33,MATCH(AB$11,Volumes!$B$4:$H$4,0),FALSE),0) -> 0 | AC59: =IFERROR(VLOOKUP($B59,Volumes!$B$4:$H$33,MATCH(AC$11,Volumes!$B$4:$H$4,0),FALSE),0) -> 0 | AD59: =IFERROR(VLOOKUP($B59,Volumes!$B$4:$H$33,MATCH(AD$11,Volumes!$B$4:$H$4,0),FALSE),0) -> 0 | AE59: =IFERROR(VLOOKUP($B59,Volumes!$B$4:$H$33,MATCH(AE$11,Volumes!$B$4:$H$4,0),FALSE),0) -> 0 | AF59: =IFERROR(VLOOKUP($B59,Volumes!$B$4:$H$33,MATCH(AF$11,Volumes!$B$4:$H$4,0),FALSE),0) -> 0 | AG59: =IFERROR(VLOOKUP($B59,Volumes!$B$4:$M$33,MATCH(AG$11,Volumes!$B$4:$M$4,0),FALSE),0) -> 0 | AH59: =IFERROR(VLOOKUP($B59,Volumes!$B$4:$M$33,MATCH(AH$11,Volumes!$B$4:$M$4,0),FALSE),0) -> 0 | AI59: =IFERROR(VLOOKUP($B59,Volumes!$B$4:$M$33,MATCH(AI$11,Volumes!$B$4:$M$4,0),FALSE),0) -> 0 | AJ59: =IFERROR(VLOOKUP($B59,Volumes!$B$4:$M$33,MATCH(AJ$11,Volumes!$B$4:$M$4,0),FALSE),0) -> 0 | AK59: =IFERROR(VLOOKUP($B59,Volumes!$B$4:$M$33,MATCH(AK$11,Volumes!$B$4:$M$4,0),FALSE),0) -> 0 | AM59: 83.62617025 | AN59: 83.28669177 | AO59: 83.1790053 | AP59: 83.07452562 | AQ59: 83.20048094 | AR59: 84.09750118 | AS59: 85.00350121 | AT59: 85.91139733 | AU59: 87.05905979 | AV59: 87.73289371 | AX59: 85.67497057 | AY59: 87.41764913 | AZ59: 89.44354207 | BA59: 91.51976422 | BB59: 93.90411305 | BC59: 97.24194246 | BD59: 100.6975963 | BE59: 104.2665078 | BF59: 108.2479732 | BG59: 111.7583575 | BJ59: 0 | BK59: 0 | BL59: 0 | BM59: 0 | BN59: 0 | BO59: 0 | BP59: 0 | BQ59: 0 | BR59: 0 | BS59: 0 | BV59: 0 | BW59: 0 | BX59: 0 | BY59: 0 | BZ59: 0 | CA59: 0 | CB59: 0 | CC59: 0 | CD59: 0 | CE59: 0
B60: =Inputs!$C117 -> 400W Metal Halide - Flood Light | C60: Old light no volumes | D60: =IF($C60="NA","",'Unsmoothed Prices'!D58) -> 23.408 | E60: =IF($C60="NA","",'Smoothed Prices'!E60+$E$6) -> 23.5131865 | F60: 23.46298956 | G60: 23.41428743 | H60: 23.36703559 | I60: 23.32119086 | J60: =IF($C60="NA","",'Smoothed Prices'!J60+$J$6) -> 23.63046258 | K60: 23.87991664 | L60: 24.12989275 | M60: 24.38039202 | N60: 24.63141553 | O60: ='Smoothed Prices'!N60 -> 24.63561869 | Q60: 24.08924808 | R60: 24.62673622 | S60: 25.17770915 | T60: 25.74249533 | U60: 26.3214313 | V60: 27.32390441 | W60: 28.28883717 | X60: 29.28528378 | Y60: 30.31422608 | Z60: 31.37667557 | AB60: =IFERROR(VLOOKUP($B60,Volumes!$B$4:$H$33,MATCH(AB$11,Volumes!$B$4:$H$4,0),FALSE),0) -> 0 | AC60: =IFERROR(VLOOKUP($B60,Volumes!$B$4:$H$33,MATCH(AC$11,Volumes!$B$4:$H$4,0),FALSE),0) -> 0 | AD60: =IFERROR(VLOOKUP($B60,Volumes!$B$4:$H$33,MATCH(AD$11,Volumes!$B$4:$H$4,0),FALSE),0) -> 0 | AE60: =IFERROR(VLOOKUP($B60,Volumes!$B$4:$H$33,MATCH(AE$11,Volumes!$B$4:$H$4,0),FALSE),0) -> 0 | AF60: =IFERROR(VLOOKUP($B60,Volumes!$B$4:$H$33,MATCH(AF$11,Volumes!$B$4:$H$4,0),FALSE),0) -> 0 | AG60: =IFERROR(VLOOKUP($B60,Volumes!$B$4:$M$33,MATCH(AG$11,Volumes!$B$4:$M$4,0),FALSE),0) -> 0 | AH60: =IFERROR(VLOOKUP($B60,Volumes!$B$4:$M$33,MATCH(AH$11,Volumes!$B$4:$M$4,0),FALSE),0) -> 0 | AI60: =IFERROR(VLOOKUP($B60,Volumes!$B$4:$M$33,MATCH(AI$11,Volumes!$B$4:$M$4,0),FALSE),0) -> 0 | AJ60: =IFERROR(VLOOKUP($B60,Volumes!$B$4:$M$33,MATCH(AJ$11,Volumes!$B$4:$M$4,0),FALSE),0) -> 0 | AK60: =IFERROR(VLOOKUP($B60,Volumes!$B$4:$M$33,MATCH(AK$11,Volumes!$B$4:$M$4,0),FALSE),0) -> 0 | AM60: 86.0582626 | AN60: 85.63991189 | AO60: 85.4621491 | AP60: 85.2896799 | AQ60: 85.35555855 | AR60: 86.25118843 | AS60: 87.16169573 | AT60: 88.07410854 | AU60: 89.23223478 | AV60: 89.90466668 | AX60: 88.16664799 | AY60: 89.88758721 | AZ60: 91.89863838 | BA60: 93.96010795 | BB60: 96.33643854 | BC60: 99.73225108 | BD60: 103.2542557 | BE60: 106.8912858 | BF60: 110.9500675 | BG60: 114.5248658 | BJ60: 0 | BK60: 0 | BL60: 0 | BM60: 0 | BN60: 0 | BO60: 0 | BP60: 0 | BQ60: 0 | BR60: 0 | BS60: 0 | BV60: 0 | BW60: 0 | BX60: 0 | BY60: 0 | BZ60: 0 | CA60: 0 | CB60: 0 | CC60: 0 | CD60: 0 | CE60: 0
B61: =Inputs!$C118 -> 125W Mercury Vapour | C61: Obsolete, no new Connections | D61: =IF($C61="NA","",'Unsmoothed Prices'!D59) -> 21.646 | E61: =IF($C61="NA","",'Smoothed Prices'!E61+$E$6) -> 21.8529342 | F61: 21.85217776 | G61: 21.85144383 | H61: 21.85073177 | I61: 21.85004091 | J61: =IF($C61="NA","",'Smoothed Prices'!J61+$J$6) -> 22.15623379 | K61: 22.40260257 | L61: 22.64948694 | M61: 22.896888 | N61: 23.14480682 | O61: ='Smoothed Prices'!N61 -> 23.14900999 | Q61: 22.38832042 | R61: 22.93602936 | S61: 23.49716168 | T61: 24.07204621 | U61: 24.66101984 | V61: 25.61925362 | W61: 26.53876837 | X61: 27.48858685 | Y61: 28.46965869 | Z61: 29.48296228 | AB61: =IFERROR(VLOOKUP($B61,Volumes!$B$4:$H$33,MATCH(AB$11,Volumes!$B$4:$H$4,0),FALSE),0) -> 314 | AC61: =IFERROR(VLOOKUP($B61,Volumes!$B$4:$H$33,MATCH(AC$11,Volumes!$B$4:$H$4,0),FALSE),0) -> 307 | AD61: =IFERROR(VLOOKUP($B61,Volumes!$B$4:$H$33,MATCH(AD$11,Volumes!$B$4:$H$4,0),FALSE),0) -> 301 | AE61: =IFERROR(VLOOKUP($B61,Volumes!$B$4:$H$33,MATCH(AE$11,Volumes!$B$4:$H$4,0),FALSE),0) -> 295 | AF61: =IFERROR(VLOOKUP($B61,Volumes!$B$4:$H$33,MATCH(AF$11,Volumes!$B$4:$H$4,0),FALSE),0) -> 289 | AG61: =IFERROR(VLOOKUP($B61,Volumes!$B$4:$M$33,MATCH(AG$11,Volumes!$B$4:$M$4,0),FALSE),0) -> 289 | AH61: =IFERROR(VLOOKUP($B61,Volumes!$B$4:$M$33,MATCH(AH$11,Volumes!$B$4:$M$4,0),FALSE),0) -> 289 | AI61: =IFERROR(VLOOKUP($B61,Volumes!$B$4:$M$33,MATCH(AI$11,Volumes!$B$4:$M$4,0),FALSE),0) -> 289 | AJ61: =IFERROR(VLOOKUP($B61,Volumes!$B$4:$M$33,MATCH(AJ$11,Volumes!$B$4:$M$4,0),FALSE),0) -> 289 | AK61: =IFERROR(VLOOKUP($B61,Volumes!$B$4:$M$33,MATCH(AK$11,Volumes!$B$4:$M$4,0),FALSE),0) -> 289 | AM61: 79.98173919 | AN61: 79.76044881 | AO61: 79.75776999 | AP61: 79.75517095 | AQ61: 79.97114971 | AR61: 80.87025335 | AS61: 81.76949937 | AT61: 82.67062734 | AU61: 83.80261008 | AV61: 84.4785449 | AX61: 81.94125272 | AY61: 83.71650717 | AZ61: 85.76464013 | BA61: 87.86296866 | BB61: 90.25933262 | BC61: 93.51027572 | BD61: 96.86650454 | BE61: 100.333342 | BF61: 104.1989508 | BG61: 107.6128123 | BJ61: 25114.2661 | BK61: 24486.45778 | BL61: 24007.08877 | BM61: 23527.77543 | BN61: 23111.66227 | BO61: 23371.50322 | BP61: 23631.38532 | BQ61: 23891.8113 | BR61: 24218.95431 | BS61: 24414.29948 | BV61: 25729.55336 | BW61: 25700.9677 | BX61: 25815.15668 | BY61: 25919.57575 | BZ61: 26084.94713 | CA61: 27024.46968 | CB61: 27994.41981 | CC61: 28996.33584 | CD61: 30113.49679 | CE61: 31100.10276
B62: =Inputs!$C119 -> 250W Mercury Vapour | C62: Obsolete, no new Connections | D62: =IF($C62="NA","",'Unsmoothed Prices'!D60) -> 21.646 | E62: =IF($C62="NA","",'Smoothed Prices'!E62+$E$6) -> 21.8529342 | F62: 21.85217776 | G62: 21.85144383 | H62: 21.85073177 | I62: 21.85004091 | J62: =IF($C62="NA","",'Smoothed Prices'!J62+$J$6) -> 22.15623379 | K62: 22.40260257 | L62: 22.64948694 | M62: 22.896888 | N62: 23.14480682 | O62: ='Smoothed Prices'!N62 -> 23.14900999 | Q62: 22.38832042 | R62: 22.93602936 | S62: 23.49716168 | T62: 24.07204621 | U62: 24.66101984 | V62: 25.61925362 | W62: 26.53876837 | X62: 27.48858685 | Y62: 28.46965869 | Z62: 29.48296228 | AB62: =IFERROR(VLOOKUP($B62,Volumes!$B$4:$H$33,MATCH(AB$11,Volumes!$B$4:$H$4,0),FALSE),0) -> 27 | AC62: =IFERROR(VLOOKUP($B62,Volumes!$B$4:$H$33,MATCH(AC$11,Volumes!$B$4:$H$4,0),FALSE),0) -> 27 | AD62: =IFERROR(VLOOKUP($B62,Volumes!$B$4:$H$33,MATCH(AD$11,Volumes!$B$4:$H$4,0),FALSE),0) -> 26 | AE62: =IFERROR(VLOOKUP($B62,Volumes!$B$4:$H$33,MATCH(AE$11,Volumes!$B$4:$H$4,0),FALSE),0) -> 26 | AF62: =IFERROR(VLOOKUP($B62,Volumes!$B$4:$H$33,MATCH(AF$11,Volumes!$B$4:$H$4,0),FALSE),0) -> 25 | AG62: =IFERROR(VLOOKUP($B62,Volumes!$B$4:$M$33,MATCH(AG$11,Volumes!$B$4:$M$4,0),FALSE),0) -> 25 | AH62: =IFERROR(VLOOKUP($B62,Volumes!$B$4:$M$33,MATCH(AH$11,Volumes!$B$4:$M$4,0),FALSE),0) -> 25 | AI62: =IFERROR(VLOOKUP($B62,Volumes!$B$4:$M$33,MATCH(AI$11,Volumes!$B$4:$M$4,0),FALSE),0) -> 25 | AJ62: =IFERROR(VLOOKUP($B62,Volumes!$B$4:$M$33,MATCH(AJ$11,Volumes!$B$4:$M$4,0),FALSE),0) -> 25 | AK62: =IFERROR(VLOOKUP($B62,Volumes!$B$4:$M$33,MATCH(AK$11,Volumes!$B$4:$M$4,0),FALSE),0) -> 25 | AM62: 79.98173919 | AN62: 79.76044881 | AO62: 79.75776999 | AP62: 79.75517095 | AQ62: 79.97114971 | AR62: 80.87025335 | AS62: 81.76949937 | AT62: 82.67062734 | AU62: 83.80261008 | AV62: 84.4785449 | AX62: 81.94125272 | AY62: 83.71650717 | AZ62: 85.76464013 | BA62: 87.86296866 | BB62: 90.25933262 | BC62: 93.51027572 | BD62: 96.86650454 | BE62: 100.333342 | BF62: 104.1989508 | BG62: 107.6128123 | BJ62: 2159.506958 | BK62: 2153.532118 | BL62: 2073.70202 | BM62: 2073.634445 | BN62: 1999.278743 | BO62: 2021.756334 | BP62: 2044.237484 | BQ62: 2066.765684 | BR62: 2095.065252 | BS62: 2111.963623 | BV62: 2212.413824 | BW62: 2260.345694 | BX62: 2229.880643 | BY62: 2284.437185 | BZ62: 2256.483315 | CA62: 2337.756893 | CB62: 2421.662614 | CC62: 2508.33355 | CD62: 2604.97377 | CE62: 2690.320308
B63: =Inputs!$C120 -> 0 | C63: NA | D63: =IF($C63="NA","",'Unsmoothed Prices'!D61) ->  | E63: =IF($C63="NA","",'Smoothed Prices'!E63+$E$6) ->  | J63: =IF($C63="NA","",'Smoothed Prices'!J63+$J$6) ->  | O63: ='Smoothed Prices'!N63 ->  | AB63: =IFERROR(VLOOKUP($B63,Volumes!$B$4:$H$33,MATCH(AB$11,Volumes!$B$4:$H$4,0),FALSE),0) -> 0 | AC63: =IFERROR(VLOOKUP($B63,Volumes!$B$4:$H$33,MATCH(AC$11,Volumes!$B$4:$H$4,0),FALSE),0) -> 0 | AD63: =IFERROR(VLOOKUP($B63,Volumes!$B$4:$H$33,MATCH(AD$11,Volumes!$B$4:$H$4,0),FALSE),0) -> 0 | AE63: =IFERROR(VLOOKUP($B63,Volumes!$B$4:$H$33,MATCH(AE$11,Volumes!$B$4:$H$4,0),FALSE),0) -> 0 | AF63: =IFERROR(VLOOKUP($B63,Volumes!$B$4:$H$33,MATCH(AF$11,Volumes!$B$4:$H$4,0),FALSE),0) -> 0 | AG63: =IFERROR(VLOOKUP($B63,Volumes!$B$4:$M$33,MATCH(AG$11,Volumes!$B$4:$M$4,0),FALSE),0) -> 0 | AH63: =IFERROR(VLOOKUP($B63,Volumes!$B$4:$M$33,MATCH(AH$11,Volumes!$B$4:$M$4,0),FALSE),0) -> 0 | AI63: =IFERROR(VLOOKUP($B63,Volumes!$B$4:$M$33,MATCH(AI$11,Volumes!$B$4:$M$4,0),FALSE),0) -> 0 | AJ63: =IFERROR(VLOOKUP($B63,Volumes!$B$4:$M$33,MATCH(AJ$11,Volumes!$B$4:$M$4,0),FALSE),0) -> 0 | AK63: =IFERROR(VLOOKUP($B63,Volumes!$B$4:$M$33,MATCH(AK$11,Volumes!$B$4:$M$4,0),FALSE),0) -> 0 | BJ63: 0 | BK63: 0 | BL63: 0 | BM63: 0 | BN63: 0 | BO63: 0 | BP63: 0 | BQ63: 0 | BR63: 0 | BS63: 0 | BV63: 0 | BW63: 0 | BX63: 0 | BY63: 0 | BZ63: 0 | CA63: 0 | CB63: 0 | CC63: 0 | CD63: 0 | CE63: 0
B64: =Inputs!$C121 -> 400W Mercury Vapour | C64: Obsolete, no new Connections | D64: =IF($C64="NA","",'Unsmoothed Prices'!D62) -> 21.799 | E64: =IF($C64="NA","",'Smoothed Prices'!E64+$E$6) -> 21.99778843 | F64: 21.99271838 | G64: 21.98779932 | H64: 21.98302673 | I64: 21.97839627 | J64: =IF($C64="NA","",'Smoothed Prices'!J64+$J$6) -> 22.28485778 | K64: 22.53149574 | L64: 22.77864987 | M64: 23.02632124 | N64: 23.27451094 | O64: ='Smoothed Prices'!N64 -> 23.2787141 | Q64: 22.5367235 | R64: 23.0835407 | S64: 23.64378663 | T64: 24.21779009 | U64: 24.80588795 | V64: 25.76798154 | W64: 26.69145893 | X64: 27.64534565 | Y64: 28.6305941 | Z64: 29.64818559 | AB64: =IFERROR(VLOOKUP($B64,Volumes!$B$4:$H$33,MATCH(AB$11,Volumes!$B$4:$H$4,0),FALSE),0) -> 21 | AC64: =IFERROR(VLOOKUP($B64,Volumes!$B$4:$H$33,MATCH(AC$11,Volumes!$B$4:$H$4,0),FALSE),0) -> 20 | AD64: =IFERROR(VLOOKUP($B64,Volumes!$B$4:$H$33,MATCH(AD$11,Volumes!$B$4:$H$4,0),FALSE),0) -> 20 | AE64: =IFERROR(VLOOKUP($B64,Volumes!$B$4:$H$33,MATCH(AE$11,Volumes!$B$4:$H$4,0),FALSE),0) -> 20 | AF64: =IFERROR(VLOOKUP($B64,Volumes!$B$4:$H$33,MATCH(AF$11,Volumes!$B$4:$H$4,0),FALSE),0) -> 19 | AG64: =IFERROR(VLOOKUP($B64,Volumes!$B$4:$M$33,MATCH(AG$11,Volumes!$B$4:$M$4,0),FALSE),0) -> 19 | AH64: =IFERROR(VLOOKUP($B64,Volumes!$B$4:$M$33,MATCH(AH$11,Volumes!$B$4:$M$4,0),FALSE),0) -> 19 | AI64: =IFERROR(VLOOKUP($B64,Volumes!$B$4:$M$33,MATCH(AI$11,Volumes!$B$4:$M$4,0),FALSE),0) -> 19 | AJ64: =IFERROR(VLOOKUP($B64,Volumes!$B$4:$M$33,MATCH(AJ$11,Volumes!$B$4:$M$4,0),FALSE),0) -> 19 | AK64: =IFERROR(VLOOKUP($B64,Volumes!$B$4:$M$33,MATCH(AK$11,Volumes!$B$4:$M$4,0),FALSE),0) -> 19 | AM64: 80.51190566 | AN64: 80.2734221 | AO64: 80.2554675 | AP64: 80.23804757 | AQ64: 80.44093035 | AR64: 81.33973091 | AS64: 82.23995946 | AT64: 83.14207201 | AU64: 84.27633573 | AV64: 84.95196492 | AX64: 82.48440801 | AY64: 84.25492355 | AZ64: 86.29982119 | BA64: 88.39493383 | BB64: 90.78954991 | BC64: 94.05313263 | BD64: 97.42382511 | BE64: 100.9055116 | BF64: 104.7879744 | BG64: 108.2158774 | BJ64: 1690.750019 | BK64: 1605.468442 | BL64: 1605.10935 | BM64: 1604.760951 | BN64: 1528.377677 | BO64: 1545.454887 | BP64: 1562.55923 | BQ64: 1579.699368 | BR64: 1601.250379 | BS64: 1614.087334 | BV64: 1732.172568 | BW64: 1685.098471 | BX64: 1725.996424 | BY64: 1767.898677 | BZ64: 1725.001448 | CA64: 1787.00952 | CB64: 1851.052677 | CC64: 1917.204721 | CD64: 1990.971514 | CE64: 2056.10167
B65: =Inputs!$C122 -> 50W Mercury Vapour | C65: Obsolete, no new Connections | D65: =IF($C65="NA","",'Unsmoothed Prices'!D63) -> 18.088 | E65: =IF($C65="NA","",'Smoothed Prices'!E65+$E$6) -> 18.54053334 | F65: 18.63841656 | G65: 18.73338493 | H65: 18.82552524 | I65: 18.91492172 | J65: =IF($C65="NA","",'Smoothed Prices'!J65+$J$6) -> 19.21497196 | K65: 19.45518523 | L65: 19.69590123 | M65: 19.93712099 | N65: 20.17884559 | O65: ='Smoothed Prices'!N65 -> 20.18304875 | Q65: 18.99476735 | R65: 19.56286803 | S65: 20.14426954 | T65: 20.73930147 | U65: 21.34830144 | V65: 22.2182725 | W65: 23.04717289 | X65: 23.90396272 | Y65: 24.78952729 | Z65: 25.70477895 | AB65: =IFERROR(VLOOKUP($B65,Volumes!$B$4:$H$33,MATCH(AB$11,Volumes!$B$4:$H$4,0),FALSE),0) -> 141 | AC65: =IFERROR(VLOOKUP($B65,Volumes!$B$4:$H$33,MATCH(AC$11,Volumes!$B$4:$H$4,0),FALSE),0) -> 130 | AD65: =IFERROR(VLOOKUP($B65,Volumes!$B$4:$H$33,MATCH(AD$11,Volumes!$B$4:$H$4,0),FALSE),0) -> 127 | AE65: =IFERROR(VLOOKUP($B65,Volumes!$B$4:$H$33,MATCH(AE$11,Volumes!$B$4:$H$4,0),FALSE),0) -> 115 | AF65: =IFERROR(VLOOKUP($B65,Volumes!$B$4:$H$33,MATCH(AF$11,Volumes!$B$4:$H$4,0),FALSE),0) -> 108 | AG65: =IFERROR(VLOOKUP($B65,Volumes!$B$4:$M$33,MATCH(AG$11,Volumes!$B$4:$M$4,0),FALSE),0) -> 108 | AH65: =IFERROR(VLOOKUP($B65,Volumes!$B$4:$M$33,MATCH(AH$11,Volumes!$B$4:$M$4,0),FALSE),0) -> 108 | AI65: =IFERROR(VLOOKUP($B65,Volumes!$B$4:$M$33,MATCH(AI$11,Volumes!$B$4:$M$4,0),FALSE),0) -> 108 | AJ65: =IFERROR(VLOOKUP($B65,Volumes!$B$4:$M$33,MATCH(AJ$11,Volumes!$B$4:$M$4,0),FALSE),0) -> 108 | AK65: =IFERROR(VLOOKUP($B65,Volumes!$B$4:$M$33,MATCH(AK$11,Volumes!$B$4:$M$4,0),FALSE),0) -> 108 | AM65: 67.85835202 | AN65: 68.03022045 | AO65: 68.37685499 | AP65: 68.71316713 | AQ65: 69.22861349 | AR65: 70.13464766 | AS65: 71.0114261 | AT65: 71.89003948 | AU65: 72.96986284 | AV65: 73.65278639 | AX65: 69.5208485 | AY65: 71.4044683 | AZ65: 73.52658383 | BA65: 75.69845037 | BB65: 78.13478327 | BC65: 81.09669463 | BD65: 84.12218103 | BE65: 87.24946393 | BF65: 90.72966989 | BG65: 93.82244318 | BJ65: 9568.027635 | BK65: 8843.928659 | BL65: 8683.860584 | BM65: 7902.01422 | BN65: 7476.690256 | BO65: 7574.541947 | BP65: 7669.234019 | BQ65: 7764.124264 | BR65: 7880.745186 | BS65: 7954.50093 | BV65: 9802.439638 | BW65: 9282.580879 | BX65: 9337.876147 | BY65: 8705.321793 | BZ65: 8438.556594 | CA65: 8758.44302 | CB65: 9085.195552 | CC65: 9422.942105 | CD65: 9798.804348 | CE65: 10132.82386
B66: =Inputs!$C123 -> 80W Mercury Vapour Art decorative | C66: Old light no volumes | D66: =IF($C66="NA","",'Unsmoothed Prices'!D64) -> 18.056 | E66: =IF($C66="NA","",'Smoothed Prices'!E66+$E$6) -> 18.50102764 | F66: 18.6000873 | G66: 18.69619707 | H66: 18.7894448 | I66: 18.87991571 | J66: =IF($C66="NA","",'Smoothed Prices'!J66+$J$6) -> 19.17989269 | K66: 19.42003255 | L66: 19.66067498 | M66: 19.90182102 | N66: 20.14347174 | O66: ='Smoothed Prices'!N66 -> 20.1476749 | Q66: 18.95429378 | R66: 19.52263766 | S66: 20.10428092 | T66: 20.69955314 | U66: 21.30879196 | V66: 22.17771034 | W66: 23.00553 | X66: 23.86121032 | Y66: 24.74563582 | Z66: 25.65971805 | AB66: =IFERROR(VLOOKUP($B66,Volumes!$B$4:$H$33,MATCH(AB$11,Volumes!$B$4:$H$4,0),FALSE),0) -> 0 | AC66: =IFERROR(VLOOKUP($B66,Volumes!$B$4:$H$33,MATCH(AC$11,Volumes!$B$4:$H$4,0),FALSE),0) -> 0 | AD66: =IFERROR(VLOOKUP($B66,Volumes!$B$4:$H$33,MATCH(AD$11,Volumes!$B$4:$H$4,0),FALSE),0) -> 0 | AE66: =IFERROR(VLOOKUP($B66,Volumes!$B$4:$H$33,MATCH(AE$11,Volumes!$B$4:$H$4,0),FALSE),0) -> 0 | AF66: =IFERROR(VLOOKUP($B66,Volumes!$B$4:$H$33,MATCH(AF$11,Volumes!$B$4:$H$4,0),FALSE),0) -> 0 | AG66: =IFERROR(VLOOKUP($B66,Volumes!$B$4:$M$33,MATCH(AG$11,Volumes!$B$4:$M$4,0),FALSE),0) -> 0 | AH66: =IFERROR(VLOOKUP($B66,Volumes!$B$4:$M$33,MATCH(AH$11,Volumes!$B$4:$M$4,0),FALSE),0) -> 0 | AI66: =IFERROR(VLOOKUP($B66,Volumes!$B$4:$M$33,MATCH(AI$11,Volumes!$B$4:$M$4,0),FALSE),0) -> 0 | AJ66: =IFERROR(VLOOKUP($B66,Volumes!$B$4:$M$33,MATCH(AJ$11,Volumes!$B$4:$M$4,0),FALSE),0) -> 0 | AK66: =IFERROR(VLOOKUP($B66,Volumes!$B$4:$M$33,MATCH(AK$11,Volumes!$B$4:$M$4,0),FALSE),0) -> 0 | AM66: 67.71376117 | AN66: 67.89031865 | AO66: 68.24111931 | AP66: 68.58147351 | AQ66: 69.10049149 | AR66: 70.00660832 | AS66: 70.88311881 | AT66: 71.76146366 | AU66: 72.84066493 | AV66: 73.52367184 | AX66: 69.37271524 | AY66: 71.25762747 | AZ66: 73.38062536 | BA66: 75.55336896 | BB66: 77.99017856 | BC66: 80.94864274 | BD66: 83.97018451 | BE66: 87.09341768 | BF66: 90.56902709 | BG66: 93.65797088 | BJ66: 0 | BK66: 0 | BL66: 0 | BM66: 0 | BN66: 0 | BO66: 0 | BP66: 0 | BQ66: 0 | BR66: 0 | BS66: 0 | BV66: 0 | BW66: 0 | BX66: 0 | BY66: 0 | BZ66: 0 | CA66: 0 | CB66: 0 | CC66: 0 | CD66: 0 | CE66: 0
B67: =Inputs!$C124 -> 80W Mercury Vapour | C67: Obsolete, no new Connections | D67: =IF($C67="NA","",'Unsmoothed Prices'!D65) -> 18.056 | E67: =IF($C67="NA","",'Smoothed Prices'!E67+$E$6) -> 18.50102764 | F67: 18.6000873 | G67: 18.69619707 | H67: 18.7894448 | I67: 18.87991571 | J67: =IF($C67="NA","",'Smoothed Prices'!J67+$J$6) -> 19.17989269 | K67: 19.42003255 | L67: 19.66067498 | M67: 19.90182102 | N67: 20.14347174 | O67: ='Smoothed Prices'!N67 -> 20.1476749 | Q67: 18.95429378 | R67: 19.52263766 | S67: 20.10428092 | T67: 20.69955314 | U67: 21.30879196 | V67: 22.17771034 | W67: 23.00553 | X67: 23.86121032 | Y67: 24.74563582 | Z67: 25.65971805 | AB67: =IFERROR(VLOOKUP($B67,Volumes!$B$4:$H$33,MATCH(AB$11,Volumes!$B$4:$H$4,0),FALSE),0) -> 280 | AC67: =IFERROR(VLOOKUP($B67,Volumes!$B$4:$H$33,MATCH(AC$11,Volumes!$B$4:$H$4,0),FALSE),0) -> 260 | AD67: =IFERROR(VLOOKUP($B67,Volumes!$B$4:$H$33,MATCH(AD$11,Volumes!$B$4:$H$4,0),FALSE),0) -> 240 | AE67: =IFERROR(VLOOKUP($B67,Volumes!$B$4:$H$33,MATCH(AE$11,Volumes!$B$4:$H$4,0),FALSE),0) -> 230 | AF67: =IFERROR(VLOOKUP($B67,Volumes!$B$4:$H$33,MATCH(AF$11,Volumes!$B$4:$H$4,0),FALSE),0) -> 220 | AG67: =IFERROR(VLOOKUP($B67,Volumes!$B$4:$M$33,MATCH(AG$11,Volumes!$B$4:$M$4,0),FALSE),0) -> 220 | AH67: =IFERROR(VLOOKUP($B67,Volumes!$B$4:$M$33,MATCH(AH$11,Volumes!$B$4:$M$4,0),FALSE),0) -> 220 | AI67: =IFERROR(VLOOKUP($B67,Volumes!$B$4:$M$33,MATCH(AI$11,Volumes!$B$4:$M$4,0),FALSE),0) -> 220 | AJ67: =IFERROR(VLOOKUP($B67,Volumes!$B$4:$M$33,MATCH(AJ$11,Volumes!$B$4:$M$4,0),FALSE),0) -> 220 | AK67: =IFERROR(VLOOKUP($B67,Volumes!$B$4:$M$33,MATCH(AK$11,Volumes!$B$4:$M$4,0),FALSE),0) -> 220 | AM67: 67.71376117 | AN67: 67.89031865 | AO67: 68.24111931 | AP67: 68.58147351 | AQ67: 69.10049149 | AR67: 70.00660832 | AS67: 70.88311881 | AT67: 71.76146366 | AU67: 72.84066493 | AV67: 73.52367184 | AX67: 69.37271524 | AY67: 71.25762747 | AZ67: 73.38062536 | BA67: 75.55336896 | BB67: 77.99017856 | BC67: 80.94864274 | BD67: 83.97018451 | BE67: 87.09341768 | BF67: 90.56902709 | BG67: 93.65797088 | BJ67: 18959.85313 | BK67: 17651.48285 | BL67: 16377.86863 | BM67: 15773.73891 | BN67: 15202.10813 | BO67: 15401.45383 | BP67: 15594.28614 | BQ67: 15787.52201 | BR67: 16024.94629 | BS67: 16175.2078 | BV67: 19424.36027 | BW67: 18526.98314 | BX67: 17611.35009 | BY67: 17377.27486 | BZ67: 17157.83928 | CA67: 17808.7014 | CB67: 18473.44059 | CC67: 19160.55189 | CD67: 19925.18596 | CE67: 20604.75359
B68: =Inputs!$C125 -> 14W LED | C68: Offered | D68: =IF($C68="NA","",'Unsmoothed Prices'!D66) ->  | E68: =IF($C68="NA","",'Smoothed Prices'!E68+$E$6) -> 13.39263695 | F68: 13.64381889 | G68: 13.88752091 | H68: 14.12396574 | I68: 14.35336951 | J68: =IF($C68="NA","",'Smoothed Prices'!J68+$J$6) -> 14.6438733 | K68: 14.87452013 | L68: 15.10564967 | M68: 15.33726291 | N68: 15.56936088 | O68: ='Smoothed Prices'!N68 -> 15.57356404 | Q68: 13.72075001 | R68: 14.32054206 | S68: 14.93344451 | T68: 15.55978809 | U68: 16.19991156 | V68: 16.93271101 | W68: 17.62078505 | X68: 18.33299641 | Y68: 19.07013042 | Z68: 19.83299679 | AB68: =IFERROR(VLOOKUP($B68,Volumes!$B$4:$H$33,MATCH(AB$11,Volumes!$B$4:$H$4,0),FALSE),0) -> 13129 | AC68: =IFERROR(VLOOKUP($B68,Volumes!$B$4:$H$33,MATCH(AC$11,Volumes!$B$4:$H$4,0),FALSE),0) -> 14029 | AD68: =IFERROR(VLOOKUP($B68,Volumes!$B$4:$H$33,MATCH(AD$11,Volumes!$B$4:$H$4,0),FALSE),0) -> 14059 | AE68: =IFERROR(VLOOKUP($B68,Volumes!$B$4:$H$33,MATCH(AE$11,Volumes!$B$4:$H$4,0),FALSE),0) -> 14089 | AF68: =IFERROR(VLOOKUP($B68,Volumes!$B$4:$H$33,MATCH(AF$11,Volumes!$B$4:$H$4,0),FALSE),0) -> 14129 | AG68: =IFERROR(VLOOKUP($B68,Volumes!$B$4:$M$33,MATCH(AG$11,Volumes!$B$4:$M$4,0),FALSE),0) -> 14129 | AH68: =IFERROR(VLOOKUP($B68,Volumes!$B$4:$M$33,MATCH(AH$11,Volumes!$B$4:$M$4,0),FALSE),0) -> 14129 | AI68: =IFERROR(VLOOKUP($B68,Volumes!$B$4:$M$33,MATCH(AI$11,Volumes!$B$4:$M$4,0),FALSE),0) -> 14129 | AJ68: =IFERROR(VLOOKUP($B68,Volumes!$B$4:$M$33,MATCH(AJ$11,Volumes!$B$4:$M$4,0),FALSE),0) -> 14129 | AK68: =IFERROR(VLOOKUP($B68,Volumes!$B$4:$M$33,MATCH(AK$11,Volumes!$B$4:$M$4,0),FALSE),0) -> 14129 | AM68: 49.01705124 | AN68: 49.79993895 | AO68: 50.68945131 | AP68: 51.55247496 | AQ68: 52.53333241 | AR68: 53.45013753 | AS68: 54.29199848 | AT68: 55.13562128 | AU68: 56.13438225 | AV68: 56.8281672 | AX68: 50.21794505 | AY68: 52.26997852 | AZ68: 54.50707248 | BA68: 56.79322654 | BB68: 59.29167631 | BC68: 61.8043952 | BD68: 64.31586542 | BE68: 66.91543689 | BF68: 69.79667733 | BG68: 72.39043829 | BJ68: 643544.8658 | BK68: 698643.3435 | BL68: 712642.9959 | BM68: 726322.8197 | BN68: 742243.4536 | BO68: 755196.9931 | BP68: 767091.6465 | BQ68: 779011.193 | BR68: 793122.6868 | BS68: 802925.1744 | BV68: 659311.4006 | BW68: 733295.5287 | BX68: 766314.932 | BY68: 800159.7688 | BZ68: 837732.0947 | CA68: 873234.2998 | CB68: 908718.8625 | CC68: 945448.2079 | CD68: 986157.2539 | CE68: 1022804.503
B69: =Inputs!$C126 -> New technology - Minor | C69: Offered | D69: =IF($C69="NA","",'Unsmoothed Prices'!D67) ->  | E69: =IF($C69="NA","",'Smoothed Prices'!E69+$E$6) -> 13.39263695 | F69: 13.64381889 | G69: 13.88752091 | H69: 14.12396574 | I69: 14.35336951 | J69: =IF($C69="NA","",'Smoothed Prices'!J69+$J$6) -> 14.6438733 | K69: 14.87452013 | L69: 15.10564967 | M69: 15.33726291 | N69: 15.56936088 | O69: ='Smoothed Prices'!N69 -> 15.57356404 | Q69: 13.72075001 | R69: 14.32054206 | S69: 14.93344451 | T69: 15.55978809 | U69: 16.19991156 | V69: 16.93271101 | W69: 17.62078505 | X69: 18.33299641 | Y69: 19.07013042 | Z69: 19.83299679 | AB69: =IFERROR(VLOOKUP($B69,Volumes!$B$4:$H$33,MATCH(AB$11,Volumes!$B$4:$H$4,0),FALSE),0) -> 0 | AC69: =IFERROR(VLOOKUP($B69,Volumes!$B$4:$H$33,MATCH(AC$11,Volumes!$B$4:$H$4,0),FALSE),0) -> 0 | AD69: =IFERROR(VLOOKUP($B69,Volumes!$B$4:$H$33,MATCH(AD$11,Volumes!$B$4:$H$4,0),FALSE),0) -> 0 | AE69: =IFERROR(VLOOKUP($B69,Volumes!$B$4:$H$33,MATCH(AE$11,Volumes!$B$4:$H$4,0),FALSE),0) -> 0 | AF69: =IFERROR(VLOOKUP($B69,Volumes!$B$4:$H$33,MATCH(AF$11,Volumes!$B$4:$H$4,0),FALSE),0) -> 0 | AG69: =IFERROR(VLOOKUP($B69,Volumes!$B$4:$M$33,MATCH(AG$11,Volumes!$B$4:$M$4,0),FALSE),0) -> 0 | AH69: =IFERROR(VLOOKUP($B69,Volumes!$B$4:$M$33,MATCH(AH$11,Volumes!$B$4:$M$4,0),FALSE),0) -> 0 | AI69: =IFERROR(VLOOKUP($B69,Volumes!$B$4:$M$33,MATCH(AI$11,Volumes!$B$4:$M$4,0),FALSE),0) -> 0 | AJ69: =IFERROR(VLOOKUP($B69,Volumes!$B$4:$M$33,MATCH(AJ$11,Volumes!$B$4:$M$4,0),FALSE),0) -> 0 | AK69: =IFERROR(VLOOKUP($B69,Volumes!$B$4:$M$33,MATCH(AK$11,Volumes!$B$4:$M$4,0),FALSE),0) -> 0 | AM69: 49.01705124 | AN69: 49.79993895 | AO69: 50.68945131 | AP69: 51.55247496 | AQ69: 52.53333241 | AR69: 53.45013753 | AS69: 54.29199848 | AT69: 55.13562128 | AU69: 56.13438225 | AV69: 56.8281672 | AX69: 50.21794505 | AY69: 52.26997852 | AZ69: 54.50707248 | BA69: 56.79322654 | BB69: 59.29167631 | BC69: 61.8043952 | BD69: 64.31586542 | BE69: 66.91543689 | BF69: 69.79667733 | BG69: 72.39043829 | BJ69: 0 | BK69: 0 | BL69: 0 | BM69: 0 | BN69: 0 | BO69: 0 | BP69: 0 | BQ69: 0 | BR69: 0 | BS69: 0 | BV69: 0 | BW69: 0 | BX69: 0 | BY69: 0 | BZ69: 0 | CA69: 0 | CB69: 0 | CC69: 0 | CD69: 0 | CE69: 0
B70: =Inputs!$C127 -> New technology - Major | C70: Offered | D70: =IF($C70="NA","",'Unsmoothed Prices'!D68) ->  | E70: =IF($C70="NA","",'Smoothed Prices'!E70+$E$6) -> 14.14020632 | F70: 14.36912646 | G70: 14.59122961 | H70: 14.80671877 | I70: 15.01579091 | J70: =IF($C70="NA","",'Smoothed Prices'!J70+$J$6) -> 15.30768101 | K70: 15.53971707 | L70: 15.77223873 | M70: 16.00524702 | N70: 16.23874295 | O70: ='Smoothed Prices'!N70 -> 16.24294612 | Q70: =IF($C70="NA","",E70*Q$9) -> 14.48663447 | R70: 15.08182434 | S70: 15.69015228 | T70: 16.31194883 | U70: 16.94755259 | V70: 17.70027189 | W70: 18.4087965 | X70: 19.14200332 | Y70: 19.90069218 | Z70: 20.68568771 | AB70: =IFERROR(VLOOKUP($B70,Volumes!$B$4:$H$33,MATCH(AB$11,Volumes!$B$4:$H$4,0),FALSE),0) -> 0 | AC70: =IFERROR(VLOOKUP($B70,Volumes!$B$4:$H$33,MATCH(AC$11,Volumes!$B$4:$H$4,0),FALSE),0) -> 0 | AD70: =IFERROR(VLOOKUP($B70,Volumes!$B$4:$H$33,MATCH(AD$11,Volumes!$B$4:$H$4,0),FALSE),0) -> 0 | AE70: =IFERROR(VLOOKUP($B70,Volumes!$B$4:$H$33,MATCH(AE$11,Volumes!$B$4:$H$4,0),FALSE),0) -> 0 | AF70: =IFERROR(VLOOKUP($B70,Volumes!$B$4:$H$33,MATCH(AF$11,Volumes!$B$4:$H$4,0),FALSE),0) -> 0 | AG70: =IFERROR(VLOOKUP($B70,Volumes!$B$4:$M$33,MATCH(AG$11,Volumes!$B$4:$M$4,0),FALSE),0) -> 0 | AH70: =IFERROR(VLOOKUP($B70,Volumes!$B$4:$M$33,MATCH(AH$11,Volumes!$B$4:$M$4,0),FALSE),0) -> 0 | AI70: =IFERROR(VLOOKUP($B70,Volumes!$B$4:$M$33,MATCH(AI$11,Volumes!$B$4:$M$4,0),FALSE),0) -> 0 | AJ70: =IFERROR(VLOOKUP($B70,Volumes!$B$4:$M$33,MATCH(AJ$11,Volumes!$B$4:$M$4,0),FALSE),0) -> 0 | AK70: =IFERROR(VLOOKUP($B70,Volumes!$B$4:$M$33,MATCH(AK$11,Volumes!$B$4:$M$4,0),FALSE),0) -> 0 | AM70: =IF($C70="NA","",(E70*AM$9)/100) -> 51.75315513 | AN70: 52.44731159 | AO70: 53.25798809 | AP70: 54.04452353 | AQ70: 54.95779471 | AR70: 55.87303569 | AS70: 56.7199673 | AT70: 57.56867138 | AU70: 58.57920411 | AV70: 59.27141178 | AX70: =IF($C70="NA","",(Q70*AX$9)/100) -> 53.02108215 | AY70: 55.04865886 | AZ70: 57.26905583 | BA70: 59.53861324 | BB70: 62.0280425 | BC70: 64.6059924 | BD70: 67.19210724 | BE70: 69.86831213 | BF70: 72.83653339 | BG70: 75.50276013 | BJ70: 0 | BK70: 0 | BL70: 0 | BM70: 0 | BN70: 0 | BO70: 0 | BP70: 0 | BQ70: 0 | BR70: 0 | BS70: 0 | BV70: =IFERROR(AX70*AB70,0) -> 0 | BW70: 0 | BX70: 0 | BY70: 0 | BZ70: 0 | CA70: 0 | CB70: 0 | CC70: 0 | CD70: 0 | CE70: 0
O71: ='Smoothed Prices'!N71 -> 0 | AB71: =SUM(AB12:AB70) -> 19572 | AC71: =SUM(AC12:AC70) -> 20433 | AD71: =SUM(AD12:AD70) -> 20433 | AE71: =SUM(AE12:AE70) -> 20435 | AF71: =SUM(AF12:AF70) -> 20450 | AG71: =SUM(AG12:AG70) -> 20450 | AH71: 20450 | AI71: 20450 | AJ71: 20450 | AK71: 20450 | BJ71: =SUM(BJ12:BJ70) -> 995170.9426 | BK71: 1051407.545 | BL71: 1067967.499 | BM71: 1084199.559 | BN71: 1103695.592 | BO71: 1122425.297 | BP71: 1139702.819 | BQ71: 1157016.499 | BR71: 1177583.857 | BS71: 1191752.639 | BV71: =SUM(BV12:BV70) -> 1019552.145 | BW71: 1103556.57 | BX71: 1148400.315 | BY71: 1194417.751 | BZ71: 1245684.574 | CA71: 1297860.395 | CB71: 1350124.791 | CC71: 1404214.966 | CD71: 1464190.7 | CE71: 1518111.531
O72: ='Smoothed Prices'!N72 -> 0 | AB72: =Volumes!D34=AB71 -> TRUE | AC72: =Volumes!E34=AC71 -> TRUE | AD72: =Volumes!F34=AD71 -> TRUE | AE72: =Volumes!G34=AE71 -> TRUE | AF72: =Volumes!H34=AF71 -> TRUE | AG72: =Volumes!I34=AG71 -> TRUE | AH72: =Volumes!J34=AH71 -> TRUE | AI72: =Volumes!K34=AI71 -> TRUE | AJ72: =Volumes!L34=AJ71 -> TRUE | AK72: =Volumes!M34=AK71 -> TRUE
B73: Public Road Lights | O73: ='Smoothed Prices'!N73 -> 0
C74: Offered / No Longer Offered / NA | D74: ='Master Data'!J$34 -> 2018-19 | E74: ='Master Data'!K$34 -> 2019-20 | F74: ='Master Data'!L$34 -> 2020-21 | G74: ='Master Data'!M$34 -> 2021-22 | H74: ='Master Data'!N$34 -> 2022-23 | I74: ='Master Data'!O$34 -> 2023-24 | J74: ='Master Data'!P$34 -> 2024-25 | K74: ='Master Data'!Q$34 -> 2025-26 | L74: ='Master Data'!R$34 -> 2026-27 | M74: ='Master Data'!S$34 -> 2027-28 | N74: ='Master Data'!T$34 -> 2028-29 | O74: ='Smoothed Prices'!N74 -> 2028-29 | Q74: =Q11 -> 2019-20 | R74: 2020-21 | S74: 2021-22 | T74: 2022-23 | U74: 2023-24 | V74: 2024-25 | W74: 2025-26 | X74: 2026-27 | Y74: 2027-28 | Z74: 2028-29 | AB74: =AB11 -> 2019-20 | AC74: =AC11 -> 2020-21 | AD74: =AD11 -> 2021-22 | AE74: =AE11 -> 2022-23 | AF74: =AF11 -> 2023-24 | AG74: =AG11 -> 2024-25 | AH74: 2025-26 | AI74: 2026-27 | AJ74: 2027-28 | AK74: 2028-29 | AM74: ='Master Data'!K$34 -> 2019-20 | AN74: ='Master Data'!L$34 -> 2020-21 | AO74: ='Master Data'!M$34 -> 2021-22 | AP74: ='Master Data'!N$34 -> 2022-23 | AQ74: ='Master Data'!O$34 -> 2023-24 | AR74: ='Master Data'!P$34 -> 2024-25 | AS74: ='Master Data'!Q$34 -> 2025-26 | AT74: ='Master Data'!R$34 -> 2026-27 | AU74: ='Master Data'!S$34 -> 2027-28 | AV74: ='Master Data'!T$34 -> 2028-29 | AX74: ='Master Data'!K$34 -> 2019-20 | AY74: ='Master Data'!L$34 -> 2020-21 | AZ74: ='Master Data'!M$34 -> 2021-22 | BA74: ='Master Data'!N$34 -> 2022-23 | BB74: ='Master Data'!O$34 -> 2023-24 | BC74: ='Master Data'!P$34 -> 2024-25 | BD74: ='Master Data'!Q$34 -> 2025-26 | BE74: ='Master Data'!R$34 -> 2026-27 | BF74: ='Master Data'!S$34 -> 2027-28 | BG74: ='Master Data'!T$34 -> 2028-29 | BJ74: ='Master Data'!K$34 -> 2019-20 | BK74: ='Master Data'!L$34 -> 2020-21 | BL74: ='Master Data'!M$34 -> 2021-22 | BM74: ='Master Data'!N$34 -> 2022-23 | BN74: ='Master Data'!O$34 -> 2023-24 | BO74: ='Master Data'!P$34 -> 2024-25 | BP74: ='Master Data'!Q$34 -> 2025-26 | BQ74: ='Master Data'!R$34 -> 2026-27 | BR74: ='Master Data'!S$34 -> 2027-28 | BS74: ='Master Data'!T$34 -> 2028-29 | BV74: ='Master Data'!K$34 -> 2019-20 | BW74: ='Master Data'!L$34 -> 2020-21 | BX74: ='Master Data'!M$34 -> 2021-22 | BY74: ='Master Data'!N$34 -> 2022-23 | BZ74: ='Master Data'!O$34 -> 2023-24 | CA74: ='Master Data'!P$34 -> 2024-25 | CB74: ='Master Data'!Q$34 -> 2025-26 | CC74: ='Master Data'!R$34 -> 2026-27 | CD74: ='Master Data'!S$34 -> 2027-28 | CE74: ='Master Data'!T$34 -> 2028-29
B75: =Inputs!$C69 -> 32W Compact Fluorescent | C75: No Longer Offered | D75: =IF($C75="NA","",'Unsmoothed Prices'!D73) -> 36.021 | E75: =IF($C75="NA","",'Smoothed Prices'!E75+$E$7) -> 40.39711553 | F75: =IF($C75="NA","",E75*(1-F$9)+$F$7) -> 40.94413367 | G75: =IF($C75="NA","",F75*(1-G$9)+$G$7) -> 41.47486221 | H75: =IF($C75="NA","",G75*(1-H$9)+$H$7) -> 41.98978623 | I75: =IF($C75="NA","",H75*(1-I$9)+$I$7) -> 42.48937639 | J75: =IF($C75="NA","",'Smoothed Prices'!J75+$J$7) -> 42.95035435 | K75: =IF($C75="NA","",J75*(1-K$9)+$K$7) -> 43.49024125 | L75: =IF($C75="NA","",K75*(1-L$9)+$L$7) -> 44.03125804 | M75: =IF($C75="NA","",L75*(1-M$9)+$M$7) -> 44.57340706 | N75: =IF($C75="NA","",M75*(1-N$9)+$N$7) -> 45.11669071 | O75: ='Smoothed Prices'!N75 -> 45.12614783 | Q75: =IF($C75="NA","",E75*Q$9) -> 41.38682512 | R75: 42.97493195 | S75: 44.59849658 | T75: 46.25840843 | U75: 47.9555786 | V75: 49.66349568 | W75: 51.51979264 | X75: 53.43860829 | Y75: 55.42192834 | Z75: 57.4717992 | AB75: =IFERROR(VLOOKUP($B75,Volumes!$B$39:$H$81,MATCH(AB$11,Volumes!$B$4:$H$4,0),FALSE),0) -> 0 | AC75: =IFERROR(VLOOKUP($B75,Volumes!$B$39:$H$81,MATCH(AC$11,Volumes!$B$4:$H$4,0),FALSE),0) -> 0 | AD75: =IFERROR(VLOOKUP($B75,Volumes!$B$39:$H$81,MATCH(AD$11,Volumes!$B$4:$H$4,0),FALSE),0) -> 0 | AE75: =IFERROR(VLOOKUP($B75,Volumes!$B$39:$H$81,MATCH(AE$11,Volumes!$B$4:$H$4,0),FALSE),0) -> 0 | AF75: =IFERROR(VLOOKUP($B75,Volumes!$B$39:$H$81,MATCH(AF$11,Volumes!$B$4:$H$4,0),FALSE),0) -> 0 | AG75: =IFERROR(VLOOKUP($B75,Volumes!$B$39:$M$81,MATCH(AG$11,Volumes!$B$4:$M$4,0),FALSE),0) -> 0 | AH75: =IFERROR(VLOOKUP($B75,Volumes!$B$39:$M$81,MATCH(AH$11,Volumes!$B$4:$M$4,0),FALSE),0) -> 0 | AI75: =IFERROR(VLOOKUP($B75,Volumes!$B$39:$M$81,MATCH(AI$11,Volumes!$B$4:$M$4,0),FALSE),0) -> 0 | AJ75: =IFERROR(VLOOKUP($B75,Volumes!$B$39:$M$81,MATCH(AJ$11,Volumes!$B$4:$M$4,0),FALSE),0) -> 0 | AK75: =IFERROR(VLOOKUP($B75,Volumes!$B$39:$M$81,MATCH(AK$11,Volumes!$B$4:$M$4,0),FALSE),0) -> 0 | AM75: =IF($C75="NA","",(E75*AM$9)/100) -> 147.8534428 | AN75: 149.4460879 | AO75: 151.3832471 | AP75: 153.2627198 | AQ75: 155.5111176 | AR75: 156.7687934 | AS75: 158.7393806 | AT75: 160.7140918 | AU75: 163.1386699 | AV75: 164.6759211 | AX75: =IF($C75="NA","",(Q75*AX$9)/100) -> 151.47578 | AY75: 156.8585016 | AZ75: 162.7845125 | BA75: 168.8431908 | BB75: 175.5174177 | BC75: 181.2717592 | BD75: 188.0472431 | BE75: 195.0509203 | BF75: 202.8442577 | BG75: 209.7720671 | BJ75: =IFERROR(AM75*AB75,0) -> 0 | BK75: 0 | BL75: 0 | BM75: 0 | BN75: 0 | BO75: 0 | BP75: 0 | BQ75: 0 | BR75: 0 | BS75: 0 | BV75: =IFERROR(AX75*AB75,0) -> 0 | BW75: 0 | BX75: 0 | BY75: 0 | BZ75: 0 | CA75: 0 | CB75: 0 | CC75: 0 | CD75: 0 | CE75: 0
B76: =Inputs!$C70 -> 42W Compact Fluorescent | C76: Offered | D76: =IF($C76="NA","",'Unsmoothed Prices'!D74) -> 36.047 | E76: =IF($C76="NA","",'Smoothed Prices'!E76+$E$7) -> 40.41940079 | F76: =IF($C76="NA","",E76*(1-F$9)+$F$7) -> 40.9657553 | G76: =IF($C76="NA","",F76*(1-G$9)+$G$7) -> 41.49583998 | H76: =IF($C76="NA","",G76*(1-H$9)+$H$7) -> 42.01013931 | I76: =IF($C76="NA","",H76*(1-I$9)+$I$7) -> 42.50912337 | J76: =IF($C76="NA","",'Smoothed Prices'!J76+$J$7) -> 42.97014266 | K76: =IF($C76="NA","",J76*(1-K$9)+$K$7) -> 43.51007097 | L76: =IF($C76="NA","",K76*(1-L$9)+$L$7) -> 44.05112926 | M76: =IF($C76="NA","",L76*(1-M$9)+$M$7) -> 44.59331987 | N76: =IF($C76="NA","",M76*(1-N$9)+$N$7) -> 45.13664519 | O76: ='Smoothed Prices'!N76 -> 45.14610231 | Q76: 41.40965637 | R76: 42.997626 | S76: 44.62105426 | T76: 46.28083056 | U76: 47.977866 | V76: 49.6863769 | W76: 51.5432835 | X76: 53.46272503 | Y76: 55.44668763 | Z76: 57.49721817 | AB76: =IFERROR(VLOOKUP($B76,Volumes!$B$39:$H$81,MATCH(AB$11,Volumes!$B$4:$H$4,0),FALSE),0) -> 3513 | AC76: =IFERROR(VLOOKUP($B76,Volumes!$B$39:$H$81,MATCH(AC$11,Volumes!$B$4:$H$4,0),FALSE),0) -> 3470 | AD76: =IFERROR(VLOOKUP($B76,Volumes!$B$39:$H$81,MATCH(AD$11,Volumes!$B$4:$H$4,0),FALSE),0) -> 3270 | AE76: =IFERROR(VLOOKUP($B76,Volumes!$B$39:$H$81,MATCH(AE$11,Volumes!$B$4:$H$4,0),FALSE),0) -> 3110 | AF76: =IFERROR(VLOOKUP($B76,Volumes!$B$39:$H$81,MATCH(AF$11,Volumes!$B$4:$H$4,0),FALSE),0) -> 2890 | AG76: =IFERROR(VLOOKUP($B76,Volumes!$B$39:$M$81,MATCH(AG$11,Volumes!$B$4:$M$4,0),FALSE),0) -> 2890 | AH76: =IFERROR(VLOOKUP($B76,Volumes!$B$39:$M$81,MATCH(AH$11,Volumes!$B$4:$M$4,0),FALSE),0) -> 2890 | AI76: =IFERROR(VLOOKUP($B76,Volumes!$B$39:$M$81,MATCH(AI$11,Volumes!$B$4:$M$4,0),FALSE),0) -> 2890 | AJ76: =IFERROR(VLOOKUP($B76,Volumes!$B$39:$M$81,MATCH(AJ$11,Volumes!$B$4:$M$4,0),FALSE),0) -> 2890 | AK76: =IFERROR(VLOOKUP($B76,Volumes!$B$39:$M$81,MATCH(AK$11,Volumes!$B$4:$M$4,0),FALSE),0) -> 2890 | AM76: 147.9350069 | AN76: 149.5250069 | AO76: 151.4598159 | AP76: 153.3370085 | AQ76: 155.5833915 | AR76: 156.8410207 | AS76: 158.811759 | AT76: 160.7866218 | AU76: 163.2115507 | AV76: 164.7487549 | AX76: 151.5593423 | AY76: 156.9413349 | AZ76: 162.866848 | BA76: 168.9250316 | BB76: 175.5989896 | BC76: 181.3552757 | BD76: 188.1329848 | BE76: 195.1389464 | BF76: 202.9348767 | BG76: 209.8648463 | BJ76: 519695.6793 | BK76: 518851.7738 | BL76: 495273.598 | BM76: 476878.0963 | BN76: 449636.0015 | BO76: 453270.5498 | BP76: 458965.9837 | BQ76: 464673.3369 | BR76: 471681.3816 | BS76: 476123.9018 | BV76: 532427.9695 | BW76: 544586.4321 | BX76: 532574.5931 | BY76: 525356.8481 | BZ76: 507481.0799 | CA76: 524116.7467 | CB76: 543704.326 | CC76: 563951.555 | CD76: 586481.7937 | CE76: 606509.4059
B77: =Inputs!$C71 -> 42W Compact Fluorescent - Bottom Pole Entry | C77: No Longer Offered | D77: =IF($C77="NA","",'Unsmoothed Prices'!D75) -> 36.047 | E77: =IF($C77="NA","",'Smoothed Prices'!E77+$E$7) -> 40.41940079 | F77: 40.9657553 | G77: 41.49583998 | H77: 42.01013931 | I77: 42.50912337 | J77: =IF($C77="NA","",'Smoothed Prices'!J77+$J$7) -> 42.97014266 | K77: 43.51007097 | L77: 44.05112926 | M77: 44.59331987 | N77: 45.13664519 | O77: ='Smoothed Prices'!N77 -> 45.14610231 | Q77: 41.40965637 | R77: 42.997626 | S77: 44.62105426 | T77: 46.28083056 | U77: 47.977866 | V77: 49.6863769 | W77: 51.5432835 | X77: 53.46272503 | Y77: 55.44668763 | Z77: 57.49721817 | AB77: =IFERROR(VLOOKUP($B77,Volumes!$B$39:$H$81,MATCH(AB$11,Volumes!$B$4:$H$4,0),FALSE),0) -> 204 | AC77: =IFERROR(VLOOKUP($B77,Volumes!$B$39:$H$81,MATCH(AC$11,Volumes!$B$4:$H$4,0),FALSE),0) -> 204 | AD77: =IFERROR(VLOOKUP($B77,Volumes!$B$39:$H$81,MATCH(AD$11,Volumes!$B$4:$H$4,0),FALSE),0) -> 204 | AE77: =IFERROR(VLOOKUP($B77,Volumes!$B$39:$H$81,MATCH(AE$11,Volumes!$B$4:$H$4,0),FALSE),0) -> 204 | AF77: =IFERROR(VLOOKUP($B77,Volumes!$B$39:$H$81,MATCH(AF$11,Volumes!$B$4:$H$4,0),FALSE),0) -> 204 | AG77: =IFERROR(VLOOKUP($B77,Volumes!$B$39:$M$81,MATCH(AG$11,Volumes!$B$4:$M$4,0),FALSE),0) -> 204 | AH77: =IFERROR(VLOOKUP($B77,Volumes!$B$39:$M$81,MATCH(AH$11,Volumes!$B$4:$M$4,0),FALSE),0) -> 204 | AI77: =IFERROR(VLOOKUP($B77,Volumes!$B$39:$M$81,MATCH(AI$11,Volumes!$B$4:$M$4,0),FALSE),0) -> 204 | AJ77: =IFERROR(VLOOKUP($B77,Volumes!$B$39:$M$81,MATCH(AJ$11,Volumes!$B$4:$M$4,0),FALSE),0) -> 204 | AK77: =IFERROR(VLOOKUP($B77,Volumes!$B$39:$M$81,MATCH(AK$11,Volumes!$B$4:$M$4,0),FALSE),0) -> 204 | AM77: 147.9350069 | AN77: 149.5250069 | AO77: 151.4598159 | AP77: 153.3370085 | AQ77: 155.5833915 | AR77: 156.8410207 | AS77: 158.811759 | AT77: 160.7866218 | AU77: 163.2115507 | AV77: 164.7487549 | AX77: 151.5593423 | AY77: 156.9413349 | AZ77: 162.866848 | BA77: 168.9250316 | BB77: 175.5989896 | BC77: 181.3552757 | BD77: 188.1329848 | BE77: 195.1389464 | BF77: 202.9348767 | BG77: 209.8648463 | BJ77: 30178.74141 | BK77: 30503.1014 | BL77: 30897.80245 | BM77: 31280.74973 | BN77: 31739.01187 | BO77: 31995.56822 | BP77: 32397.59885 | BQ77: 32800.47084 | BR77: 33295.15635 | BS77: 33608.74601 | BV77: 30918.10583 | BW77: 32016.03232 | BX77: 33224.837 | BY77: 34460.70644 | BZ77: 35822.19387 | CA77: 36996.47624 | CB77: 38379.12889 | CC77: 39808.34506 | CD77: 41398.71485 | CE77: 42812.42865
B78: =Inputs!$C72 -> 2x24W Compact Fluorescent | C78: Old light no volumes | D78: =IF($C78="NA","",'Unsmoothed Prices'!D76) -> 36.369 | E78: =IF($C78="NA","",'Smoothed Prices'!E78+$E$7) -> 41.10416623 | F78: 41.63012918 | G78: 42.14042952 | H78: 42.63553368 | I78: 43.11589418 | J78: =IF($C78="NA","",'Smoothed Prices'!J78+$J$7) -> 43.57818333 | K78: 44.11938416 | L78: 44.66171762 | M78: 45.20518608 | N78: 45.74979191 | O78: ='Smoothed Prices'!N78 -> 45.75924904 | Q78: 42.11119822 | R78: 43.69495232 | S78: 45.31419037 | T78: 46.96980165 | U78: 48.66269708 | V78: 50.38945434 | W78: 52.26509345 | X78: 54.2037666 | Y78: 56.2074732 | Z78: 58.27827381 | AB78: =IFERROR(VLOOKUP($B78,Volumes!$B$39:$H$81,MATCH(AB$11,Volumes!$B$4:$H$4,0),FALSE),0) -> 0 | AC78: =IFERROR(VLOOKUP($B78,Volumes!$B$39:$H$81,MATCH(AC$11,Volumes!$B$4:$H$4,0),FALSE),0) -> 0 | AD78: =IFERROR(VLOOKUP($B78,Volumes!$B$39:$H$81,MATCH(AD$11,Volumes!$B$4:$H$4,0),FALSE),0) -> 0 | AE78: =IFERROR(VLOOKUP($B78,Volumes!$B$39:$H$81,MATCH(AE$11,Volumes!$B$4:$H$4,0),FALSE),0) -> 0 | AF78: =IFERROR(VLOOKUP($B78,Volumes!$B$39:$H$81,MATCH(AF$11,Volumes!$B$4:$H$4,0),FALSE),0) -> 0 | AG78: =IFERROR(VLOOKUP($B78,Volumes!$B$39:$M$81,MATCH(AG$11,Volumes!$B$4:$M$4,0),FALSE),0) -> 0 | AH78: =IFERROR(VLOOKUP($B78,Volumes!$B$39:$M$81,MATCH(AH$11,Volumes!$B$4:$M$4,0),FALSE),0) -> 0 | AI78: =IFERROR(VLOOKUP($B78,Volumes!$B$39:$M$81,MATCH(AI$11,Volumes!$B$4:$M$4,0),FALSE),0) -> 0 | AJ78: =IFERROR(VLOOKUP($B78,Volumes!$B$39:$M$81,MATCH(AJ$11,Volumes!$B$4:$M$4,0),FALSE),0) -> 0 | AK78: =IFERROR(VLOOKUP($B78,Volumes!$B$39:$M$81,MATCH(AK$11,Volumes!$B$4:$M$4,0),FALSE),0) -> 0 | AM78: 150.4412484 | AN78: 151.9499715 | AO78: 153.8125678 | AP78: 155.6196979 | AQ78: 157.8041727 | AR78: 159.0603691 | AS78: 161.0357522 | AT78: 163.0152693 | AU78: 165.450981 | AV78: 166.9867405 | AX78: 154.1269855 | AY78: 159.486576 | AZ78: 165.3967949 | BA78: 171.439776 | BB78: 178.1054713 | BC78: 183.9215083 | BD78: 190.7675911 | BE78: 197.8437481 | BF78: 205.7193519 | BG78: 212.7156994 | BJ78: 0 | BK78: 0 | BL78: 0 | BM78: 0 | BN78: 0 | BO78: 0 | BP78: 0 | BQ78: 0 | BR78: 0 | BS78: 0 | BV78: 0 | BW78: 0 | BX78: 0 | BY78: 0 | BZ78: 0 | CA78: 0 | CB78: 0 | CC78: 0 | CD78: 0 | CE78: 0
B79: =Inputs!$C73 -> 1x20W Fluorescent | C79: Old light no volumes | D79: =IF($C79="NA","",'Unsmoothed Prices'!D77) -> 37.742 | E79: =IF($C79="NA","",'Smoothed Prices'!E79+$E$7) -> 42.29237608 | F79: 42.78295544 | G79: 43.25892588 | H79: 43.72072244 | I79: 44.16876721 | J79: =IF($C79="NA","",'Smoothed Prices'!J79+$J$7) -> 44.63325982 | K79: 45.17666872 | L79: 45.72121488 | M79: 46.26690066 | N79: 46.81372847 | O79: ='Smoothed Prices'!N79 -> 46.82318559 | Q79: 43.32851864 | R79: 44.9049579 | S79: 46.51692507 | T79: 48.16530916 | U79: 49.85102084 | V79: 51.60943931 | W79: 53.5175832 | X79: 55.48962718 | Y79: 57.52759373 | Z79: 59.63356709 | AB79: =IFERROR(VLOOKUP($B79,Volumes!$B$39:$H$81,MATCH(AB$11,Volumes!$B$4:$H$4,0),FALSE),0) -> 0 | AC79: =IFERROR(VLOOKUP($B79,Volumes!$B$39:$H$81,MATCH(AC$11,Volumes!$B$4:$H$4,0),FALSE),0) -> 0 | AD79: =IFERROR(VLOOKUP($B79,Volumes!$B$39:$H$81,MATCH(AD$11,Volumes!$B$4:$H$4,0),FALSE),0) -> 0 | AE79: =IFERROR(VLOOKUP($B79,Volumes!$B$39:$H$81,MATCH(AE$11,Volumes!$B$4:$H$4,0),FALSE),0) -> 0 | AF79: =IFERROR(VLOOKUP($B79,Volumes!$B$39:$H$81,MATCH(AF$11,Volumes!$B$4:$H$4,0),FALSE),0) -> 0 | AG79: =IFERROR(VLOOKUP($B79,Volumes!$B$39:$M$81,MATCH(AG$11,Volumes!$B$4:$M$4,0),FALSE),0) -> 0 | AH79: =IFERROR(VLOOKUP($B79,Volumes!$B$39:$M$81,MATCH(AH$11,Volumes!$B$4:$M$4,0),FALSE),0) -> 0 | AI79: =IFERROR(VLOOKUP($B79,Volumes!$B$39:$M$81,MATCH(AI$11,Volumes!$B$4:$M$4,0),FALSE),0) -> 0 | AJ79: =IFERROR(VLOOKUP($B79,Volumes!$B$39:$M$81,MATCH(AJ$11,Volumes!$B$4:$M$4,0),FALSE),0) -> 0 | AK79: =IFERROR(VLOOKUP($B79,Volumes!$B$39:$M$81,MATCH(AK$11,Volumes!$B$4:$M$4,0),FALSE),0) -> 0 | AM79: 154.7900965 | AN79: 156.1577874 | AO79: 157.8950795 | AP79: 159.5806369 | AQ79: 161.657688 | AR79: 162.9113983 | AS79: 164.8948408 | AT79: 166.8824343 | AU79: 169.3368564 | AV79: 170.8701089 | AX79: 158.5823782 | AY79: 163.9030963 | AZ79: 169.7867765 | BA79: 175.8033784 | BB79: 182.4547363 | BC79: 188.3744535 | BD79: 195.3391787 | BE79: 202.5371392 | BF79: 210.5509931 | BG79: 217.6625199 | BJ79: 0 | BK79: 0 | BL79: 0 | BM79: 0 | BN79: 0 | BO79: 0 | BP79: 0 | BQ79: 0 | BR79: 0 | BS79: 0 | BV79: 0 | BW79: 0 | BX79: 0 | BY79: 0 | BZ79: 0 | CA79: 0 | CB79: 0 | CC79: 0 | CD79: 0 | CE79: 0
B80: =Inputs!$C74 -> 1x40W Fluorescent | C80: Old light no volumes | D80: =IF($C80="NA","",'Unsmoothed Prices'!D78) -> 36.579 | E80: =IF($C80="NA","",'Smoothed Prices'!E80+$E$7) -> 41.24800749 | F80: 41.769687 | G80: 42.27583147 | H80: 42.76690351 | I80: 43.24335196 | J80: =IF($C80="NA","",'Smoothed Prices'!J80+$J$7) -> 43.70590785 | K80: 44.24737598 | L80: 44.7899773 | M80: 45.33371419 | N80: 45.87858901 | O80: ='Smoothed Prices'!N80 -> 45.88804613 | Q80: 42.25856353 | R80: 43.84143211 | S80: 45.45978997 | T80: 47.11452634 | U80: 48.80655213 | V80: 50.53714221 | W80: 52.41671625 | X80: 54.35942917 | Y80: 56.36728319 | Z80: 58.44234171 | AB80: =IFERROR(VLOOKUP($B80,Volumes!$B$39:$H$81,MATCH(AB$11,Volumes!$B$4:$H$4,0),FALSE),0) -> 0 | AC80: =IFERROR(VLOOKUP($B80,Volumes!$B$39:$H$81,MATCH(AC$11,Volumes!$B$4:$H$4,0),FALSE),0) -> 0 | AD80: =IFERROR(VLOOKUP($B80,Volumes!$B$39:$H$81,MATCH(AD$11,Volumes!$B$4:$H$4,0),FALSE),0) -> 0 | AE80: =IFERROR(VLOOKUP($B80,Volumes!$B$39:$H$81,MATCH(AE$11,Volumes!$B$4:$H$4,0),FALSE),0) -> 0 | AF80: =IFERROR(VLOOKUP($B80,Volumes!$B$39:$H$81,MATCH(AF$11,Volumes!$B$4:$H$4,0),FALSE),0) -> 0 | AG80: =IFERROR(VLOOKUP($B80,Volumes!$B$39:$M$81,MATCH(AG$11,Volumes!$B$4:$M$4,0),FALSE),0) -> 0 | AH80: =IFERROR(VLOOKUP($B80,Volumes!$B$39:$M$81,MATCH(AH$11,Volumes!$B$4:$M$4,0),FALSE),0) -> 0 | AI80: =IFERROR(VLOOKUP($B80,Volumes!$B$39:$M$81,MATCH(AI$11,Volumes!$B$4:$M$4,0),FALSE),0) -> 0 | AJ80: =IFERROR(VLOOKUP($B80,Volumes!$B$39:$M$81,MATCH(AJ$11,Volumes!$B$4:$M$4,0),FALSE),0) -> 0 | AK80: =IFERROR(VLOOKUP($B80,Volumes!$B$39:$M$81,MATCH(AK$11,Volumes!$B$4:$M$4,0),FALSE),0) -> 0 | AM80: 150.9677074 | AN80: 152.4593576 | AO80: 154.3067849 | AP80: 156.0991978 | AQ80: 158.2706682 | AR80: 159.5265636 | AS80: 161.5029223 | AT80: 163.4834172 | AU80: 165.9213939 | AV80: 167.4568499 | AX80: 154.6663425 | AY80: 160.0212272 | AZ80: 165.9282334 | BA80: 171.9680211 | BB80: 178.6319808 | BC80: 184.4605691 | BD80: 191.3210143 | BE80: 198.4119165 | BF80: 206.3042565 | BG80: 213.3145472 | BJ80: 0 | BK80: 0 | BL80: 0 | BM80: 0 | BN80: 0 | BO80: 0 | BP80: 0 | BQ80: 0 | BR80: 0 | BS80: 0 | BV80: 0 | BW80: 0 | BX80: 0 | BY80: 0 | BZ80: 0 | CA80: 0 | CB80: 0 | CC80: 0 | CD80: 0 | CE80: 0
B81: =Inputs!$C75 -> 2x20W Fluorescent | C81: Old light no volumes | D81: =IF($C81="NA","",'Unsmoothed Prices'!D79) -> 38.031 | E81: =IF($C81="NA","",'Smoothed Prices'!E81+$E$7) -> 42.57195487 | F81: 43.05420868 | G81: 43.5221015 | H81: 43.97606098 | I81: 44.41650204 | J81: =IF($C81="NA","",'Smoothed Prices'!J81+$J$7) -> 44.88151311 | K81: 45.42544156 | L81: 45.97050835 | M81: 46.51671586 | N81: 47.06406648 | O81: ='Smoothed Prices'!N81 -> 47.0735236 | Q81: 43.61494697 | R81: 45.1896651 | S81: 46.79992147 | T81: 48.44660505 | U81: 50.13062643 | V81: 51.8964946 | W81: 53.81228668 | X81: 55.79218261 | Y81: 57.83821033 | Z81: 59.95245963 | AB81: =IFERROR(VLOOKUP($B81,Volumes!$B$39:$H$81,MATCH(AB$11,Volumes!$B$4:$H$4,0),FALSE),0) -> 0 | AC81: =IFERROR(VLOOKUP($B81,Volumes!$B$39:$H$81,MATCH(AC$11,Volumes!$B$4:$H$4,0),FALSE),0) -> 0 | AD81: =IFERROR(VLOOKUP($B81,Volumes!$B$39:$H$81,MATCH(AD$11,Volumes!$B$4:$H$4,0),FALSE),0) -> 0 | AE81: =IFERROR(VLOOKUP($B81,Volumes!$B$39:$H$81,MATCH(AE$11,Volumes!$B$4:$H$4,0),FALSE),0) -> 0 | AF81: =IFERROR(VLOOKUP($B81,Volumes!$B$39:$H$81,MATCH(AF$11,Volumes!$B$4:$H$4,0),FALSE),0) -> 0 | AG81: =IFERROR(VLOOKUP($B81,Volumes!$B$39:$M$81,MATCH(AG$11,Volumes!$B$4:$M$4,0),FALSE),0) -> 0 | AH81: =IFERROR(VLOOKUP($B81,Volumes!$B$39:$M$81,MATCH(AH$11,Volumes!$B$4:$M$4,0),FALSE),0) -> 0 | AI81: =IFERROR(VLOOKUP($B81,Volumes!$B$39:$M$81,MATCH(AI$11,Volumes!$B$4:$M$4,0),FALSE),0) -> 0 | AJ81: =IFERROR(VLOOKUP($B81,Volumes!$B$39:$M$81,MATCH(AJ$11,Volumes!$B$4:$M$4,0),FALSE),0) -> 0 | AK81: =IFERROR(VLOOKUP($B81,Volumes!$B$39:$M$81,MATCH(AK$11,Volumes!$B$4:$M$4,0),FALSE),0) -> 0 | AM81: 155.8133548 | AN81: 157.1478617 | AO81: 158.8556705 | AP81: 160.5126226 | AQ81: 162.5643975 | AR81: 163.8175229 | AS81: 165.8028617 | AT81: 167.7923555 | AU81: 170.2511801 | AV81: 171.7838426 | AX81: 159.6307059 | AY81: 164.9422776 | AZ81: 170.8197134 | BA81: 176.8301084 | BB81: 183.4780927 | BC81: 189.4222053 | BD81: 196.4148464 | BE81: 203.6414665 | BF81: 211.6878498 | BG81: 218.8264777 | BJ81: 0 | BK81: 0 | BL81: 0 | BM81: 0 | BN81: 0 | BO81: 0 | BP81: 0 | BQ81: 0 | BR81: 0 | BS81: 0 | BV81: 0 | BW81: 0 | BX81: 0 | BY81: 0 | BZ81: 0 | CA81: 0 | CB81: 0 | CC81: 0 | CD81: 0 | CE81: 0
B82: =Inputs!$C76 -> 2x24W Fluorescent | C82: Old light no volumes | D82: =IF($C82="NA","",'Unsmoothed Prices'!D80) -> 37.982 | E82: =IF($C82="NA","",'Smoothed Prices'!E82+$E$7) -> 42.54055291 | F82: 43.02374183 | G82: 43.49254192 | H82: 43.94738165 | I82: 44.38867675 | J82: =IF($C82="NA","",'Smoothed Prices'!J82+$J$7) -> 44.85362959 | K82: 45.39749969 | L82: 45.942508 | M82: 46.48865691 | N82: 47.0359488 | O82: ='Smoothed Prices'!N82 -> 47.04540593 | Q82: 43.58277567 | R82: 45.15768711 | S82: 46.76813565 | T82: 48.41501022 | U82: 50.09922145 | V82: 51.86425288 | W82: 53.77918592 | X82: 55.75819993 | Y82: 57.80332223 | Z82: 59.91664199 | AB82: =IFERROR(VLOOKUP($B82,Volumes!$B$39:$H$81,MATCH(AB$11,Volumes!$B$4:$H$4,0),FALSE),0) -> 0 | AC82: =IFERROR(VLOOKUP($B82,Volumes!$B$39:$H$81,MATCH(AC$11,Volumes!$B$4:$H$4,0),FALSE),0) -> 0 | AD82: =IFERROR(VLOOKUP($B82,Volumes!$B$39:$H$81,MATCH(AD$11,Volumes!$B$4:$H$4,0),FALSE),0) -> 0 | AE82: =IFERROR(VLOOKUP($B82,Volumes!$B$39:$H$81,MATCH(AE$11,Volumes!$B$4:$H$4,0),FALSE),0) -> 0 | AF82: =IFERROR(VLOOKUP($B82,Volumes!$B$39:$H$81,MATCH(AF$11,Volumes!$B$4:$H$4,0),FALSE),0) -> 0 | AG82: =IFERROR(VLOOKUP($B82,Volumes!$B$39:$M$81,MATCH(AG$11,Volumes!$B$4:$M$4,0),FALSE),0) -> 0 | AH82: =IFERROR(VLOOKUP($B82,Volumes!$B$39:$M$81,MATCH(AH$11,Volumes!$B$4:$M$4,0),FALSE),0) -> 0 | AI82: =IFERROR(VLOOKUP($B82,Volumes!$B$39:$M$81,MATCH(AI$11,Volumes!$B$4:$M$4,0),FALSE),0) -> 0 | AJ82: =IFERROR(VLOOKUP($B82,Volumes!$B$39:$M$81,MATCH(AJ$11,Volumes!$B$4:$M$4,0),FALSE),0) -> 0 | AK82: =IFERROR(VLOOKUP($B82,Volumes!$B$39:$M$81,MATCH(AK$11,Volumes!$B$4:$M$4,0),FALSE),0) -> 0 | AM82: 155.6984236 | AN82: 157.0366577 | AO82: 158.747778 | AP82: 160.407943 | AQ82: 162.4625569 | AR82: 163.715748 | AS82: 165.7008739 | AT82: 167.6901542 | AU82: 170.1484843 | AV82: 171.6812131 | AX82: 159.512959 | AY82: 164.825558 | AZ82: 170.7036951 | BA82: 176.7147873 | BB82: 183.3631505 | BC82: 189.304523 | BD82: 196.2940286 | BE82: 203.5174298 | BF82: 211.5601594 | BG82: 218.6957433 | BJ82: 0 | BK82: 0 | BL82: 0 | BM82: 0 | BN82: 0 | BO82: 0 | BP82: 0 | BQ82: 0 | BR82: 0 | BS82: 0 | BV82: 0 | BW82: 0 | BX82: 0 | BY82: 0 | BZ82: 0 | CA82: 0 | CB82: 0 | CC82: 0 | CD82: 0 | CE82: 0
B83: =Inputs!$C77 -> T5 Fluorescent 2 x 24W | C83: Obsolete, no new Connections | D83: =IF($C83="NA","",'Unsmoothed Prices'!D81) -> 38.032 | E83: =IF($C83="NA","",'Smoothed Prices'!E83+$E$7) -> 42.57195487 | F83: 43.05420868 | G83: 43.5221015 | H83: 43.97606098 | I83: 44.41650204 | J83: =IF($C83="NA","",'Smoothed Prices'!J83+$J$7) -> 44.88151311 | K83: 45.42544156 | L83: 45.97050835 | M83: 46.51671586 | N83: 47.06406648 | O83: ='Smoothed Prices'!N83 -> 47.0735236 | Q83: 43.61494697 | R83: 45.1896651 | S83: 46.79992147 | T83: 48.44660505 | U83: 50.13062643 | V83: 51.8964946 | W83: 53.81228668 | X83: 55.79218261 | Y83: 57.83821033 | Z83: 59.95245963 | AB83: =IFERROR(VLOOKUP($B83,Volumes!$B$39:$H$81,MATCH(AB$11,Volumes!$B$4:$H$4,0),FALSE),0) -> 83 | AC83: =IFERROR(VLOOKUP($B83,Volumes!$B$39:$H$81,MATCH(AC$11,Volumes!$B$4:$H$4,0),FALSE),0) -> 83 | AD83: =IFERROR(VLOOKUP($B83,Volumes!$B$39:$H$81,MATCH(AD$11,Volumes!$B$4:$H$4,0),FALSE),0) -> 83 | AE83: =IFERROR(VLOOKUP($B83,Volumes!$B$39:$H$81,MATCH(AE$11,Volumes!$B$4:$H$4,0),FALSE),0) -> 83 | AF83: =IFERROR(VLOOKUP($B83,Volumes!$B$39:$H$81,MATCH(AF$11,Volumes!$B$4:$H$4,0),FALSE),0) -> 83 | AG83: =IFERROR(VLOOKUP($B83,Volumes!$B$39:$M$81,MATCH(AG$11,Volumes!$B$4:$M$4,0),FALSE),0) -> 83 | AH83: =IFERROR(VLOOKUP($B83,Volumes!$B$39:$M$81,MATCH(AH$11,Volumes!$B$4:$M$4,0),FALSE),0) -> 83 | AI83: =IFERROR(VLOOKUP($B83,Volumes!$B$39:$M$81,MATCH(AI$11,Volumes!$B$4:$M$4,0),FALSE),0) -> 83 | AJ83: =IFERROR(VLOOKUP($B83,Volumes!$B$39:$M$81,MATCH(AJ$11,Volumes!$B$4:$M$4,0),FALSE),0) -> 83 | AK83: =IFERROR(VLOOKUP($B83,Volumes!$B$39:$M$81,MATCH(AK$11,Volumes!$B$4:$M$4,0),FALSE),0) -> 83 | AM83: 155.8133548 | AN83: 157.1478617 | AO83: 158.8556705 | AP83: 160.5126226 | AQ83: 162.5643975 | AR83: 163.8175229 | AS83: 165.8028617 | AT83: 167.7923555 | AU83: 170.2511801 | AV83: 171.7838426 | AX83: 159.6307059 | AY83: 164.9422776 | AZ83: 170.8197134 | BA83: 176.8301084 | BB83: 183.4780927 | BC83: 189.4222053 | BD83: 196.4148464 | BE83: 203.6414665 | BF83: 211.6878498 | BG83: 218.8264777 | BJ83: 12932.50845 | BK83: 13043.27252 | BL83: 13185.02065 | BM83: 13322.54767 | BN83: 13492.84499 | BO83: 13596.8544 | BP83: 13761.63752 | BQ83: 13926.76551 | BR83: 14130.84794 | BS83: 14258.05894 | BV83: 13249.34859 | BW83: 13690.20904 | BX83: 14178.03621 | BY83: 14676.899 | BZ83: 15228.6817 | CA83: 15722.04304 | CB83: 16302.43225 | CC83: 16902.24172 | CD83: 17570.09153 | CE83: 18162.59765
B84: =Inputs!$C78 -> 20 Fluorescent 1X20FL | C84: Old light no volumes | D84: =IF($C84="NA","",'Unsmoothed Prices'!D82) -> 37.742 | E84: =IF($C84="NA","",'Smoothed Prices'!E84+$E$7) -> 42.29237608 | F84: 42.78295544 | G84: 43.25892588 | H84: 43.72072244 | I84: 44.16876721 | J84: =IF($C84="NA","",'Smoothed Prices'!J84+$J$7) -> 44.63325982 | K84: 45.17666872 | L84: 45.72121488 | M84: 46.26690066 | N84: 46.81372847 | O84: ='Smoothed Prices'!N84 -> 46.82318559 | Q84: 43.32851864 | R84: 44.9049579 | S84: 46.51692507 | T84: 48.16530916 | U84: 49.85102084 | V84: 51.60943931 | W84: 53.5175832 | X84: 55.48962718 | Y84: 57.52759373 | Z84: 59.63356709 | AB84: =IFERROR(VLOOKUP($B84,Volumes!$B$39:$H$81,MATCH(AB$11,Volumes!$B$4:$H$4,0),FALSE),0) -> 0 | AC84: =IFERROR(VLOOKUP($B84,Volumes!$B$39:$H$81,MATCH(AC$11,Volumes!$B$4:$H$4,0),FALSE),0) -> 0 | AD84: =IFERROR(VLOOKUP($B84,Volumes!$B$39:$H$81,MATCH(AD$11,Volumes!$B$4:$H$4,0),FALSE),0) -> 0 | AE84: =IFERROR(VLOOKUP($B84,Volumes!$B$39:$H$81,MATCH(AE$11,Volumes!$B$4:$H$4,0),FALSE),0) -> 0 | AF84: =IFERROR(VLOOKUP($B84,Volumes!$B$39:$H$81,MATCH(AF$11,Volumes!$B$4:$H$4,0),FALSE),0) -> 0 | AG84: =IFERROR(VLOOKUP($B84,Volumes!$B$39:$M$81,MATCH(AG$11,Volumes!$B$4:$M$4,0),FALSE),0) -> 0 | AH84: =IFERROR(VLOOKUP($B84,Volumes!$B$39:$M$81,MATCH(AH$11,Volumes!$B$4:$M$4,0),FALSE),0) -> 0 | AI84: =IFERROR(VLOOKUP($B84,Volumes!$B$39:$M$81,MATCH(AI$11,Volumes!$B$4:$M$4,0),FALSE),0) -> 0 | AJ84: =IFERROR(VLOOKUP($B84,Volumes!$B$39:$M$81,MATCH(AJ$11,Volumes!$B$4:$M$4,0),FALSE),0) -> 0 | AK84: =IFERROR(VLOOKUP($B84,Volumes!$B$39:$M$81,MATCH(AK$11,Volumes!$B$4:$M$4,0),FALSE),0) -> 0 | AM84: 154.7900965 | AN84: 156.1577874 | AO84: 157.8950795 | AP84: 159.5806369 | AQ84: 161.657688 | AR84: 162.9113983 | AS84: 164.8948408 | AT84: 166.8824343 | AU84: 169.3368564 | AV84: 170.8701089 | AX84: 158.5823782 | AY84: 163.9030963 | AZ84: 169.7867765 | BA84: 175.8033784 | BB84: 182.4547363 | BC84: 188.3744535 | BD84: 195.3391787 | BE84: 202.5371392 | BF84: 210.5509931 | BG84: 217.6625199 | BJ84: 0 | BK84: 0 | BL84: 0 | BM84: 0 | BN84: 0 | BO84: 0 | BP84: 0 | BQ84: 0 | BR84: 0 | BS84: 0 | BV84: 0 | BW84: 0 | BX84: 0 | BY84: 0 | BZ84: 0 | CA84: 0 | CB84: 0 | CC84: 0 | CD84: 0 | CE84: 0
B85: =Inputs!$C79 -> 2x40W Fluorescent | C85: Old light no volumes | D85: =IF($C85="NA","",'Unsmoothed Prices'!D83) -> 36.888 | E85: =IF($C85="NA","",'Smoothed Prices'!E85+$E$7) -> 41.54581968 | F85: 42.05863067 | G85: 42.55617071 | H85: 43.03889455 | I85: 43.50724341 | J85: =IF($C85="NA","",'Smoothed Prices'!J85+$J$7) -> 43.97035157 | K85: 44.51237314 | L85: 45.05552905 | M85: 45.59982168 | N85: 46.14525341 | O85: ='Smoothed Prices'!N85 -> 46.15471053 | Q85: 42.56367197 | R85: 44.14470717 | S85: 45.76124266 | T85: 47.41416761 | U85: 49.10439287 | V85: 50.84291849 | W85: 52.73063951 | X85: 54.68171648 | Y85: 56.69815739 | Z85: 58.78203159 | AB85: =IFERROR(VLOOKUP($B85,Volumes!$B$39:$H$81,MATCH(AB$11,Volumes!$B$4:$H$4,0),FALSE),0) -> 0 | AC85: =IFERROR(VLOOKUP($B85,Volumes!$B$39:$H$81,MATCH(AC$11,Volumes!$B$4:$H$4,0),FALSE),0) -> 0 | AD85: =IFERROR(VLOOKUP($B85,Volumes!$B$39:$H$81,MATCH(AD$11,Volumes!$B$4:$H$4,0),FALSE),0) -> 0 | AE85: =IFERROR(VLOOKUP($B85,Volumes!$B$39:$H$81,MATCH(AE$11,Volumes!$B$4:$H$4,0),FALSE),0) -> 0 | AF85: =IFERROR(VLOOKUP($B85,Volumes!$B$39:$H$81,MATCH(AF$11,Volumes!$B$4:$H$4,0),FALSE),0) -> 0 | AG85: =IFERROR(VLOOKUP($B85,Volumes!$B$39:$M$81,MATCH(AG$11,Volumes!$B$4:$M$4,0),FALSE),0) -> 0 | AH85: =IFERROR(VLOOKUP($B85,Volumes!$B$39:$M$81,MATCH(AH$11,Volumes!$B$4:$M$4,0),FALSE),0) -> 0 | AI85: =IFERROR(VLOOKUP($B85,Volumes!$B$39:$M$81,MATCH(AI$11,Volumes!$B$4:$M$4,0),FALSE),0) -> 0 | AJ85: =IFERROR(VLOOKUP($B85,Volumes!$B$39:$M$81,MATCH(AJ$11,Volumes!$B$4:$M$4,0),FALSE),0) -> 0 | AK85: =IFERROR(VLOOKUP($B85,Volumes!$B$39:$M$81,MATCH(AK$11,Volumes!$B$4:$M$4,0),FALSE),0) -> 0 | AM85: 152.0577 | AN85: 153.5140019 | AO85: 155.3300231 | AP85: 157.0919651 | AQ85: 159.2365109 | AR85: 160.4917832 | AS85: 162.4701619 | AT85: 164.452681 | AU85: 166.8953473 | AV85: 168.430175 | AX85: 155.7830394 | AY85: 161.1281812 | AZ85: 167.0285357 | BA85: 173.0617118 | BB85: 179.7220779 | BC85: 185.5766525 | BD85: 192.4668342 | BE85: 199.5882652 | BF85: 207.515256 | BG85: 214.5544153 | BJ85: 0 | BK85: 0 | BL85: 0 | BM85: 0 | BN85: 0 | BO85: 0 | BP85: 0 | BQ85: 0 | BR85: 0 | BS85: 0 | BV85: 0 | BW85: 0 | BX85: 0 | BY85: 0 | BZ85: 0 | CA85: 0 | CB85: 0 | CC85: 0 | CD85: 0 | CE85: 0
B86: =Inputs!$C80 -> 3x40W Fluorescent | C86: Old light no volumes | D86: =IF($C86="NA","",'Unsmoothed Prices'!D84) -> 46.387 | E86: =IF($C86="NA","",'Smoothed Prices'!E86+$E$7) -> 48.21823084 | F86: 48.53234473 | G86: 48.83710466 | H86: 49.13278916 | I86: 49.41966851 | J86: =IF($C86="NA","",'Smoothed Prices'!J86+$J$7) -> 49.89515026 | K86: 50.44957129 | L86: 51.00515263 | M86: 51.56189669 | N86: 52.11980591 | O86: ='Smoothed Prices'!N86 -> 52.12926303 | Q86: 49.39955394 | R86: 50.93951258 | S86: 52.51521835 | T86: 54.12755892 | U86: 55.77744367 | V86: 57.69376334 | W86: 59.76401549 | X86: 61.90248687 | Y86: 64.11131505 | Z86: 66.3927024 | AB86: =IFERROR(VLOOKUP($B86,Volumes!$B$39:$H$81,MATCH(AB$11,Volumes!$B$4:$H$4,0),FALSE),0) -> 0 | AC86: =IFERROR(VLOOKUP($B86,Volumes!$B$39:$H$81,MATCH(AC$11,Volumes!$B$4:$H$4,0),FALSE),0) -> 0 | AD86: =IFERROR(VLOOKUP($B86,Volumes!$B$39:$H$81,MATCH(AD$11,Volumes!$B$4:$H$4,0),FALSE),0) -> 0 | AE86: =IFERROR(VLOOKUP($B86,Volumes!$B$39:$H$81,MATCH(AE$11,Volumes!$B$4:$H$4,0),FALSE),0) -> 0 | AF86: =IFERROR(VLOOKUP($B86,Volumes!$B$39:$H$81,MATCH(AF$11,Volumes!$B$4:$H$4,0),FALSE),0) -> 0 | AG86: =IFERROR(VLOOKUP($B86,Volumes!$B$39:$M$81,MATCH(AG$11,Volumes!$B$4:$M$4,0),FALSE),0) -> 0 | AH86: =IFERROR(VLOOKUP($B86,Volumes!$B$39:$M$81,MATCH(AH$11,Volumes!$B$4:$M$4,0),FALSE),0) -> 0 | AI86: =IFERROR(VLOOKUP($B86,Volumes!$B$39:$M$81,MATCH(AI$11,Volumes!$B$4:$M$4,0),FALSE),0) -> 0 | AJ86: =IFERROR(VLOOKUP($B86,Volumes!$B$39:$M$81,MATCH(AJ$11,Volumes!$B$4:$M$4,0),FALSE),0) -> 0 | AK86: =IFERROR(VLOOKUP($B86,Volumes!$B$39:$M$81,MATCH(AK$11,Volumes!$B$4:$M$4,0),FALSE),0) -> 0 | AM86: 176.4787249 | AN86: 177.1430583 | AO86: 178.255432 | AP86: 179.3346805 | AQ86: 180.8759868 | AR86: 182.1172984 | AS86: 184.1409352 | AT86: 186.1688071 | AU86: 188.7165419 | AV86: 190.2372916 | AX86: 180.8023674 | AY86: 185.9292209 | AZ86: 191.680547 | BA86: 197.56559 | BB86: 204.1454438 | BC86: 210.5822362 | BD86: 218.1386565 | BE86: 225.9440771 | BF86: 234.6474131 | BG86: 242.3333638 | BJ86: 0 | BK86: 0 | BL86: 0 | BM86: 0 | BN86: 0 | BO86: 0 | BP86: 0 | BQ86: 0 | BR86: 0 | BS86: 0 | BV86: 0 | BW86: 0 | BX86: 0 | BY86: 0 | BZ86: 0 | CA86: 0 | CB86: 0 | CC86: 0 | CD86: 0 | CE86: 0
B87: =Inputs!$C81 -> 4x20 Fluorescent | C87: Old light no volumes | D87: =IF($C87="NA","",'Unsmoothed Prices'!D85) -> 38.612 | E87: =IF($C87="NA","",'Smoothed Prices'!E87+$E$7) -> 43.13009948 | F87: 43.59573235 | G87: 44.04749919 | H87: 44.4858129 | I87: 44.91107411 | J87: =IF($C87="NA","",'Smoothed Prices'!J87+$J$7) -> 45.37712023 | K87: 45.92208589 | L87: 46.46819206 | M87: 47.01544113 | N87: 47.56383548 | O87: ='Smoothed Prices'!N87 -> 47.57329261 | Q87: 44.18676585 | R87: 45.75804794 | S87: 47.36488893 | T87: 49.00817763 | U87: 50.68882455 | V87: 52.46956512 | W87: 54.40062585 | X87: 56.39619726 | Y87: 58.4583181 | Z87: 60.5890893 | AB87: =IFERROR(VLOOKUP($B87,Volumes!$B$39:$H$81,MATCH(AB$11,Volumes!$B$4:$H$4,0),FALSE),0) -> 0 | AC87: =IFERROR(VLOOKUP($B87,Volumes!$B$39:$H$81,MATCH(AC$11,Volumes!$B$4:$H$4,0),FALSE),0) -> 0 | AD87: =IFERROR(VLOOKUP($B87,Volumes!$B$39:$H$81,MATCH(AD$11,Volumes!$B$4:$H$4,0),FALSE),0) -> 0 | AE87: =IFERROR(VLOOKUP($B87,Volumes!$B$39:$H$81,MATCH(AE$11,Volumes!$B$4:$H$4,0),FALSE),0) -> 0 | AF87: =IFERROR(VLOOKUP($B87,Volumes!$B$39:$H$81,MATCH(AF$11,Volumes!$B$4:$H$4,0),FALSE),0) -> 0 | AG87: =IFERROR(VLOOKUP($B87,Volumes!$B$39:$M$81,MATCH(AG$11,Volumes!$B$4:$M$4,0),FALSE),0) -> 0 | AH87: =IFERROR(VLOOKUP($B87,Volumes!$B$39:$M$81,MATCH(AH$11,Volumes!$B$4:$M$4,0),FALSE),0) -> 0 | AI87: =IFERROR(VLOOKUP($B87,Volumes!$B$39:$M$81,MATCH(AI$11,Volumes!$B$4:$M$4,0),FALSE),0) -> 0 | AJ87: =IFERROR(VLOOKUP($B87,Volumes!$B$39:$M$81,MATCH(AJ$11,Volumes!$B$4:$M$4,0),FALSE),0) -> 0 | AK87: =IFERROR(VLOOKUP($B87,Volumes!$B$39:$M$81,MATCH(AK$11,Volumes!$B$4:$M$4,0),FALSE),0) -> 0 | AM87: 157.8561641 | AN87: 159.1244231 | AO87: 160.773372 | AP87: 162.3732171 | AQ87: 164.3745313 | AR87: 165.6264888 | AS87: 167.6156135 | AT87: 169.608901 | AU87: 172.0765145 | AV87: 173.6079995 | AX87: 161.723563 | AY87: 167.016875 | AZ87: 172.8818446 | BA87: 178.8798484 | BB87: 185.5210978 | BC87: 191.5139127 | BD87: 198.5622844 | BE87: 205.84612 | BF87: 213.9574442 | BG87: 221.1501759 | BJ87: 0 | BK87: 0 | BL87: 0 | BM87: 0 | BN87: 0 | BO87: 0 | BP87: 0 | BQ87: 0 | BR87: 0 | BS87: 0 | BV87: 0 | BW87: 0 | BX87: 0 | BY87: 0 | BZ87: 0 | CA87: 0 | CB87: 0 | CC87: 0 | CD87: 0 | CE87: 0
B88: =Inputs!$C82 -> 4x40W Fluorescent | C88: Old light no volumes | D88: =IF($C88="NA","",'Unsmoothed Prices'!D86) -> 47.878 | E88: =IF($C88="NA","",'Smoothed Prices'!E88+$E$7) -> 49.57763205 | F88: 49.85126446 | G88: 50.1167484 | H88: 50.37432652 | I88: 50.62423425 | J88: =IF($C88="NA","",'Smoothed Prices'!J88+$J$7) -> 51.10223692 | K88: 51.65918416 | L88: 52.21729698 | M88: 52.77657783 | N88: 53.33702914 | O88: ='Smoothed Prices'!N88 -> 53.34648626 | Q88: 50.79225982 | R88: 52.32384974 | S88: 53.89123708 | T88: 55.4953092 | U88: 57.13697519 | V88: 59.08951767 | W88: 61.19695773 | X88: 63.37360784 | Y88: 65.62163197 | Z88: 67.9432596 | AB88: =IFERROR(VLOOKUP($B88,Volumes!$B$39:$H$81,MATCH(AB$11,Volumes!$B$4:$H$4,0),FALSE),0) -> 0 | AC88: =IFERROR(VLOOKUP($B88,Volumes!$B$39:$H$81,MATCH(AC$11,Volumes!$B$4:$H$4,0),FALSE),0) -> 0 | AD88: =IFERROR(VLOOKUP($B88,Volumes!$B$39:$H$81,MATCH(AD$11,Volumes!$B$4:$H$4,0),FALSE),0) -> 0 | AE88: =IFERROR(VLOOKUP($B88,Volumes!$B$39:$H$81,MATCH(AE$11,Volumes!$B$4:$H$4,0),FALSE),0) -> 0 | AF88: =IFERROR(VLOOKUP($B88,Volumes!$B$39:$H$81,MATCH(AF$11,Volumes!$B$4:$H$4,0),FALSE),0) -> 0 | AG88: =IFERROR(VLOOKUP($B88,Volumes!$B$39:$M$81,MATCH(AG$11,Volumes!$B$4:$M$4,0),FALSE),0) -> 0 | AH88: =IFERROR(VLOOKUP($B88,Volumes!$B$39:$M$81,MATCH(AH$11,Volumes!$B$4:$M$4,0),FALSE),0) -> 0 | AI88: =IFERROR(VLOOKUP($B88,Volumes!$B$39:$M$81,MATCH(AI$11,Volumes!$B$4:$M$4,0),FALSE),0) -> 0 | AJ88: =IFERROR(VLOOKUP($B88,Volumes!$B$39:$M$81,MATCH(AJ$11,Volumes!$B$4:$M$4,0),FALSE),0) -> 0 | AK88: =IFERROR(VLOOKUP($B88,Volumes!$B$39:$M$81,MATCH(AK$11,Volumes!$B$4:$M$4,0),FALSE),0) -> 0 | AM88: 181.4541333 | AN88: 181.9571153 | AO88: 182.9261317 | AP88: 183.8662918 | AQ88: 185.2846973 | AR88: 186.5231647 | AS88: 188.5560222 | AT88: 190.593134 | AU88: 193.1622748 | AV88: 194.6801564 | AX88: 185.8996709 | AY88: 190.9820516 | AZ88: 196.7030153 | BA88: 202.5578786 | BB88: 209.1213292 | BC88: 215.6767395 | BD88: 223.3688957 | BE88: 231.3136686 | BF88: 240.175173 | BG88: 247.9928975 | BJ88: 0 | BK88: 0 | BL88: 0 | BM88: 0 | BN88: 0 | BO88: 0 | BP88: 0 | BQ88: 0 | BR88: 0 | BS88: 0 | BV88: 0 | BW88: 0 | BX88: 0 | BY88: 0 | BZ88: 0 | CA88: 0 | CB88: 0 | CC88: 0 | CD88: 0 | CE88: 0
B89: =Inputs!$C83 -> 100W Sodium Vapour | C89: Offered | D89: =IF($C89="NA","",'Unsmoothed Prices'!D87) -> 45.521 | E89: =IF($C89="NA","",'Smoothed Prices'!E89+$E$7) -> 47.41292237 | F89: 47.75101747 | G89: 48.07904446 | H89: 48.39730317 | I89: 48.70608449 | J89: =IF($C89="NA","",'Smoothed Prices'!J89+$J$7) -> 49.18007284 | K89: 49.73299735 | L89: 50.28707904 | M89: 50.84232031 | N89: 51.39872359 | O89: ='Smoothed Prices'!N89 -> 51.40818071 | Q89: 48.57451581 | R89: 50.11943208 | S89: 51.70006567 | T89: 53.31730446 | U89: 54.972058 | V89: 56.8669193 | W89: 58.91514136 | X89: 61.03099568 | Y89: 63.2166042 | Z89: 65.47415325 | AB89: =IFERROR(VLOOKUP($B89,Volumes!$B$39:$H$81,MATCH(AB$11,Volumes!$B$4:$H$4,0),FALSE),0) -> 444 | AC89: =IFERROR(VLOOKUP($B89,Volumes!$B$39:$H$81,MATCH(AC$11,Volumes!$B$4:$H$4,0),FALSE),0) -> 466 | AD89: =IFERROR(VLOOKUP($B89,Volumes!$B$39:$H$81,MATCH(AD$11,Volumes!$B$4:$H$4,0),FALSE),0) -> 490 | AE89: =IFERROR(VLOOKUP($B89,Volumes!$B$39:$H$81,MATCH(AE$11,Volumes!$B$4:$H$4,0),FALSE),0) -> 514 | AF89: =IFERROR(VLOOKUP($B89,Volumes!$B$39:$H$81,MATCH(AF$11,Volumes!$B$4:$H$4,0),FALSE),0) -> 540 | AG89: =IFERROR(VLOOKUP($B89,Volumes!$B$39:$M$81,MATCH(AG$11,Volumes!$B$4:$M$4,0),FALSE),0) -> 540 | AH89: =IFERROR(VLOOKUP($B89,Volumes!$B$39:$M$81,MATCH(AH$11,Volumes!$B$4:$M$4,0),FALSE),0) -> 540 | AI89: =IFERROR(VLOOKUP($B89,Volumes!$B$39:$M$81,MATCH(AI$11,Volumes!$B$4:$M$4,0),FALSE),0) -> 540 | AJ89: =IFERROR(VLOOKUP($B89,Volumes!$B$39:$M$81,MATCH(AJ$11,Volumes!$B$4:$M$4,0),FALSE),0) -> 540 | AK89: =IFERROR(VLOOKUP($B89,Volumes!$B$39:$M$81,MATCH(AK$11,Volumes!$B$4:$M$4,0),FALSE),0) -> 540 | AM89: 173.5312959 | AN89: 174.2912138 | AO89: 175.4885123 | AP89: 176.6501566 | AQ89: 178.2642692 | AR89: 179.5072659 | AS89: 181.5254403 | AT89: 183.5478385 | AU89: 186.0828923 | AV89: 187.6053411 | AX89: 177.7827279 | AY89: 182.9359271 | AZ89: 188.7052397 | BA89: 194.6081613 | BB89: 201.1977323 | BC89: 207.5642555 | BD89: 215.040266 | BE89: 222.7631342 | BF89: 231.3727714 | BG89: 238.9806593 | BJ89: 77047.89537 | BK89: 81219.70561 | BL89: 85989.37102 | BM89: 90798.18049 | BN89: 96262.70538 | BO89: 96933.92356 | BP89: 98023.73779 | BQ89: 99115.83278 | BR89: 100484.7619 | BS89: 101306.8842 | BV89: 78935.53117 | BW89: 85248.14202 | BX89: 92465.56745 | BY89: 100028.5949 | BZ89: 108646.7754 | CA89: 112084.6979 | CB89: 116121.7436 | CC89: 120292.0925 | CD89: 124941.2965 | CE89: 129049.556
B90: =Inputs!$C84 -> 0 | C90: NA | D90: =IF($C90="NA","",'Unsmoothed Prices'!D88) ->  | E90: =IF($C90="NA","",'Smoothed Prices'!E90+$E$7) ->  | J90: =IF($C90="NA","",'Smoothed Prices'!J90+$J$7) ->  | O90: ='Smoothed Prices'!N90 ->  | AB90: =IFERROR(VLOOKUP($B90,Volumes!$B$39:$H$81,MATCH(AB$11,Volumes!$B$4:$H$4,0),FALSE),0) -> 0 | AC90: =IFERROR(VLOOKUP($B90,Volumes!$B$39:$H$81,MATCH(AC$11,Volumes!$B$4:$H$4,0),FALSE),0) -> 0 | AD90: =IFERROR(VLOOKUP($B90,Volumes!$B$39:$H$81,MATCH(AD$11,Volumes!$B$4:$H$4,0),FALSE),0) -> 0 | AE90: =IFERROR(VLOOKUP($B90,Volumes!$B$39:$H$81,MATCH(AE$11,Volumes!$B$4:$H$4,0),FALSE),0) -> 0 | AF90: =IFERROR(VLOOKUP($B90,Volumes!$B$39:$H$81,MATCH(AF$11,Volumes!$B$4:$H$4,0),FALSE),0) -> 0 | AG90: =IFERROR(VLOOKUP($B90,Volumes!$B$39:$M$81,MATCH(AG$11,Volumes!$B$4:$M$4,0),FALSE),0) -> 0 | AH90: =IFERROR(VLOOKUP($B90,Volumes!$B$39:$M$81,MATCH(AH$11,Volumes!$B$4:$M$4,0),FALSE),0) -> 0 | AI90: =IFERROR(VLOOKUP($B90,Volumes!$B$39:$M$81,MATCH(AI$11,Volumes!$B$4:$M$4,0),FALSE),0) -> 0 | AJ90: =IFERROR(VLOOKUP($B90,Volumes!$B$39:$M$81,MATCH(AJ$11,Volumes!$B$4:$M$4,0),FALSE),0) -> 0 | AK90: =IFERROR(VLOOKUP($B90,Volumes!$B$39:$M$81,MATCH(AK$11,Volumes!$B$4:$M$4,0),FALSE),0) -> 0 | BJ90: 0 | BK90: 0 | BL90: 0 | BM90: 0 | BN90: 0 | BO90: 0 | BP90: 0 | BQ90: 0 | BR90: 0 | BS90: 0 | BV90: 0 | BW90: 0 | BX90: 0 | BY90: 0 | BZ90: 0 | CA90: 0 | CB90: 0 | CC90: 0 | CD90: 0 | CE90: 0
B91: =Inputs!$C85 -> 150W Sodium Vapour | C91: Offered | D91: =IF($C91="NA","",'Unsmoothed Prices'!D89) -> 47.881 | E91: =IF($C91="NA","",'Smoothed Prices'!E91+$E$7) -> 49.9828187 | F91: 50.2443851 | G91: 50.49816234 | H91: 50.74438237 | I91: 50.98327023 | J91: =IF($C91="NA","",'Smoothed Prices'!J91+$J$7) -> 51.4620243 | K91: 52.0197245 | L91: 52.57859187 | M91: 53.13862884 | N91: 53.69983786 | O91: ='Smoothed Prices'!N91 -> 53.70929498 | Q91: 51.20737334 | R91: 52.73646887 | S91: 54.30137679 | T91: 55.9029844 | U91: 57.54220068 | V91: 59.50553983 | W91: 61.62406421 | X91: 63.81209397 | Y91: 66.07180095 | Z91: 68.4054227 | AB91: =IFERROR(VLOOKUP($B91,Volumes!$B$39:$H$81,MATCH(AB$11,Volumes!$B$4:$H$4,0),FALSE),0) -> 5322 | AC91: =IFERROR(VLOOKUP($B91,Volumes!$B$39:$H$81,MATCH(AC$11,Volumes!$B$4:$H$4,0),FALSE),0) -> 5588 | AD91: =IFERROR(VLOOKUP($B91,Volumes!$B$39:$H$81,MATCH(AD$11,Volumes!$B$4:$H$4,0),FALSE),0) -> 5762 | AE91: =IFERROR(VLOOKUP($B91,Volumes!$B$39:$H$81,MATCH(AE$11,Volumes!$B$4:$H$4,0),FALSE),0) -> 6008 | AF91: =IFERROR(VLOOKUP($B91,Volumes!$B$39:$H$81,MATCH(AF$11,Volumes!$B$4:$H$4,0),FALSE),0) -> 6328 | AG91: =IFERROR(VLOOKUP($B91,Volumes!$B$39:$M$81,MATCH(AG$11,Volumes!$B$4:$M$4,0),FALSE),0) -> 6328 | AH91: =IFERROR(VLOOKUP($B91,Volumes!$B$39:$M$81,MATCH(AH$11,Volumes!$B$4:$M$4,0),FALSE),0) -> 6328 | AI91: =IFERROR(VLOOKUP($B91,Volumes!$B$39:$M$81,MATCH(AI$11,Volumes!$B$4:$M$4,0),FALSE),0) -> 6328 | AJ91: =IFERROR(VLOOKUP($B91,Volumes!$B$39:$M$81,MATCH(AJ$11,Volumes!$B$4:$M$4,0),FALSE),0) -> 6328 | AK91: =IFERROR(VLOOKUP($B91,Volumes!$B$39:$M$81,MATCH(AK$11,Volumes!$B$4:$M$4,0),FALSE),0) -> 6328 | AM91: 182.9371164 | AN91: 183.3920056 | AO91: 184.3182925 | AP91: 185.2169956 | AQ91: 186.5987691 | AR91: 187.8363887 | AS91: 189.8719944 | AT91: 191.9118603 | AU91: 194.4873815 | AV91: 196.0044082 | AX91: 187.4189864 | AY91: 192.4881114 | AZ91: 198.2000253 | BA91: 204.0458931 | BB91: 210.6044545 | BC91: 217.1952204 | BD91: 224.9278344 | BE91: 232.914143 | BF91: 241.8227915 | BG91: 249.6797928 | BJ91: 973591.3337 | BK91: 1024794.527 | BL91: 1062042.002 | BM91: 1112783.71 | BN91: 1180797.011 | BO91: 1188628.668 | BP91: 1201509.981 | BQ91: 1214418.252 | BR91: 1230716.15 | BS91: 1240315.895 | BV91: 997443.8458 | BW91: 1075623.566 | BX91: 1142028.546 | BY91: 1225907.726 | BZ91: 1332704.988 | CA91: 1374411.354 | CB91: 1423343.336 | CC91: 1473880.697 | CD91: 1530254.624 | CE91: 1579973.729
B92: =Inputs!$C86 -> 0 | C92: NA | D92: =IF($C92="NA","",'Unsmoothed Prices'!D90) ->  | E92: =IF($C92="NA","",'Smoothed Prices'!E92+$E$7) ->  | J92: =IF($C92="NA","",'Smoothed Prices'!J92+$J$7) ->  | O92: ='Smoothed Prices'!N92 ->  | AB92: =IFERROR(VLOOKUP($B92,Volumes!$B$39:$H$81,MATCH(AB$11,Volumes!$B$4:$H$4,0),FALSE),0) -> 0 | AC92: =IFERROR(VLOOKUP($B92,Volumes!$B$39:$H$81,MATCH(AC$11,Volumes!$B$4:$H$4,0),FALSE),0) -> 0 | AD92: =IFERROR(VLOOKUP($B92,Volumes!$B$39:$H$81,MATCH(AD$11,Volumes!$B$4:$H$4,0),FALSE),0) -> 0 | AE92: =IFERROR(VLOOKUP($B92,Volumes!$B$39:$H$81,MATCH(AE$11,Volumes!$B$4:$H$4,0),FALSE),0) -> 0 | AF92: =IFERROR(VLOOKUP($B92,Volumes!$B$39:$H$81,MATCH(AF$11,Volumes!$B$4:$H$4,0),FALSE),0) -> 0 | AG92: =IFERROR(VLOOKUP($B92,Volumes!$B$39:$M$81,MATCH(AG$11,Volumes!$B$4:$M$4,0),FALSE),0) -> 0 | AH92: =IFERROR(VLOOKUP($B92,Volumes!$B$39:$M$81,MATCH(AH$11,Volumes!$B$4:$M$4,0),FALSE),0) -> 0 | AI92: =IFERROR(VLOOKUP($B92,Volumes!$B$39:$M$81,MATCH(AI$11,Volumes!$B$4:$M$4,0),FALSE),0) -> 0 | AJ92: =IFERROR(VLOOKUP($B92,Volumes!$B$39:$M$81,MATCH(AJ$11,Volumes!$B$4:$M$4,0),FALSE),0) -> 0 | AK92: =IFERROR(VLOOKUP($B92,Volumes!$B$39:$M$81,MATCH(AK$11,Volumes!$B$4:$M$4,0),FALSE),0) -> 0 | BJ92: 0 | BK92: 0 | BL92: 0 | BM92: 0 | BN92: 0 | BO92: 0 | BP92: 0 | BQ92: 0 | BR92: 0 | BS92: 0 | BV92: 0 | BW92: 0 | BX92: 0 | BY92: 0 | BZ92: 0 | CA92: 0 | CB92: 0 | CC92: 0 | CD92: 0 | CE92: 0
B93: =Inputs!$C87 -> 0 | C93: NA | D93: =IF($C93="NA","",'Unsmoothed Prices'!D91) ->  | E93: =IF($C93="NA","",'Smoothed Prices'!E93+$E$7) ->  | J93: =IF($C93="NA","",'Smoothed Prices'!J93+$J$7) ->  | O93: ='Smoothed Prices'!N93 ->  | AB93: =IFERROR(VLOOKUP($B93,Volumes!$B$39:$H$81,MATCH(AB$11,Volumes!$B$4:$H$4,0),FALSE),0) -> 0 | AC93: =IFERROR(VLOOKUP($B93,Volumes!$B$39:$H$81,MATCH(AC$11,Volumes!$B$4:$H$4,0),FALSE),0) -> 0 | AD93: =IFERROR(VLOOKUP($B93,Volumes!$B$39:$H$81,MATCH(AD$11,Volumes!$B$4:$H$4,0),FALSE),0) -> 0 | AE93: =IFERROR(VLOOKUP($B93,Volumes!$B$39:$H$81,MATCH(AE$11,Volumes!$B$4:$H$4,0),FALSE),0) -> 0 | AF93: =IFERROR(VLOOKUP($B93,Volumes!$B$39:$H$81,MATCH(AF$11,Volumes!$B$4:$H$4,0),FALSE),0) -> 0 | AG93: =IFERROR(VLOOKUP($B93,Volumes!$B$39:$M$81,MATCH(AG$11,Volumes!$B$4:$M$4,0),FALSE),0) -> 0 | AH93: =IFERROR(VLOOKUP($B93,Volumes!$B$39:$M$81,MATCH(AH$11,Volumes!$B$4:$M$4,0),FALSE),0) -> 0 | AI93: =IFERROR(VLOOKUP($B93,Volumes!$B$39:$M$81,MATCH(AI$11,Volumes!$B$4:$M$4,0),FALSE),0) -> 0 | AJ93: =IFERROR(VLOOKUP($B93,Volumes!$B$39:$M$81,MATCH(AJ$11,Volumes!$B$4:$M$4,0),FALSE),0) -> 0 | AK93: =IFERROR(VLOOKUP($B93,Volumes!$B$39:$M$81,MATCH(AK$11,Volumes!$B$4:$M$4,0),FALSE),0) -> 0 | BJ93: 0 | BK93: 0 | BL93: 0 | BM93: 0 | BN93: 0 | BO93: 0 | BP93: 0 | BQ93: 0 | BR93: 0 | BS93: 0 | BV93: 0 | BW93: 0 | BX93: 0 | BY93: 0 | BZ93: 0 | CA93: 0 | CB93: 0 | CC93: 0 | CD93: 0 | CE93: 0
B94: =Inputs!$C88 -> 0 | C94: NA | D94: =IF($C94="NA","",'Unsmoothed Prices'!D92) ->  | E94: =IF($C94="NA","",'Smoothed Prices'!E94+$E$7) ->  | J94: =IF($C94="NA","",'Smoothed Prices'!J94+$J$7) ->  | O94: ='Smoothed Prices'!N94 ->  | AB94: =IFERROR(VLOOKUP($B94,Volumes!$B$39:$H$81,MATCH(AB$11,Volumes!$B$4:$H$4,0),FALSE),0) -> 0 | AC94: =IFERROR(VLOOKUP($B94,Volumes!$B$39:$H$81,MATCH(AC$11,Volumes!$B$4:$H$4,0),FALSE),0) -> 0 | AD94: =IFERROR(VLOOKUP($B94,Volumes!$B$39:$H$81,MATCH(AD$11,Volumes!$B$4:$H$4,0),FALSE),0) -> 0 | AE94: =IFERROR(VLOOKUP($B94,Volumes!$B$39:$H$81,MATCH(AE$11,Volumes!$B$4:$H$4,0),FALSE),0) -> 0 | AF94: =IFERROR(VLOOKUP($B94,Volumes!$B$39:$H$81,MATCH(AF$11,Volumes!$B$4:$H$4,0),FALSE),0) -> 0 | AG94: =IFERROR(VLOOKUP($B94,Volumes!$B$39:$M$81,MATCH(AG$11,Volumes!$B$4:$M$4,0),FALSE),0) -> 0 | AH94: =IFERROR(VLOOKUP($B94,Volumes!$B$39:$M$81,MATCH(AH$11,Volumes!$B$4:$M$4,0),FALSE),0) -> 0 | AI94: =IFERROR(VLOOKUP($B94,Volumes!$B$39:$M$81,MATCH(AI$11,Volumes!$B$4:$M$4,0),FALSE),0) -> 0 | AJ94: =IFERROR(VLOOKUP($B94,Volumes!$B$39:$M$81,MATCH(AJ$11,Volumes!$B$4:$M$4,0),FALSE),0) -> 0 | AK94: =IFERROR(VLOOKUP($B94,Volumes!$B$39:$M$81,MATCH(AK$11,Volumes!$B$4:$M$4,0),FALSE),0) -> 0 | BJ94: 0 | BK94: 0 | BL94: 0 | BM94: 0 | BN94: 0 | BO94: 0 | BP94: 0 | BQ94: 0 | BR94: 0 | BS94: 0 | BV94: 0 | BW94: 0 | BX94: 0 | BY94: 0 | BZ94: 0 | CA94: 0 | CB94: 0 | CC94: 0 | CD94: 0 | CE94: 0
B95: =Inputs!$C89 -> 250W Sodium Vapour | C95: Offered | D95: =IF($C95="NA","",'Unsmoothed Prices'!D93) -> 49.024 | E95: =IF($C95="NA","",'Smoothed Prices'!E95+$E$7) -> 51.19837865 | F95: 51.423747 | G95: 51.64240414 | H95: 51.8545499 | I95: 52.06037819 | J95: =IF($C95="NA","",'Smoothed Prices'!J95+$J$7) -> 52.54138644 | K95: 53.10134554 | L95: 53.66247653 | M95: 54.22478187 | N95: 54.788264 | O95: ='Smoothed Prices'!N95 -> 54.79772112 | Q95: 52.45271392 | R95: 53.97432624 | S95: 55.53179592 | T95: 57.12600999 | U95: 58.75787716 | V95: 60.75360629 | W95: 62.90538365 | X95: 65.12755237 | Y95: 67.42230789 | Z95: 69.79191199 | AB95: =IFERROR(VLOOKUP($B95,Volumes!$B$39:$H$81,MATCH(AB$11,Volumes!$B$4:$H$4,0),FALSE),0) -> 6615 | AC95: =IFERROR(VLOOKUP($B95,Volumes!$B$39:$H$81,MATCH(AC$11,Volumes!$B$4:$H$4,0),FALSE),0) -> 6946 | AD95: =IFERROR(VLOOKUP($B95,Volumes!$B$39:$H$81,MATCH(AD$11,Volumes!$B$4:$H$4,0),FALSE),0) -> 7293 | AE95: =IFERROR(VLOOKUP($B95,Volumes!$B$39:$H$81,MATCH(AE$11,Volumes!$B$4:$H$4,0),FALSE),0) -> 7654 | AF95: =IFERROR(VLOOKUP($B95,Volumes!$B$39:$H$81,MATCH(AF$11,Volumes!$B$4:$H$4,0),FALSE),0) -> 8040 | AG95: =IFERROR(VLOOKUP($B95,Volumes!$B$39:$M$81,MATCH(AG$11,Volumes!$B$4:$M$4,0),FALSE),0) -> 8040 | AH95: =IFERROR(VLOOKUP($B95,Volumes!$B$39:$M$81,MATCH(AH$11,Volumes!$B$4:$M$4,0),FALSE),0) -> 8040 | AI95: =IFERROR(VLOOKUP($B95,Volumes!$B$39:$M$81,MATCH(AI$11,Volumes!$B$4:$M$4,0),FALSE),0) -> 8040 | AJ95: =IFERROR(VLOOKUP($B95,Volumes!$B$39:$M$81,MATCH(AJ$11,Volumes!$B$4:$M$4,0),FALSE),0) -> 8040 | AK95: =IFERROR(VLOOKUP($B95,Volumes!$B$39:$M$81,MATCH(AK$11,Volumes!$B$4:$M$4,0),FALSE),0) -> 8040 | AM95: 187.3860659 | AN95: 187.6966766 | AO95: 188.4947751 | AP95: 189.2691071 | AQ95: 190.5409842 | AR95: 191.7760605 | AS95: 193.8199112 | AT95: 195.8680394 | AU95: 198.4627016 | AV95: 199.9771636 | AX95: 191.9769329 | AY95: 197.0062908 | AZ95: 202.6910551 | BA95: 208.5099365 | BB95: 215.0538304 | BC95: 221.750663 | BD95: 229.6046503 | BE95: 237.7155661 | BF95: 246.7656469 | BG95: 254.7404788 | BJ95: 1239558.826 | BK95: 1303741.115 | BL95: 1374692.395 | BM95: 1448665.746 | BN95: 1531949.513 | BO95: 1541879.526 | BP95: 1558312.086 | BQ95: 1574779.036 | BR95: 1595640.121 | BS95: 1607816.395 | BV95: 1269927.411 | BW95: 1368405.696 | BX95: 1478225.865 | BY95: 1595935.054 | BZ95: 1729032.796 | CA95: 1782875.33 | CB95: 1846021.389 | CC95: 1911233.152 | CD95: 1983995.801 | CE95: 2048113.449
B96: =Inputs!$C90 -> 0 | C96: NA | D96: =IF($C96="NA","",'Unsmoothed Prices'!D94) ->  | E96: =IF($C96="NA","",'Smoothed Prices'!E96+$E$7) ->  | J96: =IF($C96="NA","",'Smoothed Prices'!J96+$J$7) ->  | O96: ='Smoothed Prices'!N96 ->  | AB96: =IFERROR(VLOOKUP($B96,Volumes!$B$39:$H$81,MATCH(AB$11,Volumes!$B$4:$H$4,0),FALSE),0) -> 0 | AC96: =IFERROR(VLOOKUP($B96,Volumes!$B$39:$H$81,MATCH(AC$11,Volumes!$B$4:$H$4,0),FALSE),0) -> 0 | AD96: =IFERROR(VLOOKUP($B96,Volumes!$B$39:$H$81,MATCH(AD$11,Volumes!$B$4:$H$4,0),FALSE),0) -> 0 | AE96: =IFERROR(VLOOKUP($B96,Volumes!$B$39:$H$81,MATCH(AE$11,Volumes!$B$4:$H$4,0),FALSE),0) -> 0 | AF96: =IFERROR(VLOOKUP($B96,Volumes!$B$39:$H$81,MATCH(AF$11,Volumes!$B$4:$H$4,0),FALSE),0) -> 0 | AG96: =IFERROR(VLOOKUP($B96,Volumes!$B$39:$M$81,MATCH(AG$11,Volumes!$B$4:$M$4,0),FALSE),0) -> 0 | AH96: =IFERROR(VLOOKUP($B96,Volumes!$B$39:$M$81,MATCH(AH$11,Volumes!$B$4:$M$4,0),FALSE),0) -> 0 | AI96: =IFERROR(VLOOKUP($B96,Volumes!$B$39:$M$81,MATCH(AI$11,Volumes!$B$4:$M$4,0),FALSE),0) -> 0 | AJ96: =IFERROR(VLOOKUP($B96,Volumes!$B$39:$M$81,MATCH(AJ$11,Volumes!$B$4:$M$4,0),FALSE),0) -> 0 | AK96: =IFERROR(VLOOKUP($B96,Volumes!$B$39:$M$81,MATCH(AK$11,Volumes!$B$4:$M$4,0),FALSE),0) -> 0 | BJ96: 0 | BK96: 0 | BL96: 0 | BM96: 0 | BN96: 0 | BO96: 0 | BP96: 0 | BQ96: 0 | BR96: 0 | BS96: 0 | BV96: 0 | BW96: 0 | BX96: 0 | BY96: 0 | BZ96: 0 | CA96: 0 | CB96: 0 | CC96: 0 | CD96: 0 | CE96: 0
B97: =Inputs!$C91 -> 0 | C97: NA | D97: =IF($C97="NA","",'Unsmoothed Prices'!D95) ->  | E97: =IF($C97="NA","",'Smoothed Prices'!E97+$E$7) ->  | J97: =IF($C97="NA","",'Smoothed Prices'!J97+$J$7) ->  | O97: ='Smoothed Prices'!N97 ->  | AB97: =IFERROR(VLOOKUP($B97,Volumes!$B$39:$H$81,MATCH(AB$11,Volumes!$B$4:$H$4,0),FALSE),0) -> 0 | AC97: =IFERROR(VLOOKUP($B97,Volumes!$B$39:$H$81,MATCH(AC$11,Volumes!$B$4:$H$4,0),FALSE),0) -> 0 | AD97: =IFERROR(VLOOKUP($B97,Volumes!$B$39:$H$81,MATCH(AD$11,Volumes!$B$4:$H$4,0),FALSE),0) -> 0 | AE97: =IFERROR(VLOOKUP($B97,Volumes!$B$39:$H$81,MATCH(AE$11,Volumes!$B$4:$H$4,0),FALSE),0) -> 0 | AF97: =IFERROR(VLOOKUP($B97,Volumes!$B$39:$H$81,MATCH(AF$11,Volumes!$B$4:$H$4,0),FALSE),0) -> 0 | AG97: =IFERROR(VLOOKUP($B97,Volumes!$B$39:$M$81,MATCH(AG$11,Volumes!$B$4:$M$4,0),FALSE),0) -> 0 | AH97: =IFERROR(VLOOKUP($B97,Volumes!$B$39:$M$81,MATCH(AH$11,Volumes!$B$4:$M$4,0),FALSE),0) -> 0 | AI97: =IFERROR(VLOOKUP($B97,Volumes!$B$39:$M$81,MATCH(AI$11,Volumes!$B$4:$M$4,0),FALSE),0) -> 0 | AJ97: =IFERROR(VLOOKUP($B97,Volumes!$B$39:$M$81,MATCH(AJ$11,Volumes!$B$4:$M$4,0),FALSE),0) -> 0 | AK97: =IFERROR(VLOOKUP($B97,Volumes!$B$39:$M$81,MATCH(AK$11,Volumes!$B$4:$M$4,0),FALSE),0) -> 0 | BJ97: 0 | BK97: 0 | BL97: 0 | BM97: 0 | BN97: 0 | BO97: 0 | BP97: 0 | BQ97: 0 | BR97: 0 | BS97: 0 | BV97: 0 | BW97: 0 | BX97: 0 | BY97: 0 | BZ97: 0 | CA97: 0 | CB97: 0 | CC97: 0 | CD97: 0 | CE97: 0
B98: =Inputs!$C92 -> 0 | C98: NA | D98: =IF($C98="NA","",'Unsmoothed Prices'!D96) ->  | E98: =IF($C98="NA","",'Smoothed Prices'!E98+$E$7) ->  | J98: =IF($C98="NA","",'Smoothed Prices'!J98+$J$7) ->  | O98: ='Smoothed Prices'!N98 ->  | AB98: =IFERROR(VLOOKUP($B98,Volumes!$B$39:$H$81,MATCH(AB$11,Volumes!$B$4:$H$4,0),FALSE),0) -> 0 | AC98: =IFERROR(VLOOKUP($B98,Volumes!$B$39:$H$81,MATCH(AC$11,Volumes!$B$4:$H$4,0),FALSE),0) -> 0 | AD98: =IFERROR(VLOOKUP($B98,Volumes!$B$39:$H$81,MATCH(AD$11,Volumes!$B$4:$H$4,0),FALSE),0) -> 0 | AE98: =IFERROR(VLOOKUP($B98,Volumes!$B$39:$H$81,MATCH(AE$11,Volumes!$B$4:$H$4,0),FALSE),0) -> 0 | AF98: =IFERROR(VLOOKUP($B98,Volumes!$B$39:$H$81,MATCH(AF$11,Volumes!$B$4:$H$4,0),FALSE),0) -> 0 | AG98: =IFERROR(VLOOKUP($B98,Volumes!$B$39:$M$81,MATCH(AG$11,Volumes!$B$4:$M$4,0),FALSE),0) -> 0 | AH98: =IFERROR(VLOOKUP($B98,Volumes!$B$39:$M$81,MATCH(AH$11,Volumes!$B$4:$M$4,0),FALSE),0) -> 0 | AI98: =IFERROR(VLOOKUP($B98,Volumes!$B$39:$M$81,MATCH(AI$11,Volumes!$B$4:$M$4,0),FALSE),0) -> 0 | AJ98: =IFERROR(VLOOKUP($B98,Volumes!$B$39:$M$81,MATCH(AJ$11,Volumes!$B$4:$M$4,0),FALSE),0) -> 0 | AK98: =IFERROR(VLOOKUP($B98,Volumes!$B$39:$M$81,MATCH(AK$11,Volumes!$B$4:$M$4,0),FALSE),0) -> 0 | BJ98: 0 | BK98: 0 | BL98: 0 | BM98: 0 | BN98: 0 | BO98: 0 | BP98: 0 | BQ98: 0 | BR98: 0 | BS98: 0 | BV98: 0 | BW98: 0 | BX98: 0 | BY98: 0 | BZ98: 0 | CA98: 0 | CB98: 0 | CC98: 0 | CD98: 0 | CE98: 0
B99: =Inputs!$C93 -> 250W Sodium Vapour - Flood Light | C99: Offered | D99: =IF($C99="NA","",'Unsmoothed Prices'!D97) -> 53.133 | E99: =IF($C99="NA","",'Smoothed Prices'!E99+$E$7) -> 54.8146695 | F99: 54.93234868 | G99: 55.04652349 | H99: 55.15729831 | I99: 55.26477437 | J99: =IF($C99="NA","",'Smoothed Prices'!J99+$J$7) -> 55.75248881 | K99: 56.31916814 | L99: 56.88703342 | M99: 57.45608713 | N99: 58.02633177 | O99: ='Smoothed Prices'!N99 -> 58.03578889 | Q99: 56.15760213 | R99: 57.65695192 | S99: 59.19229284 | T99: 60.76451113 | U99: 62.37451468 | V99: 64.46660403 | W99: 66.717309 | X99: 69.0410411 | Y99: 71.44006602 | Z99: 73.91671764 | AB99: =IFERROR(VLOOKUP($B99,Volumes!$B$39:$H$81,MATCH(AB$11,Volumes!$B$4:$H$4,0),FALSE),0) -> 36 | AC99: =IFERROR(VLOOKUP($B99,Volumes!$B$39:$H$81,MATCH(AC$11,Volumes!$B$4:$H$4,0),FALSE),0) -> 38 | AD99: =IFERROR(VLOOKUP($B99,Volumes!$B$39:$H$81,MATCH(AD$11,Volumes!$B$4:$H$4,0),FALSE),0) -> 40 | AE99: =IFERROR(VLOOKUP($B99,Volumes!$B$39:$H$81,MATCH(AE$11,Volumes!$B$4:$H$4,0),FALSE),0) -> 42 | AF99: =IFERROR(VLOOKUP($B99,Volumes!$B$39:$H$81,MATCH(AF$11,Volumes!$B$4:$H$4,0),FALSE),0) -> 44 | AG99: =IFERROR(VLOOKUP($B99,Volumes!$B$39:$M$81,MATCH(AG$11,Volumes!$B$4:$M$4,0),FALSE),0) -> 44 | AH99: =IFERROR(VLOOKUP($B99,Volumes!$B$39:$M$81,MATCH(AH$11,Volumes!$B$4:$M$4,0),FALSE),0) -> 44 | AI99: =IFERROR(VLOOKUP($B99,Volumes!$B$39:$M$81,MATCH(AI$11,Volumes!$B$4:$M$4,0),FALSE),0) -> 44 | AJ99: =IFERROR(VLOOKUP($B99,Volumes!$B$39:$M$81,MATCH(AJ$11,Volumes!$B$4:$M$4,0),FALSE),0) -> 44 | AK99: =IFERROR(VLOOKUP($B99,Volumes!$B$39:$M$81,MATCH(AK$11,Volumes!$B$4:$M$4,0),FALSE),0) -> 44 | AM99: 200.6216904 | AN99: 200.5030727 | AO99: 200.9198107 | AP99: 201.3241388 | AQ99: 202.2690742 | AR99: 203.4965841 | AS99: 205.5649637 | AT99: 207.637672 | AU99: 210.2892789 | AV99: 211.796111 | AX99: 205.5368238 | AY99: 210.4478745 | AZ99: 216.0518689 | BA99: 221.7904656 | BB99: 228.2907237 | BC99: 235.3031047 | BD99: 243.5181778 | BE99: 251.9998 | BF99: 261.4706416 | BG99: 269.7960194 | BJ99: 7222.380854 | BK99: 7619.116761 | BL99: 8036.79243 | BM99: 8455.61383 | BN99: 8899.839265 | BO99: 8953.849702 | BP99: 9044.858403 | BQ99: 9136.057567 | BR99: 9252.728272 | BS99: 9319.028882 | BV99: 7399.325656 | BW99: 7997.019231 | BX99: 8642.074755 | BY99: 9315.199556 | BZ99: 10044.79184 | CA99: 10353.33661 | CB99: 10714.79982 | CC99: 11087.9912 | CD99: 11504.70823 | CE99: 11871.02485
B100: =Inputs!$C94 -> 400W Sodium Vapour | C100: Offered | D100: =IF($C100="NA","",'Unsmoothed Prices'!D98) -> 49.888 | E100: =IF($C100="NA","",'Smoothed Prices'!E100+$E$7) -> 51.77576963 | F100: 51.98394391 | G100: 52.18591899 | H100: 52.38187948 | I100: 52.57200447 | J100: =IF($C100="NA","",'Smoothed Prices'!J100+$J$7) -> 53.05408345 | K100: 53.61511554 | L100: 54.17732175 | M100: 54.74070456 | N100: 55.30526641 | O100: ='Smoothed Prices'!N100 -> 55.31472354 | Q100: 53.04425069 | R100: 54.56230849 | S100: 56.11624501 | T100: 57.70694715 | U100: 59.33532349 | V100: =IF($C100="NA","",J100*V$9) -> 61.34643786 | W100: 63.51401039 | X100: 65.75239511 | Y100: 68.06379868 | Z100: 70.4504944 | AB100: =IFERROR(VLOOKUP($B100,Volumes!$B$39:$H$81,MATCH(AB$11,Volumes!$B$4:$H$4,0),FALSE),0) -> 674 | AC100: =IFERROR(VLOOKUP($B100,Volumes!$B$39:$H$81,MATCH(AC$11,Volumes!$B$4:$H$4,0),FALSE),0) -> 708 | AD100: =IFERROR(VLOOKUP($B100,Volumes!$B$39:$H$81,MATCH(AD$11,Volumes!$B$4:$H$4,0),FALSE),0) -> 733 | AE100: =IFERROR(VLOOKUP($B100,Volumes!$B$39:$H$81,MATCH(AE$11,Volumes!$B$4:$H$4,0),FALSE),0) -> 764 | AF100: =IFERROR(VLOOKUP($B100,Volumes!$B$39:$H$81,MATCH(AF$11,Volumes!$B$4:$H$4,0),FALSE),0) -> 806 | AG100: =IFERROR(VLOOKUP($B100,Volumes!$B$39:$M$81,MATCH(AG$11,Volumes!$B$4:$M$4,0),FALSE),0) -> 806 | AH100: =IFERROR(VLOOKUP($B100,Volumes!$B$39:$M$81,MATCH(AH$11,Volumes!$B$4:$M$4,0),FALSE),0) -> 806 | AI100: =IFERROR(VLOOKUP($B100,Volumes!$B$39:$M$81,MATCH(AI$11,Volumes!$B$4:$M$4,0),FALSE),0) -> 806 | AJ100: =IFERROR(VLOOKUP($B100,Volumes!$B$39:$M$81,MATCH(AJ$11,Volumes!$B$4:$M$4,0),FALSE),0) -> 806 | AK100: =IFERROR(VLOOKUP($B100,Volumes!$B$39:$M$81,MATCH(AK$11,Volumes!$B$4:$M$4,0),FALSE),0) -> 806 | AM100: 189.4993168 | AN100: 189.7413953 | AO100: 190.4786043 | AP100: 191.1938601 | AQ100: 192.4135364 | AR100: =IF($C100="NA","",(J100*AR$9)/100) -> 193.6474046 | AS100: 195.6951717 | AT100: 197.7472244 | AU100: 200.3509787 | AV100: 201.8642224 | AX100: 194.1419575 | AY100: 199.152426 | AZ100: 204.8242943 | BA100: 210.6303571 | BB100: 217.167284 | BC100: =IF($C100="NA","",(V100*BC$9)/100) -> 223.9144982 | BD100: 231.8261379 | BE100: 239.9962421 | BF100: 249.1135032 | BG100: 257.1443046 | BJ100: 127722.5395 | BK100: 134336.9079 | BL100: 139620.817 | BM100: 146072.1091 | BN100: 155085.3103 | BO100: =IFERROR(AR100*AG100,0) -> 156079.8081 | BP100: 157730.3084 | BQ100: 159384.2629 | BR100: 161482.8888 | BS100: 162702.5633 | BV100: 130851.6794 | BW100: 140999.9176 | BX100: 150136.2077 | BY100: 160921.5928 | BZ100: 175036.8309 | CA100: =IFERROR(BC100*AG100,0) -> 180475.0856 | CB100: 186851.8672 | CC100: 193436.9712 | CD100: 200785.4836 | CE100: 207258.3095
B101: =Inputs!$C95 -> 0 | C101: NA | D101: =IF($C101="NA","",'Unsmoothed Prices'!D99) ->  | E101: =IF($C101="NA","",'Smoothed Prices'!E101+$E$7) ->  | J101: =IF($C101="NA","",'Smoothed Prices'!J101+$J$7) ->  | O101: ='Smoothed Prices'!N101 ->  | Q101: =IF($C101="NA","",E101*Q$9) ->  | AB101: =IFERROR(VLOOKUP($B101,Volumes!$B$39:$H$81,MATCH(AB$11,Volumes!$B$4:$H$4,0),FALSE),0) -> 0 | AC101: =IFERROR(VLOOKUP($B101,Volumes!$B$39:$H$81,MATCH(AC$11,Volumes!$B$4:$H$4,0),FALSE),0) -> 0 | AD101: =IFERROR(VLOOKUP($B101,Volumes!$B$39:$H$81,MATCH(AD$11,Volumes!$B$4:$H$4,0),FALSE),0) -> 0 | AE101: =IFERROR(VLOOKUP($B101,Volumes!$B$39:$H$81,MATCH(AE$11,Volumes!$B$4:$H$4,0),FALSE),0) -> 0 | AF101: =IFERROR(VLOOKUP($B101,Volumes!$B$39:$H$81,MATCH(AF$11,Volumes!$B$4:$H$4,0),FALSE),0) -> 0 | AG101: =IFERROR(VLOOKUP($B101,Volumes!$B$39:$M$81,MATCH(AG$11,Volumes!$B$4:$M$4,0),FALSE),0) -> 0 | AH101: =IFERROR(VLOOKUP($B101,Volumes!$B$39:$M$81,MATCH(AH$11,Volumes!$B$4:$M$4,0),FALSE),0) -> 0 | AI101: =IFERROR(VLOOKUP($B101,Volumes!$B$39:$M$81,MATCH(AI$11,Volumes!$B$4:$M$4,0),FALSE),0) -> 0 | AJ101: =IFERROR(VLOOKUP($B101,Volumes!$B$39:$M$81,MATCH(AJ$11,Volumes!$B$4:$M$4,0),FALSE),0) -> 0 | AK101: =IFERROR(VLOOKUP($B101,Volumes!$B$39:$M$81,MATCH(AK$11,Volumes!$B$4:$M$4,0),FALSE),0) -> 0 | AM101: =IF($C101="NA","",(E101*AM$9)/100) ->  | AX101: =IF($C101="NA","",(Q101*AX$9)/100) ->  | BJ101: =IFERROR(AM101*AB101,0) -> 0 | BK101: 0 | BL101: 0 | BM101: 0 | BN101: 0 | BO101: 0 | BP101: 0 | BQ101: 0 | BR101: 0 | BS101: 0 | BV101: =IFERROR(AX101*AB101,0) -> 0 | BW101: 0 | BX101: 0 | BY101: 0 | BZ101: 0 | CA101: 0 | CB101: 0 | CC101: 0 | CD101: 0 | CE101: 0
B102: =Inputs!$C96 -> 400W Sodium Vapour - Flood Light | C102: Offered | D102: =IF($C102="NA","",'Unsmoothed Prices'!D100) -> 52.599 | E102: =IF($C102="NA","",'Smoothed Prices'!E102+$E$7) -> 54.16130603 | F102: 54.29844165 | G102: 54.43149352 | H102: 54.56058326 | I102: 54.68582884 | J102: =IF($C102="NA","",'Smoothed Prices'!J102+$J$7) -> 55.17233166 | K102: 55.73779683 | L102: 56.30444541 | M102: 56.87227988 | N102: 57.44130272 | O102: ='Smoothed Prices'!N102 -> 57.45075984 | Q102: 55.48823157 | R102: 56.99160358 | S102: 58.53094256 | T102: 60.10713487 | U102: 61.72108857 | V102: 63.79576831 | W102: 66.0285998 | X102: 68.33398221 | Y102: 70.71416854 | Z102: 73.17147964 | AB102: =IFERROR(VLOOKUP($B102,Volumes!$B$39:$H$81,MATCH(AB$11,Volumes!$B$4:$H$4,0),FALSE),0) -> 36 | AC102: =IFERROR(VLOOKUP($B102,Volumes!$B$39:$H$81,MATCH(AC$11,Volumes!$B$4:$H$4,0),FALSE),0) -> 38 | AD102: =IFERROR(VLOOKUP($B102,Volumes!$B$39:$H$81,MATCH(AD$11,Volumes!$B$4:$H$4,0),FALSE),0) -> 40 | AE102: =IFERROR(VLOOKUP($B102,Volumes!$B$39:$H$81,MATCH(AE$11,Volumes!$B$4:$H$4,0),FALSE),0) -> 42 | AF102: =IFERROR(VLOOKUP($B102,Volumes!$B$39:$H$81,MATCH(AF$11,Volumes!$B$4:$H$4,0),FALSE),0) -> 44 | AG102: =IFERROR(VLOOKUP($B102,Volumes!$B$39:$M$81,MATCH(AG$11,Volumes!$B$4:$M$4,0),FALSE),0) -> 44 | AH102: =IFERROR(VLOOKUP($B102,Volumes!$B$39:$M$81,MATCH(AH$11,Volumes!$B$4:$M$4,0),FALSE),0) -> 44 | AI102: =IFERROR(VLOOKUP($B102,Volumes!$B$39:$M$81,MATCH(AI$11,Volumes!$B$4:$M$4,0),FALSE),0) -> 44 | AJ102: =IFERROR(VLOOKUP($B102,Volumes!$B$39:$M$81,MATCH(AJ$11,Volumes!$B$4:$M$4,0),FALSE),0) -> 44 | AK102: =IFERROR(VLOOKUP($B102,Volumes!$B$39:$M$81,MATCH(AK$11,Volumes!$B$4:$M$4,0),FALSE),0) -> 44 | AM102: 198.2303801 | AN102: 198.189312 | AO102: 198.6749514 | AP102: 199.1461289 | AQ102: 200.1501336 | AR102: 201.3790105 | AS102: 203.4429584 | AT102: 205.5112257 | AU102: 208.1525444 | AV102: 209.6607549 | AX102: 203.0869275 | AY102: 208.0193531 | AZ102: 213.6379403 | BA102: 219.3910423 | BB102: 225.8991842 | BC102: 232.8545543 | BD102: 241.0043893 | BE102: 249.4190351 | BF102: 258.8138569 | BG102: 267.0759007 | BJ102: 7136.293682 | BK102: 7531.193857 | BL102: 7946.998055 | BM102: 8364.137414 | BN102: 8806.605877 | BO102: 8860.676464 | BP102: 8951.49017 | BQ102: 9042.493933 | BR102: 9158.711952 | BS102: 9225.073216 | BV102: 7311.129391 | BW102: 7904.735417 | BX102: 8545.517613 | BY102: 9214.423776 | BZ102: 9939.564104 | CA102: 10245.60039 | CB102: 10604.19313 | CC102: 10974.43754 | CD102: 11387.8097 | CE102: 11751.33963
B103: =Inputs!$C97 -> 70W Sodium Vapour | C103: Offered | D103: =IF($C103="NA","",'Unsmoothed Prices'!D101) -> 35.882 | E103: =IF($C103="NA","",'Smoothed Prices'!E103+$E$7) -> 40.68884992 | F103: 41.22718053 | G103: 41.74948024 | H103: 42.25622644 | I103: 42.7478823 | J103: =IF($C103="NA","",'Smoothed Prices'!J103+$J$7) -> 43.20940126 | K103: 43.7498303 | L103: 44.29139036 | M103: 44.83408379 | N103: 45.37791298 | O103: ='Smoothed Prices'!N103 -> 45.3873701 | Q103: 41.68570686 | R103: 43.27201772 | S103: 44.89379717 | T103: 46.55193457 | U103: 48.24734095 | V103: 49.96303163 | W103: 51.82730931 | X103: 53.75431831 | Y103: 55.74605 | Z103: 57.80455663 | AB103: =IFERROR(VLOOKUP($B103,Volumes!$B$39:$H$81,MATCH(AB$11,Volumes!$B$4:$H$4,0),FALSE),0) -> 236 | AC103: =IFERROR(VLOOKUP($B103,Volumes!$B$39:$H$81,MATCH(AC$11,Volumes!$B$4:$H$4,0),FALSE),0) -> 248 | AD103: =IFERROR(VLOOKUP($B103,Volumes!$B$39:$H$81,MATCH(AD$11,Volumes!$B$4:$H$4,0),FALSE),0) -> 260 | AE103: =IFERROR(VLOOKUP($B103,Volumes!$B$39:$H$81,MATCH(AE$11,Volumes!$B$4:$H$4,0),FALSE),0) -> 272 | AF103: =IFERROR(VLOOKUP($B103,Volumes!$B$39:$H$81,MATCH(AF$11,Volumes!$B$4:$H$4,0),FALSE),0) -> 286 | AG103: =IFERROR(VLOOKUP($B103,Volumes!$B$39:$M$81,MATCH(AG$11,Volumes!$B$4:$M$4,0),FALSE),0) -> 286 | AH103: =IFERROR(VLOOKUP($B103,Volumes!$B$39:$M$81,MATCH(AH$11,Volumes!$B$4:$M$4,0),FALSE),0) -> 286 | AI103: =IFERROR(VLOOKUP($B103,Volumes!$B$39:$M$81,MATCH(AI$11,Volumes!$B$4:$M$4,0),FALSE),0) -> 286 | AJ103: =IFERROR(VLOOKUP($B103,Volumes!$B$39:$M$81,MATCH(AJ$11,Volumes!$B$4:$M$4,0),FALSE),0) -> 286 | AK103: =IFERROR(VLOOKUP($B103,Volumes!$B$39:$M$81,MATCH(AK$11,Volumes!$B$4:$M$4,0),FALSE),0) -> 286 | AM103: 148.9211907 | AN103: 150.4792089 | AO103: 152.3856029 | AP103: 154.2352265 | AQ103: 156.4572492 | AR103: 157.7143146 | AS103: 159.6868806 | AT103: 161.6635748 | AU103: 164.0927467 | AV103: 165.6293824 | AX103: 152.5696871 | AY103: 157.9428647 | AZ103: 163.8623597 | BA103: 169.9145612 | BB103: 176.5852679 | BC103: 182.3650655 | BD103: 189.169679 | BE103: 196.2032618 | BF103: 204.030543 | BG103: 210.9866317 | BJ103: 35145.401 | BK103: 37318.84381 | BL103: 39620.25675 | BM103: 41951.98161 | BN103: 44746.77327 | BO103: 45106.29398 | BP103: 45670.44785 | BQ103: 46235.78239 | BR103: 46930.52555 | BS103: 47370.00336 | BV103: 36006.44616 | BW103: 39169.83044 | BX103: 42604.21351 | BY103: 46216.76064 | BZ103: 50503.38662 | CA103: 52156.40872 | CB103: 54102.52818 | CC103: 56114.13288 | CD103: 58352.7353 | CE103: 60342.17667
B104: =Inputs!$C98 -> 0 | C104: NA | D104: =IF($C104="NA","",'Unsmoothed Prices'!D102) ->  | E104: =IF($C104="NA","",'Smoothed Prices'!E104+$E$7) ->  | J104: =IF($C104="NA","",'Smoothed Prices'!J104+$J$7) ->  | O104: ='Smoothed Prices'!N104 ->  | AB104: =IFERROR(VLOOKUP($B104,Volumes!$B$39:$H$81,MATCH(AB$11,Volumes!$B$4:$H$4,0),FALSE),0) -> 0 | AC104: =IFERROR(VLOOKUP($B104,Volumes!$B$39:$H$81,MATCH(AC$11,Volumes!$B$4:$H$4,0),FALSE),0) -> 0 | AD104: =IFERROR(VLOOKUP($B104,Volumes!$B$39:$H$81,MATCH(AD$11,Volumes!$B$4:$H$4,0),FALSE),0) -> 0 | AE104: =IFERROR(VLOOKUP($B104,Volumes!$B$39:$H$81,MATCH(AE$11,Volumes!$B$4:$H$4,0),FALSE),0) -> 0 | AF104: =IFERROR(VLOOKUP($B104,Volumes!$B$39:$H$81,MATCH(AF$11,Volumes!$B$4:$H$4,0),FALSE),0) -> 0 | AG104: =IFERROR(VLOOKUP($B104,Volumes!$B$39:$M$81,MATCH(AG$11,Volumes!$B$4:$M$4,0),FALSE),0) -> 0 | AH104: =IFERROR(VLOOKUP($B104,Volumes!$B$39:$M$81,MATCH(AH$11,Volumes!$B$4:$M$4,0),FALSE),0) -> 0 | AI104: =IFERROR(VLOOKUP($B104,Volumes!$B$39:$M$81,MATCH(AI$11,Volumes!$B$4:$M$4,0),FALSE),0) -> 0 | AJ104: =IFERROR(VLOOKUP($B104,Volumes!$B$39:$M$81,MATCH(AJ$11,Volumes!$B$4:$M$4,0),FALSE),0) -> 0 | AK104: =IFERROR(VLOOKUP($B104,Volumes!$B$39:$M$81,MATCH(AK$11,Volumes!$B$4:$M$4,0),FALSE),0) -> 0 | BJ104: 0 | BK104: 0 | BL104: 0 | BM104: 0 | BN104: 0 | BO104: 0 | BP104: 0 | BQ104: 0 | BR104: 0 | BS104: 0 | BV104: 0 | BW104: 0 | BX104: 0 | BY104: 0 | BZ104: 0 | CA104: 0 | CB104: 0 | CC104: 0 | CD104: 0 | CE104: 0
B105: =Inputs!$C99 -> 100W Incandescent | C105: Old light no volumes | D105: =IF($C105="NA","",'Unsmoothed Prices'!D103) -> 41.975 | E105: =IF($C105="NA","",'Smoothed Prices'!E105+$E$7) -> 44.08735294 | F105: 44.52447986 | G105: 44.94858961 | H105: 45.36006983 | I105: 45.75929663 | J105: =IF($C105="NA","",'Smoothed Prices'!J105+$J$7) -> 46.22711792 | K105: 46.77386246 | L105: 47.32175124 | M105: 47.87078664 | N105: 48.42097107 | O105: ='Smoothed Prices'!N105 -> 48.43042819 | Q105: 45.16747155 | R105: 46.73286062 | S105: 48.33384399 | T105: 49.97131028 | U105: 51.64616977 | V105: 53.45241746 | W105: 55.40966491 | X105: 57.43212075 | Y105: 59.52184231 | Z105: 61.68094962 | AB105: =IFERROR(VLOOKUP($B105,Volumes!$B$39:$H$81,MATCH(AB$11,Volumes!$B$4:$H$4,0),FALSE),0) -> 0 | AC105: =IFERROR(VLOOKUP($B105,Volumes!$B$39:$H$81,MATCH(AC$11,Volumes!$B$4:$H$4,0),FALSE),0) -> 0 | AD105: =IFERROR(VLOOKUP($B105,Volumes!$B$39:$H$81,MATCH(AD$11,Volumes!$B$4:$H$4,0),FALSE),0) -> 0 | AE105: =IFERROR(VLOOKUP($B105,Volumes!$B$39:$H$81,MATCH(AE$11,Volumes!$B$4:$H$4,0),FALSE),0) -> 0 | AF105: =IFERROR(VLOOKUP($B105,Volumes!$B$39:$H$81,MATCH(AF$11,Volumes!$B$4:$H$4,0),FALSE),0) -> 0 | AG105: =IFERROR(VLOOKUP($B105,Volumes!$B$39:$M$81,MATCH(AG$11,Volumes!$B$4:$M$4,0),FALSE),0) -> 0 | AH105: =IFERROR(VLOOKUP($B105,Volumes!$B$39:$M$81,MATCH(AH$11,Volumes!$B$4:$M$4,0),FALSE),0) -> 0 | AI105: =IFERROR(VLOOKUP($B105,Volumes!$B$39:$M$81,MATCH(AI$11,Volumes!$B$4:$M$4,0),FALSE),0) -> 0 | AJ105: =IFERROR(VLOOKUP($B105,Volumes!$B$39:$M$81,MATCH(AJ$11,Volumes!$B$4:$M$4,0),FALSE),0) -> 0 | AK105: =IFERROR(VLOOKUP($B105,Volumes!$B$39:$M$81,MATCH(AK$11,Volumes!$B$4:$M$4,0),FALSE),0) -> 0 | AM105: 161.3597118 | AN105: 162.5143515 | AO105: 164.0623521 | AP105: 165.5642549 | AQ105: 167.4790257 | AR105: 168.7289804 | AS105: 170.724598 | AT105: 172.724392 | AU105: 175.2070791 | AV105: 176.7365444 | AX105: 165.3129459 | AY105: 170.5749413 | AZ105: 176.4185306 | BA105: 182.3952825 | BB105: 189.0249814 | BC105: 195.1013237 | BD105: 202.2452769 | BE105: 209.6272407 | BF105: 217.8499429 | BG105: 225.1354661 | BJ105: 0 | BK105: 0 | BL105: 0 | BM105: 0 | BN105: 0 | BO105: 0 | BP105: 0 | BQ105: 0 | BR105: 0 | BS105: 0 | BV105: 0 | BW105: 0 | BX105: 0 | BY105: 0 | BZ105: 0 | CA105: 0 | CB105: 0 | CC105: 0 | CD105: 0 | CE105: 0
B106: =Inputs!$C100 -> 60W Incandescent | C106: Old light no volumes | D106: =IF($C106="NA","",'Unsmoothed Prices'!D104) -> 32.786 | E106: =IF($C106="NA","",'Smoothed Prices'!E106+$E$7) -> 37.71275397 | F106: 38.33970946 | G106: 38.9479949 | H106: 39.53816627 | I106: 40.11076298 | J106: =IF($C106="NA","",'Smoothed Prices'!J106+$J$7) -> 40.56676296 | K106: 41.10166146 | L106: 41.6376794 | M106: 42.17481912 | N106: 42.71308298 | O106: ='Smoothed Prices'!N106 -> 42.7225401 | Q106: 38.63669802 | R106: 40.24133026 | S106: 41.88132099 | T106: 43.55756025 | U106: 45.27095971 | V106: 46.9073489 | W106: 48.6902122 | X106: 50.53363767 | Y106: 52.43955885 | Z106: 54.40996868 | AB106: =IFERROR(VLOOKUP($B106,Volumes!$B$39:$H$81,MATCH(AB$11,Volumes!$B$4:$H$4,0),FALSE),0) -> 0 | AC106: =IFERROR(VLOOKUP($B106,Volumes!$B$39:$H$81,MATCH(AC$11,Volumes!$B$4:$H$4,0),FALSE),0) -> 0 | AD106: =IFERROR(VLOOKUP($B106,Volumes!$B$39:$H$81,MATCH(AD$11,Volumes!$B$4:$H$4,0),FALSE),0) -> 0 | AE106: =IFERROR(VLOOKUP($B106,Volumes!$B$39:$H$81,MATCH(AE$11,Volumes!$B$4:$H$4,0),FALSE),0) -> 0 | AF106: =IFERROR(VLOOKUP($B106,Volumes!$B$39:$H$81,MATCH(AF$11,Volumes!$B$4:$H$4,0),FALSE),0) -> 0 | AG106: =IFERROR(VLOOKUP($B106,Volumes!$B$39:$M$81,MATCH(AG$11,Volumes!$B$4:$M$4,0),FALSE),0) -> 0 | AH106: =IFERROR(VLOOKUP($B106,Volumes!$B$39:$M$81,MATCH(AH$11,Volumes!$B$4:$M$4,0),FALSE),0) -> 0 | AI106: =IFERROR(VLOOKUP($B106,Volumes!$B$39:$M$81,MATCH(AI$11,Volumes!$B$4:$M$4,0),FALSE),0) -> 0 | AJ106: =IFERROR(VLOOKUP($B106,Volumes!$B$39:$M$81,MATCH(AJ$11,Volumes!$B$4:$M$4,0),FALSE),0) -> 0 | AK106: =IFERROR(VLOOKUP($B106,Volumes!$B$39:$M$81,MATCH(AK$11,Volumes!$B$4:$M$4,0),FALSE),0) -> 0 | AM106: 138.0286795 | AN106: 139.9399395 | AO106: 142.1601814 | AP106: 144.3143069 | AQ106: 146.8053925 | AR106: 148.0686848 | AS106: 150.0210643 | AT106: 151.9775298 | AU106: 154.359838 | AV106: 155.9027529 | AX106: 141.4103148 | AY106: 146.8808554 | AZ106: 152.8668216 | BA106: 158.9850949 | BB106: 165.6917126 | BC106: 171.2118235 | BD106: 177.7192745 | BE106: 184.4477775 | BF106: 191.9287854 | BG106: 198.5963857 | BJ106: 0 | BK106: 0 | BL106: 0 | BM106: 0 | BN106: 0 | BO106: 0 | BP106: 0 | BQ106: 0 | BR106: 0 | BS106: 0 | BV106: 0 | BW106: 0 | BX106: 0 | BY106: 0 | BZ106: 0 | CA106: 0 | CB106: 0 | CC106: 0 | CD106: 0 | CE106: 0
B107: =Inputs!$C101 -> 18W LED | C107: Offered | D107: =IF($C107="NA","",'Unsmoothed Prices'!D105) -> 34.339 | E107: =IF($C107="NA","",'Smoothed Prices'!E107+$E$7) -> 38.63860547 | F107: 39.23799011 | G107: 39.81952574 | H107: 40.38374387 | I107: 40.93116021 | J107: =IF($C107="NA","",'Smoothed Prices'!J107+$J$7) -> 41.38887712 | K107: 41.92549615 | L107: 42.46323822 | M107: 43.00210568 | N107: 43.54210089 | O107: ='Smoothed Prices'!N107 -> 43.55155801 | Q107: 39.58523243 | R107: 41.18416495 | S107: 42.81849023 | T107: 44.48909807 | U107: 46.19689996 | V107: 47.85795952 | W107: 49.66615051 | X107: 51.53557848 | Y107: 53.46819497 | Z107: 55.46601136 | AB107: =IFERROR(VLOOKUP($B107,Volumes!$B$39:$H$81,MATCH(AB$11,Volumes!$B$4:$H$4,0),FALSE),0) -> 360 | AC107: =IFERROR(VLOOKUP($B107,Volumes!$B$39:$H$81,MATCH(AC$11,Volumes!$B$4:$H$4,0),FALSE),0) -> 360 | AD107: =IFERROR(VLOOKUP($B107,Volumes!$B$39:$H$81,MATCH(AD$11,Volumes!$B$4:$H$4,0),FALSE),0) -> 360 | AE107: =IFERROR(VLOOKUP($B107,Volumes!$B$39:$H$81,MATCH(AE$11,Volumes!$B$4:$H$4,0),FALSE),0) -> 360 | AF107: =IFERROR(VLOOKUP($B107,Volumes!$B$39:$H$81,MATCH(AF$11,Volumes!$B$4:$H$4,0),FALSE),0) -> 360 | AG107: =IFERROR(VLOOKUP($B107,Volumes!$B$39:$M$81,MATCH(AG$11,Volumes!$B$4:$M$4,0),FALSE),0) -> 360 | AH107: =IFERROR(VLOOKUP($B107,Volumes!$B$39:$M$81,MATCH(AH$11,Volumes!$B$4:$M$4,0),FALSE),0) -> 360 | AI107: =IFERROR(VLOOKUP($B107,Volumes!$B$39:$M$81,MATCH(AI$11,Volumes!$B$4:$M$4,0),FALSE),0) -> 360 | AJ107: =IFERROR(VLOOKUP($B107,Volumes!$B$39:$M$81,MATCH(AJ$11,Volumes!$B$4:$M$4,0),FALSE),0) -> 360 | AK107: =IFERROR(VLOOKUP($B107,Volumes!$B$39:$M$81,MATCH(AK$11,Volumes!$B$4:$M$4,0),FALSE),0) -> 360 | AM107: 141.417296 | AN107: 143.2186639 | AO107: 145.3412689 | AP107: 147.4006651 | AQ107: 149.8080464 | AR107: 151.0694015 | AS107: 153.0280609 | AT107: 154.9908195 | AU107: 157.3877068 | AV107: 158.9286682 | AX107: 144.8819507 | AY107: 150.3222021 | AZ107: 156.2874893 | BA107: 162.385208 | BB107: 169.0806539 | BC107: 174.6815523 | BD107: 181.2814494 | BE107: 188.1048615 | BF107: 195.6935936 | BG107: 202.4509415 | BJ107: 50910.22656 | BK107: 51558.71901 | BL107: 52322.85682 | BM107: 53064.23945 | BN107: 53930.89669 | BO107: 54384.98454 | BP107: 55090.10194 | BQ107: 55796.69502 | BR107: 56659.57445 | BS107: 57214.32057 | BV107: 52157.50224 | BW107: 54115.99275 | BX107: 56263.49616 | BY107: 58458.67487 | BZ107: 60869.03539 | CA107: 62885.35881 | CB107: 65261.32177 | CC107: 67717.75012 | CD107: 70449.69369 | CE107: 72882.33892
B108: =Inputs!$C102 -> 18W LED Decorative - Bottom Pole Entry | C108: Offered | D108: =IF($C108="NA","",'Unsmoothed Prices'!D106) -> 48.088 | E108: =IF($C108="NA","",'Smoothed Prices'!E108+$E$7) -> 51.36551814 | F108: 51.58590927 | G108: 51.79973738 | H108: 52.00719793 | I108: 52.20848054 | J108: =IF($C108="NA","",'Smoothed Prices'!J108+$J$7) -> 52.68979873 | K108: 53.25006844 | L108: 53.81151068 | M108: 54.37412791 | N108: 54.93792259 | O108: ='Smoothed Prices'!N108 -> 54.94737971 | Q108: 52.62394825 | R108: 54.14453163 | S108: 55.70097855 | T108: 57.29417601 | U108: 58.92503268 | V108: 60.92521543 | W108: 63.08156508 | X108: 65.3084279 | Y108: 67.60800259 | Z108: 69.98255427 | AB108: =IFERROR(VLOOKUP($B108,Volumes!$B$39:$H$81,MATCH(AB$11,Volumes!$B$4:$H$4,0),FALSE),0) -> 36 | AC108: =IFERROR(VLOOKUP($B108,Volumes!$B$39:$H$81,MATCH(AC$11,Volumes!$B$4:$H$4,0),FALSE),0) -> 38 | AD108: =IFERROR(VLOOKUP($B108,Volumes!$B$39:$H$81,MATCH(AD$11,Volumes!$B$4:$H$4,0),FALSE),0) -> 40 | AE108: =IFERROR(VLOOKUP($B108,Volumes!$B$39:$H$81,MATCH(AE$11,Volumes!$B$4:$H$4,0),FALSE),0) -> 42 | AF108: =IFERROR(VLOOKUP($B108,Volumes!$B$39:$H$81,MATCH(AF$11,Volumes!$B$4:$H$4,0),FALSE),0) -> 44 | AG108: =IFERROR(VLOOKUP($B108,Volumes!$B$39:$M$81,MATCH(AG$11,Volumes!$B$4:$M$4,0),FALSE),0) -> 44 | AH108: =IFERROR(VLOOKUP($B108,Volumes!$B$39:$M$81,MATCH(AH$11,Volumes!$B$4:$M$4,0),FALSE),0) -> 44 | AI108: =IFERROR(VLOOKUP($B108,Volumes!$B$39:$M$81,MATCH(AI$11,Volumes!$B$4:$M$4,0),FALSE),0) -> 44 | AJ108: =IFERROR(VLOOKUP($B108,Volumes!$B$39:$M$81,MATCH(AJ$11,Volumes!$B$4:$M$4,0),FALSE),0) -> 44 | AK108: =IFERROR(VLOOKUP($B108,Volumes!$B$39:$M$81,MATCH(AK$11,Volumes!$B$4:$M$4,0),FALSE),0) -> 44 | AM108: 187.9977964 | AN108: 188.2885688 | AO108: 189.0690415 | AP108: 189.8262725 | AQ108: 191.0830388 | AR108: 192.3177654 | AS108: 194.3627498 | AT108: 196.412014 | AU108: 199.0093081 | AV108: 200.5234175 | AX108: 192.6036506 | AY108: 197.6275404 | AZ108: 203.3085717 | BA108: 209.1237424 | BB108: 215.6656196 | BC108: 222.3770363 | BD108: 230.2477125 | BE108: 238.3757618 | BF108: 247.4452895 | BG108: 255.4363231 | BJ108: 6767.920671 | BK108: 7154.965615 | BL108: 7562.761658 | BM108: 7972.703443 | BN108: 8407.653706 | BO108: 8461.981676 | BP108: 8551.960991 | BQ108: 8642.128615 | BR108: 8756.409558 | BS108: 8823.030368 | BV108: 6933.731421 | BW108: 7509.846537 | BX108: 8132.342868 | BY108: 8783.197182 | BZ108: 9489.287262 | CA108: 9784.589598 | CB108: 10130.89935 | CC108: 10488.53352 | CD108: 10887.59274 | CE108: 11239.19822
B109: =Inputs!$C103 -> 18W LED Decorative - Side Entry | C109: Offered | D109: =IF($C109="NA","",'Unsmoothed Prices'!D107) -> 48.088 | E109: =IF($C109="NA","",'Smoothed Prices'!E109+$E$7) -> 51.36551814 | F109: 51.58590927 | G109: 51.79973738 | H109: 52.00719793 | I109: 52.20848054 | J109: =IF($C109="NA","",'Smoothed Prices'!J109+$J$7) -> 52.68979873 | K109: 53.25006844 | L109: 53.81151068 | M109: 54.37412791 | N109: 54.93792259 | O109: ='Smoothed Prices'!N109 -> 54.94737971 | Q109: 52.62394825 | R109: 54.14453163 | S109: 55.70097855 | T109: 57.29417601 | U109: 58.92503268 | V109: 60.92521543 | W109: 63.08156508 | X109: 65.3084279 | Y109: 67.60800259 | Z109: 69.98255427 | AB109: =IFERROR(VLOOKUP($B109,Volumes!$B$39:$H$81,MATCH(AB$11,Volumes!$B$4:$H$4,0),FALSE),0) -> 36 | AC109: =IFERROR(VLOOKUP($B109,Volumes!$B$39:$H$81,MATCH(AC$11,Volumes!$B$4:$H$4,0),FALSE),0) -> 38 | AD109: =IFERROR(VLOOKUP($B109,Volumes!$B$39:$H$81,MATCH(AD$11,Volumes!$B$4:$H$4,0),FALSE),0) -> 40 | AE109: =IFERROR(VLOOKUP($B109,Volumes!$B$39:$H$81,MATCH(AE$11,Volumes!$B$4:$H$4,0),FALSE),0) -> 42 | AF109: =IFERROR(VLOOKUP($B109,Volumes!$B$39:$H$81,MATCH(AF$11,Volumes!$B$4:$H$4,0),FALSE),0) -> 44 | AG109: =IFERROR(VLOOKUP($B109,Volumes!$B$39:$M$81,MATCH(AG$11,Volumes!$B$4:$M$4,0),FALSE),0) -> 44 | AH109: =IFERROR(VLOOKUP($B109,Volumes!$B$39:$M$81,MATCH(AH$11,Volumes!$B$4:$M$4,0),FALSE),0) -> 44 | AI109: =IFERROR(VLOOKUP($B109,Volumes!$B$39:$M$81,MATCH(AI$11,Volumes!$B$4:$M$4,0),FALSE),0) -> 44 | AJ109: =IFERROR(VLOOKUP($B109,Volumes!$B$39:$M$81,MATCH(AJ$11,Volumes!$B$4:$M$4,0),FALSE),0) -> 44 | AK109: =IFERROR(VLOOKUP($B109,Volumes!$B$39:$M$81,MATCH(AK$11,Volumes!$B$4:$M$4,0),FALSE),0) -> 44 | AM109: 187.9977964 | AN109: 188.2885688 | AO109: 189.0690415 | AP109: 189.8262725 | AQ109: 191.0830388 | AR109: 192.3177654 | AS109: 194.3627498 | AT109: 196.412014 | AU109: 199.0093081 | AV109: 200.5234175 | AX109: 192.6036506 | AY109: 197.6275404 | AZ109: 203.3085717 | BA109: 209.1237424 | BB109: 215.6656196 | BC109: 222.3770363 | BD109: 230.2477125 | BE109: 238.3757618 | BF109: 247.4452895 | BG109: 255.4363231 | BJ109: 6767.920671 | BK109: 7154.965615 | BL109: 7562.761658 | BM109: 7972.703443 | BN109: 8407.653706 | BO109: 8461.981676 | BP109: 8551.960991 | BQ109: 8642.128615 | BR109: 8756.409558 | BS109: 8823.030368 | BV109: 6933.731421 | BW109: 7509.846537 | BX109: 8132.342868 | BY109: 8783.197182 | BZ109: 9489.287262 | CA109: 9784.589598 | CB109: 10130.89935 | CC109: 10488.53352 | CD109: 10887.59274 | CE109: 11239.19822
B110: =Inputs!$C104 -> 18W LED Decorative - Top Entry | C110: Offered | D110: =IF($C110="NA","",'Unsmoothed Prices'!D108) -> 48.088 | E110: =IF($C110="NA","",'Smoothed Prices'!E110+$E$7) -> 51.36551814 | F110: 51.58590927 | G110: 51.79973738 | H110: 52.00719793 | I110: 52.20848054 | J110: =IF($C110="NA","",'Smoothed Prices'!J110+$J$7) -> 52.68979873 | K110: 53.25006844 | L110: 53.81151068 | M110: 54.37412791 | N110: 54.93792259 | O110: ='Smoothed Prices'!N110 -> 54.94737971 | Q110: 52.62394825 | R110: 54.14453163 | S110: 55.70097855 | T110: 57.29417601 | U110: 58.92503268 | V110: 60.92521543 | W110: 63.08156508 | X110: 65.3084279 | Y110: 67.60800259 | Z110: 69.98255427 | AB110: =IFERROR(VLOOKUP($B110,Volumes!$B$39:$H$81,MATCH(AB$11,Volumes!$B$4:$H$4,0),FALSE),0) -> 36 | AC110: =IFERROR(VLOOKUP($B110,Volumes!$B$39:$H$81,MATCH(AC$11,Volumes!$B$4:$H$4,0),FALSE),0) -> 38 | AD110: =IFERROR(VLOOKUP($B110,Volumes!$B$39:$H$81,MATCH(AD$11,Volumes!$B$4:$H$4,0),FALSE),0) -> 40 | AE110: =IFERROR(VLOOKUP($B110,Volumes!$B$39:$H$81,MATCH(AE$11,Volumes!$B$4:$H$4,0),FALSE),0) -> 42 | AF110: =IFERROR(VLOOKUP($B110,Volumes!$B$39:$H$81,MATCH(AF$11,Volumes!$B$4:$H$4,0),FALSE),0) -> 44 | AG110: =IFERROR(VLOOKUP($B110,Volumes!$B$39:$M$81,MATCH(AG$11,Volumes!$B$4:$M$4,0),FALSE),0) -> 44 | AH110: =IFERROR(VLOOKUP($B110,Volumes!$B$39:$M$81,MATCH(AH$11,Volumes!$B$4:$M$4,0),FALSE),0) -> 44 | AI110: =IFERROR(VLOOKUP($B110,Volumes!$B$39:$M$81,MATCH(AI$11,Volumes!$B$4:$M$4,0),FALSE),0) -> 44 | AJ110: =IFERROR(VLOOKUP($B110,Volumes!$B$39:$M$81,MATCH(AJ$11,Volumes!$B$4:$M$4,0),FALSE),0) -> 44 | AK110: =IFERROR(VLOOKUP($B110,Volumes!$B$39:$M$81,MATCH(AK$11,Volumes!$B$4:$M$4,0),FALSE),0) -> 44 | AM110: 187.9977964 | AN110: 188.2885688 | AO110: 189.0690415 | AP110: 189.8262725 | AQ110: 191.0830388 | AR110: 192.3177654 | AS110: 194.3627498 | AT110: 196.412014 | AU110: 199.0093081 | AV110: 200.5234175 | AX110: 192.6036506 | AY110: 197.6275404 | AZ110: 203.3085717 | BA110: 209.1237424 | BB110: 215.6656196 | BC110: 222.3770363 | BD110: 230.2477125 | BE110: 238.3757618 | BF110: 247.4452895 | BG110: 255.4363231 | BJ110: 6767.920671 | BK110: 7154.965615 | BL110: 7562.761658 | BM110: 7972.703443 | BN110: 8407.653706 | BO110: 8461.981676 | BP110: 8551.960991 | BQ110: 8642.128615 | BR110: 8756.409558 | BS110: 8823.030368 | BV110: 6933.731421 | BW110: 7509.846537 | BX110: 8132.342868 | BY110: 8783.197182 | BZ110: 9489.287262 | CA110: 9784.589598 | CB110: 10130.89935 | CC110: 10488.53352 | CD110: 10887.59274 | CE110: 11239.19822
B111: =Inputs!$C105 -> 25W LED | C111: Offered | D111: =IF($C111="NA","",'Unsmoothed Prices'!D109) -> 34.339 | E111: =IF($C111="NA","",'Smoothed Prices'!E111+$E$7) -> 38.86145812 | F111: 39.45420646 | G111: 40.0293034 | H111: 40.58727458 | I111: 41.12863 | J111: =IF($C111="NA","",'Smoothed Prices'!J111+$J$7) -> 41.58676018 | K111: 42.12379334 | L111: 42.66195041 | M111: 43.20123374 | N111: 43.74164568 | O111: ='Smoothed Prices'!N111 -> 43.7511028 | Q111: 39.81354486 | R111: 41.41110547 | S111: 43.04406707 | T111: 44.71331943 | U111: 46.41977398 | V111: 48.08677171 | W111: 49.90105908 | X111: 51.77674585 | Y111: 53.71578791 | Z111: 55.72020106 | AB111: =IFERROR(VLOOKUP($B111,Volumes!$B$39:$H$81,MATCH(AB$11,Volumes!$B$4:$H$4,0),FALSE),0) -> 21 | AC111: =IFERROR(VLOOKUP($B111,Volumes!$B$39:$H$81,MATCH(AC$11,Volumes!$B$4:$H$4,0),FALSE),0) -> 21 | AD111: =IFERROR(VLOOKUP($B111,Volumes!$B$39:$H$81,MATCH(AD$11,Volumes!$B$4:$H$4,0),FALSE),0) -> 21 | AE111: =IFERROR(VLOOKUP($B111,Volumes!$B$39:$H$81,MATCH(AE$11,Volumes!$B$4:$H$4,0),FALSE),0) -> 21 | AF111: =IFERROR(VLOOKUP($B111,Volumes!$B$39:$H$81,MATCH(AF$11,Volumes!$B$4:$H$4,0),FALSE),0) -> 21 | AG111: =IFERROR(VLOOKUP($B111,Volumes!$B$39:$M$81,MATCH(AG$11,Volumes!$B$4:$M$4,0),FALSE),0) -> 21 | AH111: =IFERROR(VLOOKUP($B111,Volumes!$B$39:$M$81,MATCH(AH$11,Volumes!$B$4:$M$4,0),FALSE),0) -> 21 | AI111: =IFERROR(VLOOKUP($B111,Volumes!$B$39:$M$81,MATCH(AI$11,Volumes!$B$4:$M$4,0),FALSE),0) -> 21 | AJ111: =IFERROR(VLOOKUP($B111,Volumes!$B$39:$M$81,MATCH(AJ$11,Volumes!$B$4:$M$4,0),FALSE),0) -> 21 | AK111: =IFERROR(VLOOKUP($B111,Volumes!$B$39:$M$81,MATCH(AK$11,Volumes!$B$4:$M$4,0),FALSE),0) -> 21 | AM111: 142.2329367 | AN111: 144.0078536 | AO111: 146.1069574 | AP111: 148.1435522 | AQ111: 150.5307858 | AR111: 151.7916747 | AS111: 153.7518457 | AT111: 155.716119 | AU111: 158.1165155 | AV111: 159.6570067 | AX111: 145.7175742 | AY111: 151.150535 | AZ111: 157.1108448 | BA111: 163.2036159 | BB111: 169.8963728 | BC111: 175.5167167 | BD111: 182.1388656 | BE111: 188.9851224 | BF111: 196.5997837 | BG111: 203.3787339 | BJ111: 2986.891671 | BK111: 3024.164925 | BL111: 3068.246106 | BM111: 3111.014597 | BN111: 3161.146502 | BO111: 3187.625168 | BP111: 3228.788759 | BQ111: 3270.038499 | BR111: 3320.446825 | BS111: 3352.797142 | BV111: 3060.069058 | BW111: 3174.161234 | BX111: 3299.327741 | BY111: 3427.275934 | BZ111: 3567.823828 | CA111: 3685.851051 | CB111: 3824.916178 | CC111: 3968.68757 | CD111: 4128.595458 | CE111: 4270.953411
B112: =Inputs!$C106 -> 25W LED Decorative - Bottom Pole Entry | C112: Offered | D112: =IF($C112="NA","",'Unsmoothed Prices'!D110) -> 48.088 | E112: =IF($C112="NA","",'Smoothed Prices'!E112+$E$7) -> 51.58938377 | F112: 51.80310842 | G112: 52.01046858 | H112: 52.21165379 | I112: 52.40684792 | J112: =IF($C112="NA","",'Smoothed Prices'!J112+$J$7) -> 52.88858126 | K112: 53.44926698 | L112: 54.0111261 | M112: 54.57416109 | N112: 55.13837441 | O112: ='Smoothed Prices'!N112 -> 55.14783153 | Q112: 52.85329847 | R112: 54.37250369 | S112: 55.92758074 | T112: 57.51941656 | U112: 59.14891976 | V112: 61.15506767 | W112: 63.31754141 | X112: 65.55069149 | Y112: 67.85672095 | Z112: 70.23789938 | AB112: =IFERROR(VLOOKUP($B112,Volumes!$B$39:$H$81,MATCH(AB$11,Volumes!$B$4:$H$4,0),FALSE),0) -> 36 | AC112: =IFERROR(VLOOKUP($B112,Volumes!$B$39:$H$81,MATCH(AC$11,Volumes!$B$4:$H$4,0),FALSE),0) -> 38 | AD112: =IFERROR(VLOOKUP($B112,Volumes!$B$39:$H$81,MATCH(AD$11,Volumes!$B$4:$H$4,0),FALSE),0) -> 40 | AE112: =IFERROR(VLOOKUP($B112,Volumes!$B$39:$H$81,MATCH(AE$11,Volumes!$B$4:$H$4,0),FALSE),0) -> 42 | AF112: =IFERROR(VLOOKUP($B112,Volumes!$B$39:$H$81,MATCH(AF$11,Volumes!$B$4:$H$4,0),FALSE),0) -> 44 | AG112: =IFERROR(VLOOKUP($B112,Volumes!$B$39:$M$81,MATCH(AG$11,Volumes!$B$4:$M$4,0),FALSE),0) -> 44 | AH112: =IFERROR(VLOOKUP($B112,Volumes!$B$39:$M$81,MATCH(AH$11,Volumes!$B$4:$M$4,0),FALSE),0) -> 44 | AI112: =IFERROR(VLOOKUP($B112,Volumes!$B$39:$M$81,MATCH(AI$11,Volumes!$B$4:$M$4,0),FALSE),0) -> 44 | AJ112: =IFERROR(VLOOKUP($B112,Volumes!$B$39:$M$81,MATCH(AJ$11,Volumes!$B$4:$M$4,0),FALSE),0) -> 44 | AK112: =IFERROR(VLOOKUP($B112,Volumes!$B$39:$M$81,MATCH(AK$11,Volumes!$B$4:$M$4,0),FALSE),0) -> 44 | AM112: 188.8171446 | AN112: 189.0813457 | AO112: 189.8382103 | AP112: 190.5725363 | AQ112: 191.8090634 | AR112: 193.0433216 | AS112: 195.0898245 | AT112: 197.1406103 | AU112: 199.7414296 | AV112: 201.2550666 | AX112: 193.4430724 | AY112: 198.4596385 | AZ112: 204.1356697 | BA112: 209.9458704 | BB112: 216.4850463 | BC112: 223.215997 | BD112: 231.1090261 | BE112: 239.2600239 | BF112: 248.3555987 | BG112: 256.3683327 | BJ112: 6797.417205 | BK112: 7185.091138 | BL112: 7593.528413 | BM112: 8004.046526 | BN112: 8439.598789 | BO112: 8493.90615 | BP112: 8583.952277 | BQ112: 8674.186852 | BR112: 8788.622902 | BS112: 8855.22293 | BV112: 6963.950606 | BW112: 7541.466262 | BX112: 8165.426788 | BY112: 8817.726558 | BZ112: 9525.342038 | CA112: 9821.503868 | CB112: 10168.79715 | CC112: 10527.44105 | CD112: 10927.64634 | CE112: 11280.20664
B113: =Inputs!$C107 -> 25W LED Decorative - Side Entry | C113: Offered | D113: =IF($C113="NA","",'Unsmoothed Prices'!D111) -> 48.088 | E113: =IF($C113="NA","",'Smoothed Prices'!E113+$E$7) -> 51.58938377 | F113: 51.80310842 | G113: 52.01046858 | H113: 52.21165379 | I113: 52.40684792 | J113: =IF($C113="NA","",'Smoothed Prices'!J113+$J$7) -> 52.88858126 | K113: 53.44926698 | L113: 54.0111261 | M113: 54.57416109 | N113: 55.13837441 | O113: ='Smoothed Prices'!N113 -> 55.14783153 | Q113: 52.85329847 | R113: 54.37250369 | S113: 55.92758074 | T113: 57.51941656 | U113: 59.14891976 | V113: 61.15506767 | W113: 63.31754141 | X113: 65.55069149 | Y113: 67.85672095 | Z113: 70.23789938 | AB113: =IFERROR(VLOOKUP($B113,Volumes!$B$39:$H$81,MATCH(AB$11,Volumes!$B$4:$H$4,0),FALSE),0) -> 36 | AC113: =IFERROR(VLOOKUP($B113,Volumes!$B$39:$H$81,MATCH(AC$11,Volumes!$B$4:$H$4,0),FALSE),0) -> 38 | AD113: =IFERROR(VLOOKUP($B113,Volumes!$B$39:$H$81,MATCH(AD$11,Volumes!$B$4:$H$4,0),FALSE),0) -> 40 | AE113: =IFERROR(VLOOKUP($B113,Volumes!$B$39:$H$81,MATCH(AE$11,Volumes!$B$4:$H$4,0),FALSE),0) -> 42 | AF113: =IFERROR(VLOOKUP($B113,Volumes!$B$39:$H$81,MATCH(AF$11,Volumes!$B$4:$H$4,0),FALSE),0) -> 44 | AG113: =IFERROR(VLOOKUP($B113,Volumes!$B$39:$M$81,MATCH(AG$11,Volumes!$B$4:$M$4,0),FALSE),0) -> 44 | AH113: =IFERROR(VLOOKUP($B113,Volumes!$B$39:$M$81,MATCH(AH$11,Volumes!$B$4:$M$4,0),FALSE),0) -> 44 | AI113: =IFERROR(VLOOKUP($B113,Volumes!$B$39:$M$81,MATCH(AI$11,Volumes!$B$4:$M$4,0),FALSE),0) -> 44 | AJ113: =IFERROR(VLOOKUP($B113,Volumes!$B$39:$M$81,MATCH(AJ$11,Volumes!$B$4:$M$4,0),FALSE),0) -> 44 | AK113: =IFERROR(VLOOKUP($B113,Volumes!$B$39:$M$81,MATCH(AK$11,Volumes!$B$4:$M$4,0),FALSE),0) -> 44 | AM113: 188.8171446 | AN113: 189.0813457 | AO113: 189.8382103 | AP113: 190.5725363 | AQ113: 191.8090634 | AR113: 193.0433216 | AS113: 195.0898245 | AT113: 197.1406103 | AU113: 199.7414296 | AV113: 201.2550666 | AX113: 193.4430724 | AY113: 198.4596385 | AZ113: 204.1356697 | BA113: 209.9458704 | BB113: 216.4850463 | BC113: 223.215997 | BD113: 231.1090261 | BE113: 239.2600239 | BF113: 248.3555987 | BG113: 256.3683327 | BJ113: 6797.417205 | BK113: 7185.091138 | BL113: 7593.528413 | BM113: 8004.046526 | BN113: 8439.598789 | BO113: 8493.90615 | BP113: 8583.952277 | BQ113: 8674.186852 | BR113: 8788.622902 | BS113: 8855.22293 | BV113: 6963.950606 | BW113: 7541.466262 | BX113: 8165.426788 | BY113: 8817.726558 | BZ113: 9525.342038 | CA113: 9821.503868 | CB113: 10168.79715 | CC113: 10527.44105 | CD113: 10927.64634 | CE113: 11280.20664
B114: =Inputs!$C108 -> 25W LED Decorative - Top Entry | C114: Offered | D114: =IF($C114="NA","",'Unsmoothed Prices'!D112) -> 48.088 | E114: =IF($C114="NA","",'Smoothed Prices'!E114+$E$7) -> 51.58938377 | F114: 51.80310842 | G114: 52.01046858 | H114: 52.21165379 | I114: 52.40684792 | J114: =IF($C114="NA","",'Smoothed Prices'!J114+$J$7) -> 52.88858126 | K114: 53.44926698 | L114: 54.0111261 | M114: 54.57416109 | N114: 55.13837441 | O114: ='Smoothed Prices'!N114 -> 55.14783153 | Q114: 52.85329847 | R114: 54.37250369 | S114: 55.92758074 | T114: 57.51941656 | U114: 59.14891976 | V114: 61.15506767 | W114: 63.31754141 | X114: 65.55069149 | Y114: 67.85672095 | Z114: 70.23789938 | AB114: =IFERROR(VLOOKUP($B114,Volumes!$B$39:$H$81,MATCH(AB$11,Volumes!$B$4:$H$4,0),FALSE),0) -> 36 | AC114: =IFERROR(VLOOKUP($B114,Volumes!$B$39:$H$81,MATCH(AC$11,Volumes!$B$4:$H$4,0),FALSE),0) -> 38 | AD114: =IFERROR(VLOOKUP($B114,Volumes!$B$39:$H$81,MATCH(AD$11,Volumes!$B$4:$H$4,0),FALSE),0) -> 40 | AE114: =IFERROR(VLOOKUP($B114,Volumes!$B$39:$H$81,MATCH(AE$11,Volumes!$B$4:$H$4,0),FALSE),0) -> 42 | AF114: =IFERROR(VLOOKUP($B114,Volumes!$B$39:$H$81,MATCH(AF$11,Volumes!$B$4:$H$4,0),FALSE),0) -> 44 | AG114: =IFERROR(VLOOKUP($B114,Volumes!$B$39:$M$81,MATCH(AG$11,Volumes!$B$4:$M$4,0),FALSE),0) -> 44 | AH114: =IFERROR(VLOOKUP($B114,Volumes!$B$39:$M$81,MATCH(AH$11,Volumes!$B$4:$M$4,0),FALSE),0) -> 44 | AI114: =IFERROR(VLOOKUP($B114,Volumes!$B$39:$M$81,MATCH(AI$11,Volumes!$B$4:$M$4,0),FALSE),0) -> 44 | AJ114: =IFERROR(VLOOKUP($B114,Volumes!$B$39:$M$81,MATCH(AJ$11,Volumes!$B$4:$M$4,0),FALSE),0) -> 44 | AK114: =IFERROR(VLOOKUP($B114,Volumes!$B$39:$M$81,MATCH(AK$11,Volumes!$B$4:$M$4,0),FALSE),0) -> 44 | AM114: 188.8171446 | AN114: 189.0813457 | AO114: 189.8382103 | AP114: 190.5725363 | AQ114: 191.8090634 | AR114: 193.0433216 | AS114: 195.0898245 | AT114: 197.1406103 | AU114: 199.7414296 | AV114: 201.2550666 | AX114: 193.4430724 | AY114: 198.4596385 | AZ114: 204.1356697 | BA114: 209.9458704 | BB114: 216.4850463 | BC114: 223.215997 | BD114: 231.1090261 | BE114: 239.2600239 | BF114: 248.3555987 | BG114: 256.3683327 | BJ114: 6797.417205 | BK114: 7185.091138 | BL114: 7593.528413 | BM114: 8004.046526 | BN114: 8439.598789 | BO114: 8493.90615 | BP114: 8583.952277 | BQ114: 8674.186852 | BR114: 8788.622902 | BS114: 8855.22293 | BV114: 6963.950606 | BW114: 7541.466262 | BX114: 8165.426788 | BY114: 8817.726558 | BZ114: 9525.342038 | CA114: 9821.503868 | CB114: 10168.79715 | CC114: 10527.44105 | CD114: 10927.64634 | CE114: 11280.20664
B115: =Inputs!$C109 -> 30W LED | C115: Not Offered | D115: =IF($C115="NA","",'Unsmoothed Prices'!D113) -> 34.339 | E115: =IF($C115="NA","",'Smoothed Prices'!E115+$E$7) -> 38.86145812 | F115: 39.45420646 | G115: 40.0293034 | H115: 40.58727458 | I115: 41.12863 | J115: =IF($C115="NA","",'Smoothed Prices'!J115+$J$7) -> 41.58676018 | K115: 42.12379334 | L115: 42.66195041 | M115: 43.20123374 | N115: 43.74164568 | O115: ='Smoothed Prices'!N115 -> 43.7511028 | Q115: 39.81354486 | R115: 41.41110547 | S115: 43.04406707 | T115: 44.71331943 | U115: 46.41977398 | V115: 48.08677171 | W115: 49.90105908 | X115: 51.77674585 | Y115: 53.71578791 | Z115: 55.72020106 | AB115: =IFERROR(VLOOKUP($B115,Volumes!$B$39:$H$81,MATCH(AB$11,Volumes!$B$4:$H$4,0),FALSE),0) -> 0 | AC115: =IFERROR(VLOOKUP($B115,Volumes!$B$39:$H$81,MATCH(AC$11,Volumes!$B$4:$H$4,0),FALSE),0) -> 0 | AD115: =IFERROR(VLOOKUP($B115,Volumes!$B$39:$H$81,MATCH(AD$11,Volumes!$B$4:$H$4,0),FALSE),0) -> 0 | AE115: =IFERROR(VLOOKUP($B115,Volumes!$B$39:$H$81,MATCH(AE$11,Volumes!$B$4:$H$4,0),FALSE),0) -> 0 | AF115: =IFERROR(VLOOKUP($B115,Volumes!$B$39:$H$81,MATCH(AF$11,Volumes!$B$4:$H$4,0),FALSE),0) -> 0 | AG115: =IFERROR(VLOOKUP($B115,Volumes!$B$39:$M$81,MATCH(AG$11,Volumes!$B$4:$M$4,0),FALSE),0) -> 0 | AH115: =IFERROR(VLOOKUP($B115,Volumes!$B$39:$M$81,MATCH(AH$11,Volumes!$B$4:$M$4,0),FALSE),0) -> 0 | AI115: =IFERROR(VLOOKUP($B115,Volumes!$B$39:$M$81,MATCH(AI$11,Volumes!$B$4:$M$4,0),FALSE),0) -> 0 | AJ115: =IFERROR(VLOOKUP($B115,Volumes!$B$39:$M$81,MATCH(AJ$11,Volumes!$B$4:$M$4,0),FALSE),0) -> 0 | AK115: =IFERROR(VLOOKUP($B115,Volumes!$B$39:$M$81,MATCH(AK$11,Volumes!$B$4:$M$4,0),FALSE),0) -> 0 | AM115: 142.2329367 | AN115: 144.0078536 | AO115: 146.1069574 | AP115: 148.1435522 | AQ115: 150.5307858 | AR115: 151.7916747 | AS115: 153.7518457 | AT115: 155.716119 | AU115: 158.1165155 | AV115: 159.6570067 | AX115: 145.7175742 | AY115: 151.150535 | AZ115: 157.1108448 | BA115: 163.2036159 | BB115: 169.8963728 | BC115: 175.5167167 | BD115: 182.1388656 | BE115: 188.9851224 | BF115: 196.5997837 | BG115: 203.3787339 | BJ115: 0 | BK115: 0 | BL115: 0 | BM115: 0 | BN115: 0 | BO115: 0 | BP115: 0 | BQ115: 0 | BR115: 0 | BS115: 0 | BV115: 0 | BW115: 0 | BX115: 0 | BY115: 0 | BZ115: 0 | CA115: 0 | CB115: 0 | CC115: 0 | CD115: 0 | CE115: 0
B116: =Inputs!$C110 -> 88 LED Light | C116: Not Offered | D116: =IF($C116="NA","",'Unsmoothed Prices'!D114) -> 34.339 | E116: =IF($C116="NA","",'Smoothed Prices'!E116+$E$7) -> 38.86145812 | F116: 39.45420646 | G116: 40.0293034 | H116: 40.58727458 | I116: 41.12863 | J116: =IF($C116="NA","",'Smoothed Prices'!J116+$J$7) -> 41.58676018 | K116: 42.12379334 | L116: 42.66195041 | M116: 43.20123374 | N116: 43.74164568 | O116: ='Smoothed Prices'!N116 -> 43.7511028 | Q116: 39.81354486 | R116: 41.41110547 | S116: 43.04406707 | T116: 44.71331943 | U116: 46.41977398 | V116: 48.08677171 | W116: 49.90105908 | X116: 51.77674585 | Y116: 53.71578791 | Z116: 55.72020106 | AB116: =IFERROR(VLOOKUP($B116,Volumes!$B$39:$H$81,MATCH(AB$11,Volumes!$B$4:$H$4,0),FALSE),0) -> 0 | AC116: =IFERROR(VLOOKUP($B116,Volumes!$B$39:$H$81,MATCH(AC$11,Volumes!$B$4:$H$4,0),FALSE),0) -> 0 | AD116: =IFERROR(VLOOKUP($B116,Volumes!$B$39:$H$81,MATCH(AD$11,Volumes!$B$4:$H$4,0),FALSE),0) -> 0 | AE116: =IFERROR(VLOOKUP($B116,Volumes!$B$39:$H$81,MATCH(AE$11,Volumes!$B$4:$H$4,0),FALSE),0) -> 0 | AF116: =IFERROR(VLOOKUP($B116,Volumes!$B$39:$H$81,MATCH(AF$11,Volumes!$B$4:$H$4,0),FALSE),0) -> 0 | AG116: =IFERROR(VLOOKUP($B116,Volumes!$B$39:$M$81,MATCH(AG$11,Volumes!$B$4:$M$4,0),FALSE),0) -> 0 | AH116: =IFERROR(VLOOKUP($B116,Volumes!$B$39:$M$81,MATCH(AH$11,Volumes!$B$4:$M$4,0),FALSE),0) -> 0 | AI116: =IFERROR(VLOOKUP($B116,Volumes!$B$39:$M$81,MATCH(AI$11,Volumes!$B$4:$M$4,0),FALSE),0) -> 0 | AJ116: =IFERROR(VLOOKUP($B116,Volumes!$B$39:$M$81,MATCH(AJ$11,Volumes!$B$4:$M$4,0),FALSE),0) -> 0 | AK116: =IFERROR(VLOOKUP($B116,Volumes!$B$39:$M$81,MATCH(AK$11,Volumes!$B$4:$M$4,0),FALSE),0) -> 0 | AM116: 142.2329367 | AN116: 144.0078536 | AO116: 146.1069574 | AP116: 148.1435522 | AQ116: 150.5307858 | AR116: 151.7916747 | AS116: 153.7518457 | AT116: 155.716119 | AU116: 158.1165155 | AV116: 159.6570067 | AX116: 145.7175742 | AY116: 151.150535 | AZ116: 157.1108448 | BA116: 163.2036159 | BB116: 169.8963728 | BC116: 175.5167167 | BD116: 182.1388656 | BE116: 188.9851224 | BF116: 196.5997837 | BG116: 203.3787339 | BJ116: 0 | BK116: 0 | BL116: 0 | BM116: 0 | BN116: 0 | BO116: 0 | BP116: 0 | BQ116: 0 | BR116: 0 | BS116: 0 | BV116: 0 | BW116: 0 | BX116: 0 | BY116: 0 | BZ116: 0 | CA116: 0 | CB116: 0 | CC116: 0 | CD116: 0 | CE116: 0
B117: =Inputs!$C111 -> 100W Metal Halide | C117: Offered | D117: =IF($C117="NA","",'Unsmoothed Prices'!D115) -> 45.676 | E117: =IF($C117="NA","",'Smoothed Prices'!E117+$E$7) -> 47.80797936 | F117: 48.13431009 | G117: 48.45092305 | H117: 48.75810762 | I117: 49.05614458 | J117: =IF($C117="NA","",'Smoothed Prices'!J117+$J$7) -> 49.53086553 | K117: 50.08452419 | L117: 50.63934155 | M117: 51.19532004 | N117: 51.75246208 | O117: ='Smoothed Prices'!N117 -> 51.76191921 | Q117: 48.9792515 | R117: 50.52173572 | S117: 52.09995189 | T117: 53.71478778 | U117: 55.36715285 | V117: 57.27254091 | W117: 59.33157018 | X117: 61.45851966 | Y117: 63.65551896 | Z117: 65.92476227 | AB117: =IFERROR(VLOOKUP($B117,Volumes!$B$39:$H$81,MATCH(AB$11,Volumes!$B$4:$H$4,0),FALSE),0) -> 18 | AC117: =IFERROR(VLOOKUP($B117,Volumes!$B$39:$H$81,MATCH(AC$11,Volumes!$B$4:$H$4,0),FALSE),0) -> 19 | AD117: =IFERROR(VLOOKUP($B117,Volumes!$B$39:$H$81,MATCH(AD$11,Volumes!$B$4:$H$4,0),FALSE),0) -> 20 | AE117: =IFERROR(VLOOKUP($B117,Volumes!$B$39:$H$81,MATCH(AE$11,Volumes!$B$4:$H$4,0),FALSE),0) -> 21 | AF117: =IFERROR(VLOOKUP($B117,Volumes!$B$39:$H$81,MATCH(AF$11,Volumes!$B$4:$H$4,0),FALSE),0) -> 22 | AG117: =IFERROR(VLOOKUP($B117,Volumes!$B$39:$M$81,MATCH(AG$11,Volumes!$B$4:$M$4,0),FALSE),0) -> 22 | AH117: =IFERROR(VLOOKUP($B117,Volumes!$B$39:$M$81,MATCH(AH$11,Volumes!$B$4:$M$4,0),FALSE),0) -> 22 | AI117: =IFERROR(VLOOKUP($B117,Volumes!$B$39:$M$81,MATCH(AI$11,Volumes!$B$4:$M$4,0),FALSE),0) -> 22 | AJ117: =IFERROR(VLOOKUP($B117,Volumes!$B$39:$M$81,MATCH(AJ$11,Volumes!$B$4:$M$4,0),FALSE),0) -> 22 | AK117: =IFERROR(VLOOKUP($B117,Volumes!$B$39:$M$81,MATCH(AK$11,Volumes!$B$4:$M$4,0),FALSE),0) -> 22 | AM117: 174.9772044 | AN117: 175.6902318 | AO117: 176.8458691 | AP117: 177.9670928 | AQ117: 179.5454891 | AR117: 180.7876592 | AS117: 182.8085133 | AT117: 184.8335967 | AU117: 187.3748713 | AV117: 188.8964866 | AX117: 179.2640605 | AY117: 184.4043354 | AZ117: 190.1648244 | BA117: 196.0589754 | BB117: 202.6437794 | BC117: 209.0447743 | BD117: 216.5602311 | BE117: 224.3235967 | BF117: 232.9791994 | BG117: 240.6253823 | BJ117: 3149.58968 | BK117: 3338.114405 | BL117: 3536.917383 | BM117: 3737.308949 | BN117: 3950.000761 | BO117: 3977.328502 | BP117: 4021.787293 | BQ117: 4066.339127 | BR117: 4122.24717 | BS117: 4155.722705 | BV117: 3226.753089 | BW117: 3503.682372 | BX117: 3803.296488 | BY117: 4117.238483 | BZ117: 4458.163148 | CA117: 4598.985035 | CB117: 4764.325085 | CC117: 4935.119128 | CD117: 5125.542386 | CE117: 5293.75841
B118: =Inputs!$C112 -> 150W Metal Halide | C118: Offered | D118: =IF($C118="NA","",'Unsmoothed Prices'!D116) -> 48.462 | E118: =IF($C118="NA","",'Smoothed Prices'!E118+$E$7) -> 50.16515269 | F118: 50.42128938 | G118: 50.66979861 | H118: 50.9109075 | I118: 51.14483643 | J118: =IF($C118="NA","",'Smoothed Prices'!J118+$J$7) -> 51.62392862 | K118: 52.18196766 | L118: 52.74117457 | M118: 53.30155179 | N118: 53.86310178 | O118: ='Smoothed Prices'!N118 -> 53.8725589 | Q118: 51.39417443 | R118: 52.92214747 | S118: 54.48593966 | T118: 56.08643824 | U118: 57.72455216 | V118: 59.6927498 | W118: 61.81626213 | X118: 64.00941273 | Y118: 66.27437699 | Z118: 68.61339609 | AB118: =IFERROR(VLOOKUP($B118,Volumes!$B$39:$H$81,MATCH(AB$11,Volumes!$B$4:$H$4,0),FALSE),0) -> 15 | AC118: =IFERROR(VLOOKUP($B118,Volumes!$B$39:$H$81,MATCH(AC$11,Volumes!$B$4:$H$4,0),FALSE),0) -> 15 | AD118: =IFERROR(VLOOKUP($B118,Volumes!$B$39:$H$81,MATCH(AD$11,Volumes!$B$4:$H$4,0),FALSE),0) -> 15 | AE118: =IFERROR(VLOOKUP($B118,Volumes!$B$39:$H$81,MATCH(AE$11,Volumes!$B$4:$H$4,0),FALSE),0) -> 16 | AF118: =IFERROR(VLOOKUP($B118,Volumes!$B$39:$H$81,MATCH(AF$11,Volumes!$B$4:$H$4,0),FALSE),0) -> 16 | AG118: =IFERROR(VLOOKUP($B118,Volumes!$B$39:$M$81,MATCH(AG$11,Volumes!$B$4:$M$4,0),FALSE),0) -> 16 | AH118: =IFERROR(VLOOKUP($B118,Volumes!$B$39:$M$81,MATCH(AH$11,Volumes!$B$4:$M$4,0),FALSE),0) -> 16 | AI118: =IFERROR(VLOOKUP($B118,Volumes!$B$39:$M$81,MATCH(AI$11,Volumes!$B$4:$M$4,0),FALSE),0) -> 16 | AJ118: =IFERROR(VLOOKUP($B118,Volumes!$B$39:$M$81,MATCH(AJ$11,Volumes!$B$4:$M$4,0),FALSE),0) -> 16 | AK118: =IFERROR(VLOOKUP($B118,Volumes!$B$39:$M$81,MATCH(AK$11,Volumes!$B$4:$M$4,0),FALSE),0) -> 16 | AM118: 183.6044589 | AN118: 184.0377063 | AO118: 184.9447649 | AP118: 185.8248124 | AQ118: 187.1901013 | AR118: 188.4273395 | AS118: 190.464182 | AT118: 192.5052872 | AU118: 195.0836796 | AV118: 196.6003215 | AX118: 188.1026784 | AY118: 193.1658383 | AZ118: 198.8736798 | BA118: 204.7154996 | BB118: 211.2718609 | BC118: 217.8785368 | BD118: 225.6293568 | BE118: 233.6343565 | BF118: 242.5642198 | BG118: 250.4388957 | BJ118: 2754.066883 | BK118: 2760.565594 | BL118: 2774.171474 | BM118: 2973.196998 | BN118: 2995.041621 | BO118: 3014.837431 | BP118: 3047.426911 | BQ118: 3080.084595 | BR118: 3121.338873 | BS118: 3145.605144 | BV118: 2821.540176 | BW118: 2897.487574 | BX118: 2983.105196 | BY118: 3275.447993 | BZ118: 3380.349774 | CA118: 3486.056588 | CB118: 3610.069708 | CC118: 3738.149704 | CD118: 3881.027517 | CE118: 4007.022332
B119: =Inputs!$C113 -> 250W Metal Halide | C119: Offered | D119: =IF($C119="NA","",'Unsmoothed Prices'!D117) -> 49.327 | E119: =IF($C119="NA","",'Smoothed Prices'!E119+$E$7) -> 51.08391342 | F119: 51.31269043 | G119: 51.5346547 | H119: 51.75000912 | I119: 51.95895053 | J119: =IF($C119="NA","",'Smoothed Prices'!J119+$J$7) -> 52.4397465 | K119: 52.99949289 | L119: 53.56041073 | M119: 54.12250246 | N119: 54.68577054 | O119: ='Smoothed Prices'!N119 -> 54.69522766 | Q119: 52.33544435 | R119: 53.85776134 | S119: 55.41593145 | T119: 57.01084175 | U119: 58.64340096 | V119: 60.63608003 | W119: 62.78472607 | X119: 65.00368004 | Y119: 67.29513515 | Z119: 69.66135091 | AB119: =IFERROR(VLOOKUP($B119,Volumes!$B$39:$H$81,MATCH(AB$11,Volumes!$B$4:$H$4,0),FALSE),0) -> 91 | AC119: =IFERROR(VLOOKUP($B119,Volumes!$B$39:$H$81,MATCH(AC$11,Volumes!$B$4:$H$4,0),FALSE),0) -> 93 | AD119: =IFERROR(VLOOKUP($B119,Volumes!$B$39:$H$81,MATCH(AD$11,Volumes!$B$4:$H$4,0),FALSE),0) -> 95 | AE119: =IFERROR(VLOOKUP($B119,Volumes!$B$39:$H$81,MATCH(AE$11,Volumes!$B$4:$H$4,0),FALSE),0) -> 97 | AF119: =IFERROR(VLOOKUP($B119,Volumes!$B$39:$H$81,MATCH(AF$11,Volumes!$B$4:$H$4,0),FALSE),0) -> 99 | AG119: =IFERROR(VLOOKUP($B119,Volumes!$B$39:$M$81,MATCH(AG$11,Volumes!$B$4:$M$4,0),FALSE),0) -> 99 | AH119: =IFERROR(VLOOKUP($B119,Volumes!$B$39:$M$81,MATCH(AH$11,Volumes!$B$4:$M$4,0),FALSE),0) -> 99 | AI119: =IFERROR(VLOOKUP($B119,Volumes!$B$39:$M$81,MATCH(AI$11,Volumes!$B$4:$M$4,0),FALSE),0) -> 99 | AJ119: =IFERROR(VLOOKUP($B119,Volumes!$B$39:$M$81,MATCH(AJ$11,Volumes!$B$4:$M$4,0),FALSE),0) -> 99 | AK119: =IFERROR(VLOOKUP($B119,Volumes!$B$39:$M$81,MATCH(AK$11,Volumes!$B$4:$M$4,0),FALSE),0) -> 99 | AM119: 186.9671231 | AN119: 187.2913201 | AO119: 188.1014897 | AP119: 188.8875333 | AQ119: 190.1697589 | AR119: 191.4050747 | AS119: 193.4481491 | AT119: 195.4954992 | AU119: 198.088359 | AV119: 199.6030625 | AX119: 191.5477263 | AY119: 196.5808289 | AZ119: 202.2681498 | BA119: 208.0895724 | BB119: 214.6348475 | BC119: 221.3216921 | BD119: 229.1642502 | BE119: 237.2634321 | BF119: 246.3001946 | BG119: 254.2639308 | BJ119: 17014.0082 | BK119: 17418.09276 | BL119: 17869.64152 | BM119: 18322.09073 | BN119: 18826.80613 | BO119: 18949.1024 | BP119: 19151.36676 | BQ119: 19354.05442 | BR119: 19610.74754 | BS119: 19760.70318 | BV119: 17430.84309 | BW119: 18282.01709 | BX119: 19215.47423 | BY119: 20184.68852 | BZ119: 21248.8499 | CA119: 21910.84752 | CB119: 22687.26077 | CC119: 23489.07978 | CD119: 24383.71927 | CE119: 25172.12915
B120: =Inputs!$C114 -> 400W Metal Halide | C120: Not Offered | D120: =IF($C120="NA","",'Unsmoothed Prices'!D118) -> 54.733 | E120: =IF($C120="NA","",'Smoothed Prices'!E120+$E$7) -> 55.6858208 | F120: 55.77755804 | G120: 55.86656345 | H120: 55.95291837 | I120: 56.03670174 | J120: =IF($C120="NA","",'Smoothed Prices'!J120+$J$7) -> 56.52603167 | K120: 57.09432988 | L120: 57.66381743 | M120: 58.2344968 | N120: 58.8063705 | O120: ='Smoothed Prices'!N120 -> 58.81582763 | Q120: 57.05009621 | R120: 58.54408303 | S120: 60.07409322 | T120: 61.6410128 | U120: 63.24574949 | V120: 65.36105167 | W120: 67.63558793 | X120: 69.98378629 | Y120: 72.40792933 | Z120: 74.9103683 | AB120: =IFERROR(VLOOKUP($B120,Volumes!$B$39:$H$81,MATCH(AB$11,Volumes!$B$4:$H$4,0),FALSE),0) -> 18 | AC120: =IFERROR(VLOOKUP($B120,Volumes!$B$39:$H$81,MATCH(AC$11,Volumes!$B$4:$H$4,0),FALSE),0) -> 19 | AD120: =IFERROR(VLOOKUP($B120,Volumes!$B$39:$H$81,MATCH(AD$11,Volumes!$B$4:$H$4,0),FALSE),0) -> 20 | AE120: =IFERROR(VLOOKUP($B120,Volumes!$B$39:$H$81,MATCH(AE$11,Volumes!$B$4:$H$4,0),FALSE),0) -> 21 | AF120: =IFERROR(VLOOKUP($B120,Volumes!$B$39:$H$81,MATCH(AF$11,Volumes!$B$4:$H$4,0),FALSE),0) -> 22 | AG120: =IFERROR(VLOOKUP($B120,Volumes!$B$39:$M$81,MATCH(AG$11,Volumes!$B$4:$M$4,0),FALSE),0) -> 22 | AH120: =IFERROR(VLOOKUP($B120,Volumes!$B$39:$M$81,MATCH(AH$11,Volumes!$B$4:$M$4,0),FALSE),0) -> 22 | AI120: =IFERROR(VLOOKUP($B120,Volumes!$B$39:$M$81,MATCH(AI$11,Volumes!$B$4:$M$4,0),FALSE),0) -> 22 | AJ120: =IFERROR(VLOOKUP($B120,Volumes!$B$39:$M$81,MATCH(AJ$11,Volumes!$B$4:$M$4,0),FALSE),0) -> 22 | AK120: =IFERROR(VLOOKUP($B120,Volumes!$B$39:$M$81,MATCH(AK$11,Volumes!$B$4:$M$4,0),FALSE),0) -> 22 | AM120: 203.8101041 | AN120: 203.5880868 | AO120: 203.9129566 | AP120: 204.2281521 | AQ120: 205.0943284 | AR120: 206.3200156 | AS120: 208.3943041 | AT120: 210.4729336 | AU120: 213.1382583 | AV120: 214.6432523 | AX120: 208.8033521 | AY120: 213.6859031 | AZ120: 219.2704403 | BA120: 224.9896967 | BB120: 231.4794431 | BC120: 238.5678386 | BD120: 246.8698959 | BE120: 255.4408199 | BF120: 265.0130213 | BG120: 273.4228443 | BJ120: 3668.581874 | BK120: 3868.17365 | BL120: 4078.259132 | BM120: 4288.791193 | BN120: 4512.075224 | BO120: 4539.040343 | BP120: 4584.674689 | BQ120: 4630.404539 | BR120: 4689.041683 | BS120: 4722.151551 | BV120: 3758.460338 | BW120: 4060.032158 | BX120: 4385.408805 | BY120: 4724.783631 | BZ120: 5092.547749 | CA120: 5248.492449 | CB120: 5431.137711 | CC120: 5619.698039 | CD120: 5830.286469 | CE120: 6015.302575
B121: =Inputs!$C115 -> 70W Metal Halide | C121: Old light no volumes | D121: =IF($C121="NA","",'Unsmoothed Prices'!D119) -> 34.676 | E121: =IF($C121="NA","",'Smoothed Prices'!E121+$E$7) -> 39.93115088 | F121: 40.49204494 | G121: 41.03623619 | H121: 41.56422201 | I121: 42.076485 | J121: =IF($C121="NA","",'Smoothed Prices'!J121+$J$7) -> 42.53659886 | K121: 43.07561985 | L121: 43.61576891 | M121: 44.1570484 | N121: 44.69946069 | O121: ='Smoothed Prices'!N121 -> 44.70891781 | Q121: 40.90944457 | R121: 42.50041996 | S121: 44.12683591 | T121: 45.78958195 | U121: 47.48956928 | V121: 49.1850702 | W121: 51.02862019 | X121: 52.93434924 | Y121: 54.90423401 | Z121: 56.94031164 | AB121: =IFERROR(VLOOKUP($B121,Volumes!$B$39:$H$81,MATCH(AB$11,Volumes!$B$4:$H$4,0),FALSE),0) -> 0 | AC121: =IFERROR(VLOOKUP($B121,Volumes!$B$39:$H$81,MATCH(AC$11,Volumes!$B$4:$H$4,0),FALSE),0) -> 0 | AD121: =IFERROR(VLOOKUP($B121,Volumes!$B$39:$H$81,MATCH(AD$11,Volumes!$B$4:$H$4,0),FALSE),0) -> 0 | AE121: =IFERROR(VLOOKUP($B121,Volumes!$B$39:$H$81,MATCH(AE$11,Volumes!$B$4:$H$4,0),FALSE),0) -> 0 | AF121: =IFERROR(VLOOKUP($B121,Volumes!$B$39:$H$81,MATCH(AF$11,Volumes!$B$4:$H$4,0),FALSE),0) -> 0 | AG121: =IFERROR(VLOOKUP($B121,Volumes!$B$39:$M$81,MATCH(AG$11,Volumes!$B$4:$M$4,0),FALSE),0) -> 0 | AH121: =IFERROR(VLOOKUP($B121,Volumes!$B$39:$M$81,MATCH(AH$11,Volumes!$B$4:$M$4,0),FALSE),0) -> 0 | AI121: =IFERROR(VLOOKUP($B121,Volumes!$B$39:$M$81,MATCH(AI$11,Volumes!$B$4:$M$4,0),FALSE),0) -> 0 | AJ121: =IFERROR(VLOOKUP($B121,Volumes!$B$39:$M$81,MATCH(AJ$11,Volumes!$B$4:$M$4,0),FALSE),0) -> 0 | AK121: =IFERROR(VLOOKUP($B121,Volumes!$B$39:$M$81,MATCH(AK$11,Volumes!$B$4:$M$4,0),FALSE),0) -> 0 | AM121: 146.1480122 | AN121: 147.795964 | AO121: 149.7822621 | AP121: 151.7094103 | AQ121: 153.9999351 | AR121: 155.2585858 | AS121: 157.2260125 | AT121: 159.1975565 | AU121: 161.6147972 | AV121: 163.1530315 | AX121: 149.7285671 | AY121: 155.1265328 | AZ121: 161.0629511 | BA121: 167.1319741 | BB121: 173.8118236 | BC121: 179.5255062 | BD121: 186.2544637 | BE121: 193.2103747 | BF121: 200.9494965 | BG121: 207.8321375 | BJ121: 0 | BK121: 0 | BL121: 0 | BM121: 0 | BN121: 0 | BO121: 0 | BP121: 0 | BQ121: 0 | BR121: 0 | BS121: 0 | BV121: 0 | BW121: 0 | BX121: 0 | BY121: 0 | BZ121: 0 | CA121: 0 | CB121: 0 | CC121: 0 | CD121: 0 | CE121: 0
B122: =Inputs!$C116 -> 250W Metal Halide - Flood Light | C122: Obsolete, no new Connections | D122: =IF($C122="NA","",'Unsmoothed Prices'!D120) -> 54.883 | E122: =IF($C122="NA","",'Smoothed Prices'!E122+$E$7) -> 55.97451629 | F122: 56.05765649 | G122: 56.13832088 | H122: 56.21658316 | I122: 56.29251488 | J122: =IF($C122="NA","",'Smoothed Prices'!J122+$J$7) -> 56.78238018 | K122: 57.35121488 | L122: 57.92124004 | M122: 58.49245815 | N122: 59.06487171 | O122: ='Smoothed Prices'!N122 -> 59.07432883 | Q122: 57.34586459 | R122: 58.83807416 | S122: 60.36631776 | T122: 61.93148138 | U122: 63.53447265 | V122: 65.65746745 | W122: 67.9399013 | X122: 70.29620765 | Y122: 72.72867472 | Z122: 75.23965951 | AB122: =IFERROR(VLOOKUP($B122,Volumes!$B$39:$H$81,MATCH(AB$11,Volumes!$B$4:$H$4,0),FALSE),0) -> 36 | AC122: =IFERROR(VLOOKUP($B122,Volumes!$B$39:$H$81,MATCH(AC$11,Volumes!$B$4:$H$4,0),FALSE),0) -> 38 | AD122: =IFERROR(VLOOKUP($B122,Volumes!$B$39:$H$81,MATCH(AD$11,Volumes!$B$4:$H$4,0),FALSE),0) -> 40 | AE122: =IFERROR(VLOOKUP($B122,Volumes!$B$39:$H$81,MATCH(AE$11,Volumes!$B$4:$H$4,0),FALSE),0) -> 42 | AF122: =IFERROR(VLOOKUP($B122,Volumes!$B$39:$H$81,MATCH(AF$11,Volumes!$B$4:$H$4,0),FALSE),0) -> 44 | AG122: =IFERROR(VLOOKUP($B122,Volumes!$B$39:$M$81,MATCH(AG$11,Volumes!$B$4:$M$4,0),FALSE),0) -> 44 | AH122: =IFERROR(VLOOKUP($B122,Volumes!$B$39:$M$81,MATCH(AH$11,Volumes!$B$4:$M$4,0),FALSE),0) -> 44 | AI122: =IFERROR(VLOOKUP($B122,Volumes!$B$39:$M$81,MATCH(AI$11,Volumes!$B$4:$M$4,0),FALSE),0) -> 44 | AJ122: =IFERROR(VLOOKUP($B122,Volumes!$B$39:$M$81,MATCH(AJ$11,Volumes!$B$4:$M$4,0),FALSE),0) -> 44 | AK122: =IFERROR(VLOOKUP($B122,Volumes!$B$39:$M$81,MATCH(AK$11,Volumes!$B$4:$M$4,0),FALSE),0) -> 44 | AM122: 204.8667296 | AN122: 204.6104462 | AO122: 204.9048712 | AP122: 205.1905285 | AQ122: 206.0306045 | AR122: 207.2556877 | AS122: 209.3319343 | AT122: 211.4125261 | AU122: 214.0823968 | AV122: 215.5867817 | AX122: 209.8858644 | AY122: 214.7589707 | AZ122: 220.3370598 | BA122: 226.049907 | BB122: 232.5361699 | BC122: 239.6497562 | BD122: 247.9806397 | BE122: 256.5811579 | BF122: 266.1869495 | BG122: 274.6247572 | BJ122: 7375.202266 | BK122: 7775.196956 | BL122: 8196.194848 | BM122: 8618.002199 | BN122: 9065.346596 | BO122: 9119.250257 | BP122: 9210.605109 | BQ122: 9302.15115 | BR122: 9419.62546 | BS122: 9485.818397 | BV122: 7555.891119 | BW122: 8160.840886 | BX122: 8813.482394 | BY122: 9494.096095 | BZ122: 10231.59148 | CA122: 10544.58927 | CB122: 10911.14815 | CC122: 11289.57095 | CD122: 11712.22578 | CE122: 12083.48932
B123: =Inputs!$C117 -> 400W Metal Halide - Flood Light | C123: Obsolete, no new Connections | D123: =IF($C123="NA","",'Unsmoothed Prices'!D121) -> 54.733 | E123: =IF($C123="NA","",'Smoothed Prices'!E123+$E$7) -> 55.6858208 | F123: 55.77755804 | G123: 55.86656345 | H123: 55.95291837 | I123: 56.03670174 | J123: =IF($C123="NA","",'Smoothed Prices'!J123+$J$7) -> 56.52603167 | K123: 57.09432988 | L123: 57.66381743 | M123: 58.2344968 | N123: 58.8063705 | O123: ='Smoothed Prices'!N123 -> 58.81582763 | Q123: 57.05009621 | R123: 58.54408303 | S123: 60.07409322 | T123: 61.6410128 | U123: 63.24574949 | V123: 65.36105167 | W123: 67.63558793 | X123: 69.98378629 | Y123: 72.40792933 | Z123: 74.9103683 | AB123: =IFERROR(VLOOKUP($B123,Volumes!$B$39:$H$81,MATCH(AB$11,Volumes!$B$4:$H$4,0),FALSE),0) -> 36 | AC123: =IFERROR(VLOOKUP($B123,Volumes!$B$39:$H$81,MATCH(AC$11,Volumes!$B$4:$H$4,0),FALSE),0) -> 38 | AD123: =IFERROR(VLOOKUP($B123,Volumes!$B$39:$H$81,MATCH(AD$11,Volumes!$B$4:$H$4,0),FALSE),0) -> 40 | AE123: =IFERROR(VLOOKUP($B123,Volumes!$B$39:$H$81,MATCH(AE$11,Volumes!$B$4:$H$4,0),FALSE),0) -> 42 | AF123: =IFERROR(VLOOKUP($B123,Volumes!$B$39:$H$81,MATCH(AF$11,Volumes!$B$4:$H$4,0),FALSE),0) -> 44 | AG123: =IFERROR(VLOOKUP($B123,Volumes!$B$39:$M$81,MATCH(AG$11,Volumes!$B$4:$M$4,0),FALSE),0) -> 44 | AH123: =IFERROR(VLOOKUP($B123,Volumes!$B$39:$M$81,MATCH(AH$11,Volumes!$B$4:$M$4,0),FALSE),0) -> 44 | AI123: =IFERROR(VLOOKUP($B123,Volumes!$B$39:$M$81,MATCH(AI$11,Volumes!$B$4:$M$4,0),FALSE),0) -> 44 | AJ123: =IFERROR(VLOOKUP($B123,Volumes!$B$39:$M$81,MATCH(AJ$11,Volumes!$B$4:$M$4,0),FALSE),0) -> 44 | AK123: =IFERROR(VLOOKUP($B123,Volumes!$B$39:$M$81,MATCH(AK$11,Volumes!$B$4:$M$4,0),FALSE),0) -> 44 | AM123: 203.8101041 | AN123: 203.5880868 | AO123: 203.9129566 | AP123: 204.2281521 | AQ123: 205.0943284 | AR123: 206.3200156 | AS123: 208.3943041 | AT123: 210.4729336 | AU123: 213.1382583 | AV123: 214.6432523 | AX123: 208.8033521 | AY123: 213.6859031 | AZ123: 219.2704403 | BA123: 224.9896967 | BB123: 231.4794431 | BC123: 238.5678386 | BD123: 246.8698959 | BE123: 255.4408199 | BF123: 265.0130213 | BG123: 273.4228443 | BJ123: 7337.163749 | BK123: 7736.3473 | BL123: 8156.518263 | BM123: 8577.582386 | BN123: 9024.150448 | BO123: 9078.080687 | BP123: 9169.349379 | BQ123: 9260.809079 | BR123: 9378.083365 | BS123: 9444.303103 | BV123: 7516.920676 | BW123: 8120.064317 | BX123: 8770.81761 | BY123: 9449.567262 | BZ123: 10185.0955 | CA123: 10496.9849 | CB123: 10862.27542 | CC123: 11239.39608 | CD123: 11660.57294 | CE123: 12030.60515
B124: =Inputs!$C118 -> 125W Mercury Vapour | C124: Obsolete, no new Connections | D124: =IF($C124="NA","",'Unsmoothed Prices'!D122) -> 45.386 | E124: =IF($C124="NA","",'Smoothed Prices'!E124+$E$7) -> 47.47471334 | F124: 47.81096837 | G124: 48.13721009 | H124: 48.45373669 | I124: 48.76083748 | J124: =IF($C124="NA","",'Smoothed Prices'!J124+$J$7) -> 49.23494041 | K124: 49.78797976 | L124: 50.34217651 | M124: 50.89753308 | N124: 51.45405192 | O124: ='Smoothed Prices'!N124 -> 51.46350904 | Q124: 48.63782062 | R124: 50.18235649 | S124: 51.76261198 | T124: 53.37947493 | U124: 55.03385489 | V124: 56.93036268 | W124: 58.98027509 | X124: 61.09786481 | Y124: 63.28525497 | Z124: 65.54463312 | AB124: =IFERROR(VLOOKUP($B124,Volumes!$B$39:$H$81,MATCH(AB$11,Volumes!$B$4:$H$4,0),FALSE),0) -> 0 | AC124: =IFERROR(VLOOKUP($B124,Volumes!$B$39:$H$81,MATCH(AC$11,Volumes!$B$4:$H$4,0),FALSE),0) -> 0 | AD124: =IFERROR(VLOOKUP($B124,Volumes!$B$39:$H$81,MATCH(AD$11,Volumes!$B$4:$H$4,0),FALSE),0) -> 0 | AE124: =IFERROR(VLOOKUP($B124,Volumes!$B$39:$H$81,MATCH(AE$11,Volumes!$B$4:$H$4,0),FALSE),0) -> 0 | AF124: =IFERROR(VLOOKUP($B124,Volumes!$B$39:$H$81,MATCH(AF$11,Volumes!$B$4:$H$4,0),FALSE),0) -> 0 | AG124: =IFERROR(VLOOKUP($B124,Volumes!$B$39:$M$81,MATCH(AG$11,Volumes!$B$4:$M$4,0),FALSE),0) -> 0 | AH124: =IFERROR(VLOOKUP($B124,Volumes!$B$39:$M$81,MATCH(AH$11,Volumes!$B$4:$M$4,0),FALSE),0) -> 0 | AI124: =IFERROR(VLOOKUP($B124,Volumes!$B$39:$M$81,MATCH(AI$11,Volumes!$B$4:$M$4,0),FALSE),0) -> 0 | AJ124: =IFERROR(VLOOKUP($B124,Volumes!$B$39:$M$81,MATCH(AJ$11,Volumes!$B$4:$M$4,0),FALSE),0) -> 0 | AK124: =IFERROR(VLOOKUP($B124,Volumes!$B$39:$M$81,MATCH(AK$11,Volumes!$B$4:$M$4,0),FALSE),0) -> 0 | AM124: 173.7574508 | AN124: 174.5100345 | AO124: 175.7008168 | AP124: 176.8561389 | AQ124: 178.4646652 | AR124: 179.7075325 | AS124: 181.7261261 | AT124: 183.7489442 | AU124: 186.2849711 | AV124: 187.8072895 | AX124: 178.0144235 | AY124: 183.1656012 | AZ124: 188.9335337 | BA124: 194.8350835 | BB124: 201.4239089 | BC124: 207.7958238 | BD124: 215.2780041 | BE124: 223.0072066 | BF124: 231.6240332 | BG124: 239.2379109 | BJ124: 0 | BK124: 0 | BL124: 0 | BM124: 0 | BN124: 0 | BO124: 0 | BP124: 0 | BQ124: 0 | BR124: 0 | BS124: 0 | BV124: 0 | BW124: 0 | BX124: 0 | BY124: 0 | BZ124: 0 | CA124: 0 | CB124: 0 | CC124: 0 | CD124: 0 | CE124: 0
B125: =Inputs!$C119 -> 250W Mercury Vapour | C125: Obsolete, no new Connections | D125: =IF($C125="NA","",'Unsmoothed Prices'!D123) -> 45.865 | E125: =IF($C125="NA","",'Smoothed Prices'!E125+$E$7) -> 47.90319822 | F125: 48.22669344 | G125: 48.54055532 | H125: 48.84507075 | I125: 49.14051803 | J125: =IF($C125="NA","",'Smoothed Prices'!J125+$J$7) -> 49.61541557 | K125: 50.16925117 | L125: 50.72424585 | M125: 51.28040203 | N125: 51.83772213 | O125: ='Smoothed Prices'!N125 -> 51.84717925 | Q125: 49.07680317 | R125: 50.61870122 | S125: 52.19633472 | T125: 53.81059145 | U125: 55.46238084 | V125: 57.37030611 | W125: 59.4319402 | X125: 61.5615639 | Y125: 63.76130867 | Z125: 66.03337059 | AB125: =IFERROR(VLOOKUP($B125,Volumes!$B$39:$H$81,MATCH(AB$11,Volumes!$B$4:$H$4,0),FALSE),0) -> 386 | AC125: =IFERROR(VLOOKUP($B125,Volumes!$B$39:$H$81,MATCH(AC$11,Volumes!$B$4:$H$4,0),FALSE),0) -> 356 | AD125: =IFERROR(VLOOKUP($B125,Volumes!$B$39:$H$81,MATCH(AD$11,Volumes!$B$4:$H$4,0),FALSE),0) -> 301 | AE125: =IFERROR(VLOOKUP($B125,Volumes!$B$39:$H$81,MATCH(AE$11,Volumes!$B$4:$H$4,0),FALSE),0) -> 248 | AF125: =IFERROR(VLOOKUP($B125,Volumes!$B$39:$H$81,MATCH(AF$11,Volumes!$B$4:$H$4,0),FALSE),0) -> 231 | AG125: =IFERROR(VLOOKUP($B125,Volumes!$B$39:$M$81,MATCH(AG$11,Volumes!$B$4:$M$4,0),FALSE),0) -> 231 | AH125: =IFERROR(VLOOKUP($B125,Volumes!$B$39:$M$81,MATCH(AH$11,Volumes!$B$4:$M$4,0),FALSE),0) -> 231 | AI125: =IFERROR(VLOOKUP($B125,Volumes!$B$39:$M$81,MATCH(AI$11,Volumes!$B$4:$M$4,0),FALSE),0) -> 231 | AJ125: =IFERROR(VLOOKUP($B125,Volumes!$B$39:$M$81,MATCH(AJ$11,Volumes!$B$4:$M$4,0),FALSE),0) -> 231 | AK125: =IFERROR(VLOOKUP($B125,Volumes!$B$39:$M$81,MATCH(AK$11,Volumes!$B$4:$M$4,0),FALSE),0) -> 231 | AM125: 175.3257055 | AN125: 176.027431 | AO125: 177.1730269 | AP125: 178.2845082 | AQ125: 179.854296 | AR125: 181.0962668 | AS125: 183.1177668 | AT125: 185.1434974 | AU125: 187.6862714 | AV125: 189.2076858 | AX125: 179.6210996 | AY125: 184.7582594 | AZ125: 190.5166217 | BA125: 196.4086588 | BB125: 202.9923139 | BC125: 209.4016173 | BD125: 216.9265817 | BE125: 224.6997082 | BF125: 233.3663897 | BG125: 241.0218027 | BJ125: 67675.72232 | BK125: 62665.76545 | BL125: 53329.08111 | BM125: 44214.55804 | BN125: 41546.34238 | BO125: 41833.23764 | BP125: 42300.20413 | BQ125: 42768.14789 | BR125: 43355.5287 | BS125: 43706.97542 | BV125: 69333.74445 | BW125: 65773.94036 | BX125: 57345.50314 | BY125: 48709.34738 | BZ125: 46891.22451 | CA125: 48371.7736 | CB125: 50110.04038 | CC125: 51905.6326 | CD125: 53907.63603 | CE125: 55676.03642
B126: =Inputs!$C120 -> 0 | C126: NA | D126: =IF($C126="NA","",'Unsmoothed Prices'!D124) ->  | E126: =IF($C126="NA","",'Smoothed Prices'!E126+$E$7) ->  | J126: =IF($C126="NA","",'Smoothed Prices'!J126+$J$7) ->  | O126: ='Smoothed Prices'!N126 ->  | AB126: =IFERROR(VLOOKUP($B126,Volumes!$B$39:$H$81,MATCH(AB$11,Volumes!$B$4:$H$4,0),FALSE),0) -> 0 | AC126: =IFERROR(VLOOKUP($B126,Volumes!$B$39:$H$81,MATCH(AC$11,Volumes!$B$4:$H$4,0),FALSE),0) -> 0 | AD126: =IFERROR(VLOOKUP($B126,Volumes!$B$39:$H$81,MATCH(AD$11,Volumes!$B$4:$H$4,0),FALSE),0) -> 0 | AE126: =IFERROR(VLOOKUP($B126,Volumes!$B$39:$H$81,MATCH(AE$11,Volumes!$B$4:$H$4,0),FALSE),0) -> 0 | AF126: =IFERROR(VLOOKUP($B126,Volumes!$B$39:$H$81,MATCH(AF$11,Volumes!$B$4:$H$4,0),FALSE),0) -> 0 | AG126: =IFERROR(VLOOKUP($B126,Volumes!$B$39:$M$81,MATCH(AG$11,Volumes!$B$4:$M$4,0),FALSE),0) -> 0 | AH126: =IFERROR(VLOOKUP($B126,Volumes!$B$39:$M$81,MATCH(AH$11,Volumes!$B$4:$M$4,0),FALSE),0) -> 0 | AI126: =IFERROR(VLOOKUP($B126,Volumes!$B$39:$M$81,MATCH(AI$11,Volumes!$B$4:$M$4,0),FALSE),0) -> 0 | AJ126: =IFERROR(VLOOKUP($B126,Volumes!$B$39:$M$81,MATCH(AJ$11,Volumes!$B$4:$M$4,0),FALSE),0) -> 0 | AK126: =IFERROR(VLOOKUP($B126,Volumes!$B$39:$M$81,MATCH(AK$11,Volumes!$B$4:$M$4,0),FALSE),0) -> 0 | BJ126: 0 | BK126: 0 | BL126: 0 | BM126: 0 | BN126: 0 | BO126: 0 | BP126: 0 | BQ126: 0 | BR126: 0 | BS126: 0 | BV126: 0 | BW126: 0 | BX126: 0 | BY126: 0 | BZ126: 0 | CA126: 0 | CB126: 0 | CC126: 0 | CD126: 0 | CE126: 0
B127: =Inputs!$C121 -> 400W Mercury Vapour | C127: Obsolete, no new Connections | D127: =IF($C127="NA","",'Unsmoothed Prices'!D125) -> 48.033 | E127: =IF($C127="NA","",'Smoothed Prices'!E127+$E$7) -> 49.40542772 | F127: 49.68418819 | G127: 49.95464748 | H127: 50.21705279 | I127: 50.47164395 | J127: =IF($C127="NA","",'Smoothed Prices'!J127+$J$7) -> 50.94932728 | K127: 51.50595451 | L127: 52.06374665 | M127: 52.62270615 | N127: 53.18283544 | O127: ='Smoothed Prices'!N127 -> 53.19229256 | Q127: 50.61583657 | R127: 52.14848662 | S127: 53.7169277 | T127: 55.32204724 | U127: 56.96475436 | V127: 58.91270825 | W127: 61.01543748 | X127: 63.18725123 | Y127: 65.43031016 | Z127: 67.74684028 | AB127: =IFERROR(VLOOKUP($B127,Volumes!$B$39:$H$81,MATCH(AB$11,Volumes!$B$4:$H$4,0),FALSE),0) -> 29 | AC127: =IFERROR(VLOOKUP($B127,Volumes!$B$39:$H$81,MATCH(AC$11,Volumes!$B$4:$H$4,0),FALSE),0) -> 27 | AD127: =IFERROR(VLOOKUP($B127,Volumes!$B$39:$H$81,MATCH(AD$11,Volumes!$B$4:$H$4,0),FALSE),0) -> 23 | AE127: =IFERROR(VLOOKUP($B127,Volumes!$B$39:$H$81,MATCH(AE$11,Volumes!$B$4:$H$4,0),FALSE),0) -> 20 | AF127: =IFERROR(VLOOKUP($B127,Volumes!$B$39:$H$81,MATCH(AF$11,Volumes!$B$4:$H$4,0),FALSE),0) -> 17 | AG127: =IFERROR(VLOOKUP($B127,Volumes!$B$39:$M$81,MATCH(AG$11,Volumes!$B$4:$M$4,0),FALSE),0) -> 17 | AH127: =IFERROR(VLOOKUP($B127,Volumes!$B$39:$M$81,MATCH(AH$11,Volumes!$B$4:$M$4,0),FALSE),0) -> 17 | AI127: =IFERROR(VLOOKUP($B127,Volumes!$B$39:$M$81,MATCH(AI$11,Volumes!$B$4:$M$4,0),FALSE),0) -> 17 | AJ127: =IFERROR(VLOOKUP($B127,Volumes!$B$39:$M$81,MATCH(AJ$11,Volumes!$B$4:$M$4,0),FALSE),0) -> 17 | AK127: =IFERROR(VLOOKUP($B127,Volumes!$B$39:$M$81,MATCH(AK$11,Volumes!$B$4:$M$4,0),FALSE),0) -> 17 | AM127: 180.8238655 | AN127: 181.3472869 | AO127: 182.3344633 | AP127: 183.2922427 | AQ127: 184.7262169 | AR127: 185.9650446 | AS127: 187.996734 | AT127: 190.0326753 | AU127: 192.5991045 | AV127: 194.1173494 | AX127: 185.2539618 | AY127: 190.3419761 | AZ127: 196.0667861 | BA127: 201.9254724 | BB127: 208.4910009 | BC127: 215.0313851 | BD127: 222.7063468 | BE127: 230.633467 | BF127: 239.4749352 | BG127: 247.275967 | BJ127: 5243.892099 | BK127: 4896.376746 | BL127: 4193.692656 | BM127: 3665.844854 | BN127: 3140.345687 | BO127: 3161.405758 | BP127: 3195.944477 | BQ127: 3230.55548 | BR127: 3274.184776 | BS127: 3299.994939 | BV127: =IFERROR(AX127*AB127,0) -> 5372.364893 | BW127: 5139.233356 | BX127: 4509.53608 | BY127: 4038.509449 | BZ127: 3544.347016 | CA127: 3655.533547 | CB127: 3786.007895 | CC127: 3920.768939 | CD127: 4071.073898 | CE127: 4203.691439
B128: =Inputs!$C122 -> 50W Mercury Vapour | C128: Obsolete, no new Connections | D128: =IF($C128="NA","",'Unsmoothed Prices'!D126) -> 33.519 | E128: =IF($C128="NA","",'Smoothed Prices'!E128+$E$7) -> 38.24253552 | F128: 38.85371469 | G128: 39.44669362 | H128: 40.02201428 | I128: 40.58020253 | J128: =IF($C128="NA","",'Smoothed Prices'!J128+$J$7) -> 41.03718496 | K128: 41.57306796 | L128: 42.11007247 | M128: 42.64820082 | N128: 43.18745537 | O128: ='Smoothed Prices'!N128 -> 43.19691249 | Q128: 39.17945895 | R128: 40.78082976 | S128: 42.41757866 | T128: 44.09059557 | U128: 45.80079204 | V128: 47.45129787 | W128: 49.24865393 | X128: 51.10695829 | Y128: 53.02815479 | Z128: 55.01424693 | AB128: =IFERROR(VLOOKUP($B128,Volumes!$B$39:$H$81,MATCH(AB$11,Volumes!$B$4:$H$4,0),FALSE),0) -> 0 | AC128: =IFERROR(VLOOKUP($B128,Volumes!$B$39:$H$81,MATCH(AC$11,Volumes!$B$4:$H$4,0),FALSE),0) -> 0 | AD128: =IFERROR(VLOOKUP($B128,Volumes!$B$39:$H$81,MATCH(AD$11,Volumes!$B$4:$H$4,0),FALSE),0) -> 0 | AE128: =IFERROR(VLOOKUP($B128,Volumes!$B$39:$H$81,MATCH(AE$11,Volumes!$B$4:$H$4,0),FALSE),0) -> 0 | AF128: =IFERROR(VLOOKUP($B128,Volumes!$B$39:$H$81,MATCH(AF$11,Volumes!$B$4:$H$4,0),FALSE),0) -> 0 | AG128: =IFERROR(VLOOKUP($B128,Volumes!$B$39:$M$81,MATCH(AG$11,Volumes!$B$4:$M$4,0),FALSE),0) -> 0 | AH128: =IFERROR(VLOOKUP($B128,Volumes!$B$39:$M$81,MATCH(AH$11,Volumes!$B$4:$M$4,0),FALSE),0) -> 0 | AI128: =IFERROR(VLOOKUP($B128,Volumes!$B$39:$M$81,MATCH(AI$11,Volumes!$B$4:$M$4,0),FALSE),0) -> 0 | AJ128: =IFERROR(VLOOKUP($B128,Volumes!$B$39:$M$81,MATCH(AJ$11,Volumes!$B$4:$M$4,0),FALSE),0) -> 0 | AK128: =IFERROR(VLOOKUP($B128,Volumes!$B$39:$M$81,MATCH(AK$11,Volumes!$B$4:$M$4,0),FALSE),0) -> 0 | AM128: 139.96768 | AN128: 141.8160586 | AO128: 143.9804317 | AP128: 146.0803521 | AQ128: 148.5235413 | AR128: 149.7857251 | AS128: 151.7416981 | AT128: 153.7017645 | AU128: 156.092415 | AV128: 157.6342121 | AX128: 143.3968198 | AY128: 148.8500286 | AZ128: 154.8241621 | BA128: 160.9306738 | BB128: 167.6308989 | BC128: 173.1972372 | BD128: 179.7575868 | BE128: 186.5403977 | BF128: 194.0830465 | BG128: 200.8020013 | BJ128: 0 | BK128: 0 | BL128: 0 | BM128: 0 | BN128: 0 | BO128: 0 | BP128: 0 | BQ128: 0 | BR128: 0 | BS128: 0 | BV128: 0 | BW128: 0 | BX128: 0 | BY128: 0 | BZ128: 0 | CA128: 0 | CB128: 0 | CC128: 0 | CD128: 0 | CE128: 0
B129: =Inputs!$C123 -> 80W Mercury Vapour Art decorative | C129: Obsolete, no new Connections | D129: =IF($C129="NA","",'Unsmoothed Prices'!D127) -> 50.566 | E129: =IF($C129="NA","",'Smoothed Prices'!E129+$E$7) -> 54.17852646 | F129: 54.31514928 | G129: 54.44770362 | H129: 54.57631063 | I129: 54.70108787 | J129: =IF($C129="NA","",'Smoothed Prices'!J129+$J$7) -> 55.18762262 | K129: 55.75311979 | L129: 56.31980044 | M129: 56.88766705 | N129: 57.45672209 | O129: ='Smoothed Prices'!N129 -> 57.46617921 | Q129: 55.50587389 | R129: 57.00913989 | S129: 58.54837349 | T129: 60.12446107 | U129: 61.73831066 | V129: 63.81344925 | W129: 66.04675182 | X129: 68.35261787 | Y129: 70.73330073 | Z129: 73.19112158 | AB129: =IFERROR(VLOOKUP($B129,Volumes!$B$39:$H$81,MATCH(AB$11,Volumes!$B$4:$H$4,0),FALSE),0) -> 40 | AC129: =IFERROR(VLOOKUP($B129,Volumes!$B$39:$H$81,MATCH(AC$11,Volumes!$B$4:$H$4,0),FALSE),0) -> 40 | AD129: =IFERROR(VLOOKUP($B129,Volumes!$B$39:$H$81,MATCH(AD$11,Volumes!$B$4:$H$4,0),FALSE),0) -> 40 | AE129: =IFERROR(VLOOKUP($B129,Volumes!$B$39:$H$81,MATCH(AE$11,Volumes!$B$4:$H$4,0),FALSE),0) -> 40 | AF129: =IFERROR(VLOOKUP($B129,Volumes!$B$39:$H$81,MATCH(AF$11,Volumes!$B$4:$H$4,0),FALSE),0) -> 40 | AG129: =IFERROR(VLOOKUP($B129,Volumes!$B$39:$M$81,MATCH(AG$11,Volumes!$B$4:$M$4,0),FALSE),0) -> 40 | AH129: =IFERROR(VLOOKUP($B129,Volumes!$B$39:$M$81,MATCH(AH$11,Volumes!$B$4:$M$4,0),FALSE),0) -> 40 | AI129: =IFERROR(VLOOKUP($B129,Volumes!$B$39:$M$81,MATCH(AI$11,Volumes!$B$4:$M$4,0),FALSE),0) -> 40 | AJ129: =IFERROR(VLOOKUP($B129,Volumes!$B$39:$M$81,MATCH(AJ$11,Volumes!$B$4:$M$4,0),FALSE),0) -> 40 | AK129: =IFERROR(VLOOKUP($B129,Volumes!$B$39:$M$81,MATCH(AK$11,Volumes!$B$4:$M$4,0),FALSE),0) -> 40 | AM129: 198.2934068 | AN129: 198.2502949 | AO129: 198.7341182 | AP129: 199.2035338 | AQ129: 200.2059816 | AR129: 201.4348226 | AS129: 203.4988872 | AT129: 205.5672716 | AU129: 208.2088614 | AV129: 209.7170356 | AX129: 203.1514984 | AY129: 208.0833606 | AZ129: 213.7015633 | BA129: 219.4542829 | BB129: 225.962217 | BC129: 232.9190898 | BD129: 241.0706441 | BE129: 249.4870552 | BF129: 258.8838807 | BG129: 267.1475938 | BJ129: 7931.736274 | BK129: 7930.011795 | BL129: 7949.364728 | BM129: 7968.141352 | BN129: 8008.239264 | BO129: 8057.392902 | BP129: 8139.95549 | BQ129: 8222.690865 | BR129: 8328.354456 | BS129: 8388.681425 | BV129: 8126.059938 | BW129: =IFERROR(AY129*AC129,0) -> 8323.334424 | BX129: 8548.06253 | BY129: 8778.171316 | BZ129: 9038.48868 | CA129: 9316.76359 | CB129: 9642.825766 | CC129: 9979.482209 | CD129: 10355.35523 | CE129: 10685.90375
B130: =Inputs!$C124 -> 80W Mercury Vapour | C130: Obsolete, no new Connections | D130: =IF($C130="NA","",'Unsmoothed Prices'!D128) -> 33.52 | E130: =IF($C130="NA","",'Smoothed Prices'!E130+$E$7) -> 38.23037992 | F130: 38.84192107 | G130: 39.4352512 | H130: 40.01091261 | I130: 40.56943145 | J130: =IF($C130="NA","",'Smoothed Prices'!J130+$J$7) -> 41.02639133 | K130: 41.56225175 | L130: 42.09923362 | M130: 42.63733929 | N130: 43.17657111 | O130: ='Smoothed Prices'!N130 -> 43.18602823 | Q130: 39.16700555 | R130: 40.76845119 | S130: 42.40527447 | T130: 44.07836531 | U130: 45.78863528 | V130: 47.4388172 | W130: 49.23584073 | X130: 51.0938037 | Y130: 53.01464972 | Z130: 55.00038204 | AB130: =IFERROR(VLOOKUP($B130,Volumes!$B$39:$H$81,MATCH(AB$11,Volumes!$B$4:$H$4,0),FALSE),0) -> 3200 | AC130: =IFERROR(VLOOKUP($B130,Volumes!$B$39:$H$81,MATCH(AC$11,Volumes!$B$4:$H$4,0),FALSE),0) -> 0 | AD130: =IFERROR(VLOOKUP($B130,Volumes!$B$39:$H$81,MATCH(AD$11,Volumes!$B$4:$H$4,0),FALSE),0) -> 0 | AE130: =IFERROR(VLOOKUP($B130,Volumes!$B$39:$H$81,MATCH(AE$11,Volumes!$B$4:$H$4,0),FALSE),0) -> 0 | AF130: =IFERROR(VLOOKUP($B130,Volumes!$B$39:$H$81,MATCH(AF$11,Volumes!$B$4:$H$4,0),FALSE),0) -> 0 | AG130: =IFERROR(VLOOKUP($B130,Volumes!$B$39:$M$81,MATCH(AG$11,Volumes!$B$4:$M$4,0),FALSE),0) -> 0 | AH130: =IFERROR(VLOOKUP($B130,Volumes!$B$39:$M$81,MATCH(AH$11,Volumes!$B$4:$M$4,0),FALSE),0) -> 0 | AI130: =IFERROR(VLOOKUP($B130,Volumes!$B$39:$M$81,MATCH(AI$11,Volumes!$B$4:$M$4,0),FALSE),0) -> 0 | AJ130: =IFERROR(VLOOKUP($B130,Volumes!$B$39:$M$81,MATCH(AJ$11,Volumes!$B$4:$M$4,0),FALSE),0) -> 0 | AK130: =IFERROR(VLOOKUP($B130,Volumes!$B$39:$M$81,MATCH(AK$11,Volumes!$B$4:$M$4,0),FALSE),0) -> 0 | AM130: 139.9231905 | AN130: 141.7730119 | AO130: 143.9386669 | AP130: 146.039831 | AQ130: 148.4841191 | AR130: 149.7463284 | AS130: 151.7022189 | AT130: 153.6622027 | AU130: 156.0526618 | AV130: 157.5944846 | AX130: 143.3512403 | AY130: 148.8048468 | AZ130: 154.7792518 | BA130: 160.8860334 | BB130: 167.5864051 | BC130: 173.1516828 | BD130: 179.7108187 | BE130: 186.4923835 | BF130: 194.033618 | BG130: 200.7513944 | BJ130: 447754.2096 | BK130: 0 | BL130: 0 | BM130: 0 | BN130: 0 | BO130: 0 | BP130: 0 | BQ130: 0 | BR130: 0 | BS130: 0 | BV130: 458723.969 | BW130: 0 | BX130: 0 | BY130: 0 | BZ130: 0 | CA130: 0 | CB130: 0 | CC130: 0 | CD130: 0 | CE130: 0
B131: =Inputs!$C125 -> 14W LED | C131: Offered | D131: =IF($C131="NA","",'Unsmoothed Prices'!D129) ->  | E131: =IF($C131="NA","",'Smoothed Prices'!E131+$E$7) -> 36.88617321 | F131: 37.53774336 | G131: 38.16991048 | H131: 38.78325234 | I131: 39.37832956 | J131: =IF($C131="NA","",'Smoothed Prices'!J131+$J$7) -> 39.8327967 | K131: 40.36615915 | L131: 40.90063782 | M131: 41.43623506 | N131: 41.9729532 | O131: ='Smoothed Prices'!N131 -> 41.98241032 | Q131: 37.78986643 | R131: =IF($C131="NA","",F131*R$9) -> 39.39958724 | S131: 41.04463598 | T131: 42.72590284 | U131: 44.44429971 | V131: 46.0586637 | W131: 47.81891498 | X131: 49.63912596 | Y131: 51.52121414 | Z131: 53.46715596 | AB131: =IFERROR(VLOOKUP($B131,Volumes!$B$39:$H$81,MATCH(AB$11,Volumes!$B$4:$H$4,0),FALSE),0) -> 10871 | AC131: =IFERROR(VLOOKUP($B131,Volumes!$B$39:$H$81,MATCH(AC$11,Volumes!$B$4:$H$4,0),FALSE),0) -> 12681 | AD131: =IFERROR(VLOOKUP($B131,Volumes!$B$39:$H$81,MATCH(AD$11,Volumes!$B$4:$H$4,0),FALSE),0) -> 12761 | AE131: =IFERROR(VLOOKUP($B131,Volumes!$B$39:$H$81,MATCH(AE$11,Volumes!$B$4:$H$4,0),FALSE),0) -> 12841 | AF131: =IFERROR(VLOOKUP($B131,Volumes!$B$39:$H$81,MATCH(AF$11,Volumes!$B$4:$H$4,0),FALSE),0) -> 12876 | AG131: =IFERROR(VLOOKUP($B131,Volumes!$B$39:$M$81,MATCH(AG$11,Volumes!$B$4:$M$4,0),FALSE),0) -> 12876 | AH131: =IFERROR(VLOOKUP($B131,Volumes!$B$39:$M$81,MATCH(AH$11,Volumes!$B$4:$M$4,0),FALSE),0) -> 12876 | AI131: =IFERROR(VLOOKUP($B131,Volumes!$B$39:$M$81,MATCH(AI$11,Volumes!$B$4:$M$4,0),FALSE),0) -> 12876 | AJ131: =IFERROR(VLOOKUP($B131,Volumes!$B$39:$M$81,MATCH(AJ$11,Volumes!$B$4:$M$4,0),FALSE),0) -> 12876 | AK131: =IFERROR(VLOOKUP($B131,Volumes!$B$39:$M$81,MATCH(AK$11,Volumes!$B$4:$M$4,0),FALSE),0) -> 12876 | AM131: 135.0033939 | AN131: 137.0127633 | AO131: 139.3201732 | AP131: 141.5588711 | AQ131: 144.1246862 | AR131: 145.389708 | AS131: 147.3364809 | AT131: 149.2873281 | AU131: 151.6566203 | AV131: 153.2012792 | AX131: 138.3109111 | AY131: =IF($C131="NA","",(R131*AY$9)/100) -> 143.8084934 | AZ131: 149.8129213 | BA131: 155.9495454 | BB131: 162.6661369 | BC131: 168.1141225 | BD131: 174.5390397 | BE131: 181.1828097 | BF131: 188.5676437 | BG131: 195.1551192 | BJ131: 1467621.895 | BK131: 1737458.851 | BL131: 1777864.731 | BM131: 1817757.463 | BN131: 1855749.46 | BO131: 1872037.88 | BP131: 1897104.528 | BQ131: 1922223.636 | BR131: 1952730.643 | BS131: 1972619.671 | BV131: 1503577.915 | BW131: =IFERROR(AY131*AC131,0) -> 1823635.505 | BX131: 1911762.689 | BY131: 2002548.112 | BZ131: 2094489.179 | CA131: 2164637.441 | CB131: 2247364.675 | CC131: 2332909.858 | CD131: 2427996.981 | CE131: 2512817.315
B132: =Inputs!$C126 -> New technology - Minor | C132: Offered | D132: =IF($C132="NA","",'Unsmoothed Prices'!D130) ->  | E132: =IF($C132="NA","",'Smoothed Prices'!E132+$E$7) -> 36.88617321 | F132: 37.53774336 | G132: 38.16991048 | H132: 38.78325234 | I132: 39.37832956 | J132: =IF($C132="NA","",'Smoothed Prices'!J132+$J$7) -> 39.8327967 | K132: 40.36615915 | L132: 40.90063782 | M132: 41.43623506 | N132: 41.9729532 | O132: ='Smoothed Prices'!N132 -> 41.98241032 | Q132: 37.78986643 | R132: 39.39958724 | S132: 41.04463598 | T132: 42.72590284 | U132: 44.44429971 | V132: 46.0586637 | W132: 47.81891498 | X132: 49.63912596 | Y132: 51.52121414 | Z132: 53.46715596 | AB132: =IFERROR(VLOOKUP($B132,Volumes!$B$39:$H$81,MATCH(AB$11,Volumes!$B$4:$H$4,0),FALSE),0) -> 0 | AC132: =IFERROR(VLOOKUP($B132,Volumes!$B$39:$H$81,MATCH(AC$11,Volumes!$B$4:$H$4,0),FALSE),0) -> 0 | AD132: =IFERROR(VLOOKUP($B132,Volumes!$B$39:$H$81,MATCH(AD$11,Volumes!$B$4:$H$4,0),FALSE),0) -> 0 | AE132: =IFERROR(VLOOKUP($B132,Volumes!$B$39:$H$81,MATCH(AE$11,Volumes!$B$4:$H$4,0),FALSE),0) -> 0 | AF132: =IFERROR(VLOOKUP($B132,Volumes!$B$39:$H$81,MATCH(AF$11,Volumes!$B$4:$H$4,0),FALSE),0) -> 0 | AG132: =IFERROR(VLOOKUP($B132,Volumes!$B$39:$M$81,MATCH(AG$11,Volumes!$B$4:$M$4,0),FALSE),0) -> 0 | AH132: =IFERROR(VLOOKUP($B132,Volumes!$B$39:$M$81,MATCH(AH$11,Volumes!$B$4:$M$4,0),FALSE),0) -> 0 | AI132: =IFERROR(VLOOKUP($B132,Volumes!$B$39:$M$81,MATCH(AI$11,Volumes!$B$4:$M$4,0),FALSE),0) -> 0 | AJ132: =IFERROR(VLOOKUP($B132,Volumes!$B$39:$M$81,MATCH(AJ$11,Volumes!$B$4:$M$4,0),FALSE),0) -> 0 | AK132: =IFERROR(VLOOKUP($B132,Volumes!$B$39:$M$81,MATCH(AK$11,Volumes!$B$4:$M$4,0),FALSE),0) -> 0 | AM132: 135.0033939 | AN132: 137.0127633 | AO132: 139.3201732 | AP132: 141.5588711 | AQ132: 144.1246862 | AR132: 145.389708 | AS132: 147.3364809 | AT132: 149.2873281 | AU132: 151.6566203 | AV132: 153.2012792 | AX132: 138.3109111 | AY132: 143.8084934 | AZ132: 149.8129213 | BA132: 155.9495454 | BB132: 162.6661369 | BC132: 168.1141225 | BD132: 174.5390397 | BE132: 181.1828097 | BF132: 188.5676437 | BG132: 195.1551192 | BJ132: 0 | BK132: 0 | BL132: 0 | BM132: 0 | BN132: 0 | BO132: 0 | BP132: 0 | BQ132: 0 | BR132: 0 | BS132: 0 | BV132: 0 | BW132: 0 | BX132: 0 | BY132: 0 | BZ132: 0 | CA132: 0 | CB132: 0 | CC132: 0 | CD132: 0 | CE132: 0
B133: =Inputs!$C127 -> New technology - Major | C133: Offered | D133: =IF($C133="NA","",'Unsmoothed Prices'!D131) ->  | E133: =IF($C133="NA","",'Smoothed Prices'!E133+$E$7) -> 48.49882259 | F133: 48.80458077 | G133: 49.10123381 | H133: 49.38905284 | I133: 49.66830093 | J133: =IF($C133="NA","",'Smoothed Prices'!J133+$J$7) -> 50.14430302 | K133: 50.69924548 | L133: 51.25534934 | M133: 51.81261701 | N133: 52.37105094 | O133: ='Smoothed Prices'!N133 -> 52.38050806 | Q133: =IF($C133="NA","",E133*Q$9) -> 49.68702006 | R133: 51.22525133 | S133: 52.7992401 | T133: 54.40987399 | U133: 56.05806232 | V133: 57.98185868 | W133: 60.05978673 | X133: 62.20613851 | Y133: 64.42305707 | Z133: 66.71275035 | AB133: =IFERROR(VLOOKUP($B133,Volumes!$B$39:$H$81,MATCH(AB$11,Volumes!$B$4:$H$4,0),FALSE),0) -> 0 | AC133: =IFERROR(VLOOKUP($B133,Volumes!$B$39:$H$81,MATCH(AC$11,Volumes!$B$4:$H$4,0),FALSE),0) -> 0 | AD133: =IFERROR(VLOOKUP($B133,Volumes!$B$39:$H$81,MATCH(AD$11,Volumes!$B$4:$H$4,0),FALSE),0) -> 0 | AE133: =IFERROR(VLOOKUP($B133,Volumes!$B$39:$H$81,MATCH(AE$11,Volumes!$B$4:$H$4,0),FALSE),0) -> 0 | AF133: =IFERROR(VLOOKUP($B133,Volumes!$B$39:$H$81,MATCH(AF$11,Volumes!$B$4:$H$4,0),FALSE),0) -> 0 | AG133: =IFERROR(VLOOKUP($B133,Volumes!$B$39:$M$81,MATCH(AG$11,Volumes!$B$4:$M$4,0),FALSE),0) -> 0 | AH133: =IFERROR(VLOOKUP($B133,Volumes!$B$39:$M$81,MATCH(AH$11,Volumes!$B$4:$M$4,0),FALSE),0) -> 0 | AI133: =IFERROR(VLOOKUP($B133,Volumes!$B$39:$M$81,MATCH(AI$11,Volumes!$B$4:$M$4,0),FALSE),0) -> 0 | AJ133: =IFERROR(VLOOKUP($B133,Volumes!$B$39:$M$81,MATCH(AJ$11,Volumes!$B$4:$M$4,0),FALSE),0) -> 0 | AK133: =IFERROR(VLOOKUP($B133,Volumes!$B$39:$M$81,MATCH(AK$11,Volumes!$B$4:$M$4,0),FALSE),0) -> 0 | AM133: =IF($C133="NA","",(E133*AM$9)/100) -> 177.5056907 | AN133: 178.1367198 | AO133: 179.2195034 | AP133: 180.2700429 | AQ133: 181.7859814 | AR133: 183.026706 | AS133: 185.052246 | AT133: 187.0820251 | AU133: 189.6341783 | AV133: 191.1543359 | AX133: =IF($C133="NA","",(Q133*AX$9)/100) -> 181.8544934 | AY133: 186.9721673 | AZ133: 192.7172264 | BA133: 198.5960401 | BB133: 205.1725081 | BC133: 211.6337842 | BD133: 219.2182215 | BE133: 227.0524056 | BF133: 235.7883889 | BG133: 243.5015388 | BJ133: =IFERROR(AM133*AB133,0) -> 0 | BK133: 0 | BL133: 0 | BM133: 0 | BN133: 0 | BO133: 0 | BP133: 0 | BQ133: 0 | BR133: 0 | BS133: 0 | BV133: =IFERROR(AX133*AB133,0) -> 0 | BW133: 0 | BX133: 0 | BY133: 0 | BZ133: 0 | CA133: 0 | CB133: 0 | CC133: 0 | CD133: 0 | CE133: 0
AB134: =SUM(AB75:AB131) -> 32500 | AC134: 31724 | AD134: 32151 | AE134: 32714 | AF134: 33321 | AG134: 33321 | AH134: 33321 | AI134: 33321 | AJ134: 33321 | AK134: 33321 | BJ134: =SUM(BJ75:BJ133) -> 5162350.799 | BK134: 5112410.108 | BL134: 5246113.598 | BM134: 5402801.356 | BN134: 5585867.224 | BO134: 5627513.547 | BP134: 5694020.602 | BQ134: 5760666.844 | BR134: 5843418.188 | BS134: 5894378.054 | BV134: =SUM(BV75:BV133) -> 5288825.872 | BW134: 5365981.81 | BX134: 5641218.966 | BY134: 5952042.489 | BZ134: 6304481.673 | CA134: 6507094.038 | CB134: 6745300.837 | CC134: 6991442.733 | CD134: 7265621.485 | CE134: 7508540.778
AB135: =Volumes!D82=AB134 -> TRUE | AC135: =Volumes!E82=AC134 -> TRUE | AD135: =Volumes!F82=AD134 -> TRUE | AE135: =Volumes!G82=AE134 -> TRUE | AF135: =Volumes!H82=AF134 -> TRUE | AG135: =Volumes!I82=AG134 -> TRUE | AH135: =Volumes!J82=AH134 -> TRUE | AI135: =Volumes!K82=AI134 -> TRUE | AJ135: =Volumes!L82=AJ134 -> TRUE | AK135: =Volumes!M82=AK134 -> TRUE
B136: Total | P136: =Q10 -> Price (cents) per Light per day Nominal Smoothed | Q136: =SUM(Q71,Q134) -> 0 | R136: =SUM(R71,R134) -> 0 | S136: =SUM(S71,S134) -> 0 | T136: 0 | U136: 0 | V136: =SUM(V71,V134) -> 0 | W136: =SUM(W71,W134) -> 0 | X136: =SUM(X71,X134) -> 0 | Y136: 0 | Z136: 0 | AB136: =SUM(AB71,AB134) -> 52072 | AC136: 52157 | AD136: 52584 | AE136: 53149 | AF136: 53771 | AG136: 53771 | AH136: 53771 | AI136: 53771 | AJ136: 53771 | AK136: 53771 | BJ136: =BJ134+BJ71 -> 6157521.742 | BK136: 6163817.654 | BL136: 6314081.097 | BM136: 6487000.915 | BN136: 6689562.816 | BO136: 6749938.844 | BP136: 6833723.421 | BQ136: 6917683.344 | BR136: 7021002.045 | BS136: 7086130.694 | BV136: =BV134+BV71 -> 6308378.016 | BW136: 6469538.381 | BX136: 6789619.282 | BY136: 7146460.24 | BZ136: 7550166.247 | CA136: 7804954.433 | CB136: 8095425.628 | CC136: 8395657.699 | CD136: 8729812.186 | CE136: 9026652.309
AB137: =Volumes!D86=AB136 -> TRUE | AC137: =Volumes!E86=AC136 -> TRUE | AD137: =Volumes!F86=AD136 -> TRUE | AE137: =Volumes!G86=AE136 -> TRUE | AF137: =Volumes!H86=AF136 -> TRUE | AG137: =Volumes!I86=AG136 -> TRUE | AH137: =Volumes!J86=AH136 -> TRUE | AI137: =Volumes!K86=AI136 -> TRUE | AJ137: =Volumes!L86=AJ136 -> TRUE | AK137: =Volumes!M86=AK136 -> TRUE
P138: Nominal Vanilla WACC | Q138: ='Master Data'!B45 -> 0.05509048696 | V138: =Q138 -> 0.05509048696
BV139: ='Smoothed Prices'!BV136 -> 7820574.21
Q140: =E11 -> 2019-20 | R140: 2020-21 | S140: 2021-22 | T140: 2022-23 | U140: 2023-24 | V140: 2024-25 | W140: 2025-26 | X140: 2026-27 | Y140: 2027-28 | Z140: 2028-29
P141: Unsmoothed Nominal Revenue | Q141: ='Unsmoothed Prices'!Q137*10^6 -> 8060610.359 | R141: ='Unsmoothed Prices'!R137*10^6 -> 8119280.409 | S141: ='Unsmoothed Prices'!S137*10^6 -> 7323368.312 | T141: ='Unsmoothed Prices'!T137*10^6 -> 7573258.146 | U141: ='Unsmoothed Prices'!U137*10^6 -> 7863363.042 | V141: ='Unsmoothed Prices'!V137*10^6 -> 8108940.036 | W141: ='Unsmoothed Prices'!W137*10^6 -> 8101520.801 | X141: ='Unsmoothed Prices'!X137*10^6 -> 8752718.75 | Y141: ='Unsmoothed Prices'!Y137*10^6 -> 8970766.746 | Z141: ='Unsmoothed Prices'!Z137*10^6 -> 8966742.136 | AA141: =SUM(V141:Z141)-SUM('Smoothed Prices'!V141:Z141) -> 0
P142: NPV | Q142: =NPV($Q$138,Q141:U141) -> 33293459.25 | V142: =NPV($V$138,V141:Z141) -> 36511829.92 | AA142: =SUM(V142:Z142)-SUM('Smoothed Prices'!V142:Z142) -> 0
AA143: =SUM(V143:Z143)-SUM('Smoothed Prices'!V143:Z143) -> 0
P144: Smoothed Nominal Revenue | Q144: =BV136 -> 6308378.016 | R144: =BW136 -> 6469538.381 | S144: =BX136 -> 6789619.282 | T144: 7146460.24 | U144: 7550166.247 | V144: =CA136 -> 7804954.433 | W144: =CB136 -> 8095425.628 | X144: 8395657.699 | Y144: 8729812.186 | Z144: 9026652.309 | AA144: =SUM(V144:Z144)-SUM('Smoothed Prices'!V144:Z144) -> -831107.4154
Q145: =NPV($Q$138,Q144:U144) -> 29112391.31 | V145: =NPV($V$138,V144:Z144) -> 35765625.33
P146: Difference in NPVs | Q146: =Q145-Q142 -> -4181067.94 | V146: =V145-V142 -> -746204.5872
P148: X Factor 2019-20 | Q148: ='Smoothed Prices'!R149 -> 0.02977890484 | V148: ='Smoothed Prices'!V148 -> -0.002092809345
P149: Adjustment ('A') - Contract Lighting | Q149: =E6 -> -4 | R149: =F6 -> 0.65 | S149: 0.65 | T149: 0.65 | U149: 0.65 | V149: -0.8 | W149: 0.2 | X149: 0.2 | Y149: 0.2 | Z149: 0.2
P150: Adjustment ('A') - Public Ligthing | Q150: =E7 -> -10 | R150: 1.75 | S150: 1.75 | T150: 1.75 | U150: 1.75 | V150: -1.8 | W150: 0.45 | X150: 0.45 | Y150: 0.45 | Z150: 0.45

Sheet Smoothed Prices
B1: $2018-19 base data
Q3: THIS TAKES 18/19 SMOOTHED PRICES ADDS CPI | AM3: THIS TAKES 18/19 SMOOTHED PRICES and multiplys by no.days in year/100 to convert $s into cents | AX3: THIS TAKES nominal and multiplys by no days in year/100
B4: Private Contract Lights
D8: Approved | E8: Unsmoothed | F8: X Factor (years 2-5) | J8: X Factor | P8: Days | Q8: ='Master Data'!K28 -> 366 | R8: ='Master Data'!L28 -> 365 | S8: ='Master Data'!M28 -> 365 | T8: ='Master Data'!N28 -> 365 | U8: ='Master Data'!O28 -> 366 | V8: 365 | W8: 365 | X8: 365 | Y8: 366 | Z8: 365
D9: Prices | E9: =Q149 -> 0.02977890484 | F9: =R149 -> 0.02977890484 | G9: =S149 -> 0.02977890484 | H9: =T149 -> 0.02977890484 | I9: 0.02977890484 | J9: =V148 -> -0.002092809345 | K9: =J9 -> -0.002092809345 | L9: =K9 -> -0.002092809345 | M9: =L9 -> -0.002092809345 | N9: =M9 -> -0.002092809345 | P9: CPI | Q9: ='Master Data'!K39 -> 1.024499511 | R9: ='Master Data'!L39 -> 1.049599249 | S9: ='Master Data'!M39 -> 1.075313918 | T9: ='Master Data'!N39 -> 1.101658584 | U9: ='Master Data'!O39 -> 1.128648681 | V9: ='Master Data'!P39 -> 1.156300022 | W9: ='Master Data'!Q39 -> 1.184628808 | X9: ='Master Data'!R39 -> 1.213651635 | Y9: ='Master Data'!S39 -> 1.243385507 | Z9: ='Master Data'!T39 -> 1.273847844 | AM9: =HLOOKUP(AM11,'Master Data'!$B$25:$P$28,4,FALSE) -> 366 | AN9: =HLOOKUP(AN11,'Master Data'!$B$25:$P$28,4,FALSE) -> 365 | AO9: =HLOOKUP(AO11,'Master Data'!$B$25:$P$28,4,FALSE) -> 365 | AP9: =HLOOKUP(AP11,'Master Data'!$B$25:$P$28,4,FALSE) -> 365 | AQ9: =HLOOKUP(AQ11,'Master Data'!$B$25:$P$28,4,FALSE) -> 366 | AR9: 365 | AS9: 365 | AT9: 365 | AU9: 366 | AV9: 365 | AX9: =HLOOKUP(AX11,'Master Data'!$B$25:$P$28,4,FALSE) -> 366 | AY9: =HLOOKUP(AY11,'Master Data'!$B$25:$P$28,4,FALSE) -> 365 | AZ9: =HLOOKUP(AZ11,'Master Data'!$B$25:$P$28,4,FALSE) -> 365 | BA9: =HLOOKUP(BA11,'Master Data'!$B$25:$P$28,4,FALSE) -> 365 | BB9: =HLOOKUP(BB11,'Master Data'!$B$25:$P$28,4,FALSE) -> 366 | BC9: 365 | BD9: 365 | BE9: 365 | BF9: 366 | BG9: 365
B10: Private Contract Lights | F10: Price (cents) per Light per day Real 2018/19 Smoothed | J10: Price (cents) per Light per day Real 2018/19 Smoothed | Q10: Price (cents) per Light per day Nominal Smoothed | AB10: Volumes | AM10: Smooth Real 2018/19 Cost Dollars Per Year | AX10: Smooth Nominal Cost Dollars Per Year | BJ10: Revenue Real Real Dollars Per Year | BV10: Revenue Nominal Dollars Per Year | CA10: Revenue Nominal Dollars Per Year
C11: Offered / No Longer Offered / NA | D11: ='Master Data'!J$34 -> 2018-19 | E11: ='Master Data'!K$34 -> 2019-20 | F11: ='Master Data'!L$34 -> 2020-21 | G11: ='Master Data'!M$34 -> 2021-22 | H11: ='Master Data'!N$34 -> 2022-23 | I11: ='Master Data'!O$34 -> 2023-24 | J11: ='Master Data'!P$34 -> 2024-25 | K11: ='Master Data'!Q$34 -> 2025-26 | L11: ='Master Data'!R$34 -> 2026-27 | M11: ='Master Data'!S$34 -> 2027-28 | N11: ='Master Data'!T$34 -> 2028-29 | Q11: ='Master Data'!K$34 -> 2019-20 | R11: ='Master Data'!L$34 -> 2020-21 | S11: ='Master Data'!M$34 -> 2021-22 | T11: ='Master Data'!N$34 -> 2022-23 | U11: ='Master Data'!O$34 -> 2023-24 | V11: ='Master Data'!P$34 -> 2024-25 | W11: ='Master Data'!Q$34 -> 2025-26 | X11: ='Master Data'!R$34 -> 2026-27 | Y11: ='Master Data'!S$34 -> 2027-28 | Z11: ='Master Data'!T$34 -> 2028-29 | AB11: ='Master Data'!K$34 -> 2019-20 | AC11: ='Master Data'!L$34 -> 2020-21 | AD11: ='Master Data'!M$34 -> 2021-22 | AE11: ='Master Data'!N$34 -> 2022-23 | AF11: ='Master Data'!O$34 -> 2023-24 | AG11: ='Master Data'!P$34 -> 2024-25 | AH11: ='Master Data'!Q$34 -> 2025-26 | AI11: ='Master Data'!R$34 -> 2026-27 | AJ11: ='Master Data'!S$34 -> 2027-28 | AK11: ='Master Data'!T$34 -> 2028-29 | AM11: ='Master Data'!K$34 -> 2019-20 | AN11: ='Master Data'!L$34 -> 2020-21 | AO11: ='Master Data'!M$34 -> 2021-22 | AP11: ='Master Data'!N$34 -> 2022-23 | AQ11: ='Master Data'!O$34 -> 2023-24 | AR11: ='Master Data'!P$34 -> 2024-25 | AS11: ='Master Data'!Q$34 -> 2025-26 | AT11: ='Master Data'!R$34 -> 2026-27 | AU11: ='Master Data'!S$34 -> 2027-28 | AV11: ='Master Data'!T$34 -> 2028-29 | AX11: ='Master Data'!K$34 -> 2019-20 | AY11: ='Master Data'!L$34 -> 2020-21 | AZ11: ='Master Data'!M$34 -> 2021-22 | BA11: ='Master Data'!N$34 -> 2022-23 | BB11: ='Master Data'!O$34 -> 2023-24 | BC11: ='Master Data'!P$34 -> 2024-25 | BD11: ='Master Data'!Q$34 -> 2025-26 | BE11: ='Master Data'!R$34 -> 2026-27 | BF11: ='Master Data'!S$34 -> 2027-28 | BG11: ='Master Data'!T$34 -> 2028-29 | BJ11: ='Master Data'!K$34 -> 2019-20 | BK11: ='Master Data'!L$34 -> 2020-21 | BL11: ='Master Data'!M$34 -> 2021-22 | BM11: ='Master Data'!N$34 -> 2022-23 | BN11: ='Master Data'!O$34 -> 2023-24 | BO11: ='Master Data'!P$34 -> 2024-25 | BP11: ='Master Data'!Q$34 -> 2025-26 | BQ11: ='Master Data'!R$34 -> 2026-27 | BR11: ='Master Data'!S$34 -> 2027-28 | BS11: ='Master Data'!T$34 -> 2028-29 | BV11: ='Master Data'!K$34 -> 2019-20 | BW11: ='Master Data'!L$34 -> 2020-21 | BX11: ='Master Data'!M$34 -> 2021-22 | BY11: ='Master Data'!N$34 -> 2022-23 | BZ11: ='Master Data'!O$34 -> 2023-24 | CA11: ='Master Data'!P$34 -> 2024-25 | CB11: ='Master Data'!Q$34 -> 2025-26 | CC11: ='Master Data'!R$34 -> 2026-27 | CD11: ='Master Data'!S$34 -> 2027-28 | CE11: ='Master Data'!T$34 -> 2028-29
B12: =Inputs!$C69 -> 32W Compact Fluorescent | C12: Old light no volumes | D12: =IF($C12="NA","",'Unsmoothed Prices'!D10) -> 18.221 | E12: =IF($C12="NA","",('Unsmoothed Prices'!E10*(1-E$9))) -> 22.70969877 | F12: =IF($C12="NA","",E12*(1-F$9)) -> 22.03342881 | G12: =IF($C12="NA","",F12*(1-G$9)) -> 21.37729743 | H12: 20.74070492 | I12: 20.12306944 | J12: =IF($C12="NA","",I12*(1-J$9)) -> 20.16518319 | K12: =IF($C12="NA","",J12*(1-K$9)) -> 20.20738508 | L12: =IF($C12="NA","",K12*(1-L$9)) -> 20.24967528 | M12: =IF($C12="NA","",L12*(1-M$9)) -> 20.29205399 | N12: =IF($C12="NA","",M12*(1-N$9)) -> 20.33452139 | Q12: =IF($C12="NA","",E12*Q$9) -> 23.26607529 | R12: 23.12627033 | S12: 22.98730545 | T12: 22.84917561 | U12: 22.71187578 | V12: =IF($C12="NA","",J12*V$9) -> 23.31700177 | W12: =IF($C12="NA","",K12*W$9) -> 23.93825049 | X12: =IF($C12="NA","",L12*X$9) -> 24.57605151 | Y12: =IF($C12="NA","",M12*Y$9) -> 25.23084584 | Z12: =IF($C12="NA","",N12*Z$9) -> 25.90308624 | AB12: =IFERROR(VLOOKUP($B12,Volumes!$B$4:$H$33,MATCH(AB$11,Volumes!$B$4:$H$4,0),FALSE),0) -> 0 | AC12: =IFERROR(VLOOKUP($B12,Volumes!$B$4:$H$33,MATCH(AC$11,Volumes!$B$4:$H$4,0),FALSE),0) -> 0 | AD12: =IFERROR(VLOOKUP($B12,Volumes!$B$4:$H$33,MATCH(AD$11,Volumes!$B$4:$H$4,0),FALSE),0) -> 0 | AE12: =IFERROR(VLOOKUP($B12,Volumes!$B$4:$H$33,MATCH(AE$11,Volumes!$B$4:$H$4,0),FALSE),0) -> 0 | AF12: =IFERROR(VLOOKUP($B12,Volumes!$B$4:$H$33,MATCH(AF$11,Volumes!$B$4:$H$4,0),FALSE),0) -> 0 | AG12: =IFERROR(VLOOKUP($B12,Volumes!$B$4:$M$33,MATCH(AG$11,Volumes!$B$4:$M$4,0),FALSE),0) -> 0 | AH12: =IFERROR(VLOOKUP($B12,Volumes!$B$4:$M$33,MATCH(AH$11,Volumes!$B$4:$M$4,0),FALSE),0) -> 0 | AI12: =IFERROR(VLOOKUP($B12,Volumes!$B$4:$M$33,MATCH(AI$11,Volumes!$B$4:$M$4,0),FALSE),0) -> 0 | AJ12: =IFERROR(VLOOKUP($B12,Volumes!$B$4:$M$33,MATCH(AJ$11,Volumes!$B$4:$M$4,0),FALSE),0) -> 0 | AK12: =IFERROR(VLOOKUP($B12,Volumes!$B$4:$M$33,MATCH(AK$11,Volumes!$B$4:$M$4,0),FALSE),0) -> 0 | AM12: =IF($C12="NA","",(E12*AM$9)/100) -> 83.11749748 | AN12: 80.42201515 | AO12: 78.02713561 | AP12: 75.70357297 | AQ12: 73.65043417 | AR12: =IF($C12="NA","",(J12*AR$9)/100) -> 73.60291865 | AS12: =IF($C12="NA","",(K12*AS$9)/100) -> 73.75695553 | AT12: =IF($C12="NA","",(L12*AT$9)/100) -> 73.91131477 | AU12: =IF($C12="NA","",(M12*AU$9)/100) -> 74.2689176 | AV12: =IF($C12="NA","",(N12*AV$9)/100) -> 74.22100307 | AX12: =IF($C12="NA","",(Q12*AX$9)/100) -> 85.15383557 | AY12: 84.41088671 | AZ12: 83.9036649 | BA12: 83.39949096 | BB12: 83.12546535 | BC12: 85.10705645 | BD12: =IF($C12="NA","",(W12*BD$9)/100) -> 87.37461428 | BE12: =IF($C12="NA","",(X12*BE$9)/100) -> 89.702588 | BF12: =IF($C12="NA","",(Y12*BF$9)/100) -> 92.34489576 | BG12: =IF($C12="NA","",(Z12*BG$9)/100) -> 94.54626477 | BJ12: =IFERROR(AM12*AB12,0) -> 0 | BK12: 0 | BL12: 0 | BM12: 0 | BN12: 0 | BO12: 0 | BP12: =IFERROR(AS12*AH12,0) -> 0 | BQ12: =IFERROR(AT12*AI12,0) -> 0 | BR12: =IFERROR(AU12*AJ12,0) -> 0 | BS12: =IFERROR(AV12*AK12,0) -> 0 | BV12: =IFERROR(AX12*AB12,0) -> 0 | BW12: 0 | BX12: 0 | BY12: 0 | BZ12: 0 | CA12: 0 | CB12: 0 | CC12: 0 | CD12: 0 | CE12: 0
B13: =Inputs!$C70 -> 42W Compact Fluorescent | C13: Old light no volumes | D13: =IF($C13="NA","",'Unsmoothed Prices'!D11) -> 18.222 | E13: =IF($C13="NA","",('Unsmoothed Prices'!E11*(1-E$9))) -> 22.70969877 | F13: =IF($C13="NA","",E13*(1-F$9)) -> 22.03342881 | G13: 21.37729743 | H13: 20.74070492 | I13: 20.12306944 | J13: =IF($C13="NA","",I13*(1-J$9)) -> 20.16518319 | K13: 20.20738508 | L13: 20.24967528 | M13: 20.29205399 | N13: 20.33452139 | Q13: 23.26607529 | R13: 23.12627033 | S13: 22.98730545 | T13: 22.84917561 | U13: 22.71187578 | V13: 23.31700177 | W13: 23.93825049 | X13: 24.57605151 | Y13: 25.23084584 | Z13: 25.90308624 | AB13: =IFERROR(VLOOKUP($B13,Volumes!$B$4:$H$33,MATCH(AB$11,Volumes!$B$4:$H$4,0),FALSE),0) -> 28 | AC13: =IFERROR(VLOOKUP($B13,Volumes!$B$4:$H$33,MATCH(AC$11,Volumes!$B$4:$H$4,0),FALSE),0) -> 28 | AD13: =IFERROR(VLOOKUP($B13,Volumes!$B$4:$H$33,MATCH(AD$11,Volumes!$B$4:$H$4,0),FALSE),0) -> 28 | AE13: =IFERROR(VLOOKUP($B13,Volumes!$B$4:$H$33,MATCH(AE$11,Volumes!$B$4:$H$4,0),FALSE),0) -> 28 | AF13: =IFERROR(VLOOKUP($B13,Volumes!$B$4:$H$33,MATCH(AF$11,Volumes!$B$4:$H$4,0),FALSE),0) -> 28 | AG13: =IFERROR(VLOOKUP($B13,Volumes!$B$4:$M$33,MATCH(AG$11,Volumes!$B$4:$M$4,0),FALSE),0) -> 28 | AH13: =IFERROR(VLOOKUP($B13,Volumes!$B$4:$M$33,MATCH(AH$11,Volumes!$B$4:$M$4,0),FALSE),0) -> 28 | AI13: =IFERROR(VLOOKUP($B13,Volumes!$B$4:$M$33,MATCH(AI$11,Volumes!$B$4:$M$4,0),FALSE),0) -> 28 | AJ13: =IFERROR(VLOOKUP($B13,Volumes!$B$4:$M$33,MATCH(AJ$11,Volumes!$B$4:$M$4,0),FALSE),0) -> 28 | AK13: =IFERROR(VLOOKUP($B13,Volumes!$B$4:$M$33,MATCH(AK$11,Volumes!$B$4:$M$4,0),FALSE),0) -> 28 | AM13: 83.11749748 | AN13: 80.42201515 | AO13: 78.02713561 | AP13: 75.70357297 | AQ13: 73.65043417 | AR13: =IF($C13="NA","",(J13*AR$9)/100) -> 73.60291865 | AS13: =IF($C13="NA","",(K13*AS$9)/100) -> 73.75695553 | AT13: =IF($C13="NA","",(L13*AT$9)/100) -> 73.91131477 | AU13: =IF($C13="NA","",(M13*AU$9)/100) -> 74.2689176 | AV13: =IF($C13="NA","",(N13*AV$9)/100) -> 74.22100307 | AX13: 85.15383557 | AY13: 84.41088671 | AZ13: 83.9036649 | BA13: 83.39949096 | BB13: 83.12546535 | BC13: =IF($C13="NA","",(V13*BC$9)/100) -> 85.10705645 | BD13: =IF($C13="NA","",(W13*BD$9)/100) -> 87.37461428 | BE13: =IF($C13="NA","",(X13*BE$9)/100) -> 89.702588 | BF13: =IF($C13="NA","",(Y13*BF$9)/100) -> 92.34489576 | BG13: =IF($C13="NA","",(Z13*BG$9)/100) -> 94.54626477 | BJ13: 2327.28993 | BK13: 2251.816424 | BL13: 2184.759797 | BM13: 2119.700043 | BN13: 2062.212157 | BO13: =IFERROR(AR13*AG13,0) -> 2060.881722 | BP13: =IFERROR(AS13*AH13,0) -> 2065.194755 | BQ13: =IFERROR(AT13*AI13,0) -> 2069.516814 | BR13: =IFERROR(AU13*AJ13,0) -> 2079.529693 | BS13: =IFERROR(AV13*AK13,0) -> 2078.188086 | BV13: 2384.307396 | BW13: 2363.504828 | BX13: 2349.302617 | BY13: 2335.185747 | BZ13: 2327.51303 | CA13: 2382.997581 | CB13: 2446.4892 | CC13: 2511.672464 | CD13: 2585.657081 | CE13: 2647.295414
